Workbook

Sheet Menu
Z1: 2
Z4: 2
A6: West Central Extension District - 7
D8: Budgets
D11: Forage Crops
D13: =+AlfalfaEstab!A3 -> Alfalfa, Roundup Ready, Establishment, Center Pivot Irrigated
D14: =AlfalfaPivot!A3 -> Alfalfa, RoundUp Ready, Full Season, Baled - 6.5 ton, Center Pivot Irrigated
D15: =CoastalEstablishDryland!A3 -> Dryland Bermudagrass Establishment
D16: =CoastalHayDryland!A3 -> Dryland Bermudagrass Hay
D17: =OatsDryland!A3 -> Dryland Forage Oats, Follow Small Grains
B18: Comparative Returns | D18: =SorghumHaygrazer!A3 -> Non-Irrigated Sorghum Haygrazer, 3 ton yield
D20: Field Crops
D22: =DrylandCanola!A3 -> Dryland Canola
D23: =CottonDripXF!A3 -> Drip Irrigated Cotton, Extend Flex (Dicamba)
D24: =CottonDripRF!A3 -> Drip Irrigated Cotton, RF
D25: =CottonDrylandRF!A3 -> Dryland Cotton, B2RF, Follow Wheat
D26: =CottonDrylandXF!A3 -> Dryland Cotton, B2XF, Follow Wheat
D27: =OatsGrainDryland!A3 -> Dryland Oats, Follow Small Grains
D28: =SunflowersDryland!A3 -> Non-Irrigated Sunflowers (Non-Confectionary)
D29: =SesameDryland!A3 -> Dryland Sesame
D30: =SorghumDryland!A3 -> No-Till Dryland Sorghum, Follow Cotton
D31: =ConTillWheat!A3 -> Con-Till Wheat, Dryland, Follow Wheat
D32: =WheatDryland!A3 -> No-Till Wheat, Dryland, Follow Cotton
D34: Livestock
D36: =+CowCalf!A3 -> Cow-Calf Native Pasture
D37: =CommercialHairSheep!A3 -> Commercial Hair Sheep, Lamb Production, 6 Head per AU
D38: =CommercialSheep!A3 -> Commercial Sheep, Wool/Lamb Production, 5 Head per AU
D39: =MeatGoats!A3 -> Commercial Meat Goats, 6 Head per AU
D40: =SmallAcreageGoat!A3 -> Small Acreage Meat Goats
D41: =SmallAcreageHairSheep!A3 -> Small Acreage Hair Sheep
D42: =+NativePastureStockers!A3 -> Stocker Calf Budget - Native Pasture - Summer
D43: =+WheatStockersMar15!A3 -> Stocker Calf Budget - Pull off Wheat March 15
D44: =FatLambs!A3 -> Wool Breed Fat Lamb Budget - Commercial Feedlot
D46: Other Budgets
D48: ='Livestock Budget'!A3 -> Livestock Enterprise
D49: ='Crop Budget'!A3 -> Crop Enterprise
A63: Developed by Bill Thompson, Associate Professor and Extension Economist, Texas A&M AgriLife Extension Service, 325-653-4576.

Sheet DrylandCanola
A1: Projections for Planning Purposes Only -- Not to be Used without Updating
A2: 2018 Estimated Costs and Returns per Acre
A3: Dryland Canola
A4: Enter your name for this budget in the cell above.
A5: Enter Your Values in the cells highlighed in MAROON.
E6: Your Acres | R6: Your
C7: Crop Acres | D7: 320 | L7: Your | Q7: Enterprise | R7: Enterprise
E8: Your | H8: Your | I8: Cash | J8: Your | K8: Landlord | L8: Landlord | N8: Your | P8: Your | Q8: Total | R8: Total
A9: REVENUE | D9: Quantity | E9: Quantity | F9: Units | G9: $/Unit | H9: $/Unit | I9: Total | J9: Total | K9: Share | L9: Share | M9: Landlord | N9: Landlord | O9: Tenant | P9: Tenant | Q9: (320 acres) | R9: ="(" & E7 & " acres)" -> ( acres)
B10: Canola | D10: 1250 | F10: Pound | G10: 0.08 | I10: 100 | J10: =E10*H10 -> 0 | K10: 0 | M10: 0 | N10: =J10*L10 -> 0 | O10: 100 | P10: =+J10-N10 -> 0 | Q10: 32000 | R10: =+J10*E$7 -> 0
D11: 0 | G11: 0 | I11: 0 | J11: 0 | K11: 0 | M11: 0 | N11: 0 | O11: 0 | P11: =+J11-N11 -> 0 | Q11: 0 | R11: 0
D12: 0 | G12: 0 | I12: 0 | J12: 0 | K12: 0 | M12: 0 | N12: 0 | O12: 0 | P12: 0 | Q12: 0 | R12: 0
A13: Total Revenue | I13: 100 | J13: =SUM(J10:J12) -> 0 | M13: 0 | N13: =SUM(N10:N12) -> 0 | O13: 100 | P13: =SUM(P10:P12) -> 0 | Q13: 32000 | R13: =SUM(R10:R12) -> 0
Q14: Enterprise | R14: Enterprise
A15: VARIABLE COSTS | D15: Quantity | E15: Quantity | F15: Units | G15: $/Unit | H15: $/Unit | I15: Total | J15: Total | K15: Share | L15: Share | M15: Landlord | N15: Landlord | O15: Tenant | P15: Tenant | Q15: Total | R15: Total
A16: Production Costs
B17: Fertilizer
C18: Sulphur | D18: 20 | F18: Pounds | G18: 0.5875 | I18: 11.75 | J18: =E18*H18 -> 0 | K18: 0 | M18: 0 | N18: =J18*L18 -> 0 | O18: 11.75 | P18: =+J18-N18 -> 0 | Q18: 3760 | R18: =+J18*E$7 -> 0
C19: Nitrogen Dry-Urea | D19: 3.8 | F19: Pounds | G19: 0.37 | I19: 1.406 | J19: 0 | K19: 0 | M19: 0 | N19: 0 | O19: 1.406 | P19: 0 | Q19: 449.92 | R19: 0
C20: Phos (11-52-0 DRY MAT) | D20: 18.2 | F20: Pounds | G20: 0.442 | I20: 8.0444 | J20: 0 | K20: 0 | M20: 0 | N20: 0 | O20: 8.0444 | P20: 0 | Q20: 2574.208 | R20: 0
C21: Nitrogen N32-liq | D21: 35.2 | F21: Pounds | G21: 0.35 | I21: 12.32 | J21: 0 | K21: 0 | M21: 0 | N21: 0 | O21: 12.32 | P21: 0 | Q21: 3942.4 | R21: 0
B22: Custom
C23: Soil Test-Dryland | D23: 1 | F23: Each | G23: 0.25 | I23: 0.25 | J23: 0 | K23: 0 | M23: 0 | N23: 0 | O23: 0.25 | P23: 0 | Q23: 80 | R23: 0
C24: Custom Harvest small grains | D24: 1 | F24: Acre | G24: 25 | I24: 25 | J24: 0 | K24: 0 | M24: 0 | N24: 0 | O24: 25 | P24: 0 | Q24: 8000 | R24: 0
C25: Custom Haul small grains | D25: 25 | F25: Bushels | G25: 0.27 | I25: 6.75 | J25: 0 | K25: 0 | M25: 0 | N25: 0 | O25: 6.75 | P25: 0 | Q25: 2160 | R25: 0
B26: Insecticide
C27: Mustang Max(Warrior Z) | D27: 2.75 | F27: Ounce | G27: 1.25 | I27: 3.4375 | J27: 0 | K27: 0 | M27: 0 | N27: 0 | O27: 3.4375 | P27: 0 | Q27: 1100 | R27: 0
B28: Herbicide
C29: Trifluralin | D29: 1.5 | F29: Pint | G29: 2.9375 | I29: 4.40625 | J29: 0 | K29: 0 | M29: 0 | N29: 0 | O29: 4.40625 | P29: 0 | Q29: 1410 | R29: 0
C30: Glyphosate | D30: 32 | F30: Ounce | G30: 0.13 | I30: 4.16 | J30: 0 | K30: 0 | M30: 0 | N30: 0 | O30: 4.16 | P30: 0 | Q30: 1331.2 | R30: 0
B31: Seed
C32: Canola | D32: 5 | F32: pounds | G32: 10 | I32: 50 | J32: 0 | K32: 0 | M32: 0 | N32: 0 | O32: 50 | P32: 0 | Q32: 16000 | R32: 0
B33: Miscellaneous
C34: Canola/Sunflower Crop Ins | D34: 1 | F34: Acre | G34: 12.42 | I34: 12.42 | J34: 0 | K34: 0 | M34: 0 | N34: 0 | O34: 12.42 | P34: 0 | Q34: 3974.4 | R34: 0
C35: Duct Tape | D35: 0.031253 | F35: Roll | G35: 4 | I35: 0.125012 | J35: 0 | K35: 0 | M35: 0 | N35: 0 | O35: 0.125012 | P35: 0 | Q35: 40.00384 | R35: 0
D36: 0 | G36: 0 | I36: 0 | J36: 0 | K36: 0 | M36: 0 | N36: 0 | O36: 0 | P36: 0 | Q36: 0 | R36: 0
D37: 0 | G37: 0 | I37: 0 | J37: 0 | K37: 0 | M37: 0 | N37: 0 | O37: 0 | P37: 0 | Q37: 0 | R37: 0
D38: 0 | G38: 0 | I38: 0 | J38: =E38*H38 -> 0 | K38: 0 | M38: 0 | N38: =J38*L38 -> 0 | O38: 0 | P38: =+J38-N38 -> 0 | Q38: 0 | R38: =+J38*E$7 -> 0
B39: Machinery Labor
C40: Tractors/Self-Propelled | D40: 0.62 | F40: Hour | G40: 12 | I40: 7.44 | J40: =E40*H40 -> 0 | K40: 0 | M40: 0 | N40: =J40*L40 -> 0 | O40: 7.44 | P40: =+J40-N40 -> 0 | Q40: 2380.8 | R40: =+J40*E$7 -> 0
C41: Other Labor | D41: 0 | F41: Hour | G41: 12 | I41: 0 | J41: =E41*H41 -> 0 | K41: 0 | M41: 0 | N41: =J41*L41 -> 0 | O41: 0 | P41: =+J41-N41 -> 0 | Q41: 0 | R41: =+J41*E$7 -> 0
B43: Diesel Fuel
C44: Pickup/General Use Equipment | D44: 1 | F44: Acre | G44: 0 | I44: 0 | J44: =E44*H44 -> 0 | K44: 0 | M44: 0 | N44: =J44*L44 -> 0 | O44: 0 | P44: =+J44-N44 -> 0 | Q44: 0 | R44: =+J44*E$7 -> 0
C45: Tractors/Self-Propelled | D45: 6.38 | F45: Gallon | G45: 2.15 | I45: 13.717 | J45: =E45*H45 -> 0 | K45: 0 | M45: 0 | N45: =J45*L45 -> 0 | O45: 13.717 | P45: =+J45-N45 -> 0 | Q45: 4389.44 | R45: =+J45*E$7 -> 0
B47: Gasoline
C48: Pickup/General Use Equipment | D48: 1 | F48: Acre | G48: 1.5165 | I48: 1.5165 | J48: =E48*H48 -> 0 | K48: 0 | M48: 0 | N48: =J48*L48 -> 0 | O48: 1.5165 | P48: =+J48-N48 -> 0 | Q48: 485.28 | R48: =+J48*E$7 -> 0
C49: Tractors/Self-Propelled | D49: 0 | F49: Gallon | G49: 2.4 | I49: 0 | J49: =E49*H49 -> 0 | K49: 0 | M49: 0 | N49: =J49*L49 -> 0 | O49: 0 | P49: =+J49-N49 -> 0 | Q49: 0 | R49: =+J49*E$7 -> 0
B51: Repairs & Maintenance
C52: Pickup/General Use Equipment | D52: 1 | F52: Acre | G52: 0.684375 | I52: 0.684375 | J52: =E52*H52 -> 0 | K52: 0 | M52: 0 | N52: =J52*L52 -> 0 | O52: 0.684375 | P52: =+J52-N52 -> 0 | Q52: 219 | R52: =+J52*E$7 -> 0
C53: Irrigation Equipment | D53: 1 | F53: Acre | G53: 0 | I53: 0 | J53: 0 | K53: 0 | M53: 0 | N53: 0 | O53: 0 | P53: 0 | Q53: 0 | R53: 0
C54: Tractors/Self-Propelled | D54: 1 | F54: Acre | G54: 15.20032529 | I54: 15.20032529 | J54: 0 | K54: 0 | M54: 0 | N54: 0 | O54: 15.20032529 | P54: 0 | Q54: 4864.104092 | R54: 0
C55: Implements | D55: 1 | F55: Acre | G55: 13.95046902 | I55: 13.95046902 | J55: 0 | K55: 0 | M55: 0 | N55: 0 | O55: 13.95046902 | P55: 0 | Q55: 4464.150085 | R55: 0
I56: 0 | J56: 0 | K56: 0 | M56: 0 | N56: 0 | O56: 0 | P56: 0 | Q56: 0 | R56: 0
I57: 0 | J57: 0 | K57: 0 | M57: 0 | N57: 0 | O57: 0 | P57: 0 | Q57: 0 | R57: 0
B58: Interest on Credit Line | G58: 0.06 | I58: 6.05378361 | J58: =+SUM(J17:J57)/2*H58 -> 0 | M58: 0 | N58: =+SUM(N17:N57)/2*L58 -> 0 | O58: 6.05378361 | P58: =+SUM(P17:P57)/2*L58 -> 0 | Q58: 1937.210755 | R58: =+J58*E$7 -> 0
A59: Total Variable Costs | I59: 198.6316149 | J59: =SUM(J18:J58) -> 0 | M59: 0 | N59: =SUM(N18:N58) -> 0 | O59: 198.6316149 | P59: =SUM(P18:P58) -> 0 | Q59: 63562.11677 | R59: =SUM(R18:R58) -> 0
A60: Planned Returns Above Variable Costs: | I60: -98.63161491 | J60: =+J13-J59 -> 0 | M60: 0 | N60: =+N13-N59 -> 0 | O60: -98.63161491 | P60: =+P13-P59 -> 0 | Q60: -31562.11677 | R60: =+R13-R59 -> 0
B61: Breakeven Price to Cover Variable Costs | G61: 0.1589052919 | H61: =IF(E10=0,"n/a",(YVarExp-(YTotExp+YTotRet-J10))/E10) -> n/a | I61: Pound
Q62: Enterprise | R62: Enterprise
A63: FIXED COSTS | D63: Quantity | E63: Quantity | F63: Units | G63: $/Unit | H63: $/Unit | I63: Total | J63: Total | K63: Share | L63: Share | M63: Landlord | N63: Landlord | O63: Tenant | P63: Tenant | Q63: Total | R63: Total
B64: Machinery Depreciation
C65: Pickup/General Use Equipment | D65: 1 | F65: Acre | G65: 1.45125 | I65: 1.45125 | J65: =E65*H65 -> 0 | K65: 0 | M65: 0 | N65: =J65*L65 -> 0 | O65: 1.45125 | P65: =+J65-N65 -> 0 | Q65: 464.4 | R65: =+J65*E$7 -> 0
C66: Tractors/Self-Propelled | D66: 1 | F66: Acre | G66: 18.22617496 | I66: 18.22617496 | J66: 0 | K66: 0 | M66: 0 | N66: =J66*L66 -> 0 | O66: 18.22617496 | P66: 0 | Q66: 5832.375988 | R66: 0
C67: Implements | D67: 1 | F67: Acre | G67: 17.39395573 | I67: 17.39395573 | J67: 0 | K67: 0 | M67: 0 | N67: =J67*L67 -> 0 | O67: 17.39395573 | P67: 0 | Q67: 5566.065834 | R67: 0
B68: Equipment Investment
C69: Pickup/General Use Equipment | D69: 8.04375 | F69: Dollars | G69: 0.06 | I69: 0.482625 | J69: =E69*H69 -> 0 | K69: 0 | M69: 0 | N69: =J69*L69 -> 0 | O69: 0.482625 | P69: =+J69-N69 -> 0 | Q69: 154.44 | R69: =+J69*E$7 -> 0
C70: Tractors/Self-Propelled | D70: 140.8172881 | F70: Dollars | G70: 0.06 | I70: 8.449037283 | J70: 0 | K70: 0 | M70: 0 | N70: =J70*L70 -> 0 | O70: 8.449037283 | P70: 0 | Q70: 2703.691931 | R70: 0
C71: Implements | D71: 74.40747729 | F71: Dollars | G71: 0.06 | I71: 4.464448637 | J71: 0 | K71: 0 | M71: 0 | N71: =J71*L71 -> 0 | O71: 4.464448637 | P71: 0 | Q71: 1428.623564 | R71: 0
B72: Salaried Labor | D72: 1 | F72: Acre | G72: 0 | I72: 0 | J72: 0 | K72: 0 | M72: 0 | N72: =J72*L72 -> 0 | O72: 0 | P72: =+J72-N72 -> 0 | Q72: 0 | R72: =+J72*E$7 -> 0
B73: Management Fee, Owner/Operator Labor | D73: 1 | F73: Acre | G73: 10 | I73: 10 | J73: 0 | K73: 0 | M73: 0 | N73: 0 | O73: 10 | P73: 0 | Q73: 3200 | R73: 0
B74: Allocated Establishment Cost | D74: 1 | F74: Acre | G74: 0 | I74: 0 | J74: 0 | K74: 0 | M74: 0 | N74: 0 | O74: 0 | P74: 0 | Q74: 0 | R74: 0
B75: Rent-Dryland Crop | D75: 1 | F75: Acre | G75: 35 | I75: 35 | J75: 0 | K75: 0 | M75: 0 | N75: 0 | O75: 35 | P75: 0 | Q75: 11200 | R75: 0
B76: Property Taxes | D76: 1 | F76: Acre | G76: 0 | I76: 0 | J76: 0 | K76: 0 | M76: 0 | N76: 0 | O76: 0 | P76: 0 | Q76: 0 | R76: 0
B77: Whole Farm Insurance | D77: 1 | F77: Acre | G77: 0 | I77: 0 | J77: 0 | K77: 0 | M77: 0 | N77: 0 | O77: 0 | P77: 0 | Q77: 0 | R77: 0
D78: 1 | G78: 0 | I78: 0 | J78: 0 | K78: 0 | M78: 0 | N78: 0 | O78: 0 | P78: 0 | Q78: 0 | R78: 0
D79: 1 | G79: 0 | I79: 0 | J79: =E79*H79 -> 0 | K79: 0 | M79: 0 | N79: 0 | O79: 0 | P79: 0 | Q79: 0 | R79: 0
A80: Total Fixed Costs | I80: 95.46749161 | J80: =+SUM(J65:J79) -> 0 | M80: 0 | N80: =+SUM(N65:N79) -> 0 | O80: 95.46749161 | P80: =+SUM(P65:P79) -> 0 | Q80: 30549.59732 | R80: =+SUM(R65:R79) -> 0
A81: Total Specified Costs | I81: 294.0991065 | J81: =+J59+J80 -> 0 | M81: 0 | N81: =+N59+N80 -> 0 | O81: 294.0991065 | P81: =+P59+P80 -> 0 | Q81: 94111.71409 | R81: =+R59+R80 -> 0
A83: Returns Above Specified Costs | I83: -194.0991065 | J83: =+J13-J81 -> 0 | M83: 0 | N83: =+N13-N81 -> 0 | O83: -194.0991065 | P83: =+P13-P81 -> 0 | Q83: -62111.71409 | R83: =+R13-R81 -> 0
A85: Breakeven Price to Cover Total Costs | G85: 0.2352792852 | H85: =IF(E10=0,"n/a",(YTotExp-(YTotExp+YTotRet-J10))/E10) -> n/a | I85: Pound
D87: Example Breakeven Prices
B88: Example | C88: Example | D88: To Cover | G88: To Cover
B89: Yield | C89: Yield | D89: Variable | G89: Total
B90: Percent | C90: Pound | D90: Costs | G90: Costs
B91: 0.75 | C91: 937.5 | D91: 0.2118737226 | G91: 0.3137057136
B92: 0.9 | C92: 1125 | D92: 0.1765614355 | G92: 0.261421428
B93: 1 | C93: 1250 | D93: 0.1589052919 | G93: 0.2352792852
B94: 1.1 | C94: 1375 | D94: 0.1444593563 | G94: 0.2138902593
B95: 1.25 | C95: 1562.5 | D95: 0.1271242335 | G95: 0.1882234282
D97: Your Breakeven Prices
B98: Your | C98: Your | E98: To Cover | H98: To Cover
B99: Yield | C99: Yield | E99: Variable | H99: Total
B100: Percent | C100: Pound | E100: Costs | H100: Costs
B101: 0.75 | C101: =E10*YPER1 -> 0 | E101: =IF($E$10=0,0,(YVarExp-(YTotExp+YTotRet-J10))/($E$10*YPER1)) -> 0 | H101: =IF($E$10=0,0,(YTotExp-(YTotExp+YTotRet-J10))/($E$10*YPER1)) -> 0
B102: 0.9 | C102: =E10*YPER2 -> 0 | E102: =IF($E$10=0,0,(YVarExp-(YTotExp+YTotRet-J10))/($E$10*YPER2)) -> 0 | H102: =IF($E$10=0,0,(YTotExp-(YTotExp+YTotRet-J10))/($E$10*YPER2)) -> 0
B103: 1 | C103: =+E10 -> 0 | E103: =IF($E$10=0,0,(YVarExp-(YTotExp+YTotRet-J10))/($E$10*YPER3)) -> 0 | H103: =IF($E$10=0,0,(YTotExp-(YTotExp+YTotRet-J10))/($E$10*YPER3)) -> 0
B104: 1.1 | C104: =E10*YPER4 -> 0 | E104: =IF($E$10=0,0,(YVarExp-(YTotExp+YTotRet-J10))/($E$10*YPER4)) -> 0 | H104: =IF($E$10=0,0,(YTotExp-(YTotExp+YTotRet-J10))/($E$10*YPER4)) -> 0
B105: 1.25 | C105: =E10*YPER5 -> 0 | E105: =IF($E$10=0,0,(YVarExp-(YTotExp+YTotRet-J10))/($E$10*YPER5)) -> 0 | H105: =IF($E$10=0,0,(YTotExp-(YTotExp+YTotRet-J10))/($E$10*YPER5)) -> 0
A107: Developed by Bill Thompson, Associate Professor and Extension Economist, Texas A&M AgriLife Extension Service, 325-653-4576.
A109: Information presented is prepared solely as a general guide and not intended to recognize or predict the costs and returns from any one operation. Brand names are mentioned only as examples and imply no endorsement.

Sheet OatsGrainDryland
A1: Projections for Planning Purposes Only -- Not to be Used without Updating
A2: 2018 Estimated Costs and Returns per Acre
A3: Dryland Oats, Follow Small Grains
A4: Enter your name for this budget in the cell above.
A5: Enter Your Values in the cells highlighed in MAROON.
E6: Your Acres | R6: Your
C7: Crop Acres | D7: 100 | L7: Your | Q7: Enterprise | R7: Enterprise
E8: Your | H8: Your | I8: Cash | J8: Your | K8: Landlord | L8: Landlord | N8: Your | P8: Your | Q8: Total | R8: Total
A9: REVENUE | D9: Quantity | E9: Quantity | F9: Units | G9: $/Unit | H9: $/Unit | I9: Total | J9: Total | K9: Share | L9: Share | M9: Landlord | N9: Landlord | O9: Tenant | P9: Tenant | Q9: (100 acres) | R9: ="(" & E7 & " acres)" -> ( acres)
B10: Winter Oats | D10: 35 | F10: Bushel | G10: 2.1 | I10: 73.5 | J10: =E10*H10 -> 0 | K10: 0 | M10: 0 | N10: =J10*L10 -> 0 | O10: 73.5 | P10: =+J10-N10 -> 0 | Q10: 7350 | R10: =+J10*E$7 -> 0
D11: 0 | G11: 0 | I11: 0 | J11: 0 | K11: 0 | M11: 0 | N11: 0 | O11: 0 | P11: =+J11-N11 -> 0 | Q11: 0 | R11: 0
D12: 0 | G12: 0 | I12: 0 | J12: 0 | K12: 0 | M12: 0 | N12: 0 | O12: 0 | P12: 0 | Q12: 0 | R12: 0
A13: Total Revenue | I13: 73.5 | J13: =SUM(J10:J12) -> 0 | M13: 0 | N13: =SUM(N10:N12) -> 0 | O13: 73.5 | P13: =SUM(P10:P12) -> 0 | Q13: 7350 | R13: =SUM(R10:R12) -> 0
Q14: Enterprise | R14: Enterprise
A15: VARIABLE COSTS | D15: Quantity | E15: Quantity | F15: Units | G15: $/Unit | H15: $/Unit | I15: Total | J15: Total | K15: Share | L15: Share | M15: Landlord | N15: Landlord | O15: Tenant | P15: Tenant | Q15: Total | R15: Total
A16: Production Costs
B17: Custom
C18: Soil Test-Dryland | D18: 1 | F18: Each | G18: 0.25 | I18: 0.25 | J18: =E18*H18 -> 0 | K18: 0 | M18: 0 | N18: =J18*L18 -> 0 | O18: 0.25 | P18: =+J18-N18 -> 0 | Q18: 25 | R18: =+J18*E$7 -> 0
C19: Custom Harvest small grains | D19: 1 | F19: Acre | G19: 25 | I19: 25 | J19: 0 | K19: 0 | M19: 0 | N19: 0 | O19: 25 | P19: 0 | Q19: 2500 | R19: 0
C20: Custom Haul small grains | D20: 25 | F20: Bushels | G20: 0.27 | I20: 6.75 | J20: 0 | K20: 0 | M20: 0 | N20: 0 | O20: 6.75 | P20: 0 | Q20: 675 | R20: 0
B21: Fertilizer
C22: N applied with drill | D22: 5 | F22: Pounds | G22: 0.53 | I22: 2.65 | J22: 0 | K22: 0 | M22: 0 | N22: 0 | O22: 2.65 | P22: 0 | Q22: 265 | R22: 0
C23: Phosphate | D23: 18 | F23: Pounds | G23: 0.2708333333 | I23: 4.875 | J23: 0 | K23: 0 | M23: 0 | N23: 0 | O23: 4.875 | P23: 0 | Q23: 487.5 | R23: 0
C24: Nitrogen N32 | D24: 35 | F24: Pounds | G24: 0.37 | I24: 12.95 | J24: 0 | K24: 0 | M24: 0 | N24: 0 | O24: 12.95 | P24: 0 | Q24: 1295 | R24: 0
B25: Herbicide
C26: 2-4D Amine 4 | D26: 1 | F26: Pint | G26: 1.625 | I26: 1.625 | J26: 0 | K26: 0 | M26: 0 | N26: 0 | O26: 1.625 | P26: 0 | Q26: 162.5 | R26: 0
C27: MSM (Ally) | D27: 0.14 | F27: Ounce | G27: 6 | I27: 0.84 | J27: 0 | K27: 0 | M27: 0 | N27: 0 | O27: 0.84 | P27: 0 | Q27: 84 | R27: 0
B28: Miscellaneous
C29: Oats Crop Insurance | D29: 1 | F29: Acre | G29: 12.16 | I29: 12.16 | J29: 0 | K29: 0 | M29: 0 | N29: 0 | O29: 12.16 | P29: 0 | Q29: 1216 | R29: 0
B30: Seed
C31: Oat Seed | D31: 45 | F31: Pound | G31: 0.32 | I31: 14.4 | J31: 0 | K31: 0 | M31: 0 | N31: 0 | O31: 14.4 | P31: 0 | Q31: 1440 | R31: 0
D32: 0 | G32: 0 | I32: 0 | J32: 0 | K32: 0 | M32: 0 | N32: 0 | O32: 0 | P32: 0 | Q32: 0 | R32: 0
D33: 0 | G33: 0 | I33: 0 | J33: 0 | K33: 0 | M33: 0 | N33: 0 | O33: 0 | P33: 0 | Q33: 0 | R33: 0
D34: 0 | G34: 0 | I34: 0 | J34: =E34*H34 -> 0 | K34: 0 | M34: 0 | N34: =J34*L34 -> 0 | O34: 0 | P34: =+J34-N34 -> 0 | Q34: 0 | R34: =+J34*E$7 -> 0
B35: Machinery Labor
C36: Tractors/Self-Propelled | D36: 0.4 | F36: Hour | G36: 12 | I36: 4.8 | J36: =E36*H36 -> 0 | K36: 0 | M36: 0 | N36: =J36*L36 -> 0 | O36: 4.8 | P36: =+J36-N36 -> 0 | Q36: 480 | R36: =+J36*E$7 -> 0
C37: Other Labor | D37: 0 | F37: Hour | G37: 12 | I37: 0 | J37: =E37*H37 -> 0 | K37: 0 | M37: 0 | N37: =J37*L37 -> 0 | O37: 0 | P37: =+J37-N37 -> 0 | Q37: 0 | R37: =+J37*E$7 -> 0
B39: Diesel Fuel
C40: Pickup/General Use Equipment | D40: 1 | F40: Acre | G40: 0 | I40: 0 | J40: =E40*H40 -> 0 | K40: 0 | M40: 0 | N40: =J40*L40 -> 0 | O40: 0 | P40: =+J40-N40 -> 0 | Q40: 0 | R40: =+J40*E$7 -> 0
C41: Tractors/Self-Propelled | D41: 3.36 | F41: Gallon | G41: 2.15 | I41: 7.224 | J41: =E41*H41 -> 0 | K41: 0 | M41: 0 | N41: =J41*L41 -> 0 | O41: 7.224 | P41: =+J41-N41 -> 0 | Q41: 722.4 | R41: =+J41*E$7 -> 0
B43: Gasoline
C44: Pickup/General Use Equipment | D44: 1 | F44: Acre | G44: 1.9056 | I44: 1.9056 | J44: =E44*H44 -> 0 | K44: 0 | M44: 0 | N44: =J44*L44 -> 0 | O44: 1.9056 | P44: =+J44-N44 -> 0 | Q44: 190.56 | R44: =+J44*E$7 -> 0
C45: Tractors/Self-Propelled | D45: 0 | F45: Gallon | G45: 2.4 | I45: 0 | J45: =E45*H45 -> 0 | K45: 0 | M45: 0 | N45: =J45*L45 -> 0 | O45: 0 | P45: =+J45-N45 -> 0 | Q45: 0 | R45: =+J45*E$7 -> 0
B47: Repairs & Maintenance
C48: Pickup/General Use Equipment | D48: 1 | F48: Acre | G48: 1.37 | I48: 1.37 | J48: =E48*H48 -> 0 | K48: 0 | M48: 0 | N48: =J48*L48 -> 0 | O48: 1.37 | P48: =+J48-N48 -> 0 | Q48: 137 | R48: =+J48*E$7 -> 0
C49: Irrigation Equipment | D49: 1 | F49: Acre | G49: 0 | I49: 0 | J49: 0 | K49: 0 | M49: 0 | N49: 0 | O49: 0 | P49: 0 | Q49: 0 | R49: 0
C50: Tractors/Self-Propelled | D50: 1 | F50: Acre | G50: 7.77906137 | I50: 7.77906137 | J50: 0 | K50: 0 | M50: 0 | N50: 0 | O50: 7.77906137 | P50: 0 | Q50: 777.906137 | R50: 0
C51: Implements | D51: 1 | F51: Acre | G51: 10.79208121 | I51: 10.79208121 | J51: 0 | K51: 0 | M51: 0 | N51: 0 | O51: 10.79208121 | P51: 0 | Q51: 1079.208121 | R51: 0
I52: 0 | J52: 0 | K52: 0 | M52: 0 | N52: 0 | O52: 0 | P52: 0 | Q52: 0 | R52: 0
I53: 0 | J53: 0 | K53: 0 | M53: 0 | N53: 0 | O53: 0 | P53: 0 | Q53: 0 | R53: 0
B54: Interest on Credit Line | G54: 0.06 | I54: 2.027693618 | J54: =+SUM(J17:J53)/2*H54 -> 0 | M54: 0 | N54: =+SUM(N17:N53)/2*L54 -> 0 | O54: 2.027693618 | P54: =+SUM(P17:P53)/2*L54 -> 0 | Q54: 202.7693618 | R54: =+J54*E$7 -> 0
A55: Total Variable Costs | I55: 117.3984362 | J55: =SUM(J18:J54) -> 0 | M55: 0 | N55: =SUM(N18:N54) -> 0 | O55: 117.3984362 | P55: =SUM(P18:P54) -> 0 | Q55: 11739.84362 | R55: =SUM(R18:R54) -> 0
A56: Planned Returns Above Variable Costs: | I56: -43.8984362 | J56: =+J13-J55 -> 0 | M56: 0 | N56: =+N13-N55 -> 0 | O56: -43.8984362 | P56: =+P13-P55 -> 0 | Q56: -4389.84362 | R56: =+R13-R55 -> 0
B57: Breakeven Price to Cover Variable Costs | G57: 3.354241034 | H57: =IF(E10=0,"n/a",(YVarExp-(YTotExp+YTotRet-J10))/E10) -> n/a | I57: Bushel
Q58: Enterprise | R58: Enterprise
A59: FIXED COSTS | D59: Quantity | E59: Quantity | F59: Units | G59: $/Unit | H59: $/Unit | I59: Total | J59: Total | K59: Share | L59: Share | M59: Landlord | N59: Landlord | O59: Tenant | P59: Tenant | Q59: Total | R59: Total
B60: Machinery Depreciation
C61: Pickup/General Use Equipment | D61: 1 | F61: Acre | G61: 2.988 | I61: 2.988 | J61: =E61*H61 -> 0 | K61: 0 | M61: 0 | N61: =J61*L61 -> 0 | O61: 2.988 | P61: =+J61-N61 -> 0 | Q61: 298.8 | R61: =+J61*E$7 -> 0
C62: Tractors/Self-Propelled | D62: 1 | F62: Acre | G62: 8.878087471 | I62: 8.878087471 | J62: 0 | K62: 0 | M62: 0 | N62: =J62*L62 -> 0 | O62: 8.878087471 | P62: 0 | Q62: 887.8087471 | R62: 0
C63: Implements | D63: 1 | F63: Acre | G63: 14.03314234 | I63: 14.03314234 | J63: 0 | K63: 0 | M63: 0 | N63: =J63*L63 -> 0 | O63: 14.03314234 | P63: 0 | Q63: 1403.314234 | R63: 0
B64: Equipment Investment
C65: Pickup/General Use Equipment | D65: 12.98 | F65: Dollars | G65: 0.06 | I65: 0.7788 | J65: =E65*H65 -> 0 | K65: 0 | M65: 0 | N65: =J65*L65 -> 0 | O65: 0.7788 | P65: =+J65-N65 -> 0 | Q65: 77.88 | R65: =+J65*E$7 -> 0
C66: Tractors/Self-Propelled | D66: 68.77300053 | F66: Dollars | G66: 0.06 | I66: 4.126380032 | J66: 0 | K66: 0 | M66: 0 | N66: =J66*L66 -> 0 | O66: 4.126380032 | P66: 0 | Q66: 412.6380032 | R66: 0
C67: Implements | D67: 60.03066447 | F67: Dollars | G67: 0.06 | I67: 3.601839868 | J67: 0 | K67: 0 | M67: 0 | N67: =J67*L67 -> 0 | O67: 3.601839868 | P67: 0 | Q67: 360.1839868 | R67: 0
B68: Salaried Labor | D68: 1 | F68: Acre | G68: 0 | I68: 0 | J68: 0 | K68: 0 | M68: 0 | N68: =J68*L68 -> 0 | O68: 0 | P68: =+J68-N68 -> 0 | Q68: 0 | R68: =+J68*E$7 -> 0
B69: Management Fee, Owner/Operator Labor | D69: 1 | F69: Acre | G69: 0 | I69: 0 | J69: 0 | K69: 0 | M69: 0 | N69: 0 | O69: 0 | P69: 0 | Q69: 0 | R69: 0
B70: Allocated Establishment Cost | D70: 1 | F70: Acre | G70: 0 | I70: 0 | J70: 0 | K70: 0 | M70: 0 | N70: 0 | O70: 0 | P70: 0 | Q70: 0 | R70: 0
B71: Rent-Dryland Crop | D71: 1 | F71: Acre | G71: 35 | I71: 35 | J71: 0 | K71: 0 | M71: 0 | N71: 0 | O71: 35 | P71: 0 | Q71: 3500 | R71: 0
B72: Property Taxes | D72: 1 | F72: Acre | G72: 0 | I72: 0 | J72: 0 | K72: 0 | M72: 0 | N72: 0 | O72: 0 | P72: 0 | Q72: 0 | R72: 0
B73: Whole Farm Insurance | D73: 1 | F73: Acre | G73: 0 | I73: 0 | J73: 0 | K73: 0 | M73: 0 | N73: 0 | O73: 0 | P73: 0 | Q73: 0 | R73: 0
D74: 1 | G74: 0 | I74: 0 | J74: 0 | K74: 0 | M74: 0 | N74: 0 | O74: 0 | P74: 0 | Q74: 0 | R74: 0
D75: 1 | G75: 0 | I75: 0 | J75: =E75*H75 -> 0 | K75: 0 | M75: 0 | N75: 0 | O75: 0 | P75: 0 | Q75: 0 | R75: 0
A76: Total Fixed Costs | I76: 69.40624971 | J76: =+SUM(J61:J75) -> 0 | M76: 0 | N76: =+SUM(N61:N75) -> 0 | O76: 69.40624971 | P76: =+SUM(P61:P75) -> 0 | Q76: 6940.624971 | R76: =+SUM(R61:R75) -> 0
A77: Total Specified Costs | I77: 186.8046859 | J77: =+J55+J76 -> 0 | M77: 0 | N77: =+N55+N76 -> 0 | O77: 186.8046859 | P77: =+P55+P76 -> 0 | Q77: 18680.46859 | R77: =+R55+R76 -> 0
A79: Returns Above Specified Costs | I79: -113.3046859 | J79: =+J13-J77 -> 0 | M79: 0 | N79: =+N13-N77 -> 0 | O79: -113.3046859 | P79: =+P13-P77 -> 0 | Q79: -11330.46859 | R79: =+R13-R77 -> 0
A81: Breakeven Price to Cover Total Costs | G81: 5.33727674 | H81: =IF(E10=0,"n/a",(YTotExp-(YTotExp+YTotRet-J10))/E10) -> n/a | I81: Bushel
D83: Example Breakeven Prices
B84: Example | C84: Example | D84: To Cover | G84: To Cover
B85: Yield | C85: Yield | D85: Variable | G85: Total
B86: Percent | C86: Bushel | D86: Costs | G86: Costs
B87: 0.75 | C87: 26.25 | D87: 4.472321379 | G87: 7.116368987
B88: 0.9 | C88: 31.5 | D88: 3.726934483 | G88: 5.930307489
B89: 1 | C89: 35 | D89: 3.354241034 | G89: 5.33727674
B90: 1.1 | C90: 38.5 | D90: 3.049310031 | G90: 4.852069764
B91: 1.25 | C91: 43.75 | D91: 2.683392827 | G91: 4.269821392
D93: Your Breakeven Prices
B94: Your | C94: Your | E94: To Cover | H94: To Cover
B95: Yield | C95: Yield | E95: Variable | H95: Total
B96: Percent | C96: Bushel | E96: Costs | H96: Costs
B97: 0.75 | C97: =E10*YPER1 -> 0 | E97: =IF($E$10=0,0,(YVarExp-(YTotExp+YTotRet-J10))/($E$10*YPER1)) -> 0 | H97: =IF($E$10=0,0,(YTotExp-(YTotExp+YTotRet-J10))/($E$10*YPER1)) -> 0
B98: 0.9 | C98: =E10*YPER2 -> 0 | E98: =IF($E$10=0,0,(YVarExp-(YTotExp+YTotRet-J10))/($E$10*YPER2)) -> 0 | H98: =IF($E$10=0,0,(YTotExp-(YTotExp+YTotRet-J10))/($E$10*YPER2)) -> 0
B99: 1 | C99: =+E10 -> 0 | E99: =IF($E$10=0,0,(YVarExp-(YTotExp+YTotRet-J10))/($E$10*YPER3)) -> 0 | H99: =IF($E$10=0,0,(YTotExp-(YTotExp+YTotRet-J10))/($E$10*YPER3)) -> 0
B100: 1.1 | C100: =E10*YPER4 -> 0 | E100: =IF($E$10=0,0,(YVarExp-(YTotExp+YTotRet-J10))/($E$10*YPER4)) -> 0 | H100: =IF($E$10=0,0,(YTotExp-(YTotExp+YTotRet-J10))/($E$10*YPER4)) -> 0
B101: 1.25 | C101: =E10*YPER5 -> 0 | E101: =IF($E$10=0,0,(YVarExp-(YTotExp+YTotRet-J10))/($E$10*YPER5)) -> 0 | H101: =IF($E$10=0,0,(YTotExp-(YTotExp+YTotRet-J10))/($E$10*YPER5)) -> 0
A103: Developed by Bill Thompson, Associate Professor and Extension Economist, Texas A&M AgriLife Extension Service, 325-653-4576.
A105: Information presented is prepared solely as a general guide and not intended to recognize or predict the costs and returns from any one operation. Brand names are mentioned only as examples and imply no endorsement.

Sheet SorghumHaygrazer
A1: Projections for Planning Purposes Only -- Not to be Used without Updating
A2: 2018 Estimated Costs and Returns per Acre
A3: Non-Irrigated Sorghum Haygrazer, 3 ton yield
A4: Enter your name for this budget in the cell above.
A5: Enter Your Values in the cells highlighed in MAROON.
E6: Your Acres | R6: Your
C7: Crop Acres | D7: 50 | L7: Your | Q7: Enterprise | R7: Enterprise
E8: Your | H8: Your | I8: Cash | J8: Your | K8: Landlord | L8: Landlord | N8: Your | P8: Your | Q8: Total | R8: Total
A9: REVENUE | D9: Quantity | E9: Quantity | F9: Units | G9: $/Unit | H9: $/Unit | I9: Total | J9: Total | K9: Share | L9: Share | M9: Landlord | N9: Landlord | O9: Tenant | P9: Tenant | Q9: (50 acres) | R9: ="(" & E7 & " acres)" -> ( acres)
B10: Hay, 1200# BRB | D10: 3 | F10: Ton | G10: 115 | I10: 345 | J10: =E10*H10 -> 0 | K10: 0 | M10: 0 | N10: =J10*L10 -> 0 | O10: 345 | P10: =+J10-N10 -> 0 | Q10: 17250 | R10: =+J10*E$7 -> 0
D11: 0 | G11: 0 | I11: 0 | J11: 0 | K11: 0 | M11: 0 | N11: 0 | O11: 0 | P11: =+J11-N11 -> 0 | Q11: 0 | R11: 0
D12: 0 | G12: 0 | I12: 0 | J12: 0 | K12: 0 | M12: 0 | N12: 0 | O12: 0 | P12: 0 | Q12: 0 | R12: 0
A13: Total Revenue | I13: 345 | J13: =SUM(J10:J12) -> 0 | M13: 0 | N13: =SUM(N10:N12) -> 0 | O13: 345 | P13: =SUM(P10:P12) -> 0 | Q13: 17250 | R13: =SUM(R10:R12) -> 0
Q14: Enterprise | R14: Enterprise
A15: VARIABLE COSTS | D15: Quantity | E15: Quantity | F15: Units | G15: $/Unit | H15: $/Unit | I15: Total | J15: Total | K15: Share | L15: Share | M15: Landlord | N15: Landlord | O15: Tenant | P15: Tenant | Q15: Total | R15: Total
A16: Production Costs
B17: Fertilizer
C18: Nitrogen Dry-Urea | D18: 40 | F18: Pounds | G18: 0.37 | I18: 14.8 | J18: =E18*H18 -> 0 | K18: 0 | M18: 0 | N18: =J18*L18 -> 0 | O18: 14.8 | P18: =+J18-N18 -> 0 | Q18: 740 | R18: =+J18*E$7 -> 0
B19: Custom
C20: Soil Test-Dryland | D20: 1 | F20: Each | G20: 0.25 | I20: 0.25 | J20: 0 | K20: 0 | M20: 0 | N20: 0 | O20: 0.25 | P20: 0 | Q20: 12.5 | R20: 0
C21: Swath, Rake and Bale | D21: 5 | F21: Bale | G21: 27.57 | I21: 137.85 | J21: 0 | K21: 0 | M21: 0 | N21: 0 | O21: 137.85 | P21: 0 | Q21: 6892.5 | R21: 0
B22: Seed
C23: Forage Sorghum | D23: 15 | F23: Pound | G23: 1.6 | I23: 24 | J23: 0 | K23: 0 | M23: 0 | N23: 0 | O23: 24 | P23: 0 | Q23: 1200 | R23: 0
B24: Herbicide
C25: Husky | D25: 12 | F25: Ounce | G25: 0.8828125 | I25: 10.59375 | J25: 0 | K25: 0 | M25: 0 | N25: 0 | O25: 10.59375 | P25: 0 | Q25: 529.6875 | R25: 0
B26: Insecticide
C27: Transform | D27: 1 | F27: Ounce | G27: 7.78125 | I27: 7.78125 | J27: 0 | K27: 0 | M27: 0 | N27: 0 | O27: 7.78125 | P27: 0 | Q27: 389.0625 | R27: 0
D28: 0 | G28: 0 | I28: 0 | J28: 0 | K28: 0 | M28: 0 | N28: 0 | O28: 0 | P28: 0 | Q28: 0 | R28: 0
D29: 0 | G29: 0 | I29: 0 | J29: 0 | K29: 0 | M29: 0 | N29: 0 | O29: 0 | P29: 0 | Q29: 0 | R29: 0
D30: 0 | G30: 0 | I30: 0 | J30: =E30*H30 -> 0 | K30: 0 | M30: 0 | N30: =J30*L30 -> 0 | O30: 0 | P30: =+J30-N30 -> 0 | Q30: 0 | R30: =+J30*E$7 -> 0
B31: Machinery Labor
C32: Tractors/Self-Propelled | D32: 0.93 | F32: Hour | G32: 12 | I32: 11.16 | J32: =E32*H32 -> 0 | K32: 0 | M32: 0 | N32: =J32*L32 -> 0 | O32: 11.16 | P32: =+J32-N32 -> 0 | Q32: 558 | R32: =+J32*E$7 -> 0
C33: Other Labor | D33: 0 | F33: Hour | G33: 12 | I33: 0 | J33: =E33*H33 -> 0 | K33: 0 | M33: 0 | N33: =J33*L33 -> 0 | O33: 0 | P33: =+J33-N33 -> 0 | Q33: 0 | R33: =+J33*E$7 -> 0
B35: Diesel Fuel
C36: Pickup/General Use Equipment | D36: 1 | F36: Acre | G36: 0 | I36: 0 | J36: =E36*H36 -> 0 | K36: 0 | M36: 0 | N36: =J36*L36 -> 0 | O36: 0 | P36: =+J36-N36 -> 0 | Q36: 0 | R36: =+J36*E$7 -> 0
C37: Tractors/Self-Propelled | D37: 7.54 | F37: Gallon | G37: 2.15 | I37: 16.211 | J37: =E37*H37 -> 0 | K37: 0 | M37: 0 | N37: =J37*L37 -> 0 | O37: 16.211 | P37: =+J37-N37 -> 0 | Q37: 810.55 | R37: =+J37*E$7 -> 0
B39: Gasoline
C40: Pickup/General Use Equipment | D40: 1 | F40: Acre | G40: 4.8528 | I40: 4.8528 | J40: =E40*H40 -> 0 | K40: 0 | M40: 0 | N40: =J40*L40 -> 0 | O40: 4.8528 | P40: =+J40-N40 -> 0 | Q40: 242.64 | R40: =+J40*E$7 -> 0
C41: Tractors/Self-Propelled | D41: 0 | F41: Gallon | G41: 2.4 | I41: 0 | J41: =E41*H41 -> 0 | K41: 0 | M41: 0 | N41: =J41*L41 -> 0 | O41: 0 | P41: =+J41-N41 -> 0 | Q41: 0 | R41: =+J41*E$7 -> 0
B43: Repairs & Maintenance
C44: Pickup/General Use Equipment | D44: 1 | F44: Acre | G44: 2.19 | I44: 2.19 | J44: =E44*H44 -> 0 | K44: 0 | M44: 0 | N44: =J44*L44 -> 0 | O44: 2.19 | P44: =+J44-N44 -> 0 | Q44: 109.5 | R44: =+J44*E$7 -> 0
C45: Irrigation Equipment | D45: 1 | F45: Acre | G45: 0 | I45: 0 | J45: 0 | K45: 0 | M45: 0 | N45: 0 | O45: 0 | P45: 0 | Q45: 0 | R45: 0
C46: Tractors/Self-Propelled | D46: 1 | F46: Acre | G46: 17.248659 | I46: 17.248659 | J46: 0 | K46: 0 | M46: 0 | N46: 0 | O46: 17.248659 | P46: 0 | Q46: 862.4329502 | R46: 0
C47: Implements | D47: 1 | F47: Acre | G47: 11.25970986 | I47: 11.25970986 | J47: 0 | K47: 0 | M47: 0 | N47: 0 | O47: 11.25970986 | P47: 0 | Q47: 562.9854931 | R47: 0
I48: 0 | J48: 0 | K48: 0 | M48: 0 | N48: 0 | O48: 0 | P48: 0 | Q48: 0 | R48: 0
I49: 0 | J49: 0 | K49: 0 | M49: 0 | N49: 0 | O49: 0 | P49: 0 | Q49: 0 | R49: 0
B50: Interest on Credit Line | G50: 0.06 | I50: 2.547692462 | J50: =+SUM(J17:J49)/2*H50 -> 0 | M50: 0 | N50: =+SUM(N17:N49)/2*L50 -> 0 | O50: 2.547692462 | P50: =+SUM(P17:P49)/2*L50 -> 0 | Q50: 127.3846231 | R50: =+J50*E$7 -> 0
A51: Total Variable Costs | I51: 260.7448613 | J51: =SUM(J18:J50) -> 0 | M51: 0 | N51: =SUM(N18:N50) -> 0 | O51: 260.7448613 | P51: =SUM(P18:P50) -> 0 | Q51: 13037.24307 | R51: =SUM(R18:R50) -> 0
A52: Planned Returns Above Variable Costs: | I52: 84.25513867 | J52: =+J13-J51 -> 0 | M52: 0 | N52: =+N13-N51 -> 0 | O52: 84.25513867 | P52: =+P13-P51 -> 0 | Q52: 4212.756934 | R52: =+R13-R51 -> 0
B53: Breakeven Price to Cover Variable Costs | G53: 86.91495378 | H53: =IF(E10=0,"n/a",(YVarExp-(YTotExp+YTotRet-J10))/E10) -> n/a | I53: Ton
Q54: Enterprise | R54: Enterprise
A55: FIXED COSTS | D55: Quantity | E55: Quantity | F55: Units | G55: $/Unit | H55: $/Unit | I55: Total | J55: Total | K55: Share | L55: Share | M55: Landlord | N55: Landlord | O55: Tenant | P55: Tenant | Q55: Total | R55: Total
B56: Machinery Depreciation
C57: Pickup/General Use Equipment | D57: 1 | F57: Acre | G57: 4.644 | I57: 4.644 | J57: =E57*H57 -> 0 | K57: 0 | M57: 0 | N57: =J57*L57 -> 0 | O57: 4.644 | P57: =+J57-N57 -> 0 | Q57: 232.2 | R57: =+J57*E$7 -> 0
C58: Tractors/Self-Propelled | D58: 1 | F58: Acre | G58: 18.585001 | I58: 18.585001 | J58: 0 | K58: 0 | M58: 0 | N58: =J58*L58 -> 0 | O58: 18.585001 | P58: 0 | Q58: 929.25005 | R58: 0
C59: Implements | D59: 1 | F59: Acre | G59: 14.50330732 | I59: 14.50330732 | J59: 0 | K59: 0 | M59: 0 | N59: =J59*L59 -> 0 | O59: 14.50330732 | P59: 0 | Q59: 725.1653659 | R59: 0
B60: Equipment Investment
C61: Pickup/General Use Equipment | D61: 25.74 | F61: Dollars | G61: 0.06 | I61: 1.5444 | J61: =E61*H61 -> 0 | K61: 0 | M61: 0 | N61: =J61*L61 -> 0 | O61: 1.5444 | P61: =+J61-N61 -> 0 | Q61: 77.22 | R61: =+J61*E$7 -> 0
C62: Tractors/Self-Propelled | D62: 144.3929882 | F62: Dollars | G62: 0.06 | I62: 8.66357929 | J62: 0 | K62: 0 | M62: 0 | N62: =J62*L62 -> 0 | O62: 8.66357929 | P62: 0 | Q62: 433.1789645 | R62: 0
C63: Implements | D63: 64.23082012 | F63: Dollars | G63: 0.06 | I63: 3.853849207 | J63: 0 | K63: 0 | M63: 0 | N63: =J63*L63 -> 0 | O63: 3.853849207 | P63: 0 | Q63: 192.6924604 | R63: 0
B64: Salaried Labor | D64: 1 | F64: Acre | G64: 0 | I64: 0 | J64: 0 | K64: 0 | M64: 0 | N64: =J64*L64 -> 0 | O64: 0 | P64: =+J64-N64 -> 0 | Q64: 0 | R64: =+J64*E$7 -> 0
B65: Management Fee, Owner/Operator Labor | D65: 1 | F65: Acre | G65: 0 | I65: 0 | J65: 0 | K65: 0 | M65: 0 | N65: 0 | O65: 0 | P65: 0 | Q65: 0 | R65: 0
B66: Allocated Establishment Cost | D66: 1 | F66: Acre | G66: 0 | I66: 0 | J66: 0 | K66: 0 | M66: 0 | N66: 0 | O66: 0 | P66: 0 | Q66: 0 | R66: 0
B67: Rent-Dryland Crop | D67: 1 | F67: Acre | G67: 35 | I67: 35 | J67: 0 | K67: 0 | M67: 0 | N67: 0 | O67: 35 | P67: 0 | Q67: 1750 | R67: 0
B68: Property Taxes | D68: 1 | F68: Acre | G68: 0 | I68: 0 | J68: 0 | K68: 0 | M68: 0 | N68: 0 | O68: 0 | P68: 0 | Q68: 0 | R68: 0
B69: Whole Farm Insurance | D69: 1 | F69: Acre | G69: 0 | I69: 0 | J69: 0 | K69: 0 | M69: 0 | N69: 0 | O69: 0 | P69: 0 | Q69: 0 | R69: 0
D70: 1 | G70: 0 | I70: 0 | J70: 0 | K70: 0 | M70: 0 | N70: 0 | O70: 0 | P70: 0 | Q70: 0 | R70: 0
D71: 1 | G71: 0 | I71: 0 | J71: =E71*H71 -> 0 | K71: 0 | M71: 0 | N71: 0 | O71: 0 | P71: 0 | Q71: 0 | R71: 0
A72: Total Fixed Costs | I72: 86.79413681 | J72: =+SUM(J57:J71) -> 0 | M72: 0 | N72: =+SUM(N57:N71) -> 0 | O72: 86.79413681 | P72: =+SUM(P57:P71) -> 0 | Q72: 4339.706841 | R72: =+SUM(R57:R71) -> 0
A73: Total Specified Costs | I73: 347.5389981 | J73: =+J51+J72 -> 0 | M73: 0 | N73: =+N51+N72 -> 0 | O73: 347.5389981 | P73: =+P51+P72 -> 0 | Q73: 17376.94991 | R73: =+R51+R72 -> 0
A75: Returns Above Specified Costs | I75: -2.538998142 | J75: =+J13-J73 -> 0 | M75: 0 | N75: =+N13-N73 -> 0 | O75: -2.538998142 | P75: =+P13-P73 -> 0 | Q75: -126.9499071 | R75: =+R13-R73 -> 0
A77: Breakeven Price to Cover Total Costs | G77: 115.8463327 | H77: =IF(E10=0,"n/a",(YTotExp-(YTotExp+YTotRet-J10))/E10) -> n/a | I77: Ton
D79: Example Breakeven Prices
B80: Example | C80: Example | D80: To Cover | G80: To Cover
B81: Yield | C81: Yield | D81: Variable | G81: Total
B82: Percent | C82: Ton | D82: Costs | G82: Costs
B83: 0.75 | C83: 2.25 | D83: 115.886605 | G83: 154.461777
B84: 0.9 | C84: 2.7 | D84: 96.57217086 | G84: 128.7181475
B85: 1 | C85: 3 | D85: 86.91495378 | G85: 115.8463327
B86: 1.1 | C86: 3.3 | D86: 79.01359434 | G86: 105.3148479
B87: 1.25 | C87: 3.75 | D87: 69.53196302 | G87: 92.67706617
D89: Your Breakeven Prices
B90: Your | C90: Your | E90: To Cover | H90: To Cover
B91: Yield | C91: Yield | E91: Variable | H91: Total
B92: Percent | C92: Ton | E92: Costs | H92: Costs
B93: 0.75 | C93: =E10*YPER1 -> 0 | E93: =IF($E$10=0,0,(YVarExp-(YTotExp+YTotRet-J10))/($E$10*YPER1)) -> 0 | H93: =IF($E$10=0,0,(YTotExp-(YTotExp+YTotRet-J10))/($E$10*YPER1)) -> 0
B94: 0.9 | C94: =E10*YPER2 -> 0 | E94: =IF($E$10=0,0,(YVarExp-(YTotExp+YTotRet-J10))/($E$10*YPER2)) -> 0 | H94: =IF($E$10=0,0,(YTotExp-(YTotExp+YTotRet-J10))/($E$10*YPER2)) -> 0
B95: 1 | C95: =+E10 -> 0 | E95: =IF($E$10=0,0,(YVarExp-(YTotExp+YTotRet-J10))/($E$10*YPER3)) -> 0 | H95: =IF($E$10=0,0,(YTotExp-(YTotExp+YTotRet-J10))/($E$10*YPER3)) -> 0
B96: 1.1 | C96: =E10*YPER4 -> 0 | E96: =IF($E$10=0,0,(YVarExp-(YTotExp+YTotRet-J10))/($E$10*YPER4)) -> 0 | H96: =IF($E$10=0,0,(YTotExp-(YTotExp+YTotRet-J10))/($E$10*YPER4)) -> 0
B97: 1.25 | C97: =E10*YPER5 -> 0 | E97: =IF($E$10=0,0,(YVarExp-(YTotExp+YTotRet-J10))/($E$10*YPER5)) -> 0 | H97: =IF($E$10=0,0,(YTotExp-(YTotExp+YTotRet-J10))/($E$10*YPER5)) -> 0
A99: Developed by Bill Thompson, Associate Professor and Extension Economist, Texas A&M AgriLife Extension Service, 325-653-4576.
A101: Information presented is prepared solely as a general guide and not intended to recognize or predict the costs and returns from any one operation. Brand names are mentioned only as examples and imply no endorsement.

Sheet AlfalfaEstab
A1: Projections for Planning Purposes Only -- Not to be Used without Updating
A2: 2018 Estimated Costs and Returns per Acre
A3: Alfalfa, Roundup Ready, Establishment, Center Pivot Irrigated
A4: Enter your name for this budget in the cell above.
A5: Enter Your Values in the cells highlighed in MAROON.
E6: Your Acres | R6: Your
C7: Crop Acres | D7: 122 | L7: Your | Q7: Enterprise | R7: Enterprise
E8: Your | H8: Your | I8: Cash | J8: Your | K8: Landlord | L8: Landlord | N8: Your | P8: Your | Q8: Total | R8: Total
A9: REVENUE | D9: Quantity | E9: Quantity | F9: Units | G9: $/Unit | H9: $/Unit | I9: Total | J9: Total | K9: Share | L9: Share | M9: Landlord | N9: Landlord | O9: Tenant | P9: Tenant | Q9: (122 acres) | R9: ="(" & E7 & " acres)" -> ( acres)
B10: 0 | D10: 0 | G10: 0 | I10: 0 | J10: =E10*H10 -> 0 | K10: 0 | M10: 0 | N10: =J10*L10 -> 0 | O10: 0 | P10: =+J10-N10 -> 0 | Q10: 0 | R10: =+J10*E$7 -> 0
D11: 0 | G11: 0 | I11: 0 | J11: 0 | K11: 0 | M11: 0 | N11: 0 | O11: 0 | P11: 0 | Q11: 0 | R11: 0
D12: 0 | G12: 0 | I12: 0 | J12: 0 | K12: 0 | M12: 0 | N12: 0 | O12: 0 | P12: 0 | Q12: 0 | R12: 0
A13: Total Revenue | I13: 0 | J13: =SUM(J10:J12) -> 0 | M13: 0 | N13: =SUM(N10:N12) -> 0 | O13: 0 | P13: =SUM(P10:P12) -> 0 | Q13: 0 | R13: =SUM(R10:R12) -> 0
Q14: Enterprise | R14: Enterprise
A15: VARIABLE COSTS | D15: Quantity | E15: Quantity | F15: Units | G15: $/Unit | H15: $/Unit | I15: Total | J15: Total | K15: Share | L15: Share | M15: Landlord | N15: Landlord | O15: Tenant | P15: Tenant | Q15: Total | R15: Total
A16: Production Costs
B17: Custom
C18: Soil Test-Irrigated | D18: 1 | F18: Each | G18: 0.5 | I18: 0.5 | J18: =E18*H18 -> 0 | K18: 0 | M18: 0 | N18: =J18*L18 -> 0 | O18: 0.5 | P18: =+J18-N18 -> 0 | Q18: 61 | R18: =+J18*E$7 -> 0
C19: Apply Dry Fertilizer | D19: 1 | F19: Acre | G19: 5.5 | I19: 5.5 | J19: 0 | K19: 0 | M19: 0 | N19: 0 | O19: 5.5 | P19: 0 | Q19: 671 | R19: 0
B20: Fertilizer
C21: Phos (11-52-0 DRY MAT) | D21: 150 | F21: Pounds | G21: 0.442 | I21: 66.3 | J21: 0 | K21: 0 | M21: 0 | N21: 0 | O21: 66.3 | P21: 0 | Q21: 8088.6 | R21: 0
B22: Herbicide
C23: Glyphosate | D23: 22 | F23: Ounce | G23: 0.13 | I23: 2.86 | J23: 0 | K23: 0 | M23: 0 | N23: 0 | O23: 2.86 | P23: 0 | Q23: 348.92 | R23: 0
B24: Seed
C25: R.R. Alfalfa | D25: 25 | F25: pounds | G25: 9 | I25: 225 | J25: 0 | K25: 0 | M25: 0 | N25: 0 | O25: 225 | P25: 0 | Q25: 27450 | R25: 0
D26: 0 | G26: 0 | I26: 0 | J26: 0 | K26: 0 | M26: 0 | N26: 0 | O26: 0 | P26: 0 | Q26: 0 | R26: 0
D27: 0 | G27: 0 | I27: 0 | J27: 0 | K27: 0 | M27: 0 | N27: 0 | O27: 0 | P27: 0 | Q27: 0 | R27: 0
D28: 0 | G28: 0 | I28: 0 | J28: =E28*H28 -> 0 | K28: 0 | M28: 0 | N28: =J28*L28 -> 0 | O28: 0 | P28: =+J28-N28 -> 0 | Q28: 0 | R28: =+J28*E$7 -> 0
B29: Irrigation
C30: Energy Cost | D30: 4 | F30: AcreInch | G30: 8.574846773 | I30: 34.29938709 | J30: =E30*H30 -> 0 | K30: 0 | M30: 0 | N30: =J30*L30 -> 0 | O30: 34.29938709 | P30: =+J30-N30 -> 0 | Q30: 4184.525225 | R30: =+J30*E$7 -> 0
C31: Irrigation Labor | D31: 0.3 | F31: Hour | G31: 12 | I31: 3.6 | J31: 0 | K31: 0 | M31: 0 | N31: 0 | O31: 3.6 | P31: 0 | Q31: 439.2 | R31: 0
B32: Machinery Labor
C33: Tractors/Self-Propelled | D33: 0.45 | F33: Hour | G33: 12 | I33: 5.4 | J33: =E33*H33 -> 0 | K33: 0 | M33: 0 | N33: =J33*L33 -> 0 | O33: 5.4 | P33: =+J33-N33 -> 0 | Q33: 658.8 | R33: =+J33*E$7 -> 0
C34: Other Labor | D34: 0 | F34: Hour | G34: 12 | I34: 0 | J34: =E34*H34 -> 0 | K34: 0 | M34: 0 | N34: =J34*L34 -> 0 | O34: 0 | P34: =+J34-N34 -> 0 | Q34: 0 | R34: =+J34*E$7 -> 0
B36: Diesel Fuel
C37: Pickup/General Use Equipment | D37: 1 | F37: Acre | G37: 0 | I37: 0 | J37: =E37*H37 -> 0 | K37: 0 | M37: 0 | N37: =J37*L37 -> 0 | O37: 0 | P37: =+J37-N37 -> 0 | Q37: 0 | R37: =+J37*E$7 -> 0
C38: Tractors/Self-Propelled | D38: 3.91 | F38: Gallon | G38: 2.15 | I38: 8.4065 | J38: =E38*H38 -> 0 | K38: 0 | M38: 0 | N38: =J38*L38 -> 0 | O38: 8.4065 | P38: =+J38-N38 -> 0 | Q38: 1025.593 | R38: =+J38*E$7 -> 0
B40: Gasoline
C41: Pickup/General Use Equipment | D41: 1 | F41: Acre | G41: 1.918032787 | I41: 1.918032787 | J41: =E41*H41 -> 0 | K41: 0 | M41: 0 | N41: =J41*L41 -> 0 | O41: 1.918032787 | P41: =+J41-N41 -> 0 | Q41: 234 | R41: =+J41*E$7 -> 0
C42: Tractors/Self-Propelled | D42: 0 | F42: Gallon | G42: 2.4 | I42: 0 | J42: =E42*H42 -> 0 | K42: 0 | M42: 0 | N42: =J42*L42 -> 0 | O42: 0 | P42: =+J42-N42 -> 0 | Q42: 0 | R42: =+J42*E$7 -> 0
B44: Repairs & Maintenance
C45: Pickup/General Use Equipment | D45: 1 | F45: Acre | G45: 0.7401639344 | I45: 0.7401639344 | J45: =E45*H45 -> 0 | K45: 0 | M45: 0 | N45: =J45*L45 -> 0 | O45: 0.7401639344 | P45: =+J45-N45 -> 0 | Q45: 90.3 | R45: =+J45*E$7 -> 0
C46: Irrigation Equipment | D46: 1 | F46: Acre | G46: 10.5412 | I46: 10.5412 | J46: 0 | K46: 0 | M46: 0 | N46: 0 | O46: 10.5412 | P46: 0 | Q46: 1286.0264 | R46: 0
C47: Tractors/Self-Propelled | D47: 1 | F47: Acre | G47: 9.225903841 | I47: 9.225903841 | J47: 0 | K47: 0 | M47: 0 | N47: 0 | O47: 9.225903841 | P47: 0 | Q47: 1125.560269 | R47: 0
C48: Implements | D48: 1 | F48: Acre | G48: 11.77278167 | I48: 11.77278167 | J48: 0 | K48: 0 | M48: 0 | N48: 0 | O48: 11.77278167 | P48: 0 | Q48: 1436.279363 | R48: 0
I49: 0 | J49: 0 | K49: 0 | M49: 0 | N49: 0 | O49: 0 | P49: 0 | Q49: 0 | R49: =+J49*E$7 -> 0
I50: 0 | J50: 0 | K50: 0 | M50: 0 | N50: 0 | O50: 0 | P50: 0 | Q50: 0 | R50: 0
B51: Interest on Credit Line | G51: 0.06 | I51: 4.480025792 | J51: =+SUM(J17:J50)/2*H51 -> 0 | M51: 0 | N51: =+SUM(N17:N50)/2*L51 -> 0 | O51: 4.480025792 | P51: =+SUM(P17:P50)/2*L51 -> 0 | Q51: 546.5631466 | R51: =+J51*E$7 -> 0
A52: Total Variable Costs | I52: 390.5439951 | J52: =SUM(J18:J51) -> 0 | M52: 0 | N52: =SUM(N18:N51) -> 0 | O52: 390.5439951 | P52: =SUM(P18:P51) -> 0 | Q52: 47646.3674 | R52: =SUM(R18:R51) -> 0
A53: Planned Returns Above Variable Costs: | I53: -390.5439951 | J53: =+J13-J52 -> 0 | M53: 0 | N53: =+N13-N52 -> 0 | O53: -390.5439951 | P53: =+P13-P52 -> 0 | Q53: -47646.3674 | R53: =+R13-R52 -> 0
B54: Breakeven Price to Cover Variable Costs | G54: n/a | H54: =IF(E10=0,"n/a",(YVarExp-(YTotExp+YTotRet-J10))/E10) -> n/a
Q55: Enterprise | R55: Enterprise
A56: FIXED COSTS | D56: Quantity | E56: Quantity | F56: Units | G56: $/Unit | H56: $/Unit | J56: Total | K56: Share | L56: Share | M56: Landlord | N56: Landlord | O56: Tenant | P56: Tenant | Q56: Total | R56: Total
B57: Machinery Depreciation
C58: Pickup/General Use Equipment | D58: 1 | F58: Acre | G58: 1.549180328 | I58: 1.549180328 | J58: =E58*H58 -> 0 | K58: 0 | M58: 0 | N58: =J58*L58 -> 0 | O58: 1.549180328 | P58: =+J58-N58 -> 0 | Q58: 189 | R58: =+J58*E$7 -> 0
C59: Irrigation Equipment | D59: 1 | F59: Acre | G59: 15.0273224 | I59: 15.0273224 | J59: 0 | K59: 0 | M59: 0 | N59: =J59*L59 -> 0 | O59: 15.0273224 | P59: 0 | Q59: 1833.333333 | R59: 0
C60: Tractors/Self-Propelled | D60: 1 | F60: Acre | G60: 10.37315802 | I60: 10.37315802 | J60: 0 | K60: 0 | M60: 0 | N60: =J60*L60 -> 0 | O60: 10.37315802 | P60: 0 | Q60: 1265.525279 | R60: 0
C61: Implements | D61: 1 | F61: Acre | G61: 14.94405746 | I61: 14.94405746 | J61: 0 | K61: 0 | M61: 0 | N61: =J61*L61 -> 0 | O61: 14.94405746 | P61: 0 | Q61: 1823.17501 | R61: 0
B62: Equipment Investment
C63: Pickup/General Use Equipment | D63: 9.467213115 | F63: Dollars | G63: 0.06 | I63: 0.5680327869 | J63: =E63*H63 -> 0 | K63: 0 | M63: 0 | N63: =J63*L63 -> 0 | O63: 0.5680327869 | P63: =+J63-N63 -> 0 | Q63: 69.3 | R63: =+J63*E$7 -> 0
C64: Irrigation Equipment | D64: 112.704918 | F64: Dollars | G64: 0.06 | I64: 6.762295082 | J64: 0 | K64: 0 | M64: 0 | N64: =J64*L64 -> 0 | O64: 6.762295082 | P64: 0 | Q64: 825 | R64: 0
C65: Tractors/Self-Propelled | D65: 80.42008242 | F65: Dollars | G65: 0.06 | I65: 4.825204945 | J65: 0 | K65: 0 | M65: 0 | N65: =J65*L65 -> 0 | O65: 4.825204945 | P65: 0 | Q65: 588.6750033 | R65: 0
C66: Implements | D66: 63.92735691 | F66: Dollars | G66: 0.06 | I66: 3.835641415 | J66: 0 | K66: 0 | M66: 0 | N66: =J66*L66 -> 0 | O66: 3.835641415 | P66: 0 | Q66: 467.9482526 | R66: 0
B67: Salaried Labor | D67: 1 | F67: Acre | G67: 0 | I67: 0 | J67: 0 | K67: 0 | M67: 0 | N67: =J67*L67 -> 0 | O67: 0 | P67: =+J67-N67 -> 0 | Q67: 0 | R67: =+J67*E$7 -> 0
B68: Management Fee, Owner/Operator Labor | D68: 1 | F68: Acre | G68: 0 | I68: 0 | J68: 0 | K68: 0 | M68: 0 | N68: 0 | O68: 0 | P68: 0 | Q68: 0 | R68: 0
B69: Allocated Establishment Cost | D69: 1 | F69: Acre | G69: 0 | I69: 0 | J69: 0 | K69: 0 | M69: 0 | N69: 0 | O69: 0 | P69: 0 | Q69: 0 | R69: 0
B70: Rent-Irrigated Crop | D70: 1 | F70: Acre | G70: 70 | I70: 70 | J70: 0 | K70: 0 | M70: 0 | N70: 0 | O70: 70 | P70: 0 | Q70: 8540 | R70: 0
B71: Property Taxes | D71: 1 | F71: Acre | G71: 0 | I71: 0 | J71: =E71*H71 -> 0 | K71: 0 | M71: 0 | N71: 0 | O71: 0 | P71: 0 | Q71: 0 | R71: =+J71*E$7 -> 0
B72: Whole Farm Insurance | D72: 1 | F72: Acre | G72: 0 | I72: 0 | J72: 0 | K72: 0 | M72: 0 | N72: 0 | O72: 0 | P72: 0 | Q72: 0 | R72: 0
D73: 1 | G73: 0 | I73: 0 | J73: 0 | K73: 0 | M73: 0 | N73: 0 | O73: 0 | P73: 0 | Q73: 0 | R73: 0
D74: 1 | G74: 0 | I74: 0 | J74: 0 | K74: 0 | M74: 0 | N74: 0 | O74: 0 | P74: 0 | Q74: 0 | R74: 0
A75: Total Fixed Costs | I75: 127.8848924 | J75: =+SUM(J58:J74) -> 0 | M75: 0 | N75: =+SUM(N58:N74) -> 0 | O75: 127.8848924 | P75: =+SUM(P58:P74) -> 0 | Q75: 15601.95688 | R75: =+SUM(R58:R74) -> 0
A76: Total Specified Costs | I76: 518.4288876 | J76: =+J52+J75 -> 0 | M76: 0 | N76: =+N52+N75 -> 0 | O76: 518.4288876 | P76: =+P52+P75 -> 0 | Q76: 63248.32428 | R76: =+R52+R75 -> 0
A78: Returns Above Specified Costs | I78: -518.4288876 | J78: =+J13-J76 -> 0 | M78: 0 | N78: =+N13-N76 -> 0 | O78: -518.4288876 | P78: =+P13-P76 -> 0 | Q78: -63248.32428 | R78: =+R13-R76 -> 0
A80: Breakeven Price to Cover Total Costs | G80: n/a | H80: =IF(E10=0,"n/a",(YTotExp-(YTotExp+YTotRet-J10))/E10) -> n/a
D82: Example Breakeven Prices
B83: Example | C83: Example | D83: To Cover | G83: To Cover
B84: Yield | C84: Yield | D84: Variable | G84: Total
B85: Percent | D85: Costs | G85: Costs
B86: 0.75 | C86: 0 | D86: 0 | G86: 0
B87: 0.9 | C87: 0 | D87: 0 | G87: 0
B88: 1 | C88: 0 | D88: 0 | G88: 0
B89: 1.1 | C89: 0 | D89: 0 | G89: 0
B90: 1.25 | C90: 0 | D90: 0 | G90: 0
D92: Your Breakeven Prices
B93: Your | C93: Your | E93: To Cover | H93: To Cover
B94: Yield | C94: Yield | E94: Variable | H94: Total
B95: Percent | E95: Costs | H95: Costs
B96: 0.75 | C96: =E10*YPER1 -> 0 | E96: =IF($E$10=0,0,(YVarExp-(YTotExp+YTotRet-J10))/($E$10*YPER1)) -> 0 | H96: =IF($E$10=0,0,(YTotExp-(YTotExp+YTotRet-J10))/($E$10*YPER1)) -> 0
B97: 0.9 | C97: =E10*YPER2 -> 0 | E97: =IF($E$10=0,0,(YVarExp-(YTotExp+YTotRet-J10))/($E$10*YPER2)) -> 0 | H97: =IF($E$10=0,0,(YTotExp-(YTotExp+YTotRet-J10))/($E$10*YPER2)) -> 0
B98: 1 | C98: =+E10 -> 0 | E98: =IF($E$10=0,0,(YVarExp-(YTotExp+YTotRet-J10))/($E$10*YPER3)) -> 0 | H98: =IF($E$10=0,0,(YTotExp-(YTotExp+YTotRet-J10))/($E$10*YPER3)) -> 0
B99: 1.1 | C99: =E10*YPER4 -> 0 | E99: =IF($E$10=0,0,(YVarExp-(YTotExp+YTotRet-J10))/($E$10*YPER4)) -> 0 | H99: =IF($E$10=0,0,(YTotExp-(YTotExp+YTotRet-J10))/($E$10*YPER4)) -> 0
B100: 1.25 | C100: =E10*YPER5 -> 0 | E100: =IF($E$10=0,0,(YVarExp-(YTotExp+YTotRet-J10))/($E$10*YPER5)) -> 0 | H100: =IF($E$10=0,0,(YTotExp-(YTotExp+YTotRet-J10))/($E$10*YPER5)) -> 0
A102: Developed by Bill Thompson, Associate Professor and Extension Economist, Texas A&M AgriLife Extension Service, 325-653-4576.
A104: Information presented is prepared solely as a general guide and not intended to recognize or predict the costs and returns from any one operation. Brand names are mentioned only as examples and imply no endorsement.
Z122: =IF(#REF!=0,0,#REF!) ->  | AB122: =IF(Y122=0,0,LOOKUP(Y122,#REF!,#REF!)) -> 0 | AC122: =IF(Y122=0,0,LOOKUP(Y122,#REF!,#REF!)) -> 0 | AE122: =Z122*AC122 ->  | AF122: =AA122*AD122 -> 0 | AG122: =+#REF! -> 

Sheet AlfalfaPivot
A1: Projections for Planning Purposes Only -- Not to be Used without Updating
A2: 2018 Estimated Costs and Returns per Acre
A3: Alfalfa, RoundUp Ready, Full Season, Baled - 6.5 ton, Center Pivot Irrigated
A4: Enter your name for this budget in the cell above.
A5: Enter Your Values in the cells highlighed in MAROON.
E6: Your Acres | R6: Your
C7: Crop Acres | D7: 122 | L7: Your | Q7: Enterprise | R7: Enterprise
E8: Your | H8: Your | I8: Cash | J8: Your | K8: Landlord | L8: Landlord | N8: Your | P8: Your | Q8: Total | R8: Total
A9: REVENUE | D9: Quantity | E9: Quantity | F9: Units | G9: $/Unit | H9: $/Unit | I9: Total | J9: Total | K9: Share | L9: Share | M9: Landlord | N9: Landlord | O9: Tenant | P9: Tenant | Q9: (122 acres) | R9: ="(" & E7 & " acres)" -> ( acres)
B10: Alfalfa Hay - Baled 3X4 | D10: 6.5 | F10: Ton | G10: 180 | I10: 1170 | J10: =E10*H10 -> 0 | K10: 0 | M10: 0 | N10: =J10*L10 -> 0 | O10: 1170 | P10: =+J10-N10 -> 0 | Q10: 142740 | R10: =+J10*E$7 -> 0
D11: 0 | G11: 0 | I11: 0 | J11: 0 | K11: 0 | M11: 0 | N11: 0 | O11: 0 | P11: =+J11-N11 -> 0 | Q11: 0 | R11: 0
D12: 0 | G12: 0 | I12: 0 | J12: 0 | K12: 0 | M12: 0 | N12: 0 | O12: 0 | P12: 0 | Q12: 0 | R12: 0
A13: Total Revenue | I13: 1170 | J13: =SUM(J10:J12) -> 0 | M13: 0 | N13: =SUM(N10:N12) -> 0 | O13: 1170 | P13: =SUM(P10:P12) -> 0 | Q13: 142740 | R13: =SUM(R10:R12) -> 0
Q14: Enterprise | R14: Enterprise
A15: VARIABLE COSTS | D15: Quantity | E15: Quantity | F15: Units | G15: $/Unit | H15: $/Unit | I15: Total | J15: Total | K15: Share | L15: Share | M15: Landlord | N15: Landlord | O15: Tenant | P15: Tenant | Q15: Total | R15: Total
A16: Production Costs
B17: Custom
C18: Soil Test-Irrigated | D18: 1 | F18: Each | G18: 0.5 | I18: 0.5 | J18: =E18*H18 -> 0 | K18: 0 | M18: 0 | N18: =J18*L18 -> 0 | O18: 0.5 | P18: =+J18-N18 -> 0 | Q18: 61 | R18: =+J18*E$7 -> 0
C19: Apply Dry Fertilizer | D19: 1 | F19: Acre | G19: 5.5 | I19: 5.5 | J19: 0 | K19: 0 | M19: 0 | N19: 0 | O19: 5.5 | P19: 0 | Q19: 671 | R19: 0
C20: Swath, Rake and Bale | D20: 9.24 | F20: Bale | G20: 27.57 | I20: 254.7468 | J20: 0 | K20: 0 | M20: 0 | N20: 0 | O20: 254.7468 | P20: 0 | Q20: 31079.1096 | R20: 0
B21: Fertilizer
C22: Phos (11-52-0 DRY MAT) | D22: 73 | F22: Pounds | G22: 0.442 | I22: 32.266 | J22: 0 | K22: 0 | M22: 0 | N22: 0 | O22: 32.266 | P22: 0 | Q22: 3936.452 | R22: 0
B23: Herbicide
C24: Trifluralin | D24: 2 | F24: Pint | G24: 2.9375 | I24: 5.875 | J24: 0 | K24: 0 | M24: 0 | N24: 0 | O24: 5.875 | P24: 0 | Q24: 716.75 | R24: 0
C25: Glyphosate | D25: 110 | F25: Ounce | G25: 0.13 | I25: 14.3 | J25: 0 | K25: 0 | M25: 0 | N25: 0 | O25: 14.3 | P25: 0 | Q25: 1744.6 | R25: 0
B26: Insecticide
C27: Mustang Max(Warrior Z) | D27: 7.04 | F27: Ounce | G27: 1.25 | I27: 8.8 | J27: 0 | K27: 0 | M27: 0 | N27: 0 | O27: 8.8 | P27: 0 | Q27: 1073.6 | R27: 0
C28: Intrepid | D28: 2.3 | F28: Ounce | G28: 1.98046875 | I28: 4.555078125 | J28: 0 | K28: 0 | M28: 0 | N28: 0 | O28: 4.555078125 | P28: 0 | Q28: 555.7195312 | R28: 0
D29: 0 | G29: 0 | I29: 0 | J29: 0 | K29: 0 | M29: 0 | N29: 0 | O29: 0 | P29: 0 | Q29: 0 | R29: 0
D30: 0 | G30: 0 | I30: 0 | J30: 0 | K30: 0 | M30: 0 | N30: 0 | O30: 0 | P30: 0 | Q30: 0 | R30: 0
D31: 0 | G31: 0 | I31: 0 | J31: =E31*H31 -> 0 | K31: 0 | M31: 0 | N31: =J31*L31 -> 0 | O31: 0 | P31: =+J31-N31 -> 0 | Q31: 0 | R31: =+J31*E$7 -> 0
B32: Irrigation
C33: Energy Cost | D33: 36 | F33: AcreInch | G33: 8.574846773 | I33: 308.6944838 | J33: =E33*H33 -> 0 | K33: 0 | M33: 0 | N33: =J33*L33 -> 0 | O33: 308.6944838 | P33: =+J33-N33 -> 0 | Q33: 37660.72703 | R33: =+J33*E$7 -> 0
C34: Irrigation Labor | D34: 0.8 | F34: Hour | G34: 12 | I34: 9.6 | J34: 0 | K34: 0 | M34: 0 | N34: 0 | O34: 9.6 | P34: 0 | Q34: 1171.2 | R34: 0
B35: Machinery Labor
C36: Tractors/Self-Propelled | D36: 2.95 | F36: Hour | G36: 12 | I36: 35.4 | J36: =E36*H36 -> 0 | K36: 0 | M36: 0 | N36: =J36*L36 -> 0 | O36: 35.4 | P36: =+J36-N36 -> 0 | Q36: 4318.8 | R36: =+J36*E$7 -> 0
C37: Other Labor | D37: 0 | F37: Hour | G37: 12 | I37: 0 | J37: =E37*H37 -> 0 | K37: 0 | M37: 0 | N37: =J37*L37 -> 0 | O37: 0 | P37: =+J37-N37 -> 0 | Q37: 0 | R37: =+J37*E$7 -> 0
B39: Diesel Fuel
C40: Pickup/General Use Equipment | D40: 1 | F40: Acre | G40: 0 | I40: 0 | J40: =E40*H40 -> 0 | K40: 0 | M40: 0 | N40: =J40*L40 -> 0 | O40: 0 | P40: =+J40-N40 -> 0 | Q40: 0 | R40: =+J40*E$7 -> 0
C41: Tractors/Self-Propelled | D41: 22.93 | F41: Gallon | G41: 2.15 | I41: 49.2995 | J41: =E41*H41 -> 0 | K41: 0 | M41: 0 | N41: =J41*L41 -> 0 | O41: 49.2995 | P41: =+J41-N41 -> 0 | Q41: 6014.539 | R41: =+J41*E$7 -> 0
B43: Gasoline
C44: Pickup/General Use Equipment | D44: 1 | F44: Acre | G44: 5.966557377 | I44: 5.966557377 | J44: =E44*H44 -> 0 | K44: 0 | M44: 0 | N44: =J44*L44 -> 0 | O44: 5.966557377 | P44: =+J44-N44 -> 0 | Q44: 727.92 | R44: =+J44*E$7 -> 0
C45: Tractors/Self-Propelled | D45: 0 | F45: Gallon | G45: 2.4 | I45: 0 | J45: =E45*H45 -> 0 | K45: 0 | M45: 0 | N45: =J45*L45 -> 0 | O45: 0 | P45: =+J45-N45 -> 0 | Q45: 0 | R45: =+J45*E$7 -> 0
B47: Repairs & Maintenance
C48: Pickup/General Use Equipment | D48: 1 | F48: Acre | G48: 2.692622951 | I48: 2.692622951 | J48: =E48*H48 -> 0 | K48: 0 | M48: 0 | N48: =J48*L48 -> 0 | O48: 2.692622951 | P48: =+J48-N48 -> 0 | Q48: 328.5 | R48: =+J48*E$7 -> 0
C49: Irrigation Equipment | D49: 1 | F49: Acre | G49: 94.8708 | I49: 94.8708 | J49: 0 | K49: 0 | M49: 0 | N49: 0 | O49: 94.8708 | P49: 0 | Q49: 11574.2376 | R49: 0
C50: Tractors/Self-Propelled | D50: 1 | F50: Acre | G50: 48.21219573 | I50: 48.21219573 | J50: 0 | K50: 0 | M50: 0 | N50: 0 | O50: 48.21219573 | P50: 0 | Q50: 5881.887879 | R50: 0
C51: Implements | D51: 1 | F51: Acre | G51: 0.4475402035 | I51: 0.4475402035 | J51: 0 | K51: 0 | M51: 0 | N51: 0 | O51: 0.4475402035 | P51: 0 | Q51: 54.59990483 | R51: 0
I52: 0 | J52: 0 | K52: 0 | M52: 0 | N52: 0 | O52: 0 | P52: 0 | Q52: 0 | R52: 0
I53: 0 | J53: 0 | K53: 0 | M53: 0 | N53: 0 | O53: 0 | P53: 0 | Q53: 0 | R53: 0
B54: Interest on Credit Line | G54: 0.06 | I54: 14.35602928 | J54: =+SUM(J17:J53)/2*H54 -> 0 | M54: 0 | N54: =+SUM(N17:N53)/2*L54 -> 0 | O54: 14.35602928 | P54: =+SUM(P17:P53)/2*L54 -> 0 | Q54: 1751.435572 | R54: =+J54*E$7 -> 0
A55: Total Variable Costs | I55: 896.0826075 | J55: =SUM(J18:J54) -> 0 | M55: 0 | N55: =SUM(N18:N54) -> 0 | O55: 896.0826075 | P55: =SUM(P18:P54) -> 0 | Q55: 109322.0781 | R55: =SUM(R18:R54) -> 0
A56: Planned Returns Above Variable Costs: | I56: 273.9173925 | J56: =+J13-J55 -> 0 | M56: 0 | N56: =+N13-N55 -> 0 | O56: 273.9173925 | P56: =+P13-P55 -> 0 | Q56: 33417.92188 | R56: =+R13-R55 -> 0
B57: Breakeven Price to Cover Variable Costs | G57: 137.8588627 | H57: =IF(E10=0,"n/a",(YVarExp-(YTotExp+YTotRet-J10))/E10) -> n/a | I57: Ton
Q58: Enterprise | R58: Enterprise
A59: FIXED COSTS | D59: Quantity | E59: Quantity | F59: Units | G59: $/Unit | H59: $/Unit | I59: Total | J59: Total | K59: Share | L59: Share | M59: Landlord | N59: Landlord | O59: Tenant | P59: Tenant | Q59: Total | R59: Total
B60: Machinery Depreciation
C61: Pickup/General Use Equipment | D61: 1 | F61: Acre | G61: 5.709836066 | I61: 5.709836066 | J61: =E61*H61 -> 0 | K61: 0 | M61: 0 | N61: =J61*L61 -> 0 | O61: 5.709836066 | P61: =+J61-N61 -> 0 | Q61: 696.6 | R61: =+J61*E$7 -> 0
C62: Irrigation Equipment | D62: 1 | F62: Acre | G62: 60.10928962 | I62: 60.10928962 | J62: 0 | K62: 0 | M62: 0 | N62: =J62*L62 -> 0 | O62: 60.10928962 | P62: 0 | Q62: 7333.333333 | R62: 0
C63: Tractors/Self-Propelled | D63: 1 | F63: Acre | G63: 56.8141703 | I63: 56.8141703 | J63: 0 | K63: 0 | M63: 0 | N63: =J63*L63 -> 0 | O63: 56.8141703 | P63: 0 | Q63: 6931.328777 | R63: 0
C64: Implements | D64: 1 | F64: Acre | G64: 1.006965458 | I64: 1.006965458 | J64: 0 | K64: 0 | M64: 0 | N64: =J64*L64 -> 0 | O64: 1.006965458 | P64: 0 | Q64: 122.8497859 | R64: 0
B65: Equipment Investment
C66: Pickup/General Use Equipment | D66: 31.64754098 | F66: Dollars | G66: 0.06 | I66: 1.898852459 | J66: =E66*H66 -> 0 | K66: 0 | M66: 0 | N66: =J66*L66 -> 0 | O66: 1.898852459 | P66: =+J66-N66 -> 0 | Q66: 231.66 | R66: =+J66*E$7 -> 0
C67: Irrigation Equipment | D67: 450.8196721 | F67: Dollars | G67: 0.06 | I67: 27.04918033 | J67: 0 | K67: 0 | M67: 0 | N67: =J67*L67 -> 0 | O67: 27.04918033 | P67: 0 | Q67: 3300 | R67: 0
C68: Tractors/Self-Propelled | D68: 439.3506413 | F68: Dollars | G68: 0.06 | I68: 26.36103848 | J68: 0 | K68: 0 | M68: 0 | N68: =J68*L68 -> 0 | O68: 26.36103848 | P68: 0 | Q68: 3216.046694 | R68: 0
C69: Implements | D69: 6.153677799 | F69: Dollars | G69: 0.06 | I69: 0.3692206679 | J69: 0 | K69: 0 | M69: 0 | N69: =J69*L69 -> 0 | O69: 0.3692206679 | P69: 0 | Q69: 45.04492149 | R69: 0
B70: Salaried Labor | D70: 1 | F70: Acre | G70: 0 | I70: 0 | J70: 0 | K70: 0 | M70: 0 | N70: =J70*L70 -> 0 | O70: 0 | P70: =+J70-N70 -> 0 | Q70: 0 | R70: =+J70*E$7 -> 0
B71: Management Fee, Owner/Operator Labor | D71: 1 | F71: Acre | G71: 0 | I71: 0 | J71: 0 | K71: 0 | M71: 0 | N71: 0 | O71: 0 | P71: 0 | Q71: 0 | R71: 0
B72: Allocated Establishment Cost | D72: 1 | F72: Acre | G72: 103.686 | I72: 103.686 | J72: 0 | K72: 0 | M72: 0 | N72: 0 | O72: 103.686 | P72: 0 | Q72: 12649.692 | R72: 0
B73: Rent-Irrigated Crop | D73: 1 | F73: Acre | G73: 70 | I73: 70 | J73: 0 | K73: 0 | M73: 0 | N73: 0 | O73: 70 | P73: 0 | Q73: 8540 | R73: 0
B74: Property Taxes | D74: 1 | F74: Acre | G74: 0 | I74: 0 | J74: 0 | K74: 0 | M74: 0 | N74: 0 | O74: 0 | P74: 0 | Q74: 0 | R74: 0
B75: Whole Farm Insurance | D75: 1 | F75: Acre | G75: 0 | I75: 0 | J75: 0 | K75: 0 | M75: 0 | N75: 0 | O75: 0 | P75: 0 | Q75: 0 | R75: 0
D76: 1 | G76: 0 | I76: 0 | J76: 0 | K76: 0 | M76: 0 | N76: 0 | O76: 0 | P76: 0 | Q76: 0 | R76: 0
D77: 1 | G77: 0 | I77: 0 | J77: =E77*H77 -> 0 | K77: 0 | M77: 0 | N77: 0 | O77: 0 | P77: 0 | Q77: 0 | R77: 0
A78: Total Fixed Costs | I78: 353.0045534 | J78: =+SUM(J61:J77) -> 0 | M78: 0 | N78: =+SUM(N61:N77) -> 0 | O78: 353.0045534 | P78: =+SUM(P61:P77) -> 0 | Q78: 43066.55551 | R78: =+SUM(R61:R77) -> 0
A79: Total Specified Costs | I79: 1249.087161 | J79: =+J55+J78 -> 0 | M79: 0 | N79: =+N55+N78 -> 0 | O79: 1249.087161 | P79: =+P55+P78 -> 0 | Q79: 152388.6336 | R79: =+R55+R78 -> 0
A81: Returns Above Specified Costs | I81: -79.08716089 | J81: =+J13-J79 -> 0 | M81: 0 | N81: =+N13-N79 -> 0 | O81: -79.08716089 | P81: =+P13-P79 -> 0 | Q81: -9648.633628 | R81: =+R13-R79 -> 0
A83: Breakeven Price to Cover Total Costs | G83: 192.1672555 | H83: =IF(E10=0,"n/a",(YTotExp-(YTotExp+YTotRet-J10))/E10) -> n/a | I83: Ton
D85: Example Breakeven Prices
B86: Example | C86: Example | D86: To Cover | G86: To Cover
B87: Yield | C87: Yield | D87: Variable | G87: Total
B88: Percent | C88: Ton | D88: Costs | G88: Costs
B89: 0.75 | C89: 4.875 | D89: 183.8118169 | G89: 256.2230074
B90: 0.9 | C90: 5.85 | D90: 153.1765141 | G90: 213.5191728
B91: 1 | C91: 6.5 | D91: 137.8588627 | G91: 192.1672555
B92: 1.1 | C92: 7.15 | D92: 125.3262388 | G92: 174.697505
B93: 1.25 | C93: 8.125 | D93: 110.2870902 | G93: 153.7338044
D95: Your Breakeven Prices
B96: Your | C96: Your | E96: To Cover | H96: To Cover
B97: Yield | C97: Yield | E97: Variable | H97: Total
B98: Percent | C98: Ton | E98: Costs | H98: Costs
B99: 0.75 | C99: =E10*YPER1 -> 0 | E99: =IF($E$10=0,0,(YVarExp-(YTotExp+YTotRet-J10))/($E$10*YPER1)) -> 0 | H99: =IF($E$10=0,0,(YTotExp-(YTotExp+YTotRet-J10))/($E$10*YPER1)) -> 0
B100: 0.9 | C100: =E10*YPER2 -> 0 | E100: =IF($E$10=0,0,(YVarExp-(YTotExp+YTotRet-J10))/($E$10*YPER2)) -> 0 | H100: =IF($E$10=0,0,(YTotExp-(YTotExp+YTotRet-J10))/($E$10*YPER2)) -> 0
B101: 1 | C101: =+E10 -> 0 | E101: =IF($E$10=0,0,(YVarExp-(YTotExp+YTotRet-J10))/($E$10*YPER3)) -> 0 | H101: =IF($E$10=0,0,(YTotExp-(YTotExp+YTotRet-J10))/($E$10*YPER3)) -> 0
B102: 1.1 | C102: =E10*YPER4 -> 0 | E102: =IF($E$10=0,0,(YVarExp-(YTotExp+YTotRet-J10))/($E$10*YPER4)) -> 0 | H102: =IF($E$10=0,0,(YTotExp-(YTotExp+YTotRet-J10))/($E$10*YPER4)) -> 0
B103: 1.25 | C103: =E10*YPER5 -> 0 | E103: =IF($E$10=0,0,(YVarExp-(YTotExp+YTotRet-J10))/($E$10*YPER5)) -> 0 | H103: =IF($E$10=0,0,(YTotExp-(YTotExp+YTotRet-J10))/($E$10*YPER5)) -> 0
A105: Developed by Bill Thompson, Associate Professor and Extension Economist, Texas A&M AgriLife Extension Service, 325-653-4576.
A107: Information presented is prepared solely as a general guide and not intended to recognize or predict the costs and returns from any one operation. Brand names are mentioned only as examples and imply no endorsement.

Sheet ConTillWheat
A1: Projections for Planning Purposes Only -- Not to be Used without Updating
A2: 2018 Estimated Costs and Returns per Acre
A3: Con-Till Wheat, Dryland, Follow Wheat
A4: Enter your name for this budget in the cell above.
A5: Enter Your Values in the cells highlighed in MAROON.
E6: Your Acres | R6: Your
C7: Crop Acres | D7: 1000 | L7: Your | Q7: Enterprise | R7: Enterprise
E8: Your | H8: Your | I8: Cash | J8: Your | K8: Landlord | L8: Landlord | N8: Your | P8: Your | Q8: Total | R8: Total
A9: REVENUE | D9: Quantity | E9: Quantity | F9: Units | G9: $/Unit | H9: $/Unit | I9: Total | J9: Total | K9: Share | L9: Share | M9: Landlord | N9: Landlord | O9: Tenant | P9: Tenant | Q9: (1000 acres) | R9: ="(" & E7 & " acres)" -> ( acres)
B10: Winter Wheat | D10: 25 | F10: Bushel | G10: 3.85 | I10: 96.25 | J10: =E10*H10 -> 0 | K10: 0 | M10: 0 | N10: =J10*L10 -> 0 | O10: 96.25 | P10: =+J10-N10 -> 0 | Q10: 96250 | R10: =+J10*E$7 -> 0
B11: Small Grains Pasture | D11: 16 | F11: Acre | G11: 0.4 | I11: 6.4 | J11: 0 | K11: 0 | M11: 0 | N11: 0 | O11: 6.4 | P11: =+J11-N11 -> 0 | Q11: 6400 | R11: 0
B12: Small Grains Pasture | D12: 16 | F12: Acre | G12: 0.4 | I12: 6.4 | J12: 0 | K12: 0 | M12: 0 | N12: 0 | O12: 6.4 | P12: 0 | Q12: 6400 | R12: 0
B13: Small Grains Pasture | D13: 16 | F13: Acre | G13: 0.4 | I13: 6.4 | J13: 0 | K13: 0 | M13: 0 | N13: 0 | O13: 6.4 | P13: 0 | Q13: 6400 | R13: 0
D14: 0 | G14: 0 | I14: 0 | J14: 0 | K14: 0 | M14: 0 | N14: 0 | O14: 0 | P14: 0 | Q14: 0 | R14: 0
D15: 0 | G15: 0 | I15: 0 | J15: 0 | K15: 0 | M15: 0 | N15: 0 | O15: 0 | P15: 0 | Q15: 0 | R15: 0
A16: Total Revenue | I16: 115.45 | J16: =SUM(J10:J15) -> 0 | M16: 0 | N16: =SUM(N10:N15) -> 0 | O16: 115.45 | P16: 0 | Q16: 115450 | R16: 0
Q17: Enterprise | R17: Enterprise
A18: VARIABLE COSTS | D18: Quantity | E18: Quantity | F18: Units | G18: $/Unit | H18: $/Unit | I18: Total | J18: Total | K18: Share | L18: Share | M18: Landlord | N18: Landlord | O18: Tenant | P18: Tenant | Q18: Total | R18: Total
A19: Production Costs
B20: Herbicide
C21: MSM (Ally) | D21: 0.1 | F21: Ounce | G21: 6 | I21: 0.6 | J21: =E21*H21 -> 0 | K21: 0 | M21: 0 | N21: =J21*L21 -> 0 | O21: 0.6 | P21: =+J21-N21 -> 0 | Q21: 600 | R21: =+J21*E$7 -> 0
C22: MCPA | D22: 1 | F22: pint | G22: 3 | I22: 3 | J22: 0 | K22: 0 | M22: 0 | N22: 0 | O22: 3 | P22: 0 | Q22: 3000 | R22: 0
B23: Custom
C24: Soil Test-Dryland | D24: 1 | F24: Each | G24: 0.25 | I24: 0.25 | J24: 0 | K24: 0 | M24: 0 | N24: 0 | O24: 0.25 | P24: 0 | Q24: 250 | R24: 0
C25: Custom Harvest Wheat | D25: 1 | F25: Acre | G25: 25 | I25: 25 | J25: 0 | K25: 0 | M25: 0 | N25: 0 | O25: 25 | P25: 0 | Q25: 25000 | R25: 0
C26: Custom Haul Wheat | D26: 25 | F26: Bushels | G26: 0.27 | I26: 6.75 | J26: 0 | K26: 0 | M26: 0 | N26: 0 | O26: 6.75 | P26: 0 | Q26: 6750 | R26: 0
C27: Custom Harvest Overage Wheat | D27: 5 | F27: Bushels | G27: 0.2 | I27: 1 | J27: 0 | K27: 0 | M27: 0 | N27: 0 | O27: 1 | P27: 0 | Q27: 1000 | R27: 0
B28: Seed
C29: Wheat Seed | D29: 80 | F29: Pounds | G29: 0.2333333333 | I29: 18.66666667 | J29: 0 | K29: 0 | M29: 0 | N29: 0 | O29: 18.66666667 | P29: 0 | Q29: 18666.66667 | R29: 0
B30: Fertilizer
C31: Nitrogen Dry-Urea | D31: 3.8 | F31: Pounds | G31: 0.37 | I31: 1.406 | J31: 0 | K31: 0 | M31: 0 | N31: 0 | O31: 1.406 | P31: 0 | Q31: 1406 | R31: 0
C32: Phos (11-52-0 DRY MAT) | D32: 18.2 | F32: Pounds | G32: 0.442 | I32: 8.0444 | J32: 0 | K32: 0 | M32: 0 | N32: 0 | O32: 8.0444 | P32: 0 | Q32: 8044.4 | R32: 0
C33: Nitrogen N32-liq | D33: 35.2 | F33: Pounds | G33: 0.35 | I33: 12.32 | J33: 0 | K33: 0 | M33: 0 | N33: 0 | O33: 12.32 | P33: 0 | Q33: 12320 | R33: 0
B34: Miscellaneous
C35: Wht RP 70%, Ent, YE | D35: 1 | F35: Acre | G35: 3.23 | I35: 3.23 | J35: 0 | K35: 0 | M35: 0 | N35: 0 | O35: 3.23 | P35: 0 | Q35: 3230 | R35: 0
B36: Fungicides
C37: Wheat Fungicide | D37: 8 | F37: Ounce | G37: 0.5 | I37: 4 | J37: 0 | K37: 0 | M37: 0 | N37: 0 | O37: 4 | P37: 0 | Q37: 4000 | R37: 0
D38: 0 | G38: 0 | I38: 0 | J38: 0 | K38: 0 | M38: 0 | N38: 0 | O38: 0 | P38: 0 | Q38: 0 | R38: 0
D39: 0 | G39: 0 | I39: 0 | J39: 0 | K39: 0 | M39: 0 | N39: 0 | O39: 0 | P39: 0 | Q39: 0 | R39: 0
D40: 0 | G40: 0 | I40: 0 | J40: =E40*H40 -> 0 | K40: 0 | M40: 0 | N40: =J40*L40 -> 0 | O40: 0 | P40: =+J40-N40 -> 0 | Q40: 0 | R40: =+J40*E$7 -> 0
B41: Machinery Labor
C42: Tractors/Self-Propelled | D42: 0.32 | F42: Hour | G42: 12 | I42: 3.84 | J42: =E42*H42 -> 0 | K42: 0 | M42: 0 | N42: =J42*L42 -> 0 | O42: 3.84 | P42: =+J42-N42 -> 0 | Q42: 3840 | R42: =+J42*E$7 -> 0
C43: Other Labor | D43: 0.1 | F43: Hour | G43: 12 | I43: 1.2 | J43: =E43*H43 -> 0 | K43: 0 | M43: 0 | N43: =J43*L43 -> 0 | O43: 1.2 | P43: =+J43-N43 -> 0 | Q43: 1200 | R43: =+J43*E$7 -> 0
B45: Diesel Fuel
C46: Pickup/General Use Equipment | D46: 1 | F46: Acre | G46: 0 | I46: 0 | J46: =E46*H46 -> 0 | K46: 0 | M46: 0 | N46: =J46*L46 -> 0 | O46: 0 | P46: =+J46-N46 -> 0 | Q46: 0 | R46: =+J46*E$7 -> 0
C47: Tractors/Self-Propelled | D47: 3.99 | F47: Gallon | G47: 2.15 | I47: 8.5785 | J47: =E47*H47 -> 0 | K47: 0 | M47: 0 | N47: =J47*L47 -> 0 | O47: 8.5785 | P47: =+J47-N47 -> 0 | Q47: 8578.5 | R47: =+J47*E$7 -> 0
B49: Gasoline
C50: Pickup/General Use Equipment | D50: 1 | F50: Acre | G50: 2.4264 | I50: 2.4264 | J50: =E50*H50 -> 0 | K50: 0 | M50: 0 | N50: =J50*L50 -> 0 | O50: 2.4264 | P50: =+J50-N50 -> 0 | Q50: 2426.4 | R50: =+J50*E$7 -> 0
C51: Tractors/Self-Propelled | D51: 0 | F51: Gallon | G51: 2.4 | I51: 0 | J51: =E51*H51 -> 0 | K51: 0 | M51: 0 | N51: =J51*L51 -> 0 | O51: 0 | P51: =+J51-N51 -> 0 | Q51: 0 | R51: =+J51*E$7 -> 0
B53: Repairs & Maintenance
C54: Pickup/General Use Equipment | D54: 1 | F54: Acre | G54: 1.095 | I54: 1.095 | J54: =E54*H54 -> 0 | K54: 0 | M54: 0 | N54: =J54*L54 -> 0 | O54: 1.095 | P54: =+J54-N54 -> 0 | Q54: 1095 | R54: =+J54*E$7 -> 0
C55: Irrigation Equipment | D55: 1 | F55: Acre | G55: 0 | I55: 0 | J55: 0 | K55: 0 | M55: 0 | N55: 0 | O55: 0 | P55: 0 | Q55: 0 | R55: 0
C56: Tractors/Self-Propelled | D56: 1 | F56: Acre | G56: 9.087518757 | I56: 9.087518757 | J56: 0 | K56: 0 | M56: 0 | N56: 0 | O56: 9.087518757 | P56: 0 | Q56: 9087.518757 | R56: 0
C57: Implements | D57: 1 | F57: Acre | G57: 10.39546238 | I57: 10.39546238 | J57: 0 | K57: 0 | M57: 0 | N57: 0 | O57: 10.39546238 | P57: 0 | Q57: 10395.46238 | R57: 0
I58: 0 | J58: 0 | K58: 0 | M58: 0 | N58: 0 | O58: 0 | P58: 0 | Q58: 0 | R58: 0
I59: 0 | J59: 0 | K59: 0 | M59: 0 | N59: 0 | O59: 0 | P59: 0 | Q59: 0 | R59: 0
B60: Interest on Credit Line | G60: 0.06 | I60: 2.98957005 | J60: =+SUM(J20:J59)/2*H60 -> 0 | M60: 0 | N60: =+SUM(N20:N59)/2*L60 -> 0 | O60: 2.98957005 | P60: =+SUM(P20:P59)/2*L60 -> 0 | Q60: 2989.57005 | R60: =+J60*E$7 -> 0
A61: Total Variable Costs | I61: 123.8795179 | J61: =SUM(J21:J60) -> 0 | M61: 0 | N61: =SUM(N21:N60) -> 0 | O61: 123.8795179 | P61: =SUM(P21:P60) -> 0 | Q61: 123879.5179 | R61: =SUM(R21:R60) -> 0
A62: Planned Returns Above Variable Costs: | I62: -8.429517853 | J62: =+J16-J61 -> 0 | M62: 0 | N62: =+N16-N61 -> 0 | O62: -8.429517853 | P62: =+P16-P61 -> 0 | Q62: -8429.517853 | R62: =+R16-R61 -> 0
B63: Breakeven Price to Cover Variable Costs | G63: 4.187180714 | H63: =IF(E10=0,"n/a",(YVarExp-(YTotExp+YTotRet-J10))/E10) -> n/a | I63: Bushel
Q64: Enterprise | R64: Enterprise
A65: FIXED COSTS | D65: Quantity | E65: Quantity | F65: Units | G65: $/Unit | H65: $/Unit | I65: Total | J65: Total | K65: Share | L65: Share | M65: Landlord | N65: Landlord | O65: Tenant | P65: Tenant | Q65: Total | R65: Total
B66: Machinery Depreciation
C67: Pickup/General Use Equipment | D67: 1 | F67: Acre | G67: 2.322 | I67: 2.322 | J67: =E67*H67 -> 0 | K67: 0 | M67: 0 | N67: =J67*L67 -> 0 | O67: 2.322 | P67: =+J67-N67 -> 0 | Q67: 2322 | R67: =+J67*E$7 -> 0
C68: Tractors/Self-Propelled | D68: 1 | F68: Acre | G68: 11.90960822 | I68: 11.90960822 | J68: 0 | K68: 0 | M68: 0 | N68: =J68*L68 -> 0 | O68: 11.90960822 | P68: 0 | Q68: 11909.60822 | R68: 0
C69: Implements | D69: 1 | F69: Acre | G69: 13.36559449 | I69: 13.36559449 | J69: 0 | K69: 0 | M69: 0 | N69: =J69*L69 -> 0 | O69: 13.36559449 | P69: 0 | Q69: 13365.59449 | R69: 0
B70: Equipment Investment
C71: Pickup/General Use Equipment | D71: 12.87 | F71: Dollars | G71: 0.06 | I71: 0.7722 | J71: =E71*H71 -> 0 | K71: 0 | M71: 0 | N71: =J71*L71 -> 0 | O71: 0.7722 | P71: =+J71-N71 -> 0 | Q71: 772.2 | R71: =+J71*E$7 -> 0
C72: Tractors/Self-Propelled | D72: 91.60919549 | F72: Dollars | G72: 0.06 | I72: 5.496551729 | J72: 0 | K72: 0 | M72: 0 | N72: =J72*L72 -> 0 | O72: 5.496551729 | P72: 0 | Q72: 5496.551729 | R72: 0
C73: Implements | D73: 57.17504308 | F73: Dollars | G73: 0.06 | I73: 3.430502585 | J73: 0 | K73: 0 | M73: 0 | N73: =J73*L73 -> 0 | O73: 3.430502585 | P73: 0 | Q73: 3430.502585 | R73: 0
B74: Salaried Labor | D74: 1 | F74: Acre | G74: 0 | I74: 0 | J74: 0 | K74: 0 | M74: 0 | N74: =J74*L74 -> 0 | O74: 0 | P74: =+J74-N74 -> 0 | Q74: 0 | R74: =+J74*E$7 -> 0
B75: Management Fee, Owner/Operator Labor | D75: 1 | F75: Acre | G75: 10 | I75: 10 | J75: 0 | K75: 0 | M75: 0 | N75: 0 | O75: 10 | P75: 0 | Q75: 10000 | R75: 0
B76: Allocated Establishment Cost | D76: 1 | F76: Acre | G76: 0 | I76: 0 | J76: 0 | K76: 0 | M76: 0 | N76: 0 | O76: 0 | P76: 0 | Q76: 0 | R76: 0
B77: Rent-Dryland Crop | D77: 1 | F77: Acre | G77: 35 | I77: 35 | J77: 0 | K77: 0 | M77: 0 | N77: 0 | O77: 35 | P77: 0 | Q77: 35000 | R77: 0
B78: Property Taxes | D78: 1 | F78: Acre | G78: 0 | I78: 0 | J78: 0 | K78: 0 | M78: 0 | N78: 0 | O78: 0 | P78: 0 | Q78: 0 | R78: 0
B79: Whole Farm Insurance | D79: 1 | F79: Acre | G79: 0 | I79: 0 | J79: 0 | K79: 0 | M79: 0 | N79: 0 | O79: 0 | P79: 0 | Q79: 0 | R79: 0
D80: 1 | G80: 0 | I80: 0 | J80: 0 | K80: 0 | M80: 0 | N80: 0 | O80: 0 | P80: 0 | Q80: 0 | R80: 0
D81: 1 | G81: 0 | I81: 0 | J81: =E81*H81 -> 0 | K81: 0 | M81: 0 | N81: 0 | O81: 0 | P81: 0 | Q81: 0 | R81: 0
A82: Total Fixed Costs | I82: 82.29645702 | J82: =+SUM(J67:J81) -> 0 | M82: 0 | N82: =+SUM(N67:N81) -> 0 | O82: 82.29645702 | P82: =+SUM(P67:P81) -> 0 | Q82: 82296.45702 | R82: =+SUM(R67:R81) -> 0
A83: Total Specified Costs | I83: 206.1759749 | J83: =+J61+J82 -> 0 | M83: 0 | N83: =+N61+N82 -> 0 | O83: 206.1759749 | P83: =+P61+P82 -> 0 | Q83: 206175.9749 | R83: =+R61+R82 -> 0
A85: Returns Above Specified Costs | I85: -90.72597487 | J85: =+J16-J83 -> 0 | M85: 0 | N85: =+N16-N83 -> 0 | O85: -90.72597487 | P85: =+P16-P83 -> 0 | Q85: -90725.97487 | R85: =+R16-R83 -> 0
A87: Breakeven Price to Cover Total Costs | G87: 7.479038995 | H87: =IF(E10=0,"n/a",(YTotExp-(YTotExp+YTotRet-J10))/E10) -> n/a | I87: Bushel
D89: Example Breakeven Prices
B90: Example | C90: Example | D90: To Cover | G90: To Cover
B91: Yield | C91: Yield | D91: Variable | G91: Total
B92: Percent | C92: Bushel | D92: Costs | G92: Costs
B93: 0.75 | C93: 18.75 | D93: 5.582907619 | G93: 9.972051993
B94: 0.9 | C94: 22.5 | D94: 4.652423016 | G94: 8.310043327
B95: 1 | C95: 25 | D95: 4.187180714 | G95: 7.479038995
B96: 1.1 | C96: 27.5 | D96: 3.806527922 | G96: 6.799126359
B97: 1.25 | C97: 31.25 | D97: 3.349744571 | G97: 5.983231196
D99: Your Breakeven Prices
B100: Your | C100: Your | E100: To Cover | H100: To Cover
B101: Yield | C101: Yield | E101: Variable | H101: Total
B102: Percent | C102: Bushel | E102: Costs | H102: Costs
B103: 0.75 | C103: =E10*YPER1 -> 0 | E103: =IF($E$10=0,0,(YVarExp-(YTotExp+YTotRet-J10))/($E$10*YPER1)) -> 0 | H103: =IF($E$10=0,0,(YTotExp-(YTotExp+YTotRet-J10))/($E$10*YPER1)) -> 0
B104: 0.9 | C104: =E10*YPER2 -> 0 | E104: =IF($E$10=0,0,(YVarExp-(YTotExp+YTotRet-J10))/($E$10*YPER2)) -> 0 | H104: =IF($E$10=0,0,(YTotExp-(YTotExp+YTotRet-J10))/($E$10*YPER2)) -> 0
B105: 1 | C105: =+E10 -> 0 | E105: =IF($E$10=0,0,(YVarExp-(YTotExp+YTotRet-J10))/($E$10*YPER3)) -> 0 | H105: =IF($E$10=0,0,(YTotExp-(YTotExp+YTotRet-J10))/($E$10*YPER3)) -> 0
B106: 1.1 | C106: =E10*YPER4 -> 0 | E106: =IF($E$10=0,0,(YVarExp-(YTotExp+YTotRet-J10))/($E$10*YPER4)) -> 0 | H106: =IF($E$10=0,0,(YTotExp-(YTotExp+YTotRet-J10))/($E$10*YPER4)) -> 0
B107: 1.25 | C107: =E10*YPER5 -> 0 | E107: =IF($E$10=0,0,(YVarExp-(YTotExp+YTotRet-J10))/($E$10*YPER5)) -> 0 | H107: =IF($E$10=0,0,(YTotExp-(YTotExp+YTotRet-J10))/($E$10*YPER5)) -> 0
A109: Developed by Bill Thompson, Associate Professor and Extension Economist, Texas A&M AgriLife Extension Service, 325-653-4576.
A111: Information presented is prepared solely as a general guide and not intended to recognize or predict the costs and returns from any one operation. Brand names are mentioned only as examples and imply no endorsement.

Sheet SesameDryland
A1: Projections for Planning Purposes Only -- Not to be Used without Updating
A2: 2018 Estimated Costs and Returns per Acre
A3: Dryland Sesame
A4: Enter your name for this budget in the cell above.
A5: Enter Your Values in the cells highlighed in MAROON.
E6: Your Acres | R6: Your
C7: Crop Acres | D7: 125 | L7: Your | Q7: Enterprise | R7: Enterprise
E8: Your | H8: Your | I8: Cash | J8: Your | K8: Landlord | L8: Landlord | N8: Your | P8: Your | Q8: Total | R8: Total
A9: REVENUE | D9: Quantity | E9: Quantity | F9: Units | G9: $/Unit | H9: $/Unit | I9: Total | J9: Total | K9: Share | L9: Share | M9: Landlord | N9: Landlord | O9: Tenant | P9: Tenant | Q9: (125 acres) | R9: ="(" & E7 & " acres)" -> ( acres)
B10: Sesame Seed | D10: 500 | F10: Pound | G10: 0.35 | I10: 175 | J10: =E10*H10 -> 0 | K10: 0 | M10: 0 | N10: =J10*L10 -> 0 | O10: 175 | P10: =+J10-N10 -> 0 | Q10: 21875 | R10: =+J10*E$7 -> 0
D11: 0 | G11: 0 | I11: 0 | J11: 0 | K11: 0 | M11: 0 | N11: 0 | O11: 0 | P11: =+J11-N11 -> 0 | Q11: 0 | R11: 0
D12: 0 | G12: 0 | I12: 0 | J12: 0 | K12: 0 | M12: 0 | N12: 0 | O12: 0 | P12: 0 | Q12: 0 | R12: 0
A13: Total Revenue | I13: 175 | J13: =SUM(J10:J12) -> 0 | M13: 0 | N13: =SUM(N10:N12) -> 0 | O13: 175 | P13: =SUM(P10:P12) -> 0 | Q13: 21875 | R13: =SUM(R10:R12) -> 0
Q14: Enterprise | R14: Enterprise
A15: VARIABLE COSTS | D15: Quantity | E15: Quantity | F15: Units | G15: $/Unit | H15: $/Unit | I15: Total | J15: Total | K15: Share | L15: Share | M15: Landlord | N15: Landlord | O15: Tenant | P15: Tenant | Q15: Total | R15: Total
A16: Production Costs
B17: Seed
C18: Seed Sesame | D18: 4 | F18: Pounds | G18: 6 | I18: 24 | J18: =E18*H18 -> 0 | K18: 0 | M18: 0 | N18: =J18*L18 -> 0 | O18: 24 | P18: =+J18-N18 -> 0 | Q18: 3000 | R18: =+J18*E$7 -> 0
B19: Fertilizer
C20: Nitrogen Dry-Urea | D20: 30 | F20: Pounds | G20: 0.37 | I20: 11.1 | J20: 0 | K20: 0 | M20: 0 | N20: 0 | O20: 11.1 | P20: 0 | Q20: 1387.5 | R20: 0
B21: Custom
C22: Soil Test-Dryland | D22: 1 | F22: Each | G22: 0.25 | I22: 0.25 | J22: 0 | K22: 0 | M22: 0 | N22: 0 | O22: 0.25 | P22: 0 | Q22: 31.25 | R22: 0
C23: Custom Harvest Sesame | D23: 1 | F23: Acre | G23: 25 | I23: 25 | J23: 0 | K23: 0 | M23: 0 | N23: 0 | O23: 25 | P23: 0 | Q23: 3125 | R23: 0
C24: Custom Haul Sesame | D24: 14.28571 | F24: Bushels | G24: 0.27 | I24: 3.8571417 | J24: 0 | K24: 0 | M24: 0 | N24: 0 | O24: 3.8571417 | P24: 0 | Q24: 482.1427125 | R24: 0
B25: Miscellaneous
C26: Crop Insurance Sesame | D26: 1 | F26: Acre | G26: 7.37 | I26: 7.37 | J26: 0 | K26: 0 | M26: 0 | N26: 0 | O26: 7.37 | P26: 0 | Q26: 921.25 | R26: 0
C27: Duct Tape | D27: 0.28125 | F27: Roll | G27: 4 | I27: 1.125 | J27: 0 | K27: 0 | M27: 0 | N27: 0 | O27: 1.125 | P27: 0 | Q27: 140.625 | R27: 0
B28: Herbicide
C29: Glyphosate | D29: 11 | F29: Ounce | G29: 0.13 | I29: 1.43 | J29: 0 | K29: 0 | M29: 0 | N29: 0 | O29: 1.43 | P29: 0 | Q29: 178.75 | R29: 0
C30: Medal (replaced Dual Magnum) | D30: 1.3 | F30: Pint | G30: 7 | I30: 9.1 | J30: 0 | K30: 0 | M30: 0 | N30: 0 | O30: 9.1 | P30: 0 | Q30: 1137.5 | R30: 0
D31: 0 | G31: 0 | I31: 0 | J31: 0 | K31: 0 | M31: 0 | N31: 0 | O31: 0 | P31: 0 | Q31: 0 | R31: 0
D32: 0 | G32: 0 | I32: 0 | J32: 0 | K32: 0 | M32: 0 | N32: 0 | O32: 0 | P32: 0 | Q32: 0 | R32: 0
D33: 0 | G33: 0 | I33: 0 | J33: =E33*H33 -> 0 | K33: 0 | M33: 0 | N33: =J33*L33 -> 0 | O33: 0 | P33: =+J33-N33 -> 0 | Q33: 0 | R33: =+J33*E$7 -> 0
B34: Machinery Labor
C35: Tractors/Self-Propelled | D35: 0.55 | F35: Hour | G35: 12 | I35: 6.6 | J35: =E35*H35 -> 0 | K35: 0 | M35: 0 | N35: =J35*L35 -> 0 | O35: 6.6 | P35: =+J35-N35 -> 0 | Q35: 825 | R35: =+J35*E$7 -> 0
C36: Other Labor | D36: 0 | F36: Hour | G36: 12 | I36: 0 | J36: =E36*H36 -> 0 | K36: 0 | M36: 0 | N36: =J36*L36 -> 0 | O36: 0 | P36: =+J36-N36 -> 0 | Q36: 0 | R36: =+J36*E$7 -> 0
B38: Diesel Fuel
C39: Pickup/General Use Equipment | D39: 1 | F39: Acre | G39: 0 | I39: 0 | J39: =E39*H39 -> 0 | K39: 0 | M39: 0 | N39: =J39*L39 -> 0 | O39: 0 | P39: =+J39-N39 -> 0 | Q39: 0 | R39: =+J39*E$7 -> 0
C40: Tractors/Self-Propelled | D40: 4.37 | F40: Gallon | G40: 2.15 | I40: 9.3955 | J40: =E40*H40 -> 0 | K40: 0 | M40: 0 | N40: =J40*L40 -> 0 | O40: 9.3955 | P40: =+J40-N40 -> 0 | Q40: 1174.4375 | R40: =+J40*E$7 -> 0
B42: Gasoline
C43: Pickup/General Use Equipment | D43: 1 | F43: Acre | G43: 1.29408 | I43: 1.29408 | J43: =E43*H43 -> 0 | K43: 0 | M43: 0 | N43: =J43*L43 -> 0 | O43: 1.29408 | P43: =+J43-N43 -> 0 | Q43: 161.76 | R43: =+J43*E$7 -> 0
C44: Tractors/Self-Propelled | D44: 0 | F44: Gallon | G44: 2.4 | I44: 0 | J44: =E44*H44 -> 0 | K44: 0 | M44: 0 | N44: =J44*L44 -> 0 | O44: 0 | P44: =+J44-N44 -> 0 | Q44: 0 | R44: =+J44*E$7 -> 0
B46: Repairs & Maintenance
C47: Pickup/General Use Equipment | D47: 1 | F47: Acre | G47: 0.584 | I47: 0.584 | J47: =E47*H47 -> 0 | K47: 0 | M47: 0 | N47: =J47*L47 -> 0 | O47: 0.584 | P47: =+J47-N47 -> 0 | Q47: 73 | R47: =+J47*E$7 -> 0
C48: Irrigation Equipment | D48: 1 | F48: Acre | G48: 0 | I48: 0 | J48: 0 | K48: 0 | M48: 0 | N48: 0 | O48: 0 | P48: 0 | Q48: 0 | R48: 0
C49: Tractors/Self-Propelled | D49: 1 | F49: Acre | G49: 9.836072292 | I49: 9.836072292 | J49: 0 | K49: 0 | M49: 0 | N49: 0 | O49: 9.836072292 | P49: 0 | Q49: 1229.509037 | R49: 0
C50: Implements | D50: 1 | F50: Acre | G50: 12.16582028 | I50: 12.16582028 | J50: 0 | K50: 0 | M50: 0 | N50: 0 | O50: 12.16582028 | P50: 0 | Q50: 1520.727535 | R50: 0
I51: 0 | J51: 0 | K51: 0 | M51: 0 | N51: 0 | O51: 0 | P51: 0 | Q51: 0 | R51: 0
I52: 0 | J52: 0 | K52: 0 | M52: 0 | N52: 0 | O52: 0 | P52: 0 | Q52: 0 | R52: 0
B53: Interest on Credit Line | G53: 0.06 | I53: 3.055419377 | J53: =+SUM(J17:J52)/2*H53 -> 0 | M53: 0 | N53: =+SUM(N17:N52)/2*L53 -> 0 | O53: 3.055419377 | P53: =+SUM(P17:P52)/2*L53 -> 0 | Q53: 381.9274221 | R53: =+J53*E$7 -> 0
A54: Total Variable Costs | I54: 126.1630337 | J54: =SUM(J18:J53) -> 0 | M54: 0 | N54: =SUM(N18:N53) -> 0 | O54: 126.1630337 | P54: =SUM(P18:P53) -> 0 | Q54: 15770.37921 | R54: =SUM(R18:R53) -> 0
A55: Planned Returns Above Variable Costs: | I55: 48.83696635 | J55: =+J13-J54 -> 0 | M55: 0 | N55: =+N13-N54 -> 0 | O55: 48.83696635 | P55: =+P13-P54 -> 0 | Q55: 6104.620793 | R55: =+R13-R54 -> 0
B56: Breakeven Price to Cover Variable Costs | G56: 0.2523260673 | H56: =IF(E10=0,"n/a",(YVarExp-(YTotExp+YTotRet-J10))/E10) -> n/a | I56: Pound
Q57: Enterprise | R57: Enterprise
A58: FIXED COSTS | D58: Quantity | E58: Quantity | F58: Units | G58: $/Unit | H58: $/Unit | I58: Total | J58: Total | K58: Share | L58: Share | M58: Landlord | N58: Landlord | O58: Tenant | P58: Tenant | Q58: Total | R58: Total
B59: Machinery Depreciation
C60: Pickup/General Use Equipment | D60: 1 | F60: Acre | G60: 1.2384 | I60: 1.2384 | J60: =E60*H60 -> 0 | K60: 0 | M60: 0 | N60: =J60*L60 -> 0 | O60: 1.2384 | P60: =+J60-N60 -> 0 | Q60: 154.8 | R60: =+J60*E$7 -> 0
C61: Tractors/Self-Propelled | D61: 1 | F61: Acre | G61: 11.76505212 | I61: 11.76505212 | J61: 0 | K61: 0 | M61: 0 | N61: =J61*L61 -> 0 | O61: 11.76505212 | P61: 0 | Q61: 1470.631515 | R61: 0
C62: Implements | D62: 1 | F62: Acre | G62: 15.24639486 | I62: 15.24639486 | J62: 0 | K62: 0 | M62: 0 | N62: =J62*L62 -> 0 | O62: 15.24639486 | P62: 0 | Q62: 1905.799357 | R62: 0
B63: Equipment Investment
C64: Pickup/General Use Equipment | D64: 6.864 | F64: Dollars | G64: 0.06 | I64: 0.41184 | J64: =E64*H64 -> 0 | K64: 0 | M64: 0 | N64: =J64*L64 -> 0 | O64: 0.41184 | P64: =+J64-N64 -> 0 | Q64: 51.48 | R64: =+J64*E$7 -> 0
C65: Tractors/Self-Propelled | D65: 90.87322165 | F65: Dollars | G65: 0.06 | I65: 5.452393299 | J65: 0 | K65: 0 | M65: 0 | N65: =J65*L65 -> 0 | O65: 5.452393299 | P65: 0 | Q65: 681.5491624 | R65: 0
C66: Implements | D66: 67.1018996 | F66: Dollars | G66: 0.06 | I66: 4.026113976 | J66: 0 | K66: 0 | M66: 0 | N66: =J66*L66 -> 0 | O66: 4.026113976 | P66: 0 | Q66: 503.264247 | R66: 0
B67: Salaried Labor | D67: 1 | F67: Acre | G67: 0 | I67: 0 | J67: 0 | K67: 0 | M67: 0 | N67: =J67*L67 -> 0 | O67: 0 | P67: =+J67-N67 -> 0 | Q67: 0 | R67: =+J67*E$7 -> 0
B68: Management Fee, Owner/Operator Labor | D68: 1 | F68: Acre | G68: 10 | I68: 10 | J68: 0 | K68: 0 | M68: 0 | N68: 0 | O68: 10 | P68: 0 | Q68: 1250 | R68: 0
B69: Allocated Establishment Cost | D69: 1 | F69: Acre | G69: 0 | I69: 0 | J69: 0 | K69: 0 | M69: 0 | N69: 0 | O69: 0 | P69: 0 | Q69: 0 | R69: 0
B70: Rent-Dryland Crop | D70: 1 | F70: Acre | G70: 35 | I70: 35 | J70: 0 | K70: 0 | M70: 0 | N70: 0 | O70: 35 | P70: 0 | Q70: 4375 | R70: 0
B71: Property Taxes | D71: 1 | F71: Acre | G71: 0 | I71: 0 | J71: 0 | K71: 0 | M71: 0 | N71: 0 | O71: 0 | P71: 0 | Q71: 0 | R71: 0
B72: Whole Farm Insurance | D72: 1 | F72: Acre | G72: 0 | I72: 0 | J72: 0 | K72: 0 | M72: 0 | N72: 0 | O72: 0 | P72: 0 | Q72: 0 | R72: 0
D73: 1 | G73: 0 | I73: 0 | J73: 0 | K73: 0 | M73: 0 | N73: 0 | O73: 0 | P73: 0 | Q73: 0 | R73: 0
D74: 1 | G74: 0 | I74: 0 | J74: =E74*H74 -> 0 | K74: 0 | M74: 0 | N74: 0 | O74: 0 | P74: 0 | Q74: 0 | R74: 0
A75: Total Fixed Costs | I75: 83.14019425 | J75: =+SUM(J60:J74) -> 0 | M75: 0 | N75: =+SUM(N60:N74) -> 0 | O75: 83.14019425 | P75: =+SUM(P60:P74) -> 0 | Q75: 10392.52428 | R75: =+SUM(R60:R74) -> 0
A76: Total Specified Costs | I76: 209.3032279 | J76: =+J54+J75 -> 0 | M76: 0 | N76: =+N54+N75 -> 0 | O76: 209.3032279 | P76: =+P54+P75 -> 0 | Q76: 26162.90349 | R76: =+R54+R75 -> 0
A78: Returns Above Specified Costs | I78: -34.30322791 | J78: =+J13-J76 -> 0 | M78: 0 | N78: =+N13-N76 -> 0 | O78: -34.30322791 | P78: =+P13-P76 -> 0 | Q78: -4287.903488 | R78: =+R13-R76 -> 0
A80: Breakeven Price to Cover Total Costs | G80: 0.4186064558 | H80: =IF(E10=0,"n/a",(YTotExp-(YTotExp+YTotRet-J10))/E10) -> n/a | I80: Pound
D82: Example Breakeven Prices
B83: Example | C83: Example | D83: To Cover | G83: To Cover
B84: Yield | C84: Yield | D84: Variable | G84: Total
B85: Percent | C85: Pound | D85: Costs | G85: Costs
B86: 0.75 | C86: 375 | D86: 0.3364347564 | G86: 0.5581419411
B87: 0.9 | C87: 450 | D87: 0.280362297 | G87: 0.4651182842
B88: 1 | C88: 500 | D88: 0.2523260673 | G88: 0.4186064558
B89: 1.1 | C89: 550 | D89: 0.2293873339 | G89: 0.3805513235
B90: 1.25 | C90: 625 | D90: 0.2018608538 | G90: 0.3348851646
D92: Your Breakeven Prices
B93: Your | C93: Your | E93: To Cover | H93: To Cover
B94: Yield | C94: Yield | E94: Variable | H94: Total
B95: Percent | C95: Pound | E95: Costs | H95: Costs
B96: 0.75 | C96: =E10*YPER1 -> 0 | E96: =IF($E$10=0,0,(YVarExp-(YTotExp+YTotRet-J10))/($E$10*YPER1)) -> 0 | H96: =IF($E$10=0,0,(YTotExp-(YTotExp+YTotRet-J10))/($E$10*YPER1)) -> 0
B97: 0.9 | C97: =E10*YPER2 -> 0 | E97: =IF($E$10=0,0,(YVarExp-(YTotExp+YTotRet-J10))/($E$10*YPER2)) -> 0 | H97: =IF($E$10=0,0,(YTotExp-(YTotExp+YTotRet-J10))/($E$10*YPER2)) -> 0
B98: 1 | C98: =+E10 -> 0 | E98: =IF($E$10=0,0,(YVarExp-(YTotExp+YTotRet-J10))/($E$10*YPER3)) -> 0 | H98: =IF($E$10=0,0,(YTotExp-(YTotExp+YTotRet-J10))/($E$10*YPER3)) -> 0
B99: 1.1 | C99: =E10*YPER4 -> 0 | E99: =IF($E$10=0,0,(YVarExp-(YTotExp+YTotRet-J10))/($E$10*YPER4)) -> 0 | H99: =IF($E$10=0,0,(YTotExp-(YTotExp+YTotRet-J10))/($E$10*YPER4)) -> 0
B100: 1.25 | C100: =E10*YPER5 -> 0 | E100: =IF($E$10=0,0,(YVarExp-(YTotExp+YTotRet-J10))/($E$10*YPER5)) -> 0 | H100: =IF($E$10=0,0,(YTotExp-(YTotExp+YTotRet-J10))/($E$10*YPER5)) -> 0
A102: Developed by Bill Thompson, Associate Professor and Extension Economist, Texas A&M AgriLife Extension Service, 325-653-4576.
A104: Information presented is prepared solely as a general guide and not intended to recognize or predict the costs and returns from any one operation. Brand names are mentioned only as examples and imply no endorsement.

Sheet SunflowersDryland
A1: Projections for Planning Purposes Only -- Not to be Used without Updating
A2: 2018 Estimated Costs and Returns per Acre
A3: Non-Irrigated Sunflowers (Non-Confectionary)
A4: Enter your name for this budget in the cell above.
A5: Enter Your Values in the cells highlighed in MAROON.
E6: Your Acres | R6: Your
C7: Crop Acres | D7: 160 | L7: Your | Q7: Enterprise | R7: Enterprise
E8: Your | H8: Your | I8: Cash | J8: Your | K8: Landlord | L8: Landlord | N8: Your | P8: Your | Q8: Total | R8: Total
A9: REVENUE | D9: Quantity | E9: Quantity | F9: Units | G9: $/Unit | H9: $/Unit | I9: Total | J9: Total | K9: Share | L9: Share | M9: Landlord | N9: Landlord | O9: Tenant | P9: Tenant | Q9: (160 acres) | R9: ="(" & E7 & " acres)" -> ( acres)
B10: Sunflowers | D10: 17 | F10: Cwt | G10: 16.5 | I10: 280.5 | J10: =E10*H10 -> 0 | K10: 0 | M10: 0 | N10: =J10*L10 -> 0 | O10: 280.5 | P10: =+J10-N10 -> 0 | Q10: 44880 | R10: =+J10*E$7 -> 0
D11: 0 | G11: 0 | I11: 0 | J11: 0 | K11: 0 | M11: 0 | N11: 0 | O11: 0 | P11: =+J11-N11 -> 0 | Q11: 0 | R11: 0
D12: 0 | G12: 0 | I12: 0 | J12: 0 | K12: 0 | M12: 0 | N12: 0 | O12: 0 | P12: 0 | Q12: 0 | R12: 0
A13: Total Revenue | I13: 280.5 | J13: =SUM(J10:J12) -> 0 | M13: 0 | N13: =SUM(N10:N12) -> 0 | O13: 280.5 | P13: =SUM(P10:P12) -> 0 | Q13: 44880 | R13: =SUM(R10:R12) -> 0
Q14: Enterprise | R14: Enterprise
A15: VARIABLE COSTS | D15: Quantity | E15: Quantity | F15: Units | G15: $/Unit | H15: $/Unit | I15: Total | J15: Total | K15: Share | L15: Share | M15: Landlord | N15: Landlord | O15: Tenant | P15: Tenant | Q15: Total | R15: Total
A16: Production Costs
B17: Herbicide
C18: Trifluralin | D18: 1.5 | F18: Pint | G18: 2.9375 | I18: 4.40625 | J18: =E18*H18 -> 0 | K18: 0 | M18: 0 | N18: =J18*L18 -> 0 | O18: 4.40625 | P18: =+J18-N18 -> 0 | Q18: 705 | R18: =+J18*E$7 -> 0
B19: Seed
C20: sunflower - High Oleic | D20: 5 | F20: Pounds | G20: 7.6 | I20: 38 | J20: 0 | K20: 0 | M20: 0 | N20: 0 | O20: 38 | P20: 0 | Q20: 6080 | R20: 0
B21: Fertilizer
C22: Nitrogen N32-liq | D22: 96 | F22: Pounds | G22: 0.35 | I22: 33.6 | J22: 0 | K22: 0 | M22: 0 | N22: 0 | O22: 33.6 | P22: 0 | Q22: 5376 | R22: 0
C23: Phosphate | D23: 15 | F23: Pounds | G23: 0.2708333333 | I23: 4.0625 | J23: 0 | K23: 0 | M23: 0 | N23: 0 | O23: 4.0625 | P23: 0 | Q23: 650 | R23: 0
C24: Sulphur | D24: 5 | F24: Pounds | G24: 0.5875 | I24: 2.9375 | J24: 0 | K24: 0 | M24: 0 | N24: 0 | O24: 2.9375 | P24: 0 | Q24: 470 | R24: 0
B25: Custom
C26: Aerial Application | D26: 2 | F26: Acre | G26: 7 | I26: 14 | J26: 0 | K26: 0 | M26: 0 | N26: 0 | O26: 14 | P26: 0 | Q26: 2240 | R26: 0
C27: Custom Haul Sunflowers | D27: 60 | F27: Bushels | G27: 0.27 | I27: 16.2 | J27: 0 | K27: 0 | M27: 0 | N27: 0 | O27: 16.2 | P27: 0 | Q27: 2592 | R27: 0
C28: Custom Harvest Sunflowers | D28: 1 | F28: Acre | G28: 25 | I28: 25 | J28: 0 | K28: 0 | M28: 0 | N28: 0 | O28: 25 | P28: 0 | Q28: 4000 | R28: 0
B29: Miscellaneous
C30: Canola/Sunflower Crop Ins | D30: 1 | F30: Acre | G30: 12.42 | I30: 12.42 | J30: 0 | K30: 0 | M30: 0 | N30: 0 | O30: 12.42 | P30: 0 | Q30: 1987.2 | R30: 0
B31: Insecticide
C32: Prevathon | D32: 28 | F32: Ounce | G32: 1.291015625 | I32: 36.1484375 | J32: 0 | K32: 0 | M32: 0 | N32: 0 | O32: 36.1484375 | P32: 0 | Q32: 5783.75 | R32: 0
D33: 0 | G33: 0 | I33: 0 | J33: 0 | K33: 0 | M33: 0 | N33: 0 | O33: 0 | P33: 0 | Q33: 0 | R33: 0
D34: 0 | G34: 0 | I34: 0 | J34: 0 | K34: 0 | M34: 0 | N34: 0 | O34: 0 | P34: 0 | Q34: 0 | R34: 0
D35: 0 | G35: 0 | I35: 0 | J35: =E35*H35 -> 0 | K35: 0 | M35: 0 | N35: =J35*L35 -> 0 | O35: 0 | P35: =+J35-N35 -> 0 | Q35: 0 | R35: =+J35*E$7 -> 0
B36: Machinery Labor
C37: Tractors/Self-Propelled | D37: 0 | F37: Hour | G37: 12 | I37: 0 | J37: =E37*H37 -> 0 | K37: 0 | M37: 0 | N37: =J37*L37 -> 0 | O37: 0 | P37: =+J37-N37 -> 0 | Q37: 0 | R37: =+J37*E$7 -> 0
C38: Other Labor | D38: 0 | F38: Hour | G38: 12 | I38: 0 | J38: =E38*H38 -> 0 | K38: 0 | M38: 0 | N38: =J38*L38 -> 0 | O38: 0 | P38: =+J38-N38 -> 0 | Q38: 0 | R38: =+J38*E$7 -> 0
B40: Diesel Fuel
C41: Pickup/General Use Equipment | D41: 1 | F41: Acre | G41: 0 | I41: 0 | J41: =E41*H41 -> 0 | K41: 0 | M41: 0 | N41: =J41*L41 -> 0 | O41: 0 | P41: =+J41-N41 -> 0 | Q41: 0 | R41: =+J41*E$7 -> 0
C42: Tractors/Self-Propelled | D42: 5.52 | F42: Gallon | G42: 2.15 | I42: 11.868 | J42: =E42*H42 -> 0 | K42: 0 | M42: 0 | N42: =J42*L42 -> 0 | O42: 11.868 | P42: =+J42-N42 -> 0 | Q42: 1898.88 | R42: =+J42*E$7 -> 0
B44: Gasoline
C45: Pickup/General Use Equipment | D45: 1 | F45: Acre | G45: 0.9 | I45: 0.9 | J45: =E45*H45 -> 0 | K45: 0 | M45: 0 | N45: =J45*L45 -> 0 | O45: 0.9 | P45: =+J45-N45 -> 0 | Q45: 144 | R45: =+J45*E$7 -> 0
C46: Tractors/Self-Propelled | D46: 0 | F46: Gallon | G46: 2.4 | I46: 0 | J46: =E46*H46 -> 0 | K46: 0 | M46: 0 | N46: =J46*L46 -> 0 | O46: 0 | P46: =+J46-N46 -> 0 | Q46: 0 | R46: =+J46*E$7 -> 0
B48: Repairs & Maintenance
C49: Pickup/General Use Equipment | D49: 1 | F49: Acre | G49: 0.2821875 | I49: 0.2821875 | J49: =E49*H49 -> 0 | K49: 0 | M49: 0 | N49: =J49*L49 -> 0 | O49: 0.2821875 | P49: =+J49-N49 -> 0 | Q49: 45.15 | R49: =+J49*E$7 -> 0
C50: Irrigation Equipment | D50: 1 | F50: Acre | G50: 0 | I50: 0 | J50: 0 | K50: 0 | M50: 0 | N50: 0 | O50: 0 | P50: 0 | Q50: 0 | R50: 0
C51: Tractors/Self-Propelled | D51: 1 | F51: Acre | G51: 12.73495537 | I51: 12.73495537 | J51: 0 | K51: 0 | M51: 0 | N51: 0 | O51: 12.73495537 | P51: 0 | Q51: 2037.592859 | R51: 0
C52: Implements | D52: 1 | F52: Acre | G52: 10.12086904 | I52: 10.12086904 | J52: 0 | K52: 0 | M52: 0 | N52: 0 | O52: 10.12086904 | P52: 0 | Q52: 1619.339047 | R52: 0
I53: 0 | J53: 0 | K53: 0 | M53: 0 | N53: 0 | O53: 0 | P53: 0 | Q53: 0 | R53: 0
I54: 0 | J54: 0 | K54: 0 | M54: 0 | N54: 0 | O54: 0 | P54: 0 | Q54: 0 | R54: 0
B55: Interest on Credit Line | G55: 0.06 | I55: 3.738674066 | J55: =+SUM(J17:J54)/2*H55 -> 0 | M55: 0 | N55: =+SUM(N17:N54)/2*L55 -> 0 | O55: 3.738674066 | P55: =+SUM(P17:P54)/2*L55 -> 0 | Q55: 598.1878506 | R55: =+J55*E$7 -> 0
A56: Total Variable Costs | I56: 226.4193735 | J56: =SUM(J18:J55) -> 0 | M56: 0 | N56: =SUM(N18:N55) -> 0 | O56: 226.4193735 | P56: =SUM(P18:P55) -> 0 | Q56: 36227.09976 | R56: =SUM(R18:R55) -> 0
A57: Planned Returns Above Variable Costs: | I57: 54.08062652 | J57: =+J13-J56 -> 0 | M57: 0 | N57: =+N13-N56 -> 0 | O57: 54.08062652 | P57: =+P13-P56 -> 0 | Q57: 8652.900244 | R57: =+R13-R56 -> 0
B58: Breakeven Price to Cover Variable Costs | G58: 13.31878668 | H58: =IF(E10=0,"n/a",(YVarExp-(YTotExp+YTotRet-J10))/E10) -> n/a | I58: Cwt
Q59: Enterprise | R59: Enterprise
A60: FIXED COSTS | D60: Quantity | E60: Quantity | F60: Units | G60: $/Unit | H60: $/Unit | I60: Total | J60: Total | K60: Share | L60: Share | M60: Landlord | N60: Landlord | O60: Tenant | P60: Tenant | Q60: Total | R60: Total
B61: Machinery Depreciation
C62: Pickup/General Use Equipment | D62: 1 | F62: Acre | G62: 0.590625 | I62: 0.590625 | J62: =E62*H62 -> 0 | K62: 0 | M62: 0 | N62: =J62*L62 -> 0 | O62: 0.590625 | P62: =+J62-N62 -> 0 | Q62: 94.5 | R62: =+J62*E$7 -> 0
C63: Tractors/Self-Propelled | D63: 1 | F63: Acre | G63: 13.99917794 | I63: 13.99917794 | J63: 0 | K63: 0 | M63: 0 | N63: =J63*L63 -> 0 | O63: 13.99917794 | P63: 0 | Q63: 2239.86847 | R63: 0
C64: Implements | D64: 1 | F64: Acre | G64: 13.58395803 | I64: 13.58395803 | J64: 0 | K64: 0 | M64: 0 | N64: =J64*L64 -> 0 | O64: 13.58395803 | P64: 0 | Q64: 2173.433286 | R64: 0
B65: Equipment Investment
C66: Pickup/General Use Equipment | D66: 3.609375 | F66: Dollars | G66: 0.06 | I66: 0.2165625 | J66: =E66*H66 -> 0 | K66: 0 | M66: 0 | N66: =J66*L66 -> 0 | O66: 0.2165625 | P66: =+J66-N66 -> 0 | Q66: 34.65 | R66: =+J66*E$7 -> 0
C67: Tractors/Self-Propelled | D67: 108.6679472 | F67: Dollars | G67: 0.06 | I67: 6.520076833 | J67: 0 | K67: 0 | M67: 0 | N67: =J67*L67 -> 0 | O67: 6.520076833 | P67: 0 | Q67: 1043.212293 | R67: 0
C68: Implements | D68: 58.10915381 | F68: Dollars | G68: 0.06 | I68: 3.486549229 | J68: 0 | K68: 0 | M68: 0 | N68: =J68*L68 -> 0 | O68: 3.486549229 | P68: 0 | Q68: 557.8478766 | R68: 0
B69: Salaried Labor | D69: 1 | F69: Acre | G69: 0 | I69: 0 | J69: 0 | K69: 0 | M69: 0 | N69: =J69*L69 -> 0 | O69: 0 | P69: =+J69-N69 -> 0 | Q69: 0 | R69: =+J69*E$7 -> 0
B70: Management Fee, Owner/Operator Labor | D70: 1 | F70: Acre | G70: 10 | I70: 10 | J70: 0 | K70: 0 | M70: 0 | N70: 0 | O70: 10 | P70: 0 | Q70: 1600 | R70: 0
B71: Allocated Establishment Cost | D71: 1 | F71: Acre | G71: 0 | I71: 0 | J71: 0 | K71: 0 | M71: 0 | N71: 0 | O71: 0 | P71: 0 | Q71: 0 | R71: 0
B72: Rent-Dryland Crop | D72: 1 | F72: Acre | G72: 35 | I72: 35 | J72: 0 | K72: 0 | M72: 0 | N72: 0 | O72: 35 | P72: 0 | Q72: 5600 | R72: 0
B73: Property Taxes | D73: 1 | F73: Acre | G73: 0 | I73: 0 | J73: 0 | K73: 0 | M73: 0 | N73: 0 | O73: 0 | P73: 0 | Q73: 0 | R73: 0
B74: Whole Farm Insurance | D74: 1 | F74: Acre | G74: 0 | I74: 0 | J74: 0 | K74: 0 | M74: 0 | N74: 0 | O74: 0 | P74: 0 | Q74: 0 | R74: 0
D75: 1 | G75: 0 | I75: 0 | J75: 0 | K75: 0 | M75: 0 | N75: 0 | O75: 0 | P75: 0 | Q75: 0 | R75: 0
D76: 1 | G76: 0 | I76: 0 | J76: =E76*H76 -> 0 | K76: 0 | M76: 0 | N76: 0 | O76: 0 | P76: 0 | Q76: 0 | R76: 0
A77: Total Fixed Costs | I77: 83.39694953 | J77: =+SUM(J62:J76) -> 0 | M77: 0 | N77: =+SUM(N62:N76) -> 0 | O77: 83.39694953 | P77: =+SUM(P62:P76) -> 0 | Q77: 13343.51193 | R77: =+SUM(R62:R76) -> 0
A78: Total Specified Costs | I78: 309.816323 | J78: =+J56+J77 -> 0 | M78: 0 | N78: =+N56+N77 -> 0 | O78: 309.816323 | P78: =+P56+P77 -> 0 | Q78: 49570.61168 | R78: =+R56+R77 -> 0
A80: Returns Above Specified Costs | I80: -29.31632301 | J80: =+J13-J78 -> 0 | M80: 0 | N80: =+N13-N78 -> 0 | O80: -29.31632301 | P80: =+P13-P78 -> 0 | Q80: -4690.611682 | R80: =+R13-R78 -> 0
A82: Breakeven Price to Cover Total Costs | G82: 18.22448959 | H82: =IF(E10=0,"n/a",(YTotExp-(YTotExp+YTotRet-J10))/E10) -> n/a | I82: Cwt
D84: Example Breakeven Prices
B85: Example | C85: Example | D85: To Cover | G85: To Cover
B86: Yield | C86: Yield | D86: Variable | G86: Total
B87: Percent | C87: Cwt | D87: Costs | G87: Costs
B88: 0.75 | C88: 12.75 | D88: 17.75838223 | G88: 24.29931945
B89: 0.9 | C89: 15.3 | D89: 14.79865186 | G89: 20.24943288
B90: 1 | C90: 17 | D90: 13.31878668 | G90: 18.22448959
B91: 1.1 | C91: 18.7 | D91: 12.10798789 | G91: 16.56771781
B92: 1.25 | C92: 21.25 | D92: 10.65502934 | G92: 14.57959167
D94: Your Breakeven Prices
B95: Your | C95: Your | E95: To Cover | H95: To Cover
B96: Yield | C96: Yield | E96: Variable | H96: Total
B97: Percent | C97: Cwt | E97: Costs | H97: Costs
B98: 0.75 | C98: =E10*YPER1 -> 0 | E98: =IF($E$10=0,0,(YVarExp-(YTotExp+YTotRet-J10))/($E$10*YPER1)) -> 0 | H98: =IF($E$10=0,0,(YTotExp-(YTotExp+YTotRet-J10))/($E$10*YPER1)) -> 0
B99: 0.9 | C99: =E10*YPER2 -> 0 | E99: =IF($E$10=0,0,(YVarExp-(YTotExp+YTotRet-J10))/($E$10*YPER2)) -> 0 | H99: =IF($E$10=0,0,(YTotExp-(YTotExp+YTotRet-J10))/($E$10*YPER2)) -> 0
B100: 1 | C100: =+E10 -> 0 | E100: =IF($E$10=0,0,(YVarExp-(YTotExp+YTotRet-J10))/($E$10*YPER3)) -> 0 | H100: =IF($E$10=0,0,(YTotExp-(YTotExp+YTotRet-J10))/($E$10*YPER3)) -> 0
B101: 1.1 | C101: =E10*YPER4 -> 0 | E101: =IF($E$10=0,0,(YVarExp-(YTotExp+YTotRet-J10))/($E$10*YPER4)) -> 0 | H101: =IF($E$10=0,0,(YTotExp-(YTotExp+YTotRet-J10))/($E$10*YPER4)) -> 0
B102: 1.25 | C102: =E10*YPER5 -> 0 | E102: =IF($E$10=0,0,(YVarExp-(YTotExp+YTotRet-J10))/($E$10*YPER5)) -> 0 | H102: =IF($E$10=0,0,(YTotExp-(YTotExp+YTotRet-J10))/($E$10*YPER5)) -> 0
A104: Developed by Bill Thompson, Associate Professor and Extension Economist, Texas A&M AgriLife Extension Service, 325-653-4576.
A106: Information presented is prepared solely as a general guide and not intended to recognize or predict the costs and returns from any one operation. Brand names are mentioned only as examples and imply no endorsement.

Sheet SorghumDryland
A1: Projections for Planning Purposes Only -- Not to be Used without Updating
A2: 2018 Estimated Costs and Returns per Acre
A3: No-Till Dryland Sorghum, Follow Cotton
A4: Enter your name for this budget in the cell above.
A5: Enter Your Values in the cells highlighed in MAROON.
E6: Your Acres | R6: Your
C7: Crop Acres | D7: 400 | L7: Your | Q7: Enterprise | R7: Enterprise
E8: Your | H8: Your | I8: Cash | J8: Your | K8: Landlord | L8: Landlord | N8: Your | P8: Your | Q8: Total | R8: Total
A9: REVENUE | D9: Quantity | E9: Quantity | F9: Units | G9: $/Unit | H9: $/Unit | I9: Total | J9: Total | K9: Share | L9: Share | M9: Landlord | N9: Landlord | O9: Tenant | P9: Tenant | Q9: (400 acres) | R9: ="(" & E7 & " acres)" -> ( acres)
B10: Sorghum | D10: 22 | F10: CWT | G10: 6.65 | I10: 146.3 | J10: =E10*H10 -> 0 | K10: 0 | M10: 0 | N10: =J10*L10 -> 0 | O10: 146.3 | P10: =+J10-N10 -> 0 | Q10: 58520 | R10: =+J10*E$7 -> 0
D11: 0 | G11: 0 | I11: 0 | J11: 0 | K11: 0 | M11: 0 | N11: 0 | O11: 0 | P11: =+J11-N11 -> 0 | Q11: 0 | R11: 0
D12: 0 | G12: 0 | I12: 0 | J12: 0 | K12: 0 | M12: 0 | N12: 0 | O12: 0 | P12: 0 | Q12: 0 | R12: 0
A13: Total Revenue | I13: 146.3 | J13: =SUM(J10:J12) -> 0 | M13: 0 | N13: =SUM(N10:N12) -> 0 | O13: 146.3 | P13: =SUM(P10:P12) -> 0 | Q13: 58520 | R13: =SUM(R10:R12) -> 0
Q14: Enterprise | R14: Enterprise
A15: VARIABLE COSTS | D15: Quantity | E15: Quantity | F15: Units | G15: $/Unit | H15: $/Unit | I15: Total | J15: Total | K15: Share | L15: Share | M15: Landlord | N15: Landlord | O15: Tenant | P15: Tenant | Q15: Total | R15: Total
A16: Production Costs
B17: Herbicide
C18: Husky | D18: 14.5 | F18: Ounce | G18: 0.8828125 | I18: 12.80078125 | J18: =E18*H18 -> 0 | K18: 0 | M18: 0 | N18: =J18*L18 -> 0 | O18: 12.80078125 | P18: =+J18-N18 -> 0 | Q18: 5120.3125 | R18: =+J18*E$7 -> 0
C19: Glyphosate | D19: 32 | F19: Ounce | G19: 0.13 | I19: 4.16 | J19: 0 | K19: 0 | M19: 0 | N19: 0 | O19: 4.16 | P19: 0 | Q19: 1664 | R19: 0
C20: Atrazine | D20: 1 | F20: Quart | G20: 3.375 | I20: 3.375 | J20: 0 | K20: 0 | M20: 0 | N20: 0 | O20: 3.375 | P20: 0 | Q20: 1350 | R20: 0
B21: Seed
C22: Seed Sorghum | D22: 5 | F22: Pounds | G22: 6 | I22: 30 | J22: 0 | K22: 0 | M22: 0 | N22: 0 | O22: 30 | P22: 0 | Q22: 12000 | R22: 0
B23: Fertilizer
C24: Nitrogen Dry-Urea | D24: 30 | F24: Pounds | G24: 0.37 | I24: 11.1 | J24: 0 | K24: 0 | M24: 0 | N24: 0 | O24: 11.1 | P24: 0 | Q24: 4440 | R24: 0
C25: Phosphate | D25: 20 | F25: Pounds | G25: 0.2708333333 | I25: 5.416666667 | J25: 0 | K25: 0 | M25: 0 | N25: 0 | O25: 5.416666667 | P25: 0 | Q25: 2166.666667 | R25: 0
B26: Custom
C27: Soil Test-Dryland | D27: 1 | F27: Each | G27: 0.25 | I27: 0.25 | J27: 0 | K27: 0 | M27: 0 | N27: 0 | O27: 0.25 | P27: 0 | Q27: 100 | R27: 0
C28: Custom Harvest Sorghum | D28: 1 | F28: Acre | G28: 25 | I28: 25 | J28: 0 | K28: 0 | M28: 0 | N28: 0 | O28: 25 | P28: 0 | Q28: 10000 | R28: 0
C29: Custom Haul Sorghum | D29: 39.3 | F29: Bushels | G29: 0.27 | I29: 10.611 | J29: 0 | K29: 0 | M29: 0 | N29: 0 | O29: 10.611 | P29: 0 | Q29: 4244.4 | R29: 0
B30: Miscellaneous
C31: GS RP 70%, YE, ENT | D31: 1 | F31: Acre | G31: 4.85 | I31: 4.85 | J31: 0 | K31: 0 | M31: 0 | N31: 0 | O31: 4.85 | P31: 0 | Q31: 1940 | R31: 0
C32: SCO-Grain Sorghum | D32: 0 | F32: 0 | G32: 0 | I32: 0 | J32: 0 | K32: 0 | M32: 0 | N32: 0 | O32: 0 | P32: 0 | Q32: 0 | R32: 0
B33: Insecticide
C34: Sivanto | D34: 5.5 | F34: Ounce | G34: 2.54 | I34: 13.97 | J34: 0 | K34: 0 | M34: 0 | N34: 0 | O34: 13.97 | P34: 0 | Q34: 5588 | R34: 0
D35: 0 | G35: 0 | I35: 0 | J35: 0 | K35: 0 | M35: 0 | N35: 0 | O35: 0 | P35: 0 | Q35: 0 | R35: 0
D36: 0 | G36: 0 | I36: 0 | J36: 0 | K36: 0 | M36: 0 | N36: 0 | O36: 0 | P36: 0 | Q36: 0 | R36: 0
D37: 0 | G37: 0 | I37: 0 | J37: =E37*H37 -> 0 | K37: 0 | M37: 0 | N37: =J37*L37 -> 0 | O37: 0 | P37: =+J37-N37 -> 0 | Q37: 0 | R37: =+J37*E$7 -> 0
B38: Machinery Labor
C39: Tractors/Self-Propelled | D39: 0.5 | F39: Hour | G39: 12 | I39: 6 | J39: =E39*H39 -> 0 | K39: 0 | M39: 0 | N39: =J39*L39 -> 0 | O39: 6 | P39: =+J39-N39 -> 0 | Q39: 2400 | R39: =+J39*E$7 -> 0
C40: Other Labor | D40: 0 | F40: Hour | G40: 12 | I40: 0 | J40: =E40*H40 -> 0 | K40: 0 | M40: 0 | N40: =J40*L40 -> 0 | O40: 0 | P40: =+J40-N40 -> 0 | Q40: 0 | R40: =+J40*E$7 -> 0
B42: Diesel Fuel
C43: Pickup/General Use Equipment | D43: 1 | F43: Acre | G43: 0 | I43: 0 | J43: =E43*H43 -> 0 | K43: 0 | M43: 0 | N43: =J43*L43 -> 0 | O43: 0 | P43: =+J43-N43 -> 0 | Q43: 0 | R43: =+J43*E$7 -> 0
C44: Tractors/Self-Propelled | D44: 3.03 | F44: Gallon | G44: 2.15 | I44: 6.5145 | J44: =E44*H44 -> 0 | K44: 0 | M44: 0 | N44: =J44*L44 -> 0 | O44: 6.5145 | P44: =+J44-N44 -> 0 | Q44: 2605.8 | R44: =+J44*E$7 -> 0
B46: Gasoline
C47: Pickup/General Use Equipment | D47: 1 | F47: Acre | G47: 1.8198 | I47: 1.8198 | J47: =E47*H47 -> 0 | K47: 0 | M47: 0 | N47: =J47*L47 -> 0 | O47: 1.8198 | P47: =+J47-N47 -> 0 | Q47: 727.92 | R47: =+J47*E$7 -> 0
C48: Tractors/Self-Propelled | D48: 0 | F48: Gallon | G48: 2.4 | I48: 0 | J48: =E48*H48 -> 0 | K48: 0 | M48: 0 | N48: =J48*L48 -> 0 | O48: 0 | P48: =+J48-N48 -> 0 | Q48: 0 | R48: =+J48*E$7 -> 0
B50: Repairs & Maintenance
C51: Pickup/General Use Equipment | D51: 1 | F51: Acre | G51: 0.82125 | I51: 0.82125 | J51: =E51*H51 -> 0 | K51: 0 | M51: 0 | N51: =J51*L51 -> 0 | O51: 0.82125 | P51: =+J51-N51 -> 0 | Q51: 328.5 | R51: =+J51*E$7 -> 0
C52: Irrigation Equipment | D52: 1 | F52: Acre | G52: 0 | I52: 0 | J52: 0 | K52: 0 | M52: 0 | N52: 0 | O52: 0 | P52: 0 | Q52: 0 | R52: 0
C53: Tractors/Self-Propelled | D53: 1 | F53: Acre | G53: 6.208009234 | I53: 6.208009234 | J53: 0 | K53: 0 | M53: 0 | N53: 0 | O53: 6.208009234 | P53: 0 | Q53: 2483.203693 | R53: 0
C54: Implements | D54: 1 | F54: Acre | G54: 6.183000022 | I54: 6.183000022 | J54: 0 | K54: 0 | M54: 0 | N54: 0 | O54: 6.183000022 | P54: 0 | Q54: 2473.200009 | R54: 0
I55: 0 | J55: 0 | K55: 0 | M55: 0 | N55: 0 | O55: 0 | P55: 0 | Q55: 0 | R55: 0
I56: 0 | J56: 0 | K56: 0 | M56: 0 | N56: 0 | O56: 0 | P56: 0 | Q56: 0 | R56: 0
B57: Interest on Credit Line | G57: 0.06 | I57: 3.22294826 | J57: =+SUM(J17:J56)/2*H57 -> 0 | M57: 0 | N57: =+SUM(N17:N56)/2*L57 -> 0 | O57: 3.22294826 | P57: =+SUM(P17:P56)/2*L57 -> 0 | Q57: 1289.179304 | R57: =+J57*E$7 -> 0
A58: Total Variable Costs | I58: 152.3029554 | J58: =SUM(J18:J57) -> 0 | M58: 0 | N58: =SUM(N18:N57) -> 0 | O58: 152.3029554 | P58: =SUM(P18:P57) -> 0 | Q58: 60921.18217 | R58: =SUM(R18:R57) -> 0
A59: Planned Returns Above Variable Costs: | I59: -6.002955432 | J59: =+J13-J58 -> 0 | M59: 0 | N59: =+N13-N58 -> 0 | O59: -6.002955432 | P59: =+P13-P58 -> 0 | Q59: -2401.182173 | R59: =+R13-R58 -> 0
B60: Breakeven Price to Cover Variable Costs | G60: 6.922861611 | H60: =IF(E10=0,"n/a",(YVarExp-(YTotExp+YTotRet-J10))/E10) -> n/a | I60: CWT
Q61: Enterprise | R61: Enterprise
A62: FIXED COSTS | D62: Quantity | E62: Quantity | F62: Units | G62: $/Unit | H62: $/Unit | I62: Total | J62: Total | K62: Share | L62: Share | M62: Landlord | N62: Landlord | O62: Tenant | P62: Tenant | Q62: Total | R62: Total
B63: Machinery Depreciation
C64: Pickup/General Use Equipment | D64: 1 | F64: Acre | G64: 1.7415 | I64: 1.7415 | J64: =E64*H64 -> 0 | K64: 0 | M64: 0 | N64: =J64*L64 -> 0 | O64: 1.7415 | P64: =+J64-N64 -> 0 | Q64: 696.6 | R64: =+J64*E$7 -> 0
C65: Tractors/Self-Propelled | D65: 1 | F65: Acre | G65: 7.953070389 | I65: 7.953070389 | J65: 0 | K65: 0 | M65: 0 | N65: =J65*L65 -> 0 | O65: 7.953070389 | P65: 0 | Q65: 3181.228155 | R65: 0
C66: Implements | D66: 1 | F66: Acre | G66: 8.547757929 | I66: 8.547757929 | J66: 0 | K66: 0 | M66: 0 | N66: =J66*L66 -> 0 | O66: 8.547757929 | P66: 0 | Q66: 3419.103172 | R66: 0
B67: Equipment Investment
C68: Pickup/General Use Equipment | D68: 9.6525 | F68: Dollars | G68: 0.06 | I68: 0.57915 | J68: =E68*H68 -> 0 | K68: 0 | M68: 0 | N68: =J68*L68 -> 0 | O68: 0.57915 | P68: =+J68-N68 -> 0 | Q68: 231.66 | R68: =+J68*E$7 -> 0
C69: Tractors/Self-Propelled | D69: 61.17665429 | F69: Dollars | G69: 0.06 | I69: 3.670599257 | J69: 0 | K69: 0 | M69: 0 | N69: =J69*L69 -> 0 | O69: 3.670599257 | P69: 0 | Q69: 1468.239703 | R69: 0
C70: Implements | D70: 36.56540892 | F70: Dollars | G70: 0.06 | I70: 2.193924535 | J70: 0 | K70: 0 | M70: 0 | N70: =J70*L70 -> 0 | O70: 2.193924535 | P70: 0 | Q70: 877.569814 | R70: 0
B71: Salaried Labor | D71: 1 | F71: Acre | G71: 0 | I71: 0 | J71: 0 | K71: 0 | M71: 0 | N71: =J71*L71 -> 0 | O71: 0 | P71: =+J71-N71 -> 0 | Q71: 0 | R71: =+J71*E$7 -> 0
B72: Management Fee, Owner/Operator Labor | D72: 1 | F72: Acre | G72: 10 | I72: 10 | J72: 0 | K72: 0 | M72: 0 | N72: 0 | O72: 10 | P72: 0 | Q72: 4000 | R72: 0
B73: Allocated Establishment Cost | D73: 1 | F73: Acre | G73: 0 | I73: 0 | J73: 0 | K73: 0 | M73: 0 | N73: 0 | O73: 0 | P73: 0 | Q73: 0 | R73: 0
B74: Rent-Dryland Crop | D74: 1 | F74: Acre | G74: 35 | I74: 35 | J74: 0 | K74: 0 | M74: 0 | N74: 0 | O74: 35 | P74: 0 | Q74: 14000 | R74: 0
B75: Property Taxes | D75: 1 | F75: Acre | G75: 0 | I75: 0 | J75: 0 | K75: 0 | M75: 0 | N75: 0 | O75: 0 | P75: 0 | Q75: 0 | R75: 0
B76: Whole Farm Insurance | D76: 1 | F76: Acre | G76: 0 | I76: 0 | J76: 0 | K76: 0 | M76: 0 | N76: 0 | O76: 0 | P76: 0 | Q76: 0 | R76: 0
D77: 1 | G77: 0 | I77: 0 | J77: 0 | K77: 0 | M77: 0 | N77: 0 | O77: 0 | P77: 0 | Q77: 0 | R77: 0
D78: 1 | G78: 0 | I78: 0 | J78: =E78*H78 -> 0 | K78: 0 | M78: 0 | N78: 0 | O78: 0 | P78: 0 | Q78: 0 | R78: 0
A79: Total Fixed Costs | I79: 69.68600211 | J79: =+SUM(J64:J78) -> 0 | M79: 0 | N79: =+SUM(N64:N78) -> 0 | O79: 69.68600211 | P79: =+SUM(P64:P78) -> 0 | Q79: 27874.40084 | R79: =+SUM(R64:R78) -> 0
A80: Total Specified Costs | I80: 221.9889575 | J80: =+J58+J79 -> 0 | M80: 0 | N80: =+N58+N79 -> 0 | O80: 221.9889575 | P80: =+P58+P79 -> 0 | Q80: 88795.58302 | R80: =+R58+R79 -> 0
A82: Returns Above Specified Costs | I82: -75.68895754 | J82: =+J13-J80 -> 0 | M82: 0 | N82: =+N13-N80 -> 0 | O82: -75.68895754 | P82: =+P13-P80 -> 0 | Q82: -30275.58302 | R82: =+R13-R80 -> 0
A84: Breakeven Price to Cover Total Costs | G84: 10.09040716 | H84: =IF(E10=0,"n/a",(YTotExp-(YTotExp+YTotRet-J10))/E10) -> n/a | I84: CWT
D86: Example Breakeven Prices
B87: Example | C87: Example | D87: To Cover | G87: To Cover
B88: Yield | C88: Yield | D88: Variable | G88: Total
B89: Percent | C89: CWT | D89: Costs | G89: Costs
B90: 0.75 | C90: 16.5 | D90: 9.230482147 | G90: 13.45387621
B91: 0.9 | C91: 19.8 | D91: 7.692068456 | G91: 11.21156351
B92: 1 | C92: 22 | D92: 6.922861611 | G92: 10.09040716
B93: 1.1 | C93: 24.2 | D93: 6.293510555 | G93: 9.173097419
B94: 1.25 | C94: 27.5 | D94: 5.538289288 | G94: 8.072325729
D96: Your Breakeven Prices
B97: Your | C97: Your | E97: To Cover | H97: To Cover
B98: Yield | C98: Yield | E98: Variable | H98: Total
B99: Percent | C99: CWT | E99: Costs | H99: Costs
B100: 0.75 | C100: =E10*YPER1 -> 0 | E100: =IF($E$10=0,0,(YVarExp-(YTotExp+YTotRet-J10))/($E$10*YPER1)) -> 0 | H100: =IF($E$10=0,0,(YTotExp-(YTotExp+YTotRet-J10))/($E$10*YPER1)) -> 0
B101: 0.9 | C101: =E10*YPER2 -> 0 | E101: =IF($E$10=0,0,(YVarExp-(YTotExp+YTotRet-J10))/($E$10*YPER2)) -> 0 | H101: =IF($E$10=0,0,(YTotExp-(YTotExp+YTotRet-J10))/($E$10*YPER2)) -> 0
B102: 1 | C102: =+E10 -> 0 | E102: =IF($E$10=0,0,(YVarExp-(YTotExp+YTotRet-J10))/($E$10*YPER3)) -> 0 | H102: =IF($E$10=0,0,(YTotExp-(YTotExp+YTotRet-J10))/($E$10*YPER3)) -> 0
B103: 1.1 | C103: =E10*YPER4 -> 0 | E103: =IF($E$10=0,0,(YVarExp-(YTotExp+YTotRet-J10))/($E$10*YPER4)) -> 0 | H103: =IF($E$10=0,0,(YTotExp-(YTotExp+YTotRet-J10))/($E$10*YPER4)) -> 0
B104: 1.25 | C104: =E10*YPER5 -> 0 | E104: =IF($E$10=0,0,(YVarExp-(YTotExp+YTotRet-J10))/($E$10*YPER5)) -> 0 | H104: =IF($E$10=0,0,(YTotExp-(YTotExp+YTotRet-J10))/($E$10*YPER5)) -> 0
A106: Developed by Bill Thompson, Associate Professor and Extension Economist, Texas A&M AgriLife Extension Service, 325-653-4576.
A108: Information presented is prepared solely as a general guide and not intended to recognize or predict the costs and returns from any one operation. Brand names are mentioned only as examples and imply no endorsement.

Sheet CottonDripXF
A1: Projections for Planning Purposes Only -- Not to be Used without Updating
A2: 2018 Estimated Costs and Returns per Acre
A3: Drip Irrigated Cotton, Extend Flex (Dicamba)
A4: Enter your name for this budget in the cell above.
A5: Enter Your Values in the cells highlighed in MAROON.
E6: Your Acres | R6: Your
C7: Crop Acres | D7: 400 | L7: Your | Q7: Enterprise | R7: Enterprise
E8: Your | H8: Your | I8: Cash | J8: Your | K8: Landlord | L8: Landlord | N8: Your | P8: Your | Q8: Total | R8: Total
A9: REVENUE | D9: Quantity | E9: Quantity | F9: Units | G9: $/Unit | H9: $/Unit | I9: Total | J9: Total | K9: Share | L9: Share | M9: Landlord | N9: Landlord | O9: Tenant | P9: Tenant | Q9: (400 acres) | R9: ="(" & E7 & " acres)" -> ( acres)
B10: Cotton Lint | D10: 1326 | F10: Pound | G10: 0.63 | I10: 835.38 | J10: =E10*H10 -> 0 | K10: 0 | M10: 0 | N10: =J10*L10 -> 0 | O10: 835.38 | P10: =+J10-N10 -> 0 | Q10: 334152 | R10: =+J10*E$7 -> 0
B11: Cotton Seed | D11: 0.96 | F11: Ton | G11: 205 | I11: 196.8 | J11: 0 | K11: 0 | M11: 0 | N11: 0 | O11: 196.8 | P11: =+J11-N11 -> 0 | Q11: 78720 | R11: 0
D12: 0 | G12: 0 | I12: 0 | J12: 0 | K12: 0 | M12: 0 | N12: 0 | O12: 0 | P12: 0 | Q12: 0 | R12: 0
D13: 0 | G13: 0 | I13: 0 | J13: 0 | K13: 0 | M13: 0 | N13: 0 | O13: 0 | P13: 0 | Q13: 0 | R13: 0
A14: Total Revenue | I14: 1032.18 | J14: =SUM(J10:J13) -> 0 | M14: 0 | N14: =SUM(N10:N13) -> 0 | O14: 1032.18 | P14: =SUM(P10:P13) -> 0 | Q14: 412872 | R14: =SUM(R10:R13) -> 0
Q15: Enterprise | R15: Enterprise
A16: VARIABLE COSTS | D16: Quantity | E16: Quantity | F16: Units | G16: $/Unit | H16: $/Unit | I16: Total | J16: Total | K16: Share | L16: Share | M16: Landlord | N16: Landlord | O16: Tenant | P16: Tenant | Q16: Total | R16: Total
A17: Production Costs
B18: Custom
C19: Soil Test-Irrigated | D19: 1 | F19: Each | G19: 0.5 | I19: 0.5 | J19: =E19*H19 -> 0 | K19: 0 | M19: 0 | N19: =J19*L19 -> 0 | O19: 0.5 | P19: =+J19-N19 -> 0 | Q19: 200 | R19: =+J19*E$7 -> 0
C20: Apply Harvest Aid | D20: 2 | F20: Acre | G20: 7 | I20: 14 | J20: 0 | K20: 0 | M20: 0 | N20: 0 | O20: 14 | P20: 0 | Q20: 5600 | R20: 0
C21: Custom Strip | D21: 1326 | F21: Pounds | G21: 0.09 | I21: 119.34 | J21: 0 | K21: 0 | M21: 0 | N21: 0 | O21: 119.34 | P21: 0 | Q21: 47736 | R21: 0
C22: Gin and Haul | D22: 47.36 | F22: CWT | G22: 2.5 | I22: 118.4 | J22: 0 | K22: 0 | M22: 0 | N22: 0 | O22: 118.4 | P22: 0 | Q22: 47360 | R22: 0
C23: Custom Bag/Tie | D23: 2.41 | F23: Bales | G23: 5 | I23: 12.05 | J23: 0 | K23: 0 | M23: 0 | N23: 0 | O23: 12.05 | P23: 0 | Q23: 4820 | R23: 0
B24: Fertilizer
C25: Nitrogen Dry-Urea | D25: 11 | F25: Pounds | G25: 0.37 | I25: 4.07 | J25: 0 | K25: 0 | M25: 0 | N25: 0 | O25: 4.07 | P25: 0 | Q25: 1628 | R25: 0
C26: Phos (11-52-0 DRY MAT) | D26: 58 | F26: Pounds | G26: 0.442 | I26: 25.636 | J26: 0 | K26: 0 | M26: 0 | N26: 0 | O26: 25.636 | P26: 0 | Q26: 10254.4 | R26: 0
C27: Nitrogen N32-liq | D27: 60 | F27: Pounds | G27: 0.35 | I27: 21 | J27: 0 | K27: 0 | M27: 0 | N27: 0 | O27: 21 | P27: 0 | Q27: 8400 | R27: 0
B28: Herbicide
C29: Glyphosate | D29: 96 | F29: Ounce | G29: 0.13 | I29: 12.48 | J29: 0 | K29: 0 | M29: 0 | N29: 0 | O29: 12.48 | P29: 0 | Q29: 4992 | R29: 0
C30: 2-4D Amine 4 | D30: 1.25 | F30: Pint | G30: 1.625 | I30: 2.03125 | J30: 0 | K30: 0 | M30: 0 | N30: 0 | O30: 2.03125 | P30: 0 | Q30: 812.5 | R30: 0
C31: Trifluralin | D31: 1.5 | F31: Pint | G31: 2.9375 | I31: 4.40625 | J31: 0 | K31: 0 | M31: 0 | N31: 0 | O31: 4.40625 | P31: 0 | Q31: 1762.5 | R31: 0
C32: Caparol | D32: 24 | F32: Ounce | G32: 0.22265625 | I32: 5.34375 | J32: 0 | K32: 0 | M32: 0 | N32: 0 | O32: 5.34375 | P32: 0 | Q32: 2137.5 | R32: 0
C33: Mepiquat Chloride | D33: 22 | F33: Ounce | G33: 0.06 | I33: 1.32 | J33: 0 | K33: 0 | M33: 0 | N33: 0 | O33: 1.32 | P33: 0 | Q33: 528 | R33: 0
C34: pentia | D34: 6 | F34: Ounce | G34: 0.347 | I34: 2.082 | J34: 0 | K34: 0 | M34: 0 | N34: 0 | O34: 2.082 | P34: 0 | Q34: 832.8 | R34: 0
C35: Outlook | D35: 15 | F35: Ounce | G35: 1 | I35: 15 | J35: 0 | K35: 0 | M35: 0 | N35: 0 | O35: 15 | P35: 0 | Q35: 6000 | R35: 0
C36: Entend Flex Dicamba | D36: 44 | F36: Ounce | G36: 0.5156 | I36: 22.6864 | J36: 0 | K36: 0 | M36: 0 | N36: 0 | O36: 22.6864 | P36: 0 | Q36: 9074.56 | R36: 0
B37: Insecticide
C38: Spider Mite treatment | D38: 1.5 | F38: Acre | G38: 8 | I38: 12 | J38: 0 | K38: 0 | M38: 0 | N38: 0 | O38: 12 | P38: 0 | Q38: 4800 | R38: 0
C39: flea hopper Treatment | D39: 1 | F39: Acre | G39: 5.5 | I39: 5.5 | J39: 0 | K39: 0 | M39: 0 | N39: 0 | O39: 5.5 | P39: 0 | Q39: 2200 | R39: 0
B40: Miscellaneous
C41: Irr Cotton-RP 70% SE | D41: 1 | F41: Acre | G41: 22.42 | I41: 22.42 | J41: 0 | K41: 0 | M41: 0 | N41: 0 | O41: 22.42 | P41: 0 | Q41: 8968 | R41: 0
C42: Boll Weevil Eradication Program | D42: 2.652 | F42: Bale | G42: 1 | I42: 2.652 | J42: 0 | K42: 0 | M42: 0 | N42: 0 | O42: 2.652 | P42: 0 | Q42: 1060.8 | R42: 0
B43: Seed
C44: Seed Cotton - B2XF | D44: 38.5 | F44: Thousand | G44: 1.74 | I44: 66.99 | J44: 0 | K44: 0 | M44: 0 | N44: 0 | O44: 66.99 | P44: 0 | Q44: 26796 | R44: 0
B45: Other Chemicals
C46: Ethephon 6 | D46: 1.5 | F46: Pint | G46: 2.38 | I46: 3.57 | J46: 0 | K46: 0 | M46: 0 | N46: 0 | O46: 3.57 | P46: 0 | Q46: 1428 | R46: 0
C47: Adios | D47: 5 | F47: Ounce | G47: 0.69 | I47: 3.45 | J47: 0 | K47: 0 | M47: 0 | N47: 0 | O47: 3.45 | P47: 0 | Q47: 1380 | R47: 0
C48: Paraquat, 3lb (Firestorm) | D48: 28 | F48: Ounce | G48: 0.18 | I48: 5.04 | J48: 0 | K48: 0 | M48: 0 | N48: 0 | O48: 5.04 | P48: 0 | Q48: 2016 | R48: 0
B49: Fungicides
C50: Topguard-4lb | D50: 7 | F50: Ounce | G50: 4.53 | I50: 31.71 | J50: 0 | K50: 0 | M50: 0 | N50: 0 | O50: 31.71 | P50: 0 | Q50: 12684 | R50: 0
D51: 0 | G51: 0 | I51: 0 | J51: 0 | K51: 0 | M51: 0 | N51: 0 | O51: 0 | P51: 0 | Q51: 0 | R51: 0
D52: 0 | G52: 0 | I52: 0 | J52: 0 | K52: 0 | M52: 0 | N52: 0 | O52: 0 | P52: 0 | Q52: 0 | R52: 0
D53: 0 | G53: 0 | I53: 0 | J53: =E53*H53 -> 0 | K53: 0 | M53: 0 | N53: =J53*L53 -> 0 | O53: 0 | P53: =+J53-N53 -> 0 | Q53: 0 | R53: =+J53*E$7 -> 0
B54: Irrigation
C55: Energy Cost | D55: 18 | F55: AcreInch | G55: 6.024400355 | I55: 108.4392064 | J55: =E55*H55 -> 0 | K55: 0 | M55: 0 | N55: =J55*L55 -> 0 | O55: 108.4392064 | P55: =+J55-N55 -> 0 | Q55: 43375.68256 | R55: =+J55*E$7 -> 0
C56: Irrigation Labor | D56: 0.8 | F56: Hour | G56: 12 | I56: 9.6 | J56: 0 | K56: 0 | M56: 0 | N56: 0 | O56: 9.6 | P56: 0 | Q56: 3840 | R56: 0
B57: Machinery Labor
C58: Tractors/Self-Propelled | D58: 0.79 | F58: Hour | G58: 12 | I58: 9.48 | J58: =E58*H58 -> 0 | K58: 0 | M58: 0 | N58: =J58*L58 -> 0 | O58: 9.48 | P58: =+J58-N58 -> 0 | Q58: 3792 | R58: =+J58*E$7 -> 0
C59: Other Labor | D59: 0.19 | F59: Hour | G59: 12 | I59: 2.28 | J59: =E59*H59 -> 0 | K59: 0 | M59: 0 | N59: =J59*L59 -> 0 | O59: 2.28 | P59: =+J59-N59 -> 0 | Q59: 912 | R59: =+J59*E$7 -> 0
B61: Diesel Fuel
C62: Pickup/General Use Equipment | D62: 1 | F62: Acre | G62: 0 | I62: 0 | J62: =E62*H62 -> 0 | K62: 0 | M62: 0 | N62: =J62*L62 -> 0 | O62: 0 | P62: =+J62-N62 -> 0 | Q62: 0 | R62: =+J62*E$7 -> 0
C63: Tractors/Self-Propelled | D63: 7.58 | F63: Gallon | G63: 2.15 | I63: 16.297 | J63: =E63*H63 -> 0 | K63: 0 | M63: 0 | N63: =J63*L63 -> 0 | O63: 16.297 | P63: =+J63-N63 -> 0 | Q63: 6518.8 | R63: =+J63*E$7 -> 0
B65: Gasoline
C66: Pickup/General Use Equipment | D66: 1 | F66: Acre | G66: 1.8198 | I66: 1.8198 | J66: =E66*H66 -> 0 | K66: 0 | M66: 0 | N66: =J66*L66 -> 0 | O66: 1.8198 | P66: =+J66-N66 -> 0 | Q66: 727.92 | R66: =+J66*E$7 -> 0
C67: Tractors/Self-Propelled | D67: 0 | F67: Gallon | G67: 2.4 | I67: 0 | J67: =E67*H67 -> 0 | K67: 0 | M67: 0 | N67: =J67*L67 -> 0 | O67: 0 | P67: =+J67-N67 -> 0 | Q67: 0 | R67: =+J67*E$7 -> 0
B69: Repairs & Maintenance
C70: Pickup/General Use Equipment | D70: 1 | F70: Acre | G70: 0.82125 | I70: 0.82125 | J70: =E70*H70 -> 0 | K70: 0 | M70: 0 | N70: =J70*L70 -> 0 | O70: 0.82125 | P70: =+J70-N70 -> 0 | Q70: 328.5 | R70: =+J70*E$7 -> 0
C71: Irrigation Equipment | D71: 1 | F71: Acre | G71: 5.5008 | I71: 5.5008 | J71: 0 | K71: 0 | M71: 0 | N71: 0 | O71: 5.5008 | P71: 0 | Q71: 2200.32 | R71: 0
C72: Tractors/Self-Propelled | D72: 1 | F72: Acre | G72: 15.79865658 | I72: 15.79865658 | J72: 0 | K72: 0 | M72: 0 | N72: 0 | O72: 15.79865658 | P72: 0 | Q72: 6319.462632 | R72: 0
C73: Implements | D73: 1 | F73: Acre | G73: 10.5201738 | I73: 10.5201738 | J73: 0 | K73: 0 | M73: 0 | N73: 0 | O73: 10.5201738 | P73: 0 | Q73: 4208.069522 | R73: 0
I74: 0 | J74: 0 | K74: 0 | M74: 0 | N74: 0 | O74: 0 | P74: 0 | Q74: 0 | R74: 0
I75: 0 | J75: 0 | K75: 0 | M75: 0 | N75: 0 | O75: 0 | P75: 0 | Q75: 0 | R75: 0
B76: Interest on Credit Line | G76: 0.06 | I76: 13.16385714 | J76: =+SUM(J18:J75)/2*H76 -> 0 | M76: 0 | N76: =+SUM(N18:N75)/2*L76 -> 0 | O76: 13.16385714 | P76: =+SUM(P18:P75)/2*L76 -> 0 | Q76: 5265.542855 | R76: =+J76*E$7 -> 0
A77: Total Variable Costs | I77: 727.3983939 | J77: =SUM(J19:J76) -> 0 | M77: 0 | N77: =SUM(N19:N76) -> 0 | O77: 727.3983939 | P77: =SUM(P19:P76) -> 0 | Q77: 290959.3576 | R77: =SUM(R19:R76) -> 0
A78: Planned Returns Above Variable Costs: | I78: 304.7816061 | J78: =+J14-J77 -> 0 | M78: 0 | N78: =+N14-N77 -> 0 | O78: 304.7816061 | P78: =+P14-P77 -> 0 | Q78: 121912.6424 | R78: =+R14-R77 -> 0
B79: Breakeven Price to Cover Variable Costs | G79: 0.4001496183 | H79: =IF(E10=0,"n/a",(YVarExp-(YTotExp+YTotRet-J10))/E10) -> n/a | I79: Pound
Q80: Enterprise | R80: Enterprise
A81: FIXED COSTS | D81: Quantity | E81: Quantity | F81: Units | G81: $/Unit | H81: $/Unit | I81: Total | J81: Total | K81: Share | L81: Share | M81: Landlord | N81: Landlord | O81: Tenant | P81: Tenant | Q81: Total | R81: Total
B82: Machinery Depreciation
C83: Pickup/General Use Equipment | D83: 1 | F83: Acre | G83: 1.7415 | I83: 1.7415 | J83: =E83*H83 -> 0 | K83: 0 | M83: 0 | N83: =J83*L83 -> 0 | O83: 1.7415 | P83: =+J83-N83 -> 0 | Q83: 696.6 | R83: =+J83*E$7 -> 0
C84: Irrigation Equipment | D84: 1 | F84: Acre | G84: 54.45 | I84: 54.45 | J84: 0 | K84: 0 | M84: 0 | N84: =J84*L84 -> 0 | O84: 54.45 | P84: 0 | Q84: 21780 | R84: 0
C85: Tractors/Self-Propelled | D85: 1 | F85: Acre | G85: 21.28528544 | I85: 21.28528544 | J85: 0 | K85: 0 | M85: 0 | N85: =J85*L85 -> 0 | O85: 21.28528544 | P85: 0 | Q85: 8514.114175 | R85: 0
C86: Implements | D86: 1 | F86: Acre | G86: 13.43495588 | I86: 13.43495588 | J86: 0 | K86: 0 | M86: 0 | N86: =J86*L86 -> 0 | O86: 13.43495588 | P86: 0 | Q86: 5373.982351 | R86: 0
B87: Equipment Investment
C88: Pickup/General Use Equipment | D88: 9.6525 | F88: Dollars | G88: 0.06 | I88: 0.57915 | J88: =E88*H88 -> 0 | K88: 0 | M88: 0 | N88: =J88*L88 -> 0 | O88: 0.57915 | P88: =+J88-N88 -> 0 | Q88: 231.66 | R88: =+J88*E$7 -> 0
C89: Irrigation Equipment | D89: 555.5 | F89: Dollars | G89: 0.06 | I89: 33.33 | J89: 0 | K89: 0 | M89: 0 | N89: =J89*L89 -> 0 | O89: 33.33 | P89: 0 | Q89: 13332 | R89: 0
C90: Tractors/Self-Propelled | D90: 163.4782511 | F90: Dollars | G90: 0.06 | I90: 9.808695069 | J90: 0 | K90: 0 | M90: 0 | N90: =J90*L90 -> 0 | O90: 9.808695069 | P90: 0 | Q90: 3923.478027 | R90: 0
C91: Implements | D91: 66.05377353 | F91: Dollars | G91: 0.06 | I91: 3.963226412 | J91: 0 | K91: 0 | M91: 0 | N91: =J91*L91 -> 0 | O91: 3.963226412 | P91: 0 | Q91: 1585.290565 | R91: 0
B92: Salaried Labor | D92: 1 | F92: Acre | G92: 0 | I92: 0 | J92: 0 | K92: 0 | M92: 0 | N92: =J92*L92 -> 0 | O92: 0 | P92: =+J92-N92 -> 0 | Q92: 0 | R92: =+J92*E$7 -> 0
B93: Management Fee, Owner/Operator Labor | D93: 1 | F93: Acre | G93: 0 | I93: 0 | J93: 0 | K93: 0 | M93: 0 | N93: 0 | O93: 0 | P93: 0 | Q93: 0 | R93: 0
B94: Allocated Establishment Cost | D94: 1 | F94: Acre | G94: 0 | I94: 0 | J94: 0 | K94: 0 | M94: 0 | N94: 0 | O94: 0 | P94: 0 | Q94: 0 | R94: 0
B95: Rent-Irrigated Crop | D95: 1 | F95: Acre | G95: 70 | I95: 70 | J95: 0 | K95: 0 | M95: 0 | N95: 0 | O95: 70 | P95: 0 | Q95: 28000 | R95: 0
B96: Property Taxes | D96: 1 | F96: Acre | G96: 0 | I96: 0 | J96: 0 | K96: 0 | M96: 0 | N96: 0 | O96: 0 | P96: 0 | Q96: 0 | R96: 0
B97: Whole Farm Insurance | D97: 1 | F97: Acre | G97: 0 | I97: 0 | J97: 0 | K97: 0 | M97: 0 | N97: 0 | O97: 0 | P97: 0 | Q97: 0 | R97: 0
D98: 1 | G98: 0 | I98: 0 | J98: 0 | K98: 0 | M98: 0 | N98: 0 | O98: 0 | P98: 0 | Q98: 0 | R98: 0
D99: 1 | G99: 0 | I99: 0 | J99: =E99*H99 -> 0 | K99: 0 | M99: 0 | N99: 0 | O99: 0 | P99: 0 | Q99: 0 | R99: 0
A100: Total Fixed Costs | I100: 208.5928128 | J100: =+SUM(J83:J99) -> 0 | M100: 0 | N100: =+SUM(N83:N99) -> 0 | O100: 208.5928128 | P100: =+SUM(P83:P99) -> 0 | Q100: 83437.12512 | R100: =+SUM(R83:R99) -> 0
A101: Total Specified Costs | I101: 935.9912067 | J101: =+J77+J100 -> 0 | M101: 0 | N101: =+N77+N100 -> 0 | O101: 935.9912067 | P101: =+P77+P100 -> 0 | Q101: 374396.4827 | R101: =+R77+R100 -> 0
A103: Returns Above Specified Costs | I103: 96.18879329 | J103: =+J14-J101 -> 0 | M103: 0 | N103: =+N14-N101 -> 0 | O103: 96.18879329 | P103: =+P14-P101 -> 0 | Q103: 38475.51732 | R103: =+R14-R101 -> 0
A105: Breakeven Price to Cover Total Costs | G105: 0.5574594319 | H105: =IF(E10=0,"n/a",(YTotExp-(YTotExp+YTotRet-J10))/E10) -> n/a | I105: Pound
D107: Example Breakeven Prices
B108: Example | C108: Example | D108: To Cover | G108: To Cover
B109: Yield | C109: Yield | D109: Variable | G109: Total
B110: Percent | C110: Pound | D110: Costs | G110: Costs
B111: 0.75 | C111: 994.5 | D111: 0.5335328244 | G111: 0.7432792425
B112: 0.9 | C112: 1193.4 | D112: 0.444610687 | G112: 0.6193993688
B113: 1 | C113: 1326 | D113: 0.4001496183 | G113: 0.5574594319
B114: 1.1 | C114: 1458.6 | D114: 0.3637723803 | G114: 0.5067813017
B115: 1.25 | C115: 1657.5 | D115: 0.3201196947 | G115: 0.4459675455
D117: Your Breakeven Prices
B118: Your | C118: Your | E118: To Cover | H118: To Cover
B119: Yield | C119: Yield | E119: Variable | H119: Total
B120: Percent | C120: Pound | E120: Costs | H120: Costs
B121: 0.75 | C121: =E10*YPER1 -> 0 | E121: =IF($E$10=0,0,(YVarExp-(YTotExp+YTotRet-J10))/($E$10*YPER1)) -> 0 | H121: =IF($E$10=0,0,(YTotExp-(YTotExp+YTotRet-J10))/($E$10*YPER1)) -> 0
B122: 0.9 | C122: =E10*YPER2 -> 0 | E122: =IF($E$10=0,0,(YVarExp-(YTotExp+YTotRet-J10))/($E$10*YPER2)) -> 0 | H122: =IF($E$10=0,0,(YTotExp-(YTotExp+YTotRet-J10))/($E$10*YPER2)) -> 0
B123: 1 | C123: =+E10 -> 0 | E123: =IF($E$10=0,0,(YVarExp-(YTotExp+YTotRet-J10))/($E$10*YPER3)) -> 0 | H123: =IF($E$10=0,0,(YTotExp-(YTotExp+YTotRet-J10))/($E$10*YPER3)) -> 0
B124: 1.1 | C124: =E10*YPER4 -> 0 | E124: =IF($E$10=0,0,(YVarExp-(YTotExp+YTotRet-J10))/($E$10*YPER4)) -> 0 | H124: =IF($E$10=0,0,(YTotExp-(YTotExp+YTotRet-J10))/($E$10*YPER4)) -> 0
B125: 1.25 | C125: =E10*YPER5 -> 0 | E125: =IF($E$10=0,0,(YVarExp-(YTotExp+YTotRet-J10))/($E$10*YPER5)) -> 0 | H125: =IF($E$10=0,0,(YTotExp-(YTotExp+YTotRet-J10))/($E$10*YPER5)) -> 0
A127: Developed by Bill Thompson, Associate Professor and Extension Economist, Texas A&M AgriLife Extension Service, 325-653-4576.
A129: Information presented is prepared solely as a general guide and not intended to recognize or predict the costs and returns from any one operation. Brand names are mentioned only as examples and imply no endorsement.

Sheet CottonDripRF
A1: Projections for Planning Purposes Only -- Not to be Used without Updating
A2: 2018 Estimated Costs and Returns per Acre
A3: Drip Irrigated Cotton, RF
A4: Enter your name for this budget in the cell above.
A5: Enter Your Values in the cells highlighed in MAROON.
E6: Your Acres | R6: Your
C7: Crop Acres | D7: 400 | L7: Your | Q7: Enterprise | R7: Enterprise
E8: Your | H8: Your | I8: Cash | J8: Your | K8: Landlord | L8: Landlord | N8: Your | P8: Your | Q8: Total | R8: Total
A9: REVENUE | D9: Quantity | E9: Quantity | F9: Units | G9: $/Unit | H9: $/Unit | I9: Total | J9: Total | K9: Share | L9: Share | M9: Landlord | N9: Landlord | O9: Tenant | P9: Tenant | Q9: (400 acres) | R9: ="(" & E7 & " acres)" -> ( acres)
B10: Cotton Lint | D10: 1326 | F10: Pound | G10: 0.63 | I10: 835.38 | J10: =E10*H10 -> 0 | K10: 0 | M10: 0 | N10: =J10*L10 -> 0 | O10: 835.38 | P10: =+J10-N10 -> 0 | Q10: 334152 | R10: =+J10*E$7 -> 0
B11: Cotton Seed | D11: 0.96 | F11: Ton | G11: 205 | I11: 196.8 | J11: 0 | K11: 0 | M11: 0 | N11: 0 | O11: 196.8 | P11: =+J11-N11 -> 0 | Q11: 78720 | R11: 0
D12: 0 | G12: 0 | I12: 0 | J12: 0 | K12: 0 | M12: 0 | N12: 0 | O12: 0 | P12: 0 | Q12: 0 | R12: 0
D13: 0 | G13: 0 | I13: 0 | J13: 0 | K13: 0 | M13: 0 | N13: 0 | O13: 0 | P13: 0 | Q13: 0 | R13: 0
A14: Total Revenue | I14: 1032.18 | J14: =SUM(J10:J13) -> 0 | M14: 0 | N14: =SUM(N10:N13) -> 0 | O14: 1032.18 | P14: =SUM(P10:P13) -> 0 | Q14: 412872 | R14: =SUM(R10:R13) -> 0
Q15: Enterprise | R15: Enterprise
A16: VARIABLE COSTS | D16: Quantity | E16: Quantity | F16: Units | G16: $/Unit | H16: $/Unit | I16: Total | J16: Total | K16: Share | L16: Share | M16: Landlord | N16: Landlord | O16: Tenant | P16: Tenant | Q16: Total | R16: Total
A17: Production Costs
B18: Custom
C19: Soil Test-Irrigated | D19: 1 | F19: Each | G19: 0.5 | I19: 0.5 | J19: =E19*H19 -> 0 | K19: 0 | M19: 0 | N19: =J19*L19 -> 0 | O19: 0.5 | P19: =+J19-N19 -> 0 | Q19: 200 | R19: =+J19*E$7 -> 0
C20: Apply Harvest Aid | D20: 2 | F20: Acre | G20: 7 | I20: 14 | J20: 0 | K20: 0 | M20: 0 | N20: 0 | O20: 14 | P20: 0 | Q20: 5600 | R20: 0
C21: Custom Strip | D21: 1326 | F21: Pounds | G21: 0.09 | I21: 119.34 | J21: 0 | K21: 0 | M21: 0 | N21: 0 | O21: 119.34 | P21: 0 | Q21: 47736 | R21: 0
C22: Gin and Haul | D22: 47.36 | F22: CWT | G22: 2.5 | I22: 118.4 | J22: 0 | K22: 0 | M22: 0 | N22: 0 | O22: 118.4 | P22: 0 | Q22: 47360 | R22: 0
C23: Custom Bag/Tie | D23: 2.41 | F23: Bales | G23: 5 | I23: 12.05 | J23: 0 | K23: 0 | M23: 0 | N23: 0 | O23: 12.05 | P23: 0 | Q23: 4820 | R23: 0
B24: Fertilizer
C25: Nitrogen Dry-Urea | D25: 11 | F25: Pounds | G25: 0.37 | I25: 4.07 | J25: 0 | K25: 0 | M25: 0 | N25: 0 | O25: 4.07 | P25: 0 | Q25: 1628 | R25: 0
C26: Phos (11-52-0 DRY MAT) | D26: 58 | F26: Pounds | G26: 0.442 | I26: 25.636 | J26: 0 | K26: 0 | M26: 0 | N26: 0 | O26: 25.636 | P26: 0 | Q26: 10254.4 | R26: 0
C27: Nitrogen N32-liq | D27: 60 | F27: Pounds | G27: 0.35 | I27: 21 | J27: 0 | K27: 0 | M27: 0 | N27: 0 | O27: 21 | P27: 0 | Q27: 8400 | R27: 0
B28: Herbicide
C29: Glyphosate | D29: 96 | F29: Ounce | G29: 0.13 | I29: 12.48 | J29: 0 | K29: 0 | M29: 0 | N29: 0 | O29: 12.48 | P29: 0 | Q29: 4992 | R29: 0
C30: 2-4D Amine 4 | D30: 1.25 | F30: Pint | G30: 1.625 | I30: 2.03125 | J30: 0 | K30: 0 | M30: 0 | N30: 0 | O30: 2.03125 | P30: 0 | Q30: 812.5 | R30: 0
C31: Trifluralin | D31: 1.5 | F31: Pint | G31: 2.9375 | I31: 4.40625 | J31: 0 | K31: 0 | M31: 0 | N31: 0 | O31: 4.40625 | P31: 0 | Q31: 1762.5 | R31: 0
C32: Caparol | D32: 24 | F32: Ounce | G32: 0.22265625 | I32: 5.34375 | J32: 0 | K32: 0 | M32: 0 | N32: 0 | O32: 5.34375 | P32: 0 | Q32: 2137.5 | R32: 0
C33: Mepiquat Chloride | D33: 22 | F33: Ounce | G33: 0.06 | I33: 1.32 | J33: 0 | K33: 0 | M33: 0 | N33: 0 | O33: 1.32 | P33: 0 | Q33: 528 | R33: 0
C34: pentia | D34: 6 | F34: Ounce | G34: 0.347 | I34: 2.082 | J34: 0 | K34: 0 | M34: 0 | N34: 0 | O34: 2.082 | P34: 0 | Q34: 832.8 | R34: 0
C35: Outlook | D35: 15 | F35: Ounce | G35: 1 | I35: 15 | J35: 0 | K35: 0 | M35: 0 | N35: 0 | O35: 15 | P35: 0 | Q35: 6000 | R35: 0
B36: Insecticide
C37: Spider Mite treatment | D37: 1.5 | F37: Acre | G37: 8 | I37: 12 | J37: 0 | K37: 0 | M37: 0 | N37: 0 | O37: 12 | P37: 0 | Q37: 4800 | R37: 0
C38: flea hopper Treatment | D38: 1 | F38: Acre | G38: 5.5 | I38: 5.5 | J38: 0 | K38: 0 | M38: 0 | N38: 0 | O38: 5.5 | P38: 0 | Q38: 2200 | R38: 0
B39: Miscellaneous
C40: Irr Cotton-RP 70% SE | D40: 1 | F40: Acre | G40: 22.42 | I40: 22.42 | J40: 0 | K40: 0 | M40: 0 | N40: 0 | O40: 22.42 | P40: 0 | Q40: 8968 | R40: 0
C41: Boll Weevil Eradication Program | D41: 2.652 | F41: Bale | G41: 1 | I41: 2.652 | J41: 0 | K41: 0 | M41: 0 | N41: 0 | O41: 2.652 | P41: 0 | Q41: 1060.8 | R41: 0
B42: Seed
C43: Seed Cotton - B2RF | D43: 38.5 | F43: Thousand | G43: 1.276595745 | I43: 49.14893617 | J43: 0 | K43: 0 | M43: 0 | N43: 0 | O43: 49.14893617 | P43: 0 | Q43: 19659.57447 | R43: 0
B44: Other Chemicals
C45: Ethephon 6 | D45: 1.5 | F45: Pint | G45: 2.38 | I45: 3.57 | J45: 0 | K45: 0 | M45: 0 | N45: 0 | O45: 3.57 | P45: 0 | Q45: 1428 | R45: 0
C46: Adios | D46: 5 | F46: Ounce | G46: 0.69 | I46: 3.45 | J46: 0 | K46: 0 | M46: 0 | N46: 0 | O46: 3.45 | P46: 0 | Q46: 1380 | R46: 0
C47: Paraquat, 3lb (Firestorm) | D47: 28 | F47: Ounce | G47: 0.18 | I47: 5.04 | J47: 0 | K47: 0 | M47: 0 | N47: 0 | O47: 5.04 | P47: 0 | Q47: 2016 | R47: 0
B48: Fungicides
C49: Topguard-4lb | D49: 7 | F49: Ounce | G49: 4.53 | I49: 31.71 | J49: 0 | K49: 0 | M49: 0 | N49: 0 | O49: 31.71 | P49: 0 | Q49: 12684 | R49: 0
D50: 0 | G50: 0 | I50: 0 | J50: 0 | K50: 0 | M50: 0 | N50: 0 | O50: 0 | P50: 0 | Q50: 0 | R50: 0
D51: 0 | G51: 0 | I51: 0 | J51: 0 | K51: 0 | M51: 0 | N51: 0 | O51: 0 | P51: 0 | Q51: 0 | R51: 0
D52: 0 | G52: 0 | I52: 0 | J52: =E52*H52 -> 0 | K52: 0 | M52: 0 | N52: =J52*L52 -> 0 | O52: 0 | P52: =+J52-N52 -> 0 | Q52: 0 | R52: =+J52*E$7 -> 0
B53: Irrigation
C54: Energy Cost | D54: 18 | F54: AcreInch | G54: 6.024400355 | I54: 108.4392064 | J54: =E54*H54 -> 0 | K54: 0 | M54: 0 | N54: =J54*L54 -> 0 | O54: 108.4392064 | P54: =+J54-N54 -> 0 | Q54: 43375.68256 | R54: =+J54*E$7 -> 0
C55: Irrigation Labor | D55: 0.8 | F55: Hour | G55: 12 | I55: 9.6 | J55: 0 | K55: 0 | M55: 0 | N55: 0 | O55: 9.6 | P55: 0 | Q55: 3840 | R55: 0
B56: Machinery Labor
C57: Tractors/Self-Propelled | D57: 0.79 | F57: Hour | G57: 12 | I57: 9.48 | J57: =E57*H57 -> 0 | K57: 0 | M57: 0 | N57: =J57*L57 -> 0 | O57: 9.48 | P57: =+J57-N57 -> 0 | Q57: 3792 | R57: =+J57*E$7 -> 0
C58: Other Labor | D58: 0.19 | F58: Hour | G58: 12 | I58: 2.28 | J58: =E58*H58 -> 0 | K58: 0 | M58: 0 | N58: =J58*L58 -> 0 | O58: 2.28 | P58: =+J58-N58 -> 0 | Q58: 912 | R58: =+J58*E$7 -> 0
B60: Diesel Fuel
C61: Pickup/General Use Equipment | D61: 1 | F61: Acre | G61: 0 | I61: 0 | J61: =E61*H61 -> 0 | K61: 0 | M61: 0 | N61: =J61*L61 -> 0 | O61: 0 | P61: =+J61-N61 -> 0 | Q61: 0 | R61: =+J61*E$7 -> 0
C62: Tractors/Self-Propelled | D62: 7.58 | F62: Gallon | G62: 2.15 | I62: 16.297 | J62: =E62*H62 -> 0 | K62: 0 | M62: 0 | N62: =J62*L62 -> 0 | O62: 16.297 | P62: =+J62-N62 -> 0 | Q62: 6518.8 | R62: =+J62*E$7 -> 0
B64: Gasoline
C65: Pickup/General Use Equipment | D65: 1 | F65: Acre | G65: 1.8198 | I65: 1.8198 | J65: =E65*H65 -> 0 | K65: 0 | M65: 0 | N65: =J65*L65 -> 0 | O65: 1.8198 | P65: =+J65-N65 -> 0 | Q65: 727.92 | R65: =+J65*E$7 -> 0
C66: Tractors/Self-Propelled | D66: 0 | F66: Gallon | G66: 2.4 | I66: 0 | J66: =E66*H66 -> 0 | K66: 0 | M66: 0 | N66: =J66*L66 -> 0 | O66: 0 | P66: =+J66-N66 -> 0 | Q66: 0 | R66: =+J66*E$7 -> 0
B68: Repairs & Maintenance
C69: Pickup/General Use Equipment | D69: 1 | F69: Acre | G69: 0.82125 | I69: 0.82125 | J69: =E69*H69 -> 0 | K69: 0 | M69: 0 | N69: =J69*L69 -> 0 | O69: 0.82125 | P69: =+J69-N69 -> 0 | Q69: 328.5 | R69: =+J69*E$7 -> 0
C70: Irrigation Equipment | D70: 1 | F70: Acre | G70: 5.5008 | I70: 5.5008 | J70: 0 | K70: 0 | M70: 0 | N70: 0 | O70: 5.5008 | P70: 0 | Q70: 2200.32 | R70: 0
C71: Tractors/Self-Propelled | D71: 1 | F71: Acre | G71: 15.79865658 | I71: 15.79865658 | J71: 0 | K71: 0 | M71: 0 | N71: 0 | O71: 15.79865658 | P71: 0 | Q71: 6319.462632 | R71: 0
C72: Implements | D72: 1 | F72: Acre | G72: 10.5201738 | I72: 10.5201738 | J72: 0 | K72: 0 | M72: 0 | N72: 0 | O72: 10.5201738 | P72: 0 | Q72: 4208.069522 | R72: 0
I73: 0 | J73: 0 | K73: 0 | M73: 0 | N73: 0 | O73: 0 | P73: 0 | Q73: 0 | R73: 0
I74: 0 | J74: 0 | K74: 0 | M74: 0 | N74: 0 | O74: 0 | P74: 0 | Q74: 0 | R74: 0
B75: Interest on Credit Line | G75: 0.06 | I75: 12.10026345 | J75: =+SUM(J18:J74)/2*H75 -> 0 | M75: 0 | N75: =+SUM(N18:N74)/2*L75 -> 0 | O75: 12.10026345 | P75: =+SUM(P18:P74)/2*L75 -> 0 | Q75: 4840.105379 | R75: =+J75*E$7 -> 0
A76: Total Variable Costs | I76: 685.8073364 | J76: =SUM(J19:J75) -> 0 | M76: 0 | N76: =SUM(N19:N75) -> 0 | O76: 685.8073364 | P76: =SUM(P19:P75) -> 0 | Q76: 274322.9346 | R76: =SUM(R19:R75) -> 0
A77: Planned Returns Above Variable Costs: | I77: 346.3726636 | J77: =+J14-J76 -> 0 | M77: 0 | N77: =+N14-N76 -> 0 | O77: 346.3726636 | P77: =+P14-P76 -> 0 | Q77: 138549.0654 | R77: =+R14-R76 -> 0
B78: Breakeven Price to Cover Variable Costs | G78: 0.3687838133 | H78: =IF(E10=0,"n/a",(YVarExp-(YTotExp+YTotRet-J10))/E10) -> n/a | I78: Pound
Q79: Enterprise | R79: Enterprise
A80: FIXED COSTS | D80: Quantity | E80: Quantity | F80: Units | G80: $/Unit | H80: $/Unit | I80: Total | J80: Total | K80: Share | L80: Share | M80: Landlord | N80: Landlord | O80: Tenant | P80: Tenant | Q80: Total | R80: Total
B81: Machinery Depreciation
C82: Pickup/General Use Equipment | D82: 1 | F82: Acre | G82: 1.7415 | I82: 1.7415 | J82: =E82*H82 -> 0 | K82: 0 | M82: 0 | N82: =J82*L82 -> 0 | O82: 1.7415 | P82: =+J82-N82 -> 0 | Q82: 696.6 | R82: =+J82*E$7 -> 0
C83: Irrigation Equipment | D83: 1 | F83: Acre | G83: 54.45 | I83: 54.45 | J83: 0 | K83: 0 | M83: 0 | N83: =J83*L83 -> 0 | O83: 54.45 | P83: 0 | Q83: 21780 | R83: 0
C84: Tractors/Self-Propelled | D84: 1 | F84: Acre | G84: 21.28528544 | I84: 21.28528544 | J84: 0 | K84: 0 | M84: 0 | N84: =J84*L84 -> 0 | O84: 21.28528544 | P84: 0 | Q84: 8514.114175 | R84: 0
C85: Implements | D85: 1 | F85: Acre | G85: 13.43495588 | I85: 13.43495588 | J85: 0 | K85: 0 | M85: 0 | N85: =J85*L85 -> 0 | O85: 13.43495588 | P85: 0 | Q85: 5373.982351 | R85: 0
B86: Equipment Investment
C87: Pickup/General Use Equipment | D87: 9.6525 | F87: Dollars | G87: 0.06 | I87: 0.57915 | J87: =E87*H87 -> 0 | K87: 0 | M87: 0 | N87: =J87*L87 -> 0 | O87: 0.57915 | P87: =+J87-N87 -> 0 | Q87: 231.66 | R87: =+J87*E$7 -> 0
C88: Irrigation Equipment | D88: 555.5 | F88: Dollars | G88: 0.06 | I88: 33.33 | J88: 0 | K88: 0 | M88: 0 | N88: =J88*L88 -> 0 | O88: 33.33 | P88: 0 | Q88: 13332 | R88: 0
C89: Tractors/Self-Propelled | D89: 163.4782511 | F89: Dollars | G89: 0.06 | I89: 9.808695069 | J89: 0 | K89: 0 | M89: 0 | N89: =J89*L89 -> 0 | O89: 9.808695069 | P89: 0 | Q89: 3923.478027 | R89: 0
C90: Implements | D90: 66.05377353 | F90: Dollars | G90: 0.06 | I90: 3.963226412 | J90: 0 | K90: 0 | M90: 0 | N90: =J90*L90 -> 0 | O90: 3.963226412 | P90: 0 | Q90: 1585.290565 | R90: 0
B91: Salaried Labor | D91: 1 | F91: Acre | G91: 0 | I91: 0 | J91: 0 | K91: 0 | M91: 0 | N91: =J91*L91 -> 0 | O91: 0 | P91: =+J91-N91 -> 0 | Q91: 0 | R91: =+J91*E$7 -> 0
B92: Management Fee, Owner/Operator Labor | D92: 1 | F92: Acre | G92: 0 | I92: 0 | J92: 0 | K92: 0 | M92: 0 | N92: 0 | O92: 0 | P92: 0 | Q92: 0 | R92: 0
B93: Allocated Establishment Cost | D93: 1 | F93: Acre | G93: 0 | I93: 0 | J93: 0 | K93: 0 | M93: 0 | N93: 0 | O93: 0 | P93: 0 | Q93: 0 | R93: 0
B94: Rent-Irrigated Crop | D94: 1 | F94: Acre | G94: 70 | I94: 70 | J94: 0 | K94: 0 | M94: 0 | N94: 0 | O94: 70 | P94: 0 | Q94: 28000 | R94: 0
B95: Property Taxes | D95: 1 | F95: Acre | G95: 0 | I95: 0 | J95: 0 | K95: 0 | M95: 0 | N95: 0 | O95: 0 | P95: 0 | Q95: 0 | R95: 0
B96: Whole Farm Insurance | D96: 1 | F96: Acre | G96: 0 | I96: 0 | J96: 0 | K96: 0 | M96: 0 | N96: 0 | O96: 0 | P96: 0 | Q96: 0 | R96: 0
D97: 1 | G97: 0 | I97: 0 | J97: 0 | K97: 0 | M97: 0 | N97: 0 | O97: 0 | P97: 0 | Q97: 0 | R97: 0
D98: 1 | G98: 0 | I98: 0 | J98: =E98*H98 -> 0 | K98: 0 | M98: 0 | N98: 0 | O98: 0 | P98: 0 | Q98: 0 | R98: 0
A99: Total Fixed Costs | I99: 208.5928128 | J99: =+SUM(J82:J98) -> 0 | M99: 0 | N99: =+SUM(N82:N98) -> 0 | O99: 208.5928128 | P99: =+SUM(P82:P98) -> 0 | Q99: 83437.12512 | R99: =+SUM(R82:R98) -> 0
A100: Total Specified Costs | I100: 894.4001492 | J100: =+J76+J99 -> 0 | M100: 0 | N100: =+N76+N99 -> 0 | O100: 894.4001492 | P100: =+P76+P99 -> 0 | Q100: 357760.0597 | R100: =+R76+R99 -> 0
A102: Returns Above Specified Costs | I102: 137.7798508 | J102: =+J14-J100 -> 0 | M102: 0 | N102: =+N14-N100 -> 0 | O102: 137.7798508 | P102: =+P14-P100 -> 0 | Q102: 55111.94032 | R102: =+R14-R100 -> 0
A104: Breakeven Price to Cover Total Costs | G104: 0.5260936268 | H104: =IF(E10=0,"n/a",(YTotExp-(YTotExp+YTotRet-J10))/E10) -> n/a | I104: Pound
D106: Example Breakeven Prices
B107: Example | C107: Example | D107: To Cover | G107: To Cover
B108: Yield | C108: Yield | D108: Variable | G108: Total
B109: Percent | C109: Pound | D109: Costs | G109: Costs
B110: 0.75 | C110: 994.5 | D110: 0.491711751 | G110: 0.7014581691
B111: 0.9 | C111: 1193.4 | D111: 0.4097597925 | G111: 0.5845484743
B112: 1 | C112: 1326 | D112: 0.3687838133 | G112: 0.5260936268
B113: 1.1 | C113: 1458.6 | D113: 0.3352580121 | G113: 0.4782669335
B114: 1.25 | C114: 1657.5 | D114: 0.2950270506 | G114: 0.4208749015
D116: Your Breakeven Prices
B117: Your | C117: Your | E117: To Cover | H117: To Cover
B118: Yield | C118: Yield | E118: Variable | H118: Total
B119: Percent | C119: Pound | E119: Costs | H119: Costs
B120: 0.75 | C120: =E10*YPER1 -> 0 | E120: =IF($E$10=0,0,(YVarExp-(YTotExp+YTotRet-J10))/($E$10*YPER1)) -> 0 | H120: =IF($E$10=0,0,(YTotExp-(YTotExp+YTotRet-J10))/($E$10*YPER1)) -> 0
B121: 0.9 | C121: =E10*YPER2 -> 0 | E121: =IF($E$10=0,0,(YVarExp-(YTotExp+YTotRet-J10))/($E$10*YPER2)) -> 0 | H121: =IF($E$10=0,0,(YTotExp-(YTotExp+YTotRet-J10))/($E$10*YPER2)) -> 0
B122: 1 | C122: =+E10 -> 0 | E122: =IF($E$10=0,0,(YVarExp-(YTotExp+YTotRet-J10))/($E$10*YPER3)) -> 0 | H122: =IF($E$10=0,0,(YTotExp-(YTotExp+YTotRet-J10))/($E$10*YPER3)) -> 0
B123: 1.1 | C123: =E10*YPER4 -> 0 | E123: =IF($E$10=0,0,(YVarExp-(YTotExp+YTotRet-J10))/($E$10*YPER4)) -> 0 | H123: =IF($E$10=0,0,(YTotExp-(YTotExp+YTotRet-J10))/($E$10*YPER4)) -> 0
B124: 1.25 | C124: =E10*YPER5 -> 0 | E124: =IF($E$10=0,0,(YVarExp-(YTotExp+YTotRet-J10))/($E$10*YPER5)) -> 0 | H124: =IF($E$10=0,0,(YTotExp-(YTotExp+YTotRet-J10))/($E$10*YPER5)) -> 0
A126: Developed by Bill Thompson, Associate Professor and Extension Economist, Texas A&M AgriLife Extension Service, 325-653-4576.
A128: Information presented is prepared solely as a general guide and not intended to recognize or predict the costs and returns from any one operation. Brand names are mentioned only as examples and imply no endorsement.

Sheet CottonDrylandRF
A1: Projections for Planning Purposes Only -- Not to be Used without Updating
A2: 2018 Estimated Costs and Returns per Acre
A3: Dryland Cotton, B2RF, Follow Wheat
A4: Enter your name for this budget in the cell above.
A5: Enter Your Values in the cells highlighed in MAROON.
E6: Your Acres | R6: Your
C7: Crop Acres | D7: 2700 | L7: Your | Q7: Enterprise | R7: Enterprise
E8: Your | H8: Your | I8: Cash | J8: Your | K8: Landlord | L8: Landlord | N8: Your | P8: Your | Q8: Total | R8: Total
A9: REVENUE | D9: Quantity | E9: Quantity | F9: Units | G9: $/Unit | H9: $/Unit | I9: Total | J9: Total | K9: Share | L9: Share | M9: Landlord | N9: Landlord | O9: Tenant | P9: Tenant | Q9: (2700 acres) | R9: ="(" & E7 & " acres)" -> ( acres)
B10: Cotton Lint | D10: 375 | F10: Pound | G10: 0.63 | I10: 236.25 | J10: =E10*H10 -> 0 | K10: 0 | M10: 0 | N10: =J10*L10 -> 0 | O10: 236.25 | P10: =+J10-N10 -> 0 | Q10: 637875 | R10: =+J10*E$7 -> 0
B11: Cotton Seed | D11: 0.2713 | F11: Ton | G11: 205 | I11: 55.6165 | J11: 0 | K11: 0 | M11: 0 | N11: 0 | O11: 55.6165 | P11: =+J11-N11 -> 0 | Q11: 150164.55 | R11: 0
D12: 0 | G12: 0 | I12: 0 | J12: 0 | K12: 0 | M12: 0 | N12: 0 | O12: 0 | P12: 0 | Q12: 0 | R12: 0
D13: 0 | G13: 0 | I13: 0 | J13: 0 | K13: 0 | M13: 0 | N13: 0 | O13: 0 | P13: 0 | Q13: 0 | R13: 0
A14: Total Revenue | I14: 291.8665 | J14: =SUM(J10:J13) -> 0 | M14: 0 | N14: =SUM(N10:N13) -> 0 | O14: 291.8665 | P14: =SUM(P10:P13) -> 0 | Q14: 788039.55 | R14: =SUM(R10:R13) -> 0
Q15: Enterprise | R15: Enterprise
A16: VARIABLE COSTS | D16: Quantity | E16: Quantity | F16: Units | G16: $/Unit | H16: $/Unit | I16: Total | J16: Total | K16: Share | L16: Share | M16: Landlord | N16: Landlord | O16: Tenant | P16: Tenant | Q16: Total | R16: Total
A17: Production Costs
B18: Custom
C19: Soil Test-Dryland | D19: 1 | F19: Each | G19: 0.25 | I19: 0.25 | J19: =E19*H19 -> 0 | K19: 0 | M19: 0 | N19: =J19*L19 -> 0 | O19: 0.25 | P19: =+J19-N19 -> 0 | Q19: 675 | R19: =+J19*E$7 -> 0
C20: Custom Strip | D20: 375 | F20: Pounds | G20: 0.09 | I20: 33.75 | J20: 0 | K20: 0 | M20: 0 | N20: 0 | O20: 33.75 | P20: 0 | Q20: 91125 | R20: 0
C21: Gin and Haul | D21: 12.5 | F21: CWT | G21: 2.5 | I21: 31.25 | J21: 0 | K21: 0 | M21: 0 | N21: 0 | O21: 31.25 | P21: 0 | Q21: 84375 | R21: 0
C22: Custom Bag/Tie | D22: 0.75 | F22: Bales | G22: 5 | I22: 3.75 | J22: 0 | K22: 0 | M22: 0 | N22: 0 | O22: 3.75 | P22: 0 | Q22: 10125 | R22: 0
B23: Fertilizer
C24: Phos (11-52-0 DRY MAT) | D24: 19 | F24: Pounds | G24: 0.442 | I24: 8.398 | J24: 0 | K24: 0 | M24: 0 | N24: 0 | O24: 8.398 | P24: 0 | Q24: 22674.6 | R24: 0
C25: Nitrogen N32-liq | D25: 26 | F25: Pounds | G25: 0.35 | I25: 9.1 | J25: 0 | K25: 0 | M25: 0 | N25: 0 | O25: 9.1 | P25: 0 | Q25: 24570 | R25: 0
B26: Herbicide
C27: Glyphosate | D27: 160 | F27: Ounce | G27: 0.13 | I27: 20.8 | J27: 0 | K27: 0 | M27: 0 | N27: 0 | O27: 20.8 | P27: 0 | Q27: 56160 | R27: 0
C28: 2-4D Amine 4 | D28: 1.25 | F28: Pint | G28: 1.625 | I28: 2.03125 | J28: 0 | K28: 0 | M28: 0 | N28: 0 | O28: 2.03125 | P28: 0 | Q28: 5484.375 | R28: 0
C29: Trifluralin | D29: 1.5 | F29: Pint | G29: 2.9375 | I29: 4.40625 | J29: 0 | K29: 0 | M29: 0 | N29: 0 | O29: 4.40625 | P29: 0 | Q29: 11896.875 | R29: 0
C30: Caparol | D30: 24 | F30: Ounce | G30: 0.22265625 | I30: 5.34375 | J30: 0 | K30: 0 | M30: 0 | N30: 0 | O30: 5.34375 | P30: 0 | Q30: 14428.125 | R30: 0
C31: Outlook | D31: 2 | F31: Ounce | G31: 1 | I31: 2 | J31: 0 | K31: 0 | M31: 0 | N31: 0 | O31: 2 | P31: 0 | Q31: 5400 | R31: 0
B32: Insecticide
C33: Macho 4F | D33: 1.5 | F33: Ounce | G33: 0.6875 | I33: 1.03125 | J33: 0 | K33: 0 | M33: 0 | N33: 0 | O33: 1.03125 | P33: 0 | Q33: 2784.375 | R33: 0
B34: Miscellaneous
C35: Dry Cotton RP 70% YE, SE, Ent | D35: 1 | F35: Acre | G35: 8.22 | I35: 8.22 | J35: 0 | K35: 0 | M35: 0 | N35: 0 | O35: 8.22 | P35: 0 | Q35: 22194 | R35: 0
C36: Boll Weevil Eradication Program | D36: 0.75 | F36: Bale | G36: 1 | I36: 0.75 | J36: 0 | K36: 0 | M36: 0 | N36: 0 | O36: 0.75 | P36: 0 | Q36: 2025 | R36: 0
B37: Seed
C38: Seed Cotton - B2RF | D38: 29 | F38: Thousand | G38: 1.276595745 | I38: 37.0212766 | J38: 0 | K38: 0 | M38: 0 | N38: 0 | O38: 37.0212766 | P38: 0 | Q38: 99957.44681 | R38: 0
B39: Other Chemicals
C40: Paraquat, 3lb (Firestorm) | D40: 28 | F40: Ounce | G40: 0.18 | I40: 5.04 | J40: 0 | K40: 0 | M40: 0 | N40: 0 | O40: 5.04 | P40: 0 | Q40: 13608 | R40: 0
C41: Adios | D41: 4 | F41: Ounce | G41: 0.69 | I41: 2.76 | J41: 0 | K41: 0 | M41: 0 | N41: 0 | O41: 2.76 | P41: 0 | Q41: 7452 | R41: 0
C42: Ethephon 6 | D42: 1 | F42: Pint | G42: 2.38 | I42: 2.38 | J42: 0 | K42: 0 | M42: 0 | N42: 0 | O42: 2.38 | P42: 0 | Q42: 6426 | R42: 0
D43: 0 | G43: 0 | I43: 0 | J43: 0 | K43: 0 | M43: 0 | N43: 0 | O43: 0 | P43: 0 | Q43: 0 | R43: 0
D44: 0 | G44: 0 | I44: 0 | J44: 0 | K44: 0 | M44: 0 | N44: 0 | O44: 0 | P44: 0 | Q44: 0 | R44: 0
D45: 0 | G45: 0 | I45: 0 | J45: =E45*H45 -> 0 | K45: 0 | M45: 0 | N45: =J45*L45 -> 0 | O45: 0 | P45: =+J45-N45 -> 0 | Q45: 0 | R45: =+J45*E$7 -> 0
B46: Machinery Labor
C47: Tractors/Self-Propelled | D47: 0.47 | F47: Hour | G47: 12 | I47: 5.64 | J47: =E47*H47 -> 0 | K47: 0 | M47: 0 | N47: =J47*L47 -> 0 | O47: 5.64 | P47: =+J47-N47 -> 0 | Q47: 15228 | R47: =+J47*E$7 -> 0
C48: Other Labor | D48: 0.3 | F48: Hour | G48: 12 | I48: 3.6 | J48: =E48*H48 -> 0 | K48: 0 | M48: 0 | N48: =J48*L48 -> 0 | O48: 3.6 | P48: =+J48-N48 -> 0 | Q48: 9720 | R48: =+J48*E$7 -> 0
B50: Diesel Fuel
C51: Pickup/General Use Equipment | D51: 1 | F51: Acre | G51: 0 | I51: 0 | J51: =E51*H51 -> 0 | K51: 0 | M51: 0 | N51: =J51*L51 -> 0 | O51: 0 | P51: =+J51-N51 -> 0 | Q51: 0 | R51: =+J51*E$7 -> 0
C52: Tractors/Self-Propelled | D52: 6.11 | F52: Gallon | G52: 2.15 | I52: 13.1365 | J52: =E52*H52 -> 0 | K52: 0 | M52: 0 | N52: =J52*L52 -> 0 | O52: 13.1365 | P52: =+J52-N52 -> 0 | Q52: 35468.55 | R52: =+J52*E$7 -> 0
B54: Gasoline
C55: Pickup/General Use Equipment | D55: 1 | F55: Acre | G55: 1.737422222 | I55: 1.737422222 | J55: =E55*H55 -> 0 | K55: 0 | M55: 0 | N55: =J55*L55 -> 0 | O55: 1.737422222 | P55: =+J55-N55 -> 0 | Q55: 4691.04 | R55: =+J55*E$7 -> 0
C56: Tractors/Self-Propelled | D56: 0 | F56: Gallon | G56: 2.4 | I56: 0 | J56: =E56*H56 -> 0 | K56: 0 | M56: 0 | N56: =J56*L56 -> 0 | O56: 0 | P56: =+J56-N56 -> 0 | Q56: 0 | R56: =+J56*E$7 -> 0
B58: Repairs & Maintenance
C59: Pickup/General Use Equipment | D59: 1 | F59: Acre | G59: 0.7840740741 | I59: 0.7840740741 | J59: =E59*H59 -> 0 | K59: 0 | M59: 0 | N59: =J59*L59 -> 0 | O59: 0.7840740741 | P59: =+J59-N59 -> 0 | Q59: 2117 | R59: =+J59*E$7 -> 0
C60: Irrigation Equipment | D60: 1 | F60: Acre | G60: 0 | I60: 0 | J60: 0 | K60: 0 | M60: 0 | N60: 0 | O60: 0 | P60: 0 | Q60: 0 | R60: 0
C61: Tractors/Self-Propelled | D61: 1 | F61: Acre | G61: 11.52190164 | I61: 11.52190164 | J61: 0 | K61: 0 | M61: 0 | N61: 0 | O61: 11.52190164 | P61: 0 | Q61: 31109.13442 | R61: 0
C62: Implements | D62: 1 | F62: Acre | G62: 7.027048534 | I62: 7.027048534 | J62: 0 | K62: 0 | M62: 0 | N62: 0 | O62: 7.027048534 | P62: 0 | Q62: 18973.03104 | R62: 0
I63: 0 | J63: 0 | K63: 0 | M63: 0 | N63: 0 | O63: 0 | P63: 0 | Q63: 0 | R63: 0
I64: 0 | J64: 0 | K64: 0 | M64: 0 | N64: 0 | O64: 0 | P64: 0 | Q64: 0 | R64: 0
B65: Interest on Credit Line | G65: 0.06 | I65: 5.658276281 | J65: =+SUM(J18:J64)/2*H65 -> 0 | M65: 0 | N65: =+SUM(N18:N64)/2*L65 -> 0 | O65: 5.658276281 | P65: =+SUM(P18:P64)/2*L65 -> 0 | Q65: 15277.34596 | R65: =+J65*E$7 -> 0
A66: Total Variable Costs | I66: 227.3869993 | J66: =SUM(J19:J65) -> 0 | M66: 0 | N66: =SUM(N19:N65) -> 0 | O66: 227.3869993 | P66: =SUM(P19:P65) -> 0 | Q66: 613944.8982 | R66: =SUM(R19:R65) -> 0
A67: Planned Returns Above Variable Costs: | I67: 64.47950065 | J67: =+J14-J66 -> 0 | M67: 0 | N67: =+N14-N66 -> 0 | O67: 64.47950065 | P67: =+P14-P66 -> 0 | Q67: 174094.6518 | R67: =+R14-R66 -> 0
B68: Breakeven Price to Cover Variable Costs | G68: 0.4580546649 | H68: =IF(E10=0,"n/a",(YVarExp-(YTotExp+YTotRet-J10))/E10) -> n/a | I68: Pound
Q69: Enterprise | R69: Enterprise
A70: FIXED COSTS | D70: Quantity | E70: Quantity | F70: Units | G70: $/Unit | H70: $/Unit | I70: Total | J70: Total | K70: Share | L70: Share | M70: Landlord | N70: Landlord | O70: Tenant | P70: Tenant | Q70: Total | R70: Total
B71: Machinery Depreciation
C72: Pickup/General Use Equipment | D72: 1 | F72: Acre | G72: 1.662666667 | I72: 1.662666667 | J72: =E72*H72 -> 0 | K72: 0 | M72: 0 | N72: =J72*L72 -> 0 | O72: 1.662666667 | P72: =+J72-N72 -> 0 | Q72: 4489.2 | R72: =+J72*E$7 -> 0
C73: Tractors/Self-Propelled | D73: 1 | F73: Acre | G73: 19.46348152 | I73: 19.46348152 | J73: 0 | K73: 0 | M73: 0 | N73: =J73*L73 -> 0 | O73: 19.46348152 | P73: 0 | Q73: 52551.40011 | R73: 0
C74: Implements | D74: 1 | F74: Acre | G74: 9.645020995 | I74: 9.645020995 | J74: 0 | K74: 0 | M74: 0 | N74: =J74*L74 -> 0 | O74: 9.645020995 | P74: 0 | Q74: 26041.55669 | R74: 0
B75: Equipment Investment
C76: Pickup/General Use Equipment | D76: 9.215555556 | F76: Dollars | G76: 0.06 | I76: 0.5529333333 | J76: =E76*H76 -> 0 | K76: 0 | M76: 0 | N76: =J76*L76 -> 0 | O76: 0.5529333333 | P76: =+J76-N76 -> 0 | Q76: 1492.92 | R76: =+J76*E$7 -> 0
C77: Tractors/Self-Propelled | D77: 148.1153167 | F77: Dollars | G77: 0.06 | I77: 8.886919 | J77: 0 | K77: 0 | M77: 0 | N77: =J77*L77 -> 0 | O77: 8.886919 | P77: 0 | Q77: 23994.6813 | R77: 0
C78: Implements | D78: 47.96006383 | F78: Dollars | G78: 0.06 | I78: 2.87760383 | J78: 0 | K78: 0 | M78: 0 | N78: =J78*L78 -> 0 | O78: 2.87760383 | P78: 0 | Q78: 7769.530341 | R78: 0
B79: Salaried Labor | D79: 1 | F79: Acre | G79: 0 | I79: 0 | J79: 0 | K79: 0 | M79: 0 | N79: =J79*L79 -> 0 | O79: 0 | P79: =+J79-N79 -> 0 | Q79: 0 | R79: =+J79*E$7 -> 0
B80: Management Fee, Owner/Operator Labor | D80: 1 | F80: Acre | G80: 10 | I80: 10 | J80: 0 | K80: 0 | M80: 0 | N80: 0 | O80: 10 | P80: 0 | Q80: 27000 | R80: 0
B81: Allocated Establishment Cost | D81: 1 | F81: Acre | G81: 0 | I81: 0 | J81: 0 | K81: 0 | M81: 0 | N81: 0 | O81: 0 | P81: 0 | Q81: 0 | R81: 0
B82: Rent-Dryland Crop | D82: 1 | F82: Acre | G82: 35 | I82: 35 | J82: 0 | K82: 0 | M82: 0 | N82: 0 | O82: 35 | P82: 0 | Q82: 94500 | R82: 0
B83: Property Taxes | D83: 1 | F83: Acre | G83: 0 | I83: 0 | J83: 0 | K83: 0 | M83: 0 | N83: 0 | O83: 0 | P83: 0 | Q83: 0 | R83: 0
B84: Whole Farm Insurance | D84: 1 | F84: Acre | G84: 1 | I84: 1 | J84: 0 | K84: 0 | M84: 0 | N84: 0 | O84: 1 | P84: 0 | Q84: 2700 | R84: 0
D85: 1 | G85: 0 | I85: 0 | J85: 0 | K85: 0 | M85: 0 | N85: 0 | O85: 0 | P85: 0 | Q85: 0 | R85: 0
D86: 1 | G86: 0 | I86: 0 | J86: =E86*H86 -> 0 | K86: 0 | M86: 0 | N86: 0 | O86: 0 | P86: 0 | Q86: 0 | R86: 0
A87: Total Fixed Costs | I87: 89.08862535 | J87: =+SUM(J72:J86) -> 0 | M87: 0 | N87: =+SUM(N72:N86) -> 0 | O87: 89.08862535 | P87: =+SUM(P72:P86) -> 0 | Q87: 240539.2884 | R87: =+SUM(R72:R86) -> 0
A88: Total Specified Costs | I88: 316.4756247 | J88: =+J66+J87 -> 0 | M88: 0 | N88: =+N66+N87 -> 0 | O88: 316.4756247 | P88: =+P66+P87 -> 0 | Q88: 854484.1867 | R88: =+R66+R87 -> 0
A90: Returns Above Specified Costs | I90: -24.60912469 | J90: =+J14-J88 -> 0 | M90: 0 | N90: =+N14-N88 -> 0 | O90: -24.60912469 | P90: =+P14-P88 -> 0 | Q90: -66444.63667 | R90: =+R14-R88 -> 0
A92: Breakeven Price to Cover Total Costs | G92: 0.6956243325 | H92: =IF(E10=0,"n/a",(YTotExp-(YTotExp+YTotRet-J10))/E10) -> n/a | I92: Pound
D94: Example Breakeven Prices
B95: Example | C95: Example | D95: To Cover | G95: To Cover
B96: Yield | C96: Yield | D96: Variable | G96: Total
B97: Percent | C97: Pound | D97: Costs | G97: Costs
B98: 0.75 | C98: 281.25 | D98: 0.6107395532 | G98: 0.92749911
B99: 0.9 | C99: 337.5 | D99: 0.5089496277 | G99: 0.772915925
B100: 1 | C100: 375 | D100: 0.4580546649 | G100: 0.6956243325
B101: 1.1 | C101: 412.5 | D101: 0.4164133317 | G101: 0.6323857568
B102: 1.25 | C102: 468.75 | D102: 0.3664437319 | G102: 0.556499466
D104: Your Breakeven Prices
B105: Your | C105: Your | E105: To Cover | H105: To Cover
B106: Yield | C106: Yield | E106: Variable | H106: Total
B107: Percent | C107: Pound | E107: Costs | H107: Costs
B108: 0.75 | C108: =E10*YPER1 -> 0 | E108: =IF($E$10=0,0,(YVarExp-(YTotExp+YTotRet-J10))/($E$10*YPER1)) -> 0 | H108: =IF($E$10=0,0,(YTotExp-(YTotExp+YTotRet-J10))/($E$10*YPER1)) -> 0
B109: 0.9 | C109: =E10*YPER2 -> 0 | E109: =IF($E$10=0,0,(YVarExp-(YTotExp+YTotRet-J10))/($E$10*YPER2)) -> 0 | H109: =IF($E$10=0,0,(YTotExp-(YTotExp+YTotRet-J10))/($E$10*YPER2)) -> 0
B110: 1 | C110: =+E10 -> 0 | E110: =IF($E$10=0,0,(YVarExp-(YTotExp+YTotRet-J10))/($E$10*YPER3)) -> 0 | H110: =IF($E$10=0,0,(YTotExp-(YTotExp+YTotRet-J10))/($E$10*YPER3)) -> 0
B111: 1.1 | C111: =E10*YPER4 -> 0 | E111: =IF($E$10=0,0,(YVarExp-(YTotExp+YTotRet-J10))/($E$10*YPER4)) -> 0 | H111: =IF($E$10=0,0,(YTotExp-(YTotExp+YTotRet-J10))/($E$10*YPER4)) -> 0
B112: 1.25 | C112: =E10*YPER5 -> 0 | E112: =IF($E$10=0,0,(YVarExp-(YTotExp+YTotRet-J10))/($E$10*YPER5)) -> 0 | H112: =IF($E$10=0,0,(YTotExp-(YTotExp+YTotRet-J10))/($E$10*YPER5)) -> 0
A114: Developed by Bill Thompson, Associate Professor and Extension Economist, Texas A&M AgriLife Extension Service, 325-653-4576.
A116: Information presented is prepared solely as a general guide and not intended to recognize or predict the costs and returns from any one operation. Brand names are mentioned only as examples and imply no endorsement.

Sheet CottonDrylandXF
A1: Projections for Planning Purposes Only -- Not to be Used without Updating
A2: 2018 Estimated Costs and Returns per Acre
A3: Dryland Cotton, B2XF, Follow Wheat
A4: Enter your name for this budget in the cell above.
A5: Enter Your Values in the cells highlighed in MAROON.
E6: Your Acres | R6: Your
C7: Crop Acres | D7: 2700 | L7: Your | Q7: Enterprise | R7: Enterprise
E8: Your | H8: Your | I8: Cash | J8: Your | K8: Landlord | L8: Landlord | N8: Your | P8: Your | Q8: Total | R8: Total
A9: REVENUE | D9: Quantity | E9: Quantity | F9: Units | G9: $/Unit | H9: $/Unit | I9: Total | J9: Total | K9: Share | L9: Share | M9: Landlord | N9: Landlord | O9: Tenant | P9: Tenant | Q9: (2700 acres) | R9: ="(" & E7 & " acres)" -> ( acres)
B10: Cotton Lint | D10: 375 | F10: Pound | G10: 0.63 | I10: 236.25 | J10: =E10*H10 -> 0 | K10: 0 | M10: 0 | N10: =J10*L10 -> 0 | O10: 236.25 | P10: =+J10-N10 -> 0 | Q10: 637875 | R10: =+J10*E$7 -> 0
B11: Cotton Seed | D11: 0.2713 | F11: Ton | G11: 205 | I11: 55.6165 | J11: 0 | K11: 0 | M11: 0 | N11: 0 | O11: 55.6165 | P11: =+J11-N11 -> 0 | Q11: 150164.55 | R11: 0
D12: 0 | G12: 0 | I12: 0 | J12: 0 | K12: 0 | M12: 0 | N12: 0 | O12: 0 | P12: 0 | Q12: 0 | R12: 0
D13: 0 | G13: 0 | I13: 0 | J13: 0 | K13: 0 | M13: 0 | N13: 0 | O13: 0 | P13: 0 | Q13: 0 | R13: 0
A14: Total Revenue | I14: 291.8665 | J14: =SUM(J10:J13) -> 0 | M14: 0 | N14: =SUM(N10:N13) -> 0 | O14: 291.8665 | P14: =SUM(P10:P13) -> 0 | Q14: 788039.55 | R14: =SUM(R10:R13) -> 0
Q15: Enterprise | R15: Enterprise
A16: VARIABLE COSTS | D16: Quantity | E16: Quantity | F16: Units | G16: $/Unit | H16: $/Unit | I16: Total | J16: Total | K16: Share | L16: Share | M16: Landlord | N16: Landlord | O16: Tenant | P16: Tenant | Q16: Total | R16: Total
A17: Production Costs
B18: Custom
C19: Soil Test-Dryland | D19: 1 | F19: Each | G19: 0.25 | I19: 0.25 | J19: =E19*H19 -> 0 | K19: 0 | M19: 0 | N19: =J19*L19 -> 0 | O19: 0.25 | P19: =+J19-N19 -> 0 | Q19: 675 | R19: =+J19*E$7 -> 0
C20: Custom Strip | D20: 375 | F20: Pounds | G20: 0.09 | I20: 33.75 | J20: 0 | K20: 0 | M20: 0 | N20: 0 | O20: 33.75 | P20: 0 | Q20: 91125 | R20: 0
C21: Gin and Haul | D21: 12.5 | F21: CWT | G21: 2.5 | I21: 31.25 | J21: 0 | K21: 0 | M21: 0 | N21: 0 | O21: 31.25 | P21: 0 | Q21: 84375 | R21: 0
C22: Custom Bag/Tie | D22: 0.75 | F22: Bales | G22: 5 | I22: 3.75 | J22: 0 | K22: 0 | M22: 0 | N22: 0 | O22: 3.75 | P22: 0 | Q22: 10125 | R22: 0
B23: Fertilizer
C24: Phos (11-52-0 DRY MAT) | D24: 19 | F24: Pounds | G24: 0.442 | I24: 8.398 | J24: 0 | K24: 0 | M24: 0 | N24: 0 | O24: 8.398 | P24: 0 | Q24: 22674.6 | R24: 0
C25: Nitrogen N32-liq | D25: 26 | F25: Pounds | G25: 0.35 | I25: 9.1 | J25: 0 | K25: 0 | M25: 0 | N25: 0 | O25: 9.1 | P25: 0 | Q25: 24570 | R25: 0
B26: Herbicide
C27: Glyphosate | D27: 160 | F27: Ounce | G27: 0.13 | I27: 20.8 | J27: 0 | K27: 0 | M27: 0 | N27: 0 | O27: 20.8 | P27: 0 | Q27: 56160 | R27: 0
C28: 2-4D Amine 4 | D28: 1.25 | F28: Pint | G28: 1.625 | I28: 2.03125 | J28: 0 | K28: 0 | M28: 0 | N28: 0 | O28: 2.03125 | P28: 0 | Q28: 5484.375 | R28: 0
C29: Trifluralin | D29: 1.5 | F29: Pint | G29: 2.9375 | I29: 4.40625 | J29: 0 | K29: 0 | M29: 0 | N29: 0 | O29: 4.40625 | P29: 0 | Q29: 11896.875 | R29: 0
C30: Caparol | D30: 24 | F30: Ounce | G30: 0.22265625 | I30: 5.34375 | J30: 0 | K30: 0 | M30: 0 | N30: 0 | O30: 5.34375 | P30: 0 | Q30: 14428.125 | R30: 0
C31: Outlook | D31: 2 | F31: Ounce | G31: 1 | I31: 2 | J31: 0 | K31: 0 | M31: 0 | N31: 0 | O31: 2 | P31: 0 | Q31: 5400 | R31: 0
C32: Entend Flex Dicamba | D32: 44 | F32: Ounce | G32: 0.5156 | I32: 22.6864 | J32: 0 | K32: 0 | M32: 0 | N32: 0 | O32: 22.6864 | P32: 0 | Q32: 61253.28 | R32: 0
B33: Insecticide
C34: Macho 4F | D34: 1.5 | F34: Ounce | G34: 0.6875 | I34: 1.03125 | J34: 0 | K34: 0 | M34: 0 | N34: 0 | O34: 1.03125 | P34: 0 | Q34: 2784.375 | R34: 0
B35: Miscellaneous
C36: Dry Cotton RP 70% YE, SE, Ent | D36: 1 | F36: Acre | G36: 8.22 | I36: 8.22 | J36: 0 | K36: 0 | M36: 0 | N36: 0 | O36: 8.22 | P36: 0 | Q36: 22194 | R36: 0
C37: Boll Weevil Eradication Program | D37: 0.75 | F37: Bale | G37: 1 | I37: 0.75 | J37: 0 | K37: 0 | M37: 0 | N37: 0 | O37: 0.75 | P37: 0 | Q37: 2025 | R37: 0
B38: Seed
C39: Seed Cotton - B2XF | D39: 29 | F39: Thousand | G39: 1.74 | I39: 50.46 | J39: 0 | K39: 0 | M39: 0 | N39: 0 | O39: 50.46 | P39: 0 | Q39: 136242 | R39: 0
B40: Other Chemicals
C41: Paraquat, 3lb (Firestorm) | D41: 28 | F41: Ounce | G41: 0.18 | I41: 5.04 | J41: 0 | K41: 0 | M41: 0 | N41: 0 | O41: 5.04 | P41: 0 | Q41: 13608 | R41: 0
C42: Adios | D42: 4 | F42: Ounce | G42: 0.69 | I42: 2.76 | J42: 0 | K42: 0 | M42: 0 | N42: 0 | O42: 2.76 | P42: 0 | Q42: 7452 | R42: 0
C43: Ethephon 6 | D43: 1 | F43: Pint | G43: 2.38 | I43: 2.38 | J43: 0 | K43: 0 | M43: 0 | N43: 0 | O43: 2.38 | P43: 0 | Q43: 6426 | R43: 0
D44: 0 | G44: 0 | I44: 0 | J44: 0 | K44: 0 | M44: 0 | N44: 0 | O44: 0 | P44: 0 | Q44: 0 | R44: 0
D45: 0 | G45: 0 | I45: 0 | J45: 0 | K45: 0 | M45: 0 | N45: 0 | O45: 0 | P45: 0 | Q45: 0 | R45: 0
D46: 0 | G46: 0 | I46: 0 | J46: =E46*H46 -> 0 | K46: 0 | M46: 0 | N46: =J46*L46 -> 0 | O46: 0 | P46: =+J46-N46 -> 0 | Q46: 0 | R46: =+J46*E$7 -> 0
B47: Machinery Labor
C48: Tractors/Self-Propelled | D48: 0.47 | F48: Hour | G48: 12 | I48: 5.64 | J48: =E48*H48 -> 0 | K48: 0 | M48: 0 | N48: =J48*L48 -> 0 | O48: 5.64 | P48: =+J48-N48 -> 0 | Q48: 15228 | R48: =+J48*E$7 -> 0
C49: Other Labor | D49: 0.3 | F49: Hour | G49: 12 | I49: 3.6 | J49: =E49*H49 -> 0 | K49: 0 | M49: 0 | N49: =J49*L49 -> 0 | O49: 3.6 | P49: =+J49-N49 -> 0 | Q49: 9720 | R49: =+J49*E$7 -> 0
B51: Diesel Fuel
C52: Pickup/General Use Equipment | D52: 1 | F52: Acre | G52: 0 | I52: 0 | J52: =E52*H52 -> 0 | K52: 0 | M52: 0 | N52: =J52*L52 -> 0 | O52: 0 | P52: =+J52-N52 -> 0 | Q52: 0 | R52: =+J52*E$7 -> 0
C53: Tractors/Self-Propelled | D53: 6.11 | F53: Gallon | G53: 2.15 | I53: 13.1365 | J53: =E53*H53 -> 0 | K53: 0 | M53: 0 | N53: =J53*L53 -> 0 | O53: 13.1365 | P53: =+J53-N53 -> 0 | Q53: 35468.55 | R53: =+J53*E$7 -> 0
B55: Gasoline
C56: Pickup/General Use Equipment | D56: 1 | F56: Acre | G56: 1.737422222 | I56: 1.737422222 | J56: =E56*H56 -> 0 | K56: 0 | M56: 0 | N56: =J56*L56 -> 0 | O56: 1.737422222 | P56: =+J56-N56 -> 0 | Q56: 4691.04 | R56: =+J56*E$7 -> 0
C57: Tractors/Self-Propelled | D57: 0 | F57: Gallon | G57: 2.4 | I57: 0 | J57: =E57*H57 -> 0 | K57: 0 | M57: 0 | N57: =J57*L57 -> 0 | O57: 0 | P57: =+J57-N57 -> 0 | Q57: 0 | R57: =+J57*E$7 -> 0
B59: Repairs & Maintenance
C60: Pickup/General Use Equipment | D60: 1 | F60: Acre | G60: 0.7840740741 | I60: 0.7840740741 | J60: =E60*H60 -> 0 | K60: 0 | M60: 0 | N60: =J60*L60 -> 0 | O60: 0.7840740741 | P60: =+J60-N60 -> 0 | Q60: 2117 | R60: =+J60*E$7 -> 0
C61: Irrigation Equipment | D61: 1 | F61: Acre | G61: 0 | I61: 0 | J61: 0 | K61: 0 | M61: 0 | N61: 0 | O61: 0 | P61: 0 | Q61: 0 | R61: 0
C62: Tractors/Self-Propelled | D62: 1 | F62: Acre | G62: 11.52190164 | I62: 11.52190164 | J62: 0 | K62: 0 | M62: 0 | N62: 0 | O62: 11.52190164 | P62: 0 | Q62: 31109.13442 | R62: 0
C63: Implements | D63: 1 | F63: Acre | G63: 7.027048534 | I63: 7.027048534 | J63: 0 | K63: 0 | M63: 0 | N63: 0 | O63: 7.027048534 | P63: 0 | Q63: 18973.03104 | R63: 0
I64: 0 | J64: 0 | K64: 0 | M64: 0 | N64: 0 | O64: 0 | P64: 0 | Q64: 0 | R64: 0
I65: 0 | J65: 0 | K65: 0 | M65: 0 | N65: 0 | O65: 0 | P65: 0 | Q65: 0 | R65: 0
B66: Interest on Credit Line | G66: 0.06 | I66: 6.523107533 | J66: =+SUM(J18:J65)/2*H66 -> 0 | M66: 0 | N66: =+SUM(N18:N65)/2*L66 -> 0 | O66: 6.523107533 | P66: =+SUM(P18:P65)/2*L66 -> 0 | Q66: 17612.39034 | R66: =+J66*E$7 -> 0
A67: Total Variable Costs | I67: 264.376954 | J67: =SUM(J19:J66) -> 0 | M67: 0 | N67: =SUM(N19:N66) -> 0 | O67: 264.376954 | P67: =SUM(P19:P66) -> 0 | Q67: 713817.7758 | R67: =SUM(R19:R66) -> 0
A68: Planned Returns Above Variable Costs: | I68: 27.489546 | J68: =+J14-J67 -> 0 | M68: 0 | N68: =+N14-N67 -> 0 | O68: 27.489546 | P68: =+P14-P67 -> 0 | Q68: 74221.77419 | R68: =+R14-R67 -> 0
B69: Breakeven Price to Cover Variable Costs | G69: 0.556694544 | H69: =IF(E10=0,"n/a",(YVarExp-(YTotExp+YTotRet-J10))/E10) -> n/a | I69: Pound
Q70: Enterprise | R70: Enterprise
A71: FIXED COSTS | D71: Quantity | E71: Quantity | F71: Units | G71: $/Unit | H71: $/Unit | I71: Total | J71: Total | K71: Share | L71: Share | M71: Landlord | N71: Landlord | O71: Tenant | P71: Tenant | Q71: Total | R71: Total
B72: Machinery Depreciation
C73: Pickup/General Use Equipment | D73: 1 | F73: Acre | G73: 1.662666667 | I73: 1.662666667 | J73: =E73*H73 -> 0 | K73: 0 | M73: 0 | N73: =J73*L73 -> 0 | O73: 1.662666667 | P73: =+J73-N73 -> 0 | Q73: 4489.2 | R73: =+J73*E$7 -> 0
C74: Tractors/Self-Propelled | D74: 1 | F74: Acre | G74: 19.46348152 | I74: 19.46348152 | J74: 0 | K74: 0 | M74: 0 | N74: =J74*L74 -> 0 | O74: 19.46348152 | P74: 0 | Q74: 52551.40011 | R74: 0
C75: Implements | D75: 1 | F75: Acre | G75: 9.645020995 | I75: 9.645020995 | J75: 0 | K75: 0 | M75: 0 | N75: =J75*L75 -> 0 | O75: 9.645020995 | P75: 0 | Q75: 26041.55669 | R75: 0
B76: Equipment Investment
C77: Pickup/General Use Equipment | D77: 9.215555556 | F77: Dollars | G77: 0.06 | I77: 0.5529333333 | J77: =E77*H77 -> 0 | K77: 0 | M77: 0 | N77: =J77*L77 -> 0 | O77: 0.5529333333 | P77: =+J77-N77 -> 0 | Q77: 1492.92 | R77: =+J77*E$7 -> 0
C78: Tractors/Self-Propelled | D78: 148.1153167 | F78: Dollars | G78: 0.06 | I78: 8.886919 | J78: 0 | K78: 0 | M78: 0 | N78: =J78*L78 -> 0 | O78: 8.886919 | P78: 0 | Q78: 23994.6813 | R78: 0
C79: Implements | D79: 47.96006383 | F79: Dollars | G79: 0.06 | I79: 2.87760383 | J79: 0 | K79: 0 | M79: 0 | N79: =J79*L79 -> 0 | O79: 2.87760383 | P79: 0 | Q79: 7769.530341 | R79: 0
B80: Salaried Labor | D80: 1 | F80: Acre | G80: 0 | I80: 0 | J80: 0 | K80: 0 | M80: 0 | N80: =J80*L80 -> 0 | O80: 0 | P80: =+J80-N80 -> 0 | Q80: 0 | R80: =+J80*E$7 -> 0
B81: Management Fee, Owner/Operator Labor | D81: 1 | F81: Acre | G81: 10 | I81: 10 | J81: 0 | K81: 0 | M81: 0 | N81: 0 | O81: 10 | P81: 0 | Q81: 27000 | R81: 0
B82: Allocated Establishment Cost | D82: 1 | F82: Acre | G82: 0 | I82: 0 | J82: 0 | K82: 0 | M82: 0 | N82: 0 | O82: 0 | P82: 0 | Q82: 0 | R82: 0
B83: Rent-Dryland Crop | D83: 1 | F83: Acre | G83: 35 | I83: 35 | J83: 0 | K83: 0 | M83: 0 | N83: 0 | O83: 35 | P83: 0 | Q83: 94500 | R83: 0
B84: Property Taxes | D84: 1 | F84: Acre | G84: 0 | I84: 0 | J84: 0 | K84: 0 | M84: 0 | N84: 0 | O84: 0 | P84: 0 | Q84: 0 | R84: 0
B85: Whole Farm Insurance | D85: 1 | F85: Acre | G85: 1 | I85: 1 | J85: 0 | K85: 0 | M85: 0 | N85: 0 | O85: 1 | P85: 0 | Q85: 2700 | R85: 0
D86: 1 | G86: 0 | I86: 0 | J86: 0 | K86: 0 | M86: 0 | N86: 0 | O86: 0 | P86: 0 | Q86: 0 | R86: 0
D87: 1 | G87: 0 | I87: 0 | J87: =E87*H87 -> 0 | K87: 0 | M87: 0 | N87: 0 | O87: 0 | P87: 0 | Q87: 0 | R87: 0
A88: Total Fixed Costs | I88: 89.08862535 | J88: =+SUM(J73:J87) -> 0 | M88: 0 | N88: =+SUM(N73:N87) -> 0 | O88: 89.08862535 | P88: =+SUM(P73:P87) -> 0 | Q88: 240539.2884 | R88: =+SUM(R73:R87) -> 0
A89: Total Specified Costs | I89: 353.4655794 | J89: =+J67+J88 -> 0 | M89: 0 | N89: =+N67+N88 -> 0 | O89: 353.4655794 | P89: =+P67+P88 -> 0 | Q89: 954357.0642 | R89: =+R67+R88 -> 0
A91: Returns Above Specified Costs | I91: -61.59907935 | J91: =+J14-J89 -> 0 | M91: 0 | N91: =+N14-N89 -> 0 | O91: -61.59907935 | P91: =+P14-P89 -> 0 | Q91: -166317.5142 | R91: =+R14-R89 -> 0
A93: Breakeven Price to Cover Total Costs | G93: 0.7942642116 | H93: =IF(E10=0,"n/a",(YTotExp-(YTotExp+YTotRet-J10))/E10) -> n/a | I93: Pound
D95: Example Breakeven Prices
B96: Example | C96: Example | D96: To Cover | G96: To Cover
B97: Yield | C97: Yield | D97: Variable | G97: Total
B98: Percent | C98: Pound | D98: Costs | G98: Costs
B99: 0.75 | C99: 281.25 | D99: 0.742259392 | G99: 1.059018949
B100: 0.9 | C100: 337.5 | D100: 0.6185494933 | G100: 0.8825157907
B101: 1 | C101: 375 | D101: 0.556694544 | G101: 0.7942642116
B102: 1.1 | C102: 412.5 | D102: 0.5060859491 | G102: 0.7220583742
B103: 1.25 | C103: 468.75 | D103: 0.4453556352 | G103: 0.6354113693
D105: Your Breakeven Prices
B106: Your | C106: Your | E106: To Cover | H106: To Cover
B107: Yield | C107: Yield | E107: Variable | H107: Total
B108: Percent | C108: Pound | E108: Costs | H108: Costs
B109: 0.75 | C109: =E10*YPER1 -> 0 | E109: =IF($E$10=0,0,(YVarExp-(YTotExp+YTotRet-J10))/($E$10*YPER1)) -> 0 | H109: =IF($E$10=0,0,(YTotExp-(YTotExp+YTotRet-J10))/($E$10*YPER1)) -> 0
B110: 0.9 | C110: =E10*YPER2 -> 0 | E110: =IF($E$10=0,0,(YVarExp-(YTotExp+YTotRet-J10))/($E$10*YPER2)) -> 0 | H110: =IF($E$10=0,0,(YTotExp-(YTotExp+YTotRet-J10))/($E$10*YPER2)) -> 0
B111: 1 | C111: =+E10 -> 0 | E111: =IF($E$10=0,0,(YVarExp-(YTotExp+YTotRet-J10))/($E$10*YPER3)) -> 0 | H111: =IF($E$10=0,0,(YTotExp-(YTotExp+YTotRet-J10))/($E$10*YPER3)) -> 0
B112: 1.1 | C112: =E10*YPER4 -> 0 | E112: =IF($E$10=0,0,(YVarExp-(YTotExp+YTotRet-J10))/($E$10*YPER4)) -> 0 | H112: =IF($E$10=0,0,(YTotExp-(YTotExp+YTotRet-J10))/($E$10*YPER4)) -> 0
B113: 1.25 | C113: =E10*YPER5 -> 0 | E113: =IF($E$10=0,0,(YVarExp-(YTotExp+YTotRet-J10))/($E$10*YPER5)) -> 0 | H113: =IF($E$10=0,0,(YTotExp-(YTotExp+YTotRet-J10))/($E$10*YPER5)) -> 0
A115: Developed by Bill Thompson, Associate Professor and Extension Economist, Texas A&M AgriLife Extension Service, 325-653-4576.
A117: Information presented is prepared solely as a general guide and not intended to recognize or predict the costs and returns from any one operation. Brand names are mentioned only as examples and imply no endorsement.

Sheet CoastalEstablishDryland
A1: Projections for Planning Purposes Only -- Not to be Used without Updating
A2: 2018 Estimated Costs and Returns per Acre
A3: Dryland Bermudagrass Establishment
A4: Enter your name for this budget in the cell above.
A5: Enter Your Values in the cells highlighed in MAROON.
E6: Your Acres | R6: Your
C7: Crop Acres | D7: 100 | L7: Your | Q7: Enterprise | R7: Enterprise
E8: Your | H8: Your | I8: Cash | J8: Your | K8: Landlord | L8: Landlord | N8: Your | P8: Your | Q8: Total | R8: Total
A9: REVENUE | D9: Quantity | E9: Quantity | F9: Units | G9: $/Unit | H9: $/Unit | I9: Total | J9: Total | K9: Share | L9: Share | M9: Landlord | N9: Landlord | O9: Tenant | P9: Tenant | Q9: (100 acres) | R9: ="(" & E7 & " acres)" -> ( acres)
B10: Grazing | D10: 50 | F10: Pound | G10: 0.4 | I10: 20 | J10: =E10*H10 -> 0 | K10: 0 | M10: 0 | N10: =J10*L10 -> 0 | O10: 20 | P10: =+J10-N10 -> 0 | Q10: 2000 | R10: =+J10*E$7 -> 0
D11: 0 | G11: 0 | I11: 0 | J11: 0 | K11: 0 | M11: 0 | N11: 0 | O11: 0 | P11: =+J11-N11 -> 0 | Q11: 0 | R11: 0
D12: 0 | G12: 0 | I12: 0 | J12: 0 | K12: 0 | M12: 0 | N12: 0 | O12: 0 | P12: 0 | Q12: 0 | R12: 0
A13: Total Revenue | I13: 20 | J13: =SUM(J10:J12) -> 0 | M13: 0 | N13: =SUM(N10:N12) -> 0 | O13: 20 | P13: =SUM(P10:P12) -> 0 | Q13: 2000 | R13: =SUM(R10:R12) -> 0
Q14: Enterprise | R14: Enterprise
A15: VARIABLE COSTS | D15: Quantity | E15: Quantity | F15: Units | G15: $/Unit | H15: $/Unit | I15: Total | J15: Total | K15: Share | L15: Share | M15: Landlord | N15: Landlord | O15: Tenant | P15: Tenant | Q15: Total | R15: Total
A16: Production Costs
B17: Custom
C18: Soil Test-Dryland | D18: 1 | F18: Each | G18: 0.25 | I18: 0.25 | J18: =E18*H18 -> 0 | K18: 0 | M18: 0 | N18: =J18*L18 -> 0 | O18: 0.25 | P18: =+J18-N18 -> 0 | Q18: 25 | R18: =+J18*E$7 -> 0
B19: Fertilizer
C20: 11-37-0 | D20: 200 | F20: Pounds | G20: 0.24 | I20: 48 | J20: 0 | K20: 0 | M20: 0 | N20: 0 | O20: 48 | P20: 0 | Q20: 4800 | R20: 0
C21: Nitrogen N32-liq | D21: 125 | F21: Pounds | G21: 0.35 | I21: 43.75 | J21: 0 | K21: 0 | M21: 0 | N21: 0 | O21: 43.75 | P21: 0 | Q21: 4375 | R21: 0
B22: Herbicide
C23: Herbicide-Banvell/24D | D23: 1 | F23: Pint | G23: 3.25 | I23: 3.25 | J23: 0 | K23: 0 | M23: 0 | N23: 0 | O23: 3.25 | P23: 0 | Q23: 325 | R23: 0
B24: Miscellaneous
C25: Rainfall Insurance | D25: 1 | F25: Acre | G25: 23.26 | I25: 23.26 | J25: 0 | K25: 0 | M25: 0 | N25: 0 | O25: 23.26 | P25: 0 | Q25: 2326 | R25: 0
B26: Seed
C27: Sprigs and Sprigging | D27: 1 | F27: Acre | G27: 125 | I27: 125 | J27: 0 | K27: 0 | M27: 0 | N27: 0 | O27: 125 | P27: 0 | Q27: 12500 | R27: 0
D28: 0 | G28: 0 | I28: 0 | J28: 0 | K28: 0 | M28: 0 | N28: 0 | O28: 0 | P28: 0 | Q28: 0 | R28: 0
D29: 0 | G29: 0 | I29: 0 | J29: 0 | K29: 0 | M29: 0 | N29: 0 | O29: 0 | P29: 0 | Q29: 0 | R29: 0
D30: 0 | G30: 0 | I30: 0 | J30: =E30*H30 -> 0 | K30: 0 | M30: 0 | N30: =J30*L30 -> 0 | O30: 0 | P30: =+J30-N30 -> 0 | Q30: 0 | R30: =+J30*E$7 -> 0
B31: Machinery Labor
C32: Tractors/Self-Propelled | D32: 0.51 | F32: Hour | G32: 12 | I32: 6.12 | J32: =E32*H32 -> 0 | K32: 0 | M32: 0 | N32: =J32*L32 -> 0 | O32: 6.12 | P32: =+J32-N32 -> 0 | Q32: 612 | R32: =+J32*E$7 -> 0
C33: Other Labor | D33: 0.07 | F33: Hour | G33: 12 | I33: 0.84 | J33: =E33*H33 -> 0 | K33: 0 | M33: 0 | N33: =J33*L33 -> 0 | O33: 0.84 | P33: =+J33-N33 -> 0 | Q33: 84 | R33: =+J33*E$7 -> 0
B35: Diesel Fuel
C36: Pickup/General Use Equipment | D36: 1 | F36: Acre | G36: 0 | I36: 0 | J36: =E36*H36 -> 0 | K36: 0 | M36: 0 | N36: =J36*L36 -> 0 | O36: 0 | P36: =+J36-N36 -> 0 | Q36: 0 | R36: =+J36*E$7 -> 0
C37: Tractors/Self-Propelled | D37: 3.8 | F37: Gallon | G37: 2.15 | I37: 8.17 | J37: =E37*H37 -> 0 | K37: 0 | M37: 0 | N37: =J37*L37 -> 0 | O37: 8.17 | P37: =+J37-N37 -> 0 | Q37: 817 | R37: =+J37*E$7 -> 0
B39: Gasoline
C40: Pickup/General Use Equipment | D40: 1 | F40: Acre | G40: 4.044 | I40: 4.044 | J40: =E40*H40 -> 0 | K40: 0 | M40: 0 | N40: =J40*L40 -> 0 | O40: 4.044 | P40: =+J40-N40 -> 0 | Q40: 404.4 | R40: =+J40*E$7 -> 0
C41: Tractors/Self-Propelled | D41: 0 | F41: Gallon | G41: 2.4 | I41: 0 | J41: =E41*H41 -> 0 | K41: 0 | M41: 0 | N41: =J41*L41 -> 0 | O41: 0 | P41: =+J41-N41 -> 0 | Q41: 0 | R41: =+J41*E$7 -> 0
B43: Repairs & Maintenance
C44: Pickup/General Use Equipment | D44: 1 | F44: Acre | G44: 1.825 | I44: 1.825 | J44: =E44*H44 -> 0 | K44: 0 | M44: 0 | N44: =J44*L44 -> 0 | O44: 1.825 | P44: =+J44-N44 -> 0 | Q44: 182.5 | R44: =+J44*E$7 -> 0
C45: Irrigation Equipment | D45: 1 | F45: Acre | G45: 0 | I45: 0 | J45: 0 | K45: 0 | M45: 0 | N45: 0 | O45: 0 | P45: 0 | Q45: 0 | R45: 0
C46: Tractors/Self-Propelled | D46: 1 | F46: Acre | G46: 8.086641289 | I46: 8.086641289 | J46: 0 | K46: 0 | M46: 0 | N46: 0 | O46: 8.086641289 | P46: 0 | Q46: 808.6641289 | R46: 0
C47: Implements | D47: 1 | F47: Acre | G47: 6.602001648 | I47: 6.602001648 | J47: 0 | K47: 0 | M47: 0 | N47: 0 | O47: 6.602001648 | P47: 0 | Q47: 660.2001648 | R47: 0
I48: 0 | J48: 0 | K48: 0 | M48: 0 | N48: 0 | O48: 0 | P48: 0 | Q48: 0 | R48: 0
I49: 0 | J49: 0 | K49: 0 | M49: 0 | N49: 0 | O49: 0 | P49: 0 | Q49: 0 | R49: 0
B50: Interest on Credit Line | G50: 0.06 | I50: 6.774915963 | J50: =+SUM(J17:J49)/2*H50 -> 0 | M50: 0 | N50: =+SUM(N17:N49)/2*L50 -> 0 | O50: 6.774915963 | P50: =+SUM(P17:P49)/2*L50 -> 0 | Q50: 677.4915963 | R50: =+J50*E$7 -> 0
A51: Total Variable Costs | I51: 285.9725589 | J51: =SUM(J18:J50) -> 0 | M51: 0 | N51: =SUM(N18:N50) -> 0 | O51: 285.9725589 | P51: =SUM(P18:P50) -> 0 | Q51: 28597.25589 | R51: =SUM(R18:R50) -> 0
A52: Planned Returns Above Variable Costs: | I52: -265.9725589 | J52: =+J13-J51 -> 0 | M52: 0 | N52: =+N13-N51 -> 0 | O52: -265.9725589 | P52: =+P13-P51 -> 0 | Q52: -26597.25589 | R52: =+R13-R51 -> 0
B53: Breakeven Price to Cover Variable Costs | G53: 5.719451178 | H53: =IF(E10=0,"n/a",(YVarExp-(YTotExp+YTotRet-J10))/E10) -> n/a | I53: Pound
Q54: Enterprise | R54: Enterprise
A55: FIXED COSTS | D55: Quantity | E55: Quantity | F55: Units | G55: $/Unit | H55: $/Unit | I55: Total | J55: Total | K55: Share | L55: Share | M55: Landlord | N55: Landlord | O55: Tenant | P55: Tenant | Q55: Total | R55: Total
B56: Machinery Depreciation
C57: Pickup/General Use Equipment | D57: 1 | F57: Acre | G57: 3.87 | I57: 3.87 | J57: =E57*H57 -> 0 | K57: 0 | M57: 0 | N57: =J57*L57 -> 0 | O57: 3.87 | P57: =+J57-N57 -> 0 | Q57: 387 | R57: =+J57*E$7 -> 0
C58: Tractors/Self-Propelled | D58: 1 | F58: Acre | G58: 8.834941501 | I58: 8.834941501 | J58: 0 | K58: 0 | M58: 0 | N58: =J58*L58 -> 0 | O58: 8.834941501 | P58: 0 | Q58: 883.4941501 | R58: 0
C59: Implements | D59: 1 | F59: Acre | G59: 9.289286702 | I59: 9.289286702 | J59: 0 | K59: 0 | M59: 0 | N59: =J59*L59 -> 0 | O59: 9.289286702 | P59: 0 | Q59: 928.9286702 | R59: 0
B60: Equipment Investment
C61: Pickup/General Use Equipment | D61: 21.45 | F61: Dollars | G61: 0.06 | I61: 1.287 | J61: =E61*H61 -> 0 | K61: 0 | M61: 0 | N61: =J61*L61 -> 0 | O61: 1.287 | P61: =+J61-N61 -> 0 | Q61: 128.7 | R61: =+J61*E$7 -> 0
C62: Tractors/Self-Propelled | D62: 68.4368795 | F62: Dollars | G62: 0.06 | I62: 4.10621277 | J62: 0 | K62: 0 | M62: 0 | N62: =J62*L62 -> 0 | O62: 4.10621277 | P62: 0 | Q62: 410.621277 | R62: 0
C63: Implements | D63: 41.6187147 | F63: Dollars | G63: 0.06 | I63: 2.497122882 | J63: 0 | K63: 0 | M63: 0 | N63: =J63*L63 -> 0 | O63: 2.497122882 | P63: 0 | Q63: 249.7122882 | R63: 0
B64: Salaried Labor | D64: 1 | F64: Acre | G64: 0 | I64: 0 | J64: 0 | K64: 0 | M64: 0 | N64: =J64*L64 -> 0 | O64: 0 | P64: =+J64-N64 -> 0 | Q64: 0 | R64: =+J64*E$7 -> 0
B65: Management Fee, Owner/Operator Labor | D65: 1 | F65: Acre | G65: 0 | I65: 0 | J65: 0 | K65: 0 | M65: 0 | N65: 0 | O65: 0 | P65: 0 | Q65: 0 | R65: 0
B66: Allocated Establishment Cost | D66: 1 | F66: Acre | G66: 0 | I66: 0 | J66: 0 | K66: 0 | M66: 0 | N66: 0 | O66: 0 | P66: 0 | Q66: 0 | R66: 0
B67: Rent-Dryland Crop | D67: 1 | F67: Acre | G67: 35 | I67: 35 | J67: 0 | K67: 0 | M67: 0 | N67: 0 | O67: 35 | P67: 0 | Q67: 3500 | R67: 0
B68: Property Taxes | D68: 1 | F68: Acre | G68: 0 | I68: 0 | J68: 0 | K68: 0 | M68: 0 | N68: 0 | O68: 0 | P68: 0 | Q68: 0 | R68: 0
B69: Whole Farm Insurance | D69: 1 | F69: Acre | G69: 0 | I69: 0 | J69: 0 | K69: 0 | M69: 0 | N69: 0 | O69: 0 | P69: 0 | Q69: 0 | R69: 0
D70: 1 | G70: 0 | I70: 0 | J70: 0 | K70: 0 | M70: 0 | N70: 0 | O70: 0 | P70: 0 | Q70: 0 | R70: 0
D71: 1 | G71: 0 | I71: 0 | J71: =E71*H71 -> 0 | K71: 0 | M71: 0 | N71: 0 | O71: 0 | P71: 0 | Q71: 0 | R71: 0
A72: Total Fixed Costs | I72: 64.88456386 | J72: =+SUM(J57:J71) -> 0 | M72: 0 | N72: =+SUM(N57:N71) -> 0 | O72: 64.88456386 | P72: =+SUM(P57:P71) -> 0 | Q72: 6488.456386 | R72: =+SUM(R57:R71) -> 0
A73: Total Specified Costs | I73: 350.8571228 | J73: =+J51+J72 -> 0 | M73: 0 | N73: =+N51+N72 -> 0 | O73: 350.8571228 | P73: =+P51+P72 -> 0 | Q73: 35085.71228 | R73: =+R51+R72 -> 0
A75: Returns Above Specified Costs | I75: -330.8571228 | J75: =+J13-J73 -> 0 | M75: 0 | N75: =+N13-N73 -> 0 | O75: -330.8571228 | P75: =+P13-P73 -> 0 | Q75: -33085.71228 | R75: =+R13-R73 -> 0
A77: Breakeven Price to Cover Total Costs | G77: 7.017142455 | H77: =IF(E10=0,"n/a",(YTotExp-(YTotExp+YTotRet-J10))/E10) -> n/a | I77: Pound
D79: Example Breakeven Prices
B80: Example | C80: Example | D80: To Cover | G80: To Cover
B81: Yield | C81: Yield | D81: Variable | G81: Total
B82: Percent | C82: Pound | D82: Costs | G82: Costs
B83: 0.75 | C83: 37.5 | D83: 7.625934904 | G83: 9.35618994
B84: 0.9 | C84: 45 | D84: 6.354945753 | G84: 7.79682495
B85: 1 | C85: 50 | D85: 5.719451178 | G85: 7.017142455
B86: 1.1 | C86: 55 | D86: 5.199501071 | G86: 6.379220414
B87: 1.25 | C87: 62.5 | D87: 4.575560942 | G87: 5.613713964
D89: Your Breakeven Prices
B90: Your | C90: Your | E90: To Cover | H90: To Cover
B91: Yield | C91: Yield | E91: Variable | H91: Total
B92: Percent | C92: Pound | E92: Costs | H92: Costs
B93: 0.75 | C93: =E10*YPER1 -> 0 | E93: =IF($E$10=0,0,(YVarExp-(YTotExp+YTotRet-J10))/($E$10*YPER1)) -> 0 | H93: =IF($E$10=0,0,(YTotExp-(YTotExp+YTotRet-J10))/($E$10*YPER1)) -> 0
B94: 0.9 | C94: =E10*YPER2 -> 0 | E94: =IF($E$10=0,0,(YVarExp-(YTotExp+YTotRet-J10))/($E$10*YPER2)) -> 0 | H94: =IF($E$10=0,0,(YTotExp-(YTotExp+YTotRet-J10))/($E$10*YPER2)) -> 0
B95: 1 | C95: =+E10 -> 0 | E95: =IF($E$10=0,0,(YVarExp-(YTotExp+YTotRet-J10))/($E$10*YPER3)) -> 0 | H95: =IF($E$10=0,0,(YTotExp-(YTotExp+YTotRet-J10))/($E$10*YPER3)) -> 0
B96: 1.1 | C96: =E10*YPER4 -> 0 | E96: =IF($E$10=0,0,(YVarExp-(YTotExp+YTotRet-J10))/($E$10*YPER4)) -> 0 | H96: =IF($E$10=0,0,(YTotExp-(YTotExp+YTotRet-J10))/($E$10*YPER4)) -> 0
B97: 1.25 | C97: =E10*YPER5 -> 0 | E97: =IF($E$10=0,0,(YVarExp-(YTotExp+YTotRet-J10))/($E$10*YPER5)) -> 0 | H97: =IF($E$10=0,0,(YTotExp-(YTotExp+YTotRet-J10))/($E$10*YPER5)) -> 0
A99: Developed by Bill Thompson, Associate Professor and Extension Economist, Texas A&M AgriLife Extension Service, 325-653-4576.
A101: Information presented is prepared solely as a general guide and not intended to recognize or predict the costs and returns from any one operation. Brand names are mentioned only as examples and imply no endorsement.

Sheet CoastalHayDryland
A1: Projections for Planning Purposes Only -- Not to be Used without Updating
A2: 2018 Estimated Costs and Returns per Acre
A3: Dryland Bermudagrass Hay
A4: Enter your name for this budget in the cell above.
A5: Enter Your Values in the cells highlighed in MAROON.
E6: Your Acres | R6: Your
C7: Crop Acres | D7: 100 | L7: Your | Q7: Enterprise | R7: Enterprise
E8: Your | H8: Your | I8: Cash | J8: Your | K8: Landlord | L8: Landlord | N8: Your | P8: Your | Q8: Total | R8: Total
A9: REVENUE | D9: Quantity | E9: Quantity | F9: Units | G9: $/Unit | H9: $/Unit | I9: Total | J9: Total | K9: Share | L9: Share | M9: Landlord | N9: Landlord | O9: Tenant | P9: Tenant | Q9: (100 acres) | R9: ="(" & E7 & " acres)" -> ( acres)
B10: Hay, 1200# BRB | D10: 3.33 | F10: Ton | G10: 115 | I10: 382.95 | J10: =E10*H10 -> 0 | K10: 0 | M10: 0 | N10: =J10*L10 -> 0 | O10: 382.95 | P10: =+J10-N10 -> 0 | Q10: 38295 | R10: =+J10*E$7 -> 0
D11: 0 | G11: 0 | I11: 0 | J11: 0 | K11: 0 | M11: 0 | N11: 0 | O11: 0 | P11: =+J11-N11 -> 0 | Q11: 0 | R11: 0
D12: 0 | G12: 0 | I12: 0 | J12: 0 | K12: 0 | M12: 0 | N12: 0 | O12: 0 | P12: 0 | Q12: 0 | R12: 0
A13: Total Revenue | I13: 382.95 | J13: =SUM(J10:J12) -> 0 | M13: 0 | N13: =SUM(N10:N12) -> 0 | O13: 382.95 | P13: =SUM(P10:P12) -> 0 | Q13: 38295 | R13: =SUM(R10:R12) -> 0
Q14: Enterprise | R14: Enterprise
A15: VARIABLE COSTS | D15: Quantity | E15: Quantity | F15: Units | G15: $/Unit | H15: $/Unit | I15: Total | J15: Total | K15: Share | L15: Share | M15: Landlord | N15: Landlord | O15: Tenant | P15: Tenant | Q15: Total | R15: Total
A16: Production Costs
B17: Fertilizer
C18: Nitrogen Dry-Urea | D18: 51 | F18: Pounds | G18: 0.37 | I18: 18.87 | J18: =E18*H18 -> 0 | K18: 0 | M18: 0 | N18: =J18*L18 -> 0 | O18: 18.87 | P18: =+J18-N18 -> 0 | Q18: 1887 | R18: =+J18*E$7 -> 0
C19: Potassium | D19: 27 | F19: Pounds | G19: 0.4423076923 | I19: 11.94230769 | J19: 0 | K19: 0 | M19: 0 | N19: 0 | O19: 11.94230769 | P19: 0 | Q19: 1194.230769 | R19: 0
C20: Nitrogen N32-liq | D20: 64 | F20: Pounds | G20: 0.35 | I20: 22.4 | J20: 0 | K20: 0 | M20: 0 | N20: 0 | O20: 22.4 | P20: 0 | Q20: 2240 | R20: 0
C21: Phos (11-52-0 DRY MAT) | D21: 12 | F21: Pounds | G21: 0.442 | I21: 5.304 | J21: 0 | K21: 0 | M21: 0 | N21: 0 | O21: 5.304 | P21: 0 | Q21: 530.4 | R21: 0
B22: Custom
C23: Soil Test-Dryland | D23: 1 | F23: Each | G23: 0.25 | I23: 0.25 | J23: 0 | K23: 0 | M23: 0 | N23: 0 | O23: 0.25 | P23: 0 | Q23: 25 | R23: 0
C24: Swath, Rake and Bale | D24: 3.3 | F24: Bale | G24: 27.57 | I24: 90.981 | J24: 0 | K24: 0 | M24: 0 | N24: 0 | O24: 90.981 | P24: 0 | Q24: 9098.1 | R24: 0
B25: Miscellaneous
C26: Rainfall Insurance | D26: 1 | F26: Acre | G26: 23.26 | I26: 23.26 | J26: 0 | K26: 0 | M26: 0 | N26: 0 | O26: 23.26 | P26: 0 | Q26: 2326 | R26: 0
B27: Herbicide
C28: 2-4D Amine 4 | D28: 4 | F28: Pint | G28: 1.625 | I28: 6.5 | J28: 0 | K28: 0 | M28: 0 | N28: 0 | O28: 6.5 | P28: 0 | Q28: 650 | R28: 0
B29: Insecticide
C30: Dimilin 2L | D30: 1.5 | F30: Ounce | G30: 2.0234375 | I30: 3.03515625 | J30: 0 | K30: 0 | M30: 0 | N30: 0 | O30: 3.03515625 | P30: 0 | Q30: 303.515625 | R30: 0
D31: 0 | G31: 0 | I31: 0 | J31: 0 | K31: 0 | M31: 0 | N31: 0 | O31: 0 | P31: 0 | Q31: 0 | R31: 0
D32: 0 | G32: 0 | I32: 0 | J32: 0 | K32: 0 | M32: 0 | N32: 0 | O32: 0 | P32: 0 | Q32: 0 | R32: 0
D33: 0 | G33: 0 | I33: 0 | J33: =E33*H33 -> 0 | K33: 0 | M33: 0 | N33: =J33*L33 -> 0 | O33: 0 | P33: =+J33-N33 -> 0 | Q33: 0 | R33: =+J33*E$7 -> 0
B34: Machinery Labor
C35: Tractors/Self-Propelled | D35: 0.15 | F35: Hour | G35: 12 | I35: 1.8 | J35: =E35*H35 -> 0 | K35: 0 | M35: 0 | N35: =J35*L35 -> 0 | O35: 1.8 | P35: =+J35-N35 -> 0 | Q35: 180 | R35: =+J35*E$7 -> 0
C36: Other Labor | D36: 0 | F36: Hour | G36: 12 | I36: 0 | J36: =E36*H36 -> 0 | K36: 0 | M36: 0 | N36: =J36*L36 -> 0 | O36: 0 | P36: =+J36-N36 -> 0 | Q36: 0 | R36: =+J36*E$7 -> 0
B38: Diesel Fuel
C39: Pickup/General Use Equipment | D39: 1 | F39: Acre | G39: 0 | I39: 0 | J39: =E39*H39 -> 0 | K39: 0 | M39: 0 | N39: =J39*L39 -> 0 | O39: 0 | P39: =+J39-N39 -> 0 | Q39: 0 | R39: =+J39*E$7 -> 0
C40: Tractors/Self-Propelled | D40: 0.91 | F40: Gallon | G40: 2.15 | I40: 1.9565 | J40: =E40*H40 -> 0 | K40: 0 | M40: 0 | N40: =J40*L40 -> 0 | O40: 1.9565 | P40: =+J40-N40 -> 0 | Q40: 195.65 | R40: =+J40*E$7 -> 0
B42: Gasoline
C43: Pickup/General Use Equipment | D43: 1 | F43: Acre | G43: 2.4 | I43: 2.4 | J43: =E43*H43 -> 0 | K43: 0 | M43: 0 | N43: =J43*L43 -> 0 | O43: 2.4 | P43: =+J43-N43 -> 0 | Q43: 240 | R43: =+J43*E$7 -> 0
C44: Tractors/Self-Propelled | D44: 0 | F44: Gallon | G44: 2.4 | I44: 0 | J44: =E44*H44 -> 0 | K44: 0 | M44: 0 | N44: =J44*L44 -> 0 | O44: 0 | P44: =+J44-N44 -> 0 | Q44: 0 | R44: =+J44*E$7 -> 0
B46: Repairs & Maintenance
C47: Pickup/General Use Equipment | D47: 1 | F47: Acre | G47: 0.7525 | I47: 0.7525 | J47: =E47*H47 -> 0 | K47: 0 | M47: 0 | N47: =J47*L47 -> 0 | O47: 0.7525 | P47: =+J47-N47 -> 0 | Q47: 75.25 | R47: =+J47*E$7 -> 0
C48: Irrigation Equipment | D48: 1 | F48: Acre | G48: 0 | I48: 0 | J48: 0 | K48: 0 | M48: 0 | N48: 0 | O48: 0 | P48: 0 | Q48: 0 | R48: 0
C49: Tractors/Self-Propelled | D49: 1 | F49: Acre | G49: 1.072401876 | I49: 1.072401876 | J49: 0 | K49: 0 | M49: 0 | N49: 0 | O49: 1.072401876 | P49: 0 | Q49: 107.2401876 | R49: 0
C50: Implements | D50: 1 | F50: Acre | G50: 0.3930386179 | I50: 0.3930386179 | J50: 0 | K50: 0 | M50: 0 | N50: 0 | O50: 0.3930386179 | P50: 0 | Q50: 39.30386179 | R50: 0
I51: 0 | J51: 0 | K51: 0 | M51: 0 | N51: 0 | O51: 0 | P51: 0 | Q51: 0 | R51: 0
I52: 0 | J52: 0 | K52: 0 | M52: 0 | N52: 0 | O52: 0 | P52: 0 | Q52: 0 | R52: 0
B53: Interest on Credit Line | G53: 0.06 | I53: 3.109224052 | J53: =+SUM(J17:J52)/2*H53 -> 0 | M53: 0 | N53: =+SUM(N17:N52)/2*L53 -> 0 | O53: 3.109224052 | P53: =+SUM(P17:P52)/2*L53 -> 0 | Q53: 310.9224052 | R53: =+J53*E$7 -> 0
A54: Total Variable Costs | I54: 194.0261285 | J54: =SUM(J18:J53) -> 0 | M54: 0 | N54: =SUM(N18:N53) -> 0 | O54: 194.0261285 | P54: =SUM(P18:P53) -> 0 | Q54: 19402.61285 | R54: =SUM(R18:R53) -> 0
A55: Planned Returns Above Variable Costs: | I55: 188.9238715 | J55: =+J13-J54 -> 0 | M55: 0 | N55: =+N13-N54 -> 0 | O55: 188.9238715 | P55: =+P13-P54 -> 0 | Q55: 18892.38715 | R55: =+R13-R54 -> 0
B56: Breakeven Price to Cover Variable Costs | G56: 58.26610465 | H56: =IF(E10=0,"n/a",(YVarExp-(YTotExp+YTotRet-J10))/E10) -> n/a | I56: Ton
Q57: Enterprise | R57: Enterprise
A58: FIXED COSTS | D58: Quantity | E58: Quantity | F58: Units | G58: $/Unit | H58: $/Unit | I58: Total | J58: Total | K58: Share | L58: Share | M58: Landlord | N58: Landlord | O58: Tenant | P58: Tenant | Q58: Total | R58: Total
B59: Machinery Depreciation
C60: Pickup/General Use Equipment | D60: 1 | F60: Acre | G60: 1.575 | I60: 1.575 | J60: =E60*H60 -> 0 | K60: 0 | M60: 0 | N60: =J60*L60 -> 0 | O60: 1.575 | P60: =+J60-N60 -> 0 | Q60: 157.5 | R60: =+J60*E$7 -> 0
C61: Tractors/Self-Propelled | D61: 1 | F61: Acre | G61: 3.548983412 | I61: 3.548983412 | J61: 0 | K61: 0 | M61: 0 | N61: =J61*L61 -> 0 | O61: 3.548983412 | P61: 0 | Q61: 354.8983412 | R61: 0
C62: Implements | D62: 1 | F62: Acre | G62: 0.3023373984 | I62: 0.3023373984 | J62: 0 | K62: 0 | M62: 0 | N62: =J62*L62 -> 0 | O62: 0.3023373984 | P62: 0 | Q62: 30.23373984 | R62: 0
B63: Equipment Investment
C64: Pickup/General Use Equipment | D64: 9.625 | F64: Dollars | G64: 0.06 | I64: 0.5775 | J64: =E64*H64 -> 0 | K64: 0 | M64: 0 | N64: =J64*L64 -> 0 | O64: 0.5775 | P64: =+J64-N64 -> 0 | Q64: 57.75 | R64: =+J64*E$7 -> 0
C65: Tractors/Self-Propelled | D65: 26.4772313 | F65: Dollars | G65: 0.06 | I65: 1.588633878 | J65: 0 | K65: 0 | M65: 0 | N65: =J65*L65 -> 0 | O65: 1.588633878 | P65: 0 | Q65: 158.8633878 | R65: 0
C66: Implements | D66: 3.174542683 | F66: Dollars | G66: 0.06 | I66: 0.190472561 | J66: 0 | K66: 0 | M66: 0 | N66: =J66*L66 -> 0 | O66: 0.190472561 | P66: 0 | Q66: 19.0472561 | R66: 0
B67: Salaried Labor | D67: 1 | F67: Acre | G67: 0 | I67: 0 | J67: 0 | K67: 0 | M67: 0 | N67: =J67*L67 -> 0 | O67: 0 | P67: =+J67-N67 -> 0 | Q67: 0 | R67: =+J67*E$7 -> 0
B68: Management Fee, Owner/Operator Labor | D68: 1 | F68: Acre | G68: 0 | I68: 0 | J68: 0 | K68: 0 | M68: 0 | N68: 0 | O68: 0 | P68: 0 | Q68: 0 | R68: 0
B69: Allocated Establishment Cost | D69: 1 | F69: Acre | G69: 66.172 | I69: 66.172 | J69: 0 | K69: 0 | M69: 0 | N69: 0 | O69: 66.172 | P69: 0 | Q69: 6617.2 | R69: 0
B70: Rent-Dryland Crop | D70: 1 | F70: Acre | G70: 35 | I70: 35 | J70: 0 | K70: 0 | M70: 0 | N70: 0 | O70: 35 | P70: 0 | Q70: 3500 | R70: 0
B71: Property Taxes | D71: 1 | F71: Acre | G71: 0 | I71: 0 | J71: 0 | K71: 0 | M71: 0 | N71: 0 | O71: 0 | P71: 0 | Q71: 0 | R71: 0
B72: Whole Farm Insurance | D72: 1 | F72: Acre | G72: 0 | I72: 0 | J72: 0 | K72: 0 | M72: 0 | N72: 0 | O72: 0 | P72: 0 | Q72: 0 | R72: 0
D73: 1 | G73: 0 | I73: 0 | J73: 0 | K73: 0 | M73: 0 | N73: 0 | O73: 0 | P73: 0 | Q73: 0 | R73: 0
D74: 1 | G74: 0 | I74: 0 | J74: =E74*H74 -> 0 | K74: 0 | M74: 0 | N74: 0 | O74: 0 | P74: 0 | Q74: 0 | R74: 0
A75: Total Fixed Costs | I75: 108.9549272 | J75: =+SUM(J60:J74) -> 0 | M75: 0 | N75: =+SUM(N60:N74) -> 0 | O75: 108.9549272 | P75: =+SUM(P60:P74) -> 0 | Q75: 10895.49272 | R75: =+SUM(R60:R74) -> 0
A76: Total Specified Costs | I76: 302.9810557 | J76: =+J54+J75 -> 0 | M76: 0 | N76: =+N54+N75 -> 0 | O76: 302.9810557 | P76: =+P54+P75 -> 0 | Q76: 30298.10557 | R76: =+R54+R75 -> 0
A78: Returns Above Specified Costs | I78: 79.96894426 | J78: =+J13-J76 -> 0 | M78: 0 | N78: =+N13-N76 -> 0 | O78: 79.96894426 | P78: =+P13-P76 -> 0 | Q78: 7996.894426 | R78: =+R13-R76 -> 0
A80: Breakeven Price to Cover Total Costs | G80: 90.98530202 | H80: =IF(E10=0,"n/a",(YTotExp-(YTotExp+YTotRet-J10))/E10) -> n/a | I80: Ton
D82: Example Breakeven Prices
B83: Example | C83: Example | D83: To Cover | G83: To Cover
B84: Yield | C84: Yield | D84: Variable | G84: Total
B85: Percent | C85: Ton | D85: Costs | G85: Costs
B86: 0.75 | C86: 2.4975 | D86: 77.68813954 | G86: 121.313736
B87: 0.9 | C87: 2.997 | D87: 64.74011628 | G87: 101.09478
B88: 1 | C88: 3.33 | D88: 58.26610465 | G88: 90.98530202
B89: 1.1 | C89: 3.663 | D89: 52.96918605 | G89: 82.71391093
B90: 1.25 | C90: 4.1625 | D90: 46.61288372 | G90: 72.78824162
D92: Your Breakeven Prices
B93: Your | C93: Your | E93: To Cover | H93: To Cover
B94: Yield | C94: Yield | E94: Variable | H94: Total
B95: Percent | C95: Ton | E95: Costs | H95: Costs
B96: 0.75 | C96: =E10*YPER1 -> 0 | E96: =IF($E$10=0,0,(YVarExp-(YTotExp+YTotRet-J10))/($E$10*YPER1)) -> 0 | H96: =IF($E$10=0,0,(YTotExp-(YTotExp+YTotRet-J10))/($E$10*YPER1)) -> 0
B97: 0.9 | C97: =E10*YPER2 -> 0 | E97: =IF($E$10=0,0,(YVarExp-(YTotExp+YTotRet-J10))/($E$10*YPER2)) -> 0 | H97: =IF($E$10=0,0,(YTotExp-(YTotExp+YTotRet-J10))/($E$10*YPER2)) -> 0
B98: 1 | C98: =+E10 -> 0 | E98: =IF($E$10=0,0,(YVarExp-(YTotExp+YTotRet-J10))/($E$10*YPER3)) -> 0 | H98: =IF($E$10=0,0,(YTotExp-(YTotExp+YTotRet-J10))/($E$10*YPER3)) -> 0
B99: 1.1 | C99: =E10*YPER4 -> 0 | E99: =IF($E$10=0,0,(YVarExp-(YTotExp+YTotRet-J10))/($E$10*YPER4)) -> 0 | H99: =IF($E$10=0,0,(YTotExp-(YTotExp+YTotRet-J10))/($E$10*YPER4)) -> 0
B100: 1.25 | C100: =E10*YPER5 -> 0 | E100: =IF($E$10=0,0,(YVarExp-(YTotExp+YTotRet-J10))/($E$10*YPER5)) -> 0 | H100: =IF($E$10=0,0,(YTotExp-(YTotExp+YTotRet-J10))/($E$10*YPER5)) -> 0
A102: Developed by Bill Thompson, Associate Professor and Extension Economist, Texas A&M AgriLife Extension Service, 325-653-4576.
A104: Information presented is prepared solely as a general guide and not intended to recognize or predict the costs and returns from any one operation. Brand names are mentioned only as examples and imply no endorsement.

Sheet OatsDryland
A1: Projections for Planning Purposes Only -- Not to be Used without Updating
A2: 2018 Estimated Costs and Returns per Acre
A3: Dryland Forage Oats, Follow Small Grains
A4: Enter your name for this budget in the cell above.
A5: Enter Your Values in the cells highlighed in MAROON.
E6: Your Acres | R6: Your
C7: Crop Acres | D7: 100 | L7: Your | Q7: Enterprise | R7: Enterprise
E8: Your | H8: Your | I8: Cash | J8: Your | K8: Landlord | L8: Landlord | N8: Your | P8: Your | Q8: Total | R8: Total
A9: REVENUE | D9: Quantity | E9: Quantity | F9: Units | G9: $/Unit | H9: $/Unit | I9: Total | J9: Total | K9: Share | L9: Share | M9: Landlord | N9: Landlord | O9: Tenant | P9: Tenant | Q9: (100 acres) | R9: ="(" & E7 & " acres)" -> ( acres)
B10: Oat Hay | D10: 0.9 | F10: Ton | G10: 115 | I10: 103.5 | J10: =E10*H10 -> 0 | K10: 0 | M10: 0 | N10: =J10*L10 -> 0 | O10: 103.5 | P10: =+J10-N10 -> 0 | Q10: 10350 | R10: =+J10*E$7 -> 0
B11: Small Grains Pasture Gain | D11: 15 | F11: Pound of Gain | G11: 0.4 | I11: 6 | J11: 0 | K11: 0 | M11: 0 | N11: 0 | O11: 6 | P11: =+J11-N11 -> 0 | Q11: 600 | R11: 0
B12: Small Grains Pasture Gain | D12: 15 | F12: Pound of Gain | G12: 0.4 | I12: 6 | J12: 0 | K12: 0 | M12: 0 | N12: 0 | O12: 6 | P12: 0 | Q12: 600 | R12: 0
B13: Small Grains Pasture Gain | D13: 15 | F13: Pound of Gain | G13: 0.4 | I13: 6 | J13: 0 | K13: 0 | M13: 0 | N13: 0 | O13: 6 | P13: 0 | Q13: 600 | R13: 0
D14: 0 | G14: 0 | I14: 0 | J14: 0 | K14: 0 | M14: 0 | N14: 0 | O14: 0 | P14: 0 | Q14: 0 | R14: 0
D15: 0 | G15: 0 | I15: 0 | J15: 0 | K15: 0 | M15: 0 | N15: 0 | O15: 0 | P15: 0 | Q15: 0 | R15: 0
A16: Total Revenue | I16: 121.5 | J16: =SUM(J10:J15) -> 0 | M16: 0 | N16: =SUM(N10:N15) -> 0 | O16: 121.5 | P16: 0 | Q16: 12150 | R16: 0
Q17: Enterprise | R17: Enterprise
A18: VARIABLE COSTS | D18: Quantity | E18: Quantity | F18: Units | G18: $/Unit | H18: $/Unit | I18: Total | J18: Total | K18: Share | L18: Share | M18: Landlord | N18: Landlord | O18: Tenant | P18: Tenant | Q18: Total | R18: Total
A19: Production Costs
B20: Fertilizer
C21: Nitrogen Dry-Urea | D21: 5 | F21: Pounds | G21: 0.37 | I21: 1.85 | J21: =E21*H21 -> 0 | K21: 0 | M21: 0 | N21: =J21*L21 -> 0 | O21: 1.85 | P21: =+J21-N21 -> 0 | Q21: 185 | R21: =+J21*E$7 -> 0
C22: Phos (11-52-0 DRY MAT) | D22: 18 | F22: Pounds | G22: 0.442 | I22: 7.956 | J22: 0 | K22: 0 | M22: 0 | N22: 0 | O22: 7.956 | P22: 0 | Q22: 795.6 | R22: 0
B23: Custom
C24: Soil Test-Dryland | D24: 1 | F24: Each | G24: 0.25 | I24: 0.25 | J24: 0 | K24: 0 | M24: 0 | N24: 0 | O24: 0.25 | P24: 0 | Q24: 25 | R24: 0
C25: Swath, Rake and Bale Small | D25: 24 | F25: Bale | G25: 2.1 | I25: 50.4 | J25: 0 | K25: 0 | M25: 0 | N25: 0 | O25: 50.4 | P25: 0 | Q25: 5040 | R25: 0
C26: Custom Haul Small Bale | D26: 24 | F26: Bale | G26: 1 | I26: 24 | J26: 0 | K26: 0 | M26: 0 | N26: 0 | O26: 24 | P26: 0 | Q26: 2400 | R26: 0
B27: Seed
C28: Oat Seed | D28: 60 | F28: Pound | G28: 0.32 | I28: 19.2 | J28: 0 | K28: 0 | M28: 0 | N28: 0 | O28: 19.2 | P28: 0 | Q28: 1920 | R28: 0
B29: Miscellaneous
C30: NAP Insurance | D30: 1 | F30: Acre | G30: 2 | I30: 2 | J30: 0 | K30: 0 | M30: 0 | N30: 0 | O30: 2 | P30: 0 | Q30: 200 | R30: 0
D31: 0 | G31: 0 | I31: 0 | J31: 0 | K31: 0 | M31: 0 | N31: 0 | O31: 0 | P31: 0 | Q31: 0 | R31: 0
D32: 0 | G32: 0 | I32: 0 | J32: 0 | K32: 0 | M32: 0 | N32: 0 | O32: 0 | P32: 0 | Q32: 0 | R32: 0
D33: 0 | G33: 0 | I33: 0 | J33: =E33*H33 -> 0 | K33: 0 | M33: 0 | N33: =J33*L33 -> 0 | O33: 0 | P33: =+J33-N33 -> 0 | Q33: 0 | R33: =+J33*E$7 -> 0
B34: Machinery Labor
C35: Tractors/Self-Propelled | D35: 0.38 | F35: Hour | G35: 12 | I35: 4.56 | J35: =E35*H35 -> 0 | K35: 0 | M35: 0 | N35: =J35*L35 -> 0 | O35: 4.56 | P35: =+J35-N35 -> 0 | Q35: 456 | R35: =+J35*E$7 -> 0
C36: Other Labor | D36: 0 | F36: Hour | G36: 12 | I36: 0 | J36: =E36*H36 -> 0 | K36: 0 | M36: 0 | N36: =J36*L36 -> 0 | O36: 0 | P36: =+J36-N36 -> 0 | Q36: 0 | R36: =+J36*E$7 -> 0
B38: Diesel Fuel
C39: Pickup/General Use Equipment | D39: 1 | F39: Acre | G39: 0 | I39: 0 | J39: =E39*H39 -> 0 | K39: 0 | M39: 0 | N39: =J39*L39 -> 0 | O39: 0 | P39: =+J39-N39 -> 0 | Q39: 0 | R39: =+J39*E$7 -> 0
C40: Tractors/Self-Propelled | D40: 3.13 | F40: Gallon | G40: 2.15 | I40: 6.7295 | J40: =E40*H40 -> 0 | K40: 0 | M40: 0 | N40: =J40*L40 -> 0 | O40: 6.7295 | P40: =+J40-N40 -> 0 | Q40: 672.95 | R40: =+J40*E$7 -> 0
B42: Gasoline
C43: Pickup/General Use Equipment | D43: 1 | F43: Acre | G43: 1.9056 | I43: 1.9056 | J43: =E43*H43 -> 0 | K43: 0 | M43: 0 | N43: =J43*L43 -> 0 | O43: 1.9056 | P43: =+J43-N43 -> 0 | Q43: 190.56 | R43: =+J43*E$7 -> 0
C44: Tractors/Self-Propelled | D44: 0 | F44: Gallon | G44: 2.4 | I44: 0 | J44: =E44*H44 -> 0 | K44: 0 | M44: 0 | N44: =J44*L44 -> 0 | O44: 0 | P44: =+J44-N44 -> 0 | Q44: 0 | R44: =+J44*E$7 -> 0
B46: Repairs & Maintenance
C47: Pickup/General Use Equipment | D47: 1 | F47: Acre | G47: 1.37 | I47: 1.37 | J47: =E47*H47 -> 0 | K47: 0 | M47: 0 | N47: =J47*L47 -> 0 | O47: 1.37 | P47: =+J47-N47 -> 0 | Q47: 137 | R47: =+J47*E$7 -> 0
C48: Irrigation Equipment | D48: 1 | F48: Acre | G48: 0 | I48: 0 | J48: 0 | K48: 0 | M48: 0 | N48: 0 | O48: 0 | P48: 0 | Q48: 0 | R48: 0
C49: Tractors/Self-Propelled | D49: 1 | F49: Acre | G49: 7.547944658 | I49: 7.547944658 | J49: 0 | K49: 0 | M49: 0 | N49: 0 | O49: 7.547944658 | P49: 0 | Q49: 754.7944658 | R49: 0
C50: Implements | D50: 1 | F50: Acre | G50: 10.79208121 | I50: 10.79208121 | J50: 0 | K50: 0 | M50: 0 | N50: 0 | O50: 10.79208121 | P50: 0 | Q50: 1079.208121 | R50: 0
I51: 0 | J51: 0 | K51: 0 | M51: 0 | N51: 0 | O51: 0 | P51: 0 | Q51: 0 | R51: 0
I52: 0 | J52: 0 | K52: 0 | M52: 0 | N52: 0 | O52: 0 | P52: 0 | Q52: 0 | R52: 0
B53: Interest on Credit Line | G53: 0.06 | I53: 1.901193469 | J53: =+SUM(J20:J52)/2*H53 -> 0 | M53: 0 | N53: =+SUM(N20:N52)/2*L53 -> 0 | O53: 1.901193469 | P53: =+SUM(P20:P52)/2*L53 -> 0 | Q53: 190.1193469 | R53: =+J53*E$7 -> 0
A54: Total Variable Costs | I54: 140.4623193 | J54: =SUM(J21:J53) -> 0 | M54: 0 | N54: =SUM(N21:N53) -> 0 | O54: 140.4623193 | P54: =SUM(P21:P53) -> 0 | Q54: 14046.23193 | R54: =SUM(R21:R53) -> 0
A55: Planned Returns Above Variable Costs: | I55: -18.96231934 | J55: =+J16-J54 -> 0 | M55: 0 | N55: =+N16-N54 -> 0 | O55: -18.96231934 | P55: =+P16-P54 -> 0 | Q55: -1896.231934 | R55: =+R16-R54 -> 0
B56: Breakeven Price to Cover Variable Costs | G56: 136.0692437 | H56: =IF(E10=0,"n/a",(YVarExp-(YTotExp+YTotRet-J10))/E10) -> n/a | I56: Ton
Q57: Enterprise | R57: Enterprise
A58: FIXED COSTS | D58: Quantity | E58: Quantity | F58: Units | G58: $/Unit | H58: $/Unit | I58: Total | J58: Total | K58: Share | L58: Share | M58: Landlord | N58: Landlord | O58: Tenant | P58: Tenant | Q58: Total | R58: Total
B59: Machinery Depreciation
C60: Pickup/General Use Equipment | D60: 1 | F60: Acre | G60: 2.988 | I60: 2.988 | J60: =E60*H60 -> 0 | K60: 0 | M60: 0 | N60: =J60*L60 -> 0 | O60: 2.988 | P60: =+J60-N60 -> 0 | Q60: 298.8 | R60: =+J60*E$7 -> 0
C61: Tractors/Self-Propelled | D61: 1 | F61: Acre | G61: 7.799542813 | I61: 7.799542813 | J61: 0 | K61: 0 | M61: 0 | N61: =J61*L61 -> 0 | O61: 7.799542813 | P61: 0 | Q61: 779.9542813 | R61: 0
C62: Implements | D62: 1 | F62: Acre | G62: 14.03314234 | I62: 14.03314234 | J62: 0 | K62: 0 | M62: 0 | N62: =J62*L62 -> 0 | O62: 14.03314234 | P62: 0 | Q62: 1403.314234 | R62: 0
B63: Equipment Investment
C64: Pickup/General Use Equipment | D64: 12.98 | F64: Dollars | G64: 0.06 | I64: 0.7788 | J64: =E64*H64 -> 0 | K64: 0 | M64: 0 | N64: =J64*L64 -> 0 | O64: 0.7788 | P64: =+J64-N64 -> 0 | Q64: 77.88 | R64: =+J64*E$7 -> 0
C65: Tractors/Self-Propelled | D65: 60.7609545 | F65: Dollars | G65: 0.06 | I65: 3.64565727 | J65: 0 | K65: 0 | M65: 0 | N65: =J65*L65 -> 0 | O65: 3.64565727 | P65: 0 | Q65: 364.565727 | R65: 0
C66: Implements | D66: 60.03066447 | F66: Dollars | G66: 0.06 | I66: 3.601839868 | J66: 0 | K66: 0 | M66: 0 | N66: =J66*L66 -> 0 | O66: 3.601839868 | P66: 0 | Q66: 360.1839868 | R66: 0
B67: Salaried Labor | D67: 1 | F67: Acre | G67: 0 | I67: 0 | J67: 0 | K67: 0 | M67: 0 | N67: =J67*L67 -> 0 | O67: 0 | P67: =+J67-N67 -> 0 | Q67: 0 | R67: =+J67*E$7 -> 0
B68: Management Fee, Owner/Operator Labor | D68: 1 | F68: Acre | G68: 0 | I68: 0 | J68: 0 | K68: 0 | M68: 0 | N68: 0 | O68: 0 | P68: 0 | Q68: 0 | R68: 0
B69: Allocated Establishment Cost | D69: 1 | F69: Acre | G69: 0 | I69: 0 | J69: 0 | K69: 0 | M69: 0 | N69: 0 | O69: 0 | P69: 0 | Q69: 0 | R69: 0
B70: Rent-Dryland Crop | D70: 1 | F70: Acre | G70: 35 | I70: 35 | J70: 0 | K70: 0 | M70: 0 | N70: 0 | O70: 35 | P70: 0 | Q70: 3500 | R70: 0
B71: Property Taxes | D71: 1 | F71: Acre | G71: 0 | I71: 0 | J71: 0 | K71: 0 | M71: 0 | N71: 0 | O71: 0 | P71: 0 | Q71: 0 | R71: 0
B72: Whole Farm Insurance | D72: 1 | F72: Acre | G72: 0 | I72: 0 | J72: 0 | K72: 0 | M72: 0 | N72: 0 | O72: 0 | P72: 0 | Q72: 0 | R72: 0
D73: 1 | G73: 0 | I73: 0 | J73: 0 | K73: 0 | M73: 0 | N73: 0 | O73: 0 | P73: 0 | Q73: 0 | R73: 0
D74: 1 | G74: 0 | I74: 0 | J74: =E74*H74 -> 0 | K74: 0 | M74: 0 | N74: 0 | O74: 0 | P74: 0 | Q74: 0 | R74: 0
A75: Total Fixed Costs | I75: 67.84698229 | J75: =+SUM(J60:J74) -> 0 | M75: 0 | N75: =+SUM(N60:N74) -> 0 | O75: 67.84698229 | P75: =+SUM(P60:P74) -> 0 | Q75: 6784.698229 | R75: =+SUM(R60:R74) -> 0
A76: Total Specified Costs | I76: 208.3093016 | J76: =+J54+J75 -> 0 | M76: 0 | N76: =+N54+N75 -> 0 | O76: 208.3093016 | P76: =+P54+P75 -> 0 | Q76: 20830.93016 | R76: =+R54+R75 -> 0
A78: Returns Above Specified Costs | I78: -86.80930163 | J78: =+J16-J76 -> 0 | M78: 0 | N78: =+N16-N76 -> 0 | O78: -86.80930163 | P78: =+P16-P76 -> 0 | Q78: -8680.930163 | R78: =+R16-R76 -> 0
A80: Breakeven Price to Cover Total Costs | G80: 211.4547796 | H80: =IF(E10=0,"n/a",(YTotExp-(YTotExp+YTotRet-J10))/E10) -> n/a | I80: Ton
D82: Example Breakeven Prices
B83: Example | C83: Example | D83: To Cover | G83: To Cover
B84: Yield | C84: Yield | D84: Variable | G84: Total
B85: Percent | C85: Ton | D85: Costs | G85: Costs
B86: 0.75 | C86: 0.675 | D86: 181.4256583 | G86: 281.9397061
B87: 0.9 | C87: 0.81 | D87: 151.1880486 | G87: 234.9497551
B88: 1 | C88: 0.9 | D88: 136.0692437 | G88: 211.4547796
B89: 1.1 | C89: 0.99 | D89: 123.6993125 | G89: 192.2316178
B90: 1.25 | C90: 1.125 | D90: 108.855395 | G90: 169.1638237
D92: Your Breakeven Prices
B93: Your | C93: Your | E93: To Cover | H93: To Cover
B94: Yield | C94: Yield | E94: Variable | H94: Total
B95: Percent | C95: Ton | E95: Costs | H95: Costs
B96: 0.75 | C96: =E10*YPER1 -> 0 | E96: =IF($E$10=0,0,(YVarExp-(YTotExp+YTotRet-J10))/($E$10*YPER1)) -> 0 | H96: =IF($E$10=0,0,(YTotExp-(YTotExp+YTotRet-J10))/($E$10*YPER1)) -> 0
B97: 0.9 | C97: =E10*YPER2 -> 0 | E97: =IF($E$10=0,0,(YVarExp-(YTotExp+YTotRet-J10))/($E$10*YPER2)) -> 0 | H97: =IF($E$10=0,0,(YTotExp-(YTotExp+YTotRet-J10))/($E$10*YPER2)) -> 0
B98: 1 | C98: =+E10 -> 0 | E98: =IF($E$10=0,0,(YVarExp-(YTotExp+YTotRet-J10))/($E$10*YPER3)) -> 0 | H98: =IF($E$10=0,0,(YTotExp-(YTotExp+YTotRet-J10))/($E$10*YPER3)) -> 0
B99: 1.1 | C99: =E10*YPER4 -> 0 | E99: =IF($E$10=0,0,(YVarExp-(YTotExp+YTotRet-J10))/($E$10*YPER4)) -> 0 | H99: =IF($E$10=0,0,(YTotExp-(YTotExp+YTotRet-J10))/($E$10*YPER4)) -> 0
B100: 1.25 | C100: =E10*YPER5 -> 0 | E100: =IF($E$10=0,0,(YVarExp-(YTotExp+YTotRet-J10))/($E$10*YPER5)) -> 0 | H100: =IF($E$10=0,0,(YTotExp-(YTotExp+YTotRet-J10))/($E$10*YPER5)) -> 0
A102: Developed by Bill Thompson, Associate Professor and Extension Economist, Texas A&M AgriLife Extension Service, 325-653-4576.
A104: Information presented is prepared solely as a general guide and not intended to recognize or predict the costs and returns from any one operation. Brand names are mentioned only as examples and imply no endorsement.

Sheet WheatDryland
A1: Projections for Planning Purposes Only -- Not to be Used without Updating
A2: 2018 Estimated Costs and Returns per Acre
A3: No-Till Wheat, Dryland, Follow Cotton
A4: Enter your name for this budget in the cell above.
A5: Enter Your Values in the cells highlighed in MAROON.
E6: Your Acres | R6: Your
C7: Crop Acres | D7: 1000 | L7: Your | Q7: Enterprise | R7: Enterprise
E8: Your | H8: Your | I8: Cash | J8: Your | K8: Landlord | L8: Landlord | N8: Your | P8: Your | Q8: Total | R8: Total
A9: REVENUE | D9: Quantity | E9: Quantity | F9: Units | G9: $/Unit | H9: $/Unit | I9: Total | J9: Total | K9: Share | L9: Share | M9: Landlord | N9: Landlord | O9: Tenant | P9: Tenant | Q9: (1000 acres) | R9: ="(" & E7 & " acres)" -> ( acres)
B10: Winter Wheat | D10: 30 | F10: Bushel | G10: 3.85 | I10: 115.5 | J10: =E10*H10 -> 0 | K10: 0 | M10: 0 | N10: =J10*L10 -> 0 | O10: 115.5 | P10: =+J10-N10 -> 0 | Q10: 115500 | R10: =+J10*E$7 -> 0
D11: 0 | G11: 0 | I11: 0 | J11: 0 | K11: 0 | M11: 0 | N11: 0 | O11: 0 | P11: =+J11-N11 -> 0 | Q11: 0 | R11: 0
D12: 0 | G12: 0 | I12: 0 | J12: 0 | K12: 0 | M12: 0 | N12: 0 | O12: 0 | P12: 0 | Q12: 0 | R12: 0
A13: Total Revenue | I13: 115.5 | J13: =SUM(J10:J12) -> 0 | M13: 0 | N13: =SUM(N10:N12) -> 0 | O13: 115.5 | P13: =SUM(P10:P12) -> 0 | Q13: 115500 | R13: =SUM(R10:R12) -> 0
Q14: Enterprise | R14: Enterprise
A15: VARIABLE COSTS | D15: Quantity | E15: Quantity | F15: Units | G15: $/Unit | H15: $/Unit | I15: Total | J15: Total | K15: Share | L15: Share | M15: Landlord | N15: Landlord | O15: Tenant | P15: Tenant | Q15: Total | R15: Total
A16: Production Costs
B17: Seed
C18: Wheat Seed | D18: 55 | F18: Pounds | G18: 0.2333333333 | I18: 12.83333333 | J18: =E18*H18 -> 0 | K18: 0 | M18: 0 | N18: =J18*L18 -> 0 | O18: 12.83333333 | P18: =+J18-N18 -> 0 | Q18: 12833.33333 | R18: =+J18*E$7 -> 0
B19: Fertilizer
C20: Nitrogen Dry-Urea | D20: 3.8 | F20: Pounds | G20: 0.37 | I20: 1.406 | J20: 0 | K20: 0 | M20: 0 | N20: 0 | O20: 1.406 | P20: 0 | Q20: 1406 | R20: 0
C21: Phos (11-52-0 DRY MAT) | D21: 18.2 | F21: Pounds | G21: 0.442 | I21: 8.0444 | J21: 0 | K21: 0 | M21: 0 | N21: 0 | O21: 8.0444 | P21: 0 | Q21: 8044.4 | R21: 0
C22: Nitrogen N32-liq | D22: 35.2 | F22: Pounds | G22: 0.35 | I22: 12.32 | J22: 0 | K22: 0 | M22: 0 | N22: 0 | O22: 12.32 | P22: 0 | Q22: 12320 | R22: 0
B23: Custom
C24: Soil Test-Dryland | D24: 1 | F24: Each | G24: 0.25 | I24: 0.25 | J24: 0 | K24: 0 | M24: 0 | N24: 0 | O24: 0.25 | P24: 0 | Q24: 250 | R24: 0
C25: Custom Harvest small grains | D25: 1 | F25: Acre | G25: 25 | I25: 25 | J25: 0 | K25: 0 | M25: 0 | N25: 0 | O25: 25 | P25: 0 | Q25: 25000 | R25: 0
C26: Custom Haul small grains | D26: 25 | F26: Bushels | G26: 0.27 | I26: 6.75 | J26: 0 | K26: 0 | M26: 0 | N26: 0 | O26: 6.75 | P26: 0 | Q26: 6750 | R26: 0
C27: Custom Harvest Overage small grains | D27: 5 | F27: Bushels | G27: 0.2 | I27: 1 | J27: 0 | K27: 0 | M27: 0 | N27: 0 | O27: 1 | P27: 0 | Q27: 1000 | R27: 0
B28: Miscellaneous
C29: Wht RP 70%, Ent, YE | D29: 1 | F29: Acre | G29: 3.23 | I29: 3.23 | J29: 0 | K29: 0 | M29: 0 | N29: 0 | O29: 3.23 | P29: 0 | Q29: 3230 | R29: 0
B30: Herbicide
C31: MSM (Ally) | D31: 0.1 | F31: Ounce | G31: 6 | I31: 0.6 | J31: 0 | K31: 0 | M31: 0 | N31: 0 | O31: 0.6 | P31: 0 | Q31: 600 | R31: 0
C32: MCPA | D32: 1 | F32: pint | G32: 3 | I32: 3 | J32: 0 | K32: 0 | M32: 0 | N32: 0 | O32: 3 | P32: 0 | Q32: 3000 | R32: 0
B33: Fungicides
C34: Wheat Fungicide | D34: 8 | F34: Ounce | G34: 0.5 | I34: 4 | J34: 0 | K34: 0 | M34: 0 | N34: 0 | O34: 4 | P34: 0 | Q34: 4000 | R34: 0
D35: 0 | G35: 0 | I35: 0 | J35: 0 | K35: 0 | M35: 0 | N35: 0 | O35: 0 | P35: 0 | Q35: 0 | R35: 0
D36: 0 | G36: 0 | I36: 0 | J36: 0 | K36: 0 | M36: 0 | N36: 0 | O36: 0 | P36: 0 | Q36: 0 | R36: 0
D37: 0 | G37: 0 | I37: 0 | J37: =E37*H37 -> 0 | K37: 0 | M37: 0 | N37: =J37*L37 -> 0 | O37: 0 | P37: =+J37-N37 -> 0 | Q37: 0 | R37: =+J37*E$7 -> 0
B38: Machinery Labor
C39: Tractors/Self-Propelled | D39: 0.28 | F39: Hour | G39: 12 | I39: 3.36 | J39: =E39*H39 -> 0 | K39: 0 | M39: 0 | N39: =J39*L39 -> 0 | O39: 3.36 | P39: =+J39-N39 -> 0 | Q39: 3360 | R39: =+J39*E$7 -> 0
C40: Other Labor | D40: 0.09 | F40: Hour | G40: 12 | I40: 1.08 | J40: =E40*H40 -> 0 | K40: 0 | M40: 0 | N40: =J40*L40 -> 0 | O40: 1.08 | P40: =+J40-N40 -> 0 | Q40: 1080 | R40: =+J40*E$7 -> 0
B42: Diesel Fuel
C43: Pickup/General Use Equipment | D43: 1 | F43: Acre | G43: 0 | I43: 0 | J43: =E43*H43 -> 0 | K43: 0 | M43: 0 | N43: =J43*L43 -> 0 | O43: 0 | P43: =+J43-N43 -> 0 | Q43: 0 | R43: =+J43*E$7 -> 0
C44: Tractors/Self-Propelled | D44: 3.37 | F44: Gallon | G44: 2.15 | I44: 7.2455 | J44: =E44*H44 -> 0 | K44: 0 | M44: 0 | N44: =J44*L44 -> 0 | O44: 7.2455 | P44: =+J44-N44 -> 0 | Q44: 7245.5 | R44: =+J44*E$7 -> 0
B46: Gasoline
C47: Pickup/General Use Equipment | D47: 1 | F47: Acre | G47: 1.77936 | I47: 1.77936 | J47: =E47*H47 -> 0 | K47: 0 | M47: 0 | N47: =J47*L47 -> 0 | O47: 1.77936 | P47: =+J47-N47 -> 0 | Q47: 1779.36 | R47: =+J47*E$7 -> 0
C48: Tractors/Self-Propelled | D48: 0 | F48: Gallon | G48: 2.4 | I48: 0 | J48: =E48*H48 -> 0 | K48: 0 | M48: 0 | N48: =J48*L48 -> 0 | O48: 0 | P48: =+J48-N48 -> 0 | Q48: 0 | R48: =+J48*E$7 -> 0
B50: Repairs & Maintenance
C51: Pickup/General Use Equipment | D51: 1 | F51: Acre | G51: 0.803 | I51: 0.803 | J51: =E51*H51 -> 0 | K51: 0 | M51: 0 | N51: =J51*L51 -> 0 | O51: 0.803 | P51: =+J51-N51 -> 0 | Q51: 803 | R51: =+J51*E$7 -> 0
C52: Irrigation Equipment | D52: 1 | F52: Acre | G52: 0 | I52: 0 | J52: 0 | K52: 0 | M52: 0 | N52: 0 | O52: 0 | P52: 0 | Q52: 0 | R52: 0
C53: Tractors/Self-Propelled | D53: 1 | F53: Acre | G53: 7.354297292 | I53: 7.354297292 | J53: 0 | K53: 0 | M53: 0 | N53: 0 | O53: 7.354297292 | P53: 0 | Q53: 7354.297292 | R53: 0
C54: Implements | D54: 1 | F54: Acre | G54: 8.621830112 | I54: 8.621830112 | J54: 0 | K54: 0 | M54: 0 | N54: 0 | O54: 8.621830112 | P54: 0 | Q54: 8621.830112 | R54: 0
I55: 0 | J55: 0 | K55: 0 | M55: 0 | N55: 0 | O55: 0 | P55: 0 | Q55: 0 | R55: 0
I56: 0 | J56: 0 | K56: 0 | M56: 0 | N56: 0 | O56: 0 | P56: 0 | Q56: 0 | R56: 0
B57: Interest on Credit Line | G57: 0.06 | I57: 2.092136258 | J57: =+SUM(J17:J56)/2*H57 -> 0 | M57: 0 | N57: =+SUM(N17:N56)/2*L57 -> 0 | O57: 2.092136258 | P57: =+SUM(P17:P56)/2*L57 -> 0 | Q57: 2092.136258 | R57: =+J57*E$7 -> 0
A58: Total Variable Costs | I58: 110.769857 | J58: =SUM(J18:J57) -> 0 | M58: 0 | N58: =SUM(N18:N57) -> 0 | O58: 110.769857 | P58: =SUM(P18:P57) -> 0 | Q58: 110769.857 | R58: =SUM(R18:R57) -> 0
A59: Planned Returns Above Variable Costs: | I59: 4.730143005 | J59: =+J13-J58 -> 0 | M59: 0 | N59: =+N13-N58 -> 0 | O59: 4.730143005 | P59: =+P13-P58 -> 0 | Q59: 4730.143005 | R59: =+R13-R58 -> 0
B60: Breakeven Price to Cover Variable Costs | G60: 3.692328567 | H60: =IF(E10=0,"n/a",(YVarExp-(YTotExp+YTotRet-J10))/E10) -> n/a | I60: Bushel
Q61: Enterprise | R61: Enterprise
A62: FIXED COSTS | D62: Quantity | E62: Quantity | F62: Units | G62: $/Unit | H62: $/Unit | I62: Total | J62: Total | K62: Share | L62: Share | M62: Landlord | N62: Landlord | O62: Tenant | P62: Tenant | Q62: Total | R62: Total
B63: Machinery Depreciation
C64: Pickup/General Use Equipment | D64: 1 | F64: Acre | G64: 1.7028 | I64: 1.7028 | J64: =E64*H64 -> 0 | K64: 0 | M64: 0 | N64: =J64*L64 -> 0 | O64: 1.7028 | P64: =+J64-N64 -> 0 | Q64: 1702.8 | R64: =+J64*E$7 -> 0
C65: Tractors/Self-Propelled | D65: 1 | F65: Acre | G65: 10.1186127 | I65: 10.1186127 | J65: 0 | K65: 0 | M65: 0 | N65: =J65*L65 -> 0 | O65: 10.1186127 | P65: 0 | Q65: 10118.6127 | R65: 0
C66: Implements | D66: 1 | F66: Acre | G66: 11.68339662 | I66: 11.68339662 | J66: 0 | K66: 0 | M66: 0 | N66: =J66*L66 -> 0 | O66: 11.68339662 | P66: 0 | Q66: 11683.39662 | R66: 0
B67: Equipment Investment
C68: Pickup/General Use Equipment | D68: 9.438 | F68: Dollars | G68: 0.06 | I68: 0.56628 | J68: =E68*H68 -> 0 | K68: 0 | M68: 0 | N68: =J68*L68 -> 0 | O68: 0.56628 | P68: =+J68-N68 -> 0 | Q68: 566.28 | R68: =+J68*E$7 -> 0
C69: Tractors/Self-Propelled | D69: 77.65676269 | F69: Dollars | G69: 0.06 | I69: 4.659405761 | J69: 0 | K69: 0 | M69: 0 | N69: =J69*L69 -> 0 | O69: 4.659405761 | P69: 0 | Q69: 4659.405761 | R69: 0
C70: Implements | D70: 49.97897441 | F70: Dollars | G70: 0.06 | I70: 2.998738465 | J70: 0 | K70: 0 | M70: 0 | N70: =J70*L70 -> 0 | O70: 2.998738465 | P70: 0 | Q70: 2998.738465 | R70: 0
B71: Salaried Labor | D71: 1 | F71: Acre | G71: 0 | I71: 0 | J71: 0 | K71: 0 | M71: 0 | N71: =J71*L71 -> 0 | O71: 0 | P71: =+J71-N71 -> 0 | Q71: 0 | R71: =+J71*E$7 -> 0
B72: Management Fee, Owner/Operator Labor | D72: 1 | F72: Acre | G72: 0 | I72: 0 | J72: 0 | K72: 0 | M72: 0 | N72: 0 | O72: 0 | P72: 0 | Q72: 0 | R72: 0
B73: Allocated Establishment Cost | D73: 1 | F73: Acre | G73: 0 | I73: 0 | J73: 0 | K73: 0 | M73: 0 | N73: 0 | O73: 0 | P73: 0 | Q73: 0 | R73: 0
B74: Rent-Dryland Crop | D74: 1 | F74: Acre | G74: 35 | I74: 35 | J74: 0 | K74: 0 | M74: 0 | N74: 0 | O74: 35 | P74: 0 | Q74: 35000 | R74: 0
B75: Property Taxes | D75: 1 | F75: Acre | G75: 0 | I75: 0 | J75: 0 | K75: 0 | M75: 0 | N75: 0 | O75: 0 | P75: 0 | Q75: 0 | R75: 0
B76: Whole Farm Insurance | D76: 1 | F76: Acre | G76: 0 | I76: 0 | J76: 0 | K76: 0 | M76: 0 | N76: 0 | O76: 0 | P76: 0 | Q76: 0 | R76: 0
D77: 1 | G77: 0 | I77: 0 | J77: 0 | K77: 0 | M77: 0 | N77: 0 | O77: 0 | P77: 0 | Q77: 0 | R77: 0
D78: 1 | G78: 0 | I78: 0 | J78: =E78*H78 -> 0 | K78: 0 | M78: 0 | N78: 0 | O78: 0 | P78: 0 | Q78: 0 | R78: 0
A79: Total Fixed Costs | I79: 66.72923354 | J79: =+SUM(J64:J78) -> 0 | M79: 0 | N79: =+SUM(N64:N78) -> 0 | O79: 66.72923354 | P79: =+SUM(P64:P78) -> 0 | Q79: 66729.23354 | R79: =+SUM(R64:R78) -> 0
A80: Total Specified Costs | I80: 177.4990905 | J80: =+J58+J79 -> 0 | M80: 0 | N80: =+N58+N79 -> 0 | O80: 177.4990905 | P80: =+P58+P79 -> 0 | Q80: 177499.0905 | R80: =+R58+R79 -> 0
A82: Returns Above Specified Costs | I82: -61.99909054 | J82: =+J13-J80 -> 0 | M82: 0 | N82: =+N13-N80 -> 0 | O82: -61.99909054 | P82: =+P13-P80 -> 0 | Q82: -61999.09054 | R82: =+R13-R80 -> 0
A84: Breakeven Price to Cover Total Costs | G84: 5.916636351 | H84: =IF(E10=0,"n/a",(YTotExp-(YTotExp+YTotRet-J10))/E10) -> n/a | I84: Bushel
D86: Example Breakeven Prices
B87: Example | C87: Example | D87: To Cover | G87: To Cover
B88: Yield | C88: Yield | D88: Variable | G88: Total
B89: Percent | C89: Bushel | D89: Costs | G89: Costs
B90: 0.75 | C90: 22.5 | D90: 4.923104755 | G90: 7.888848468
B91: 0.9 | C91: 27 | D91: 4.102587296 | G91: 6.57404039
B92: 1 | C92: 30 | D92: 3.692328567 | G92: 5.916636351
B93: 1.1 | C93: 33 | D93: 3.356662333 | G93: 5.378760319
B94: 1.25 | C94: 37.5 | D94: 2.953862853 | G94: 4.733309081
D96: Your Breakeven Prices
B97: Your | C97: Your | E97: To Cover | H97: To Cover
B98: Yield | C98: Yield | E98: Variable | H98: Total
B99: Percent | C99: Bushel | E99: Costs | H99: Costs
B100: 0.75 | C100: =E10*YPER1 -> 0 | E100: =IF($E$10=0,0,(YVarExp-(YTotExp+YTotRet-J10))/($E$10*YPER1)) -> 0 | H100: =IF($E$10=0,0,(YTotExp-(YTotExp+YTotRet-J10))/($E$10*YPER1)) -> 0
B101: 0.9 | C101: =E10*YPER2 -> 0 | E101: =IF($E$10=0,0,(YVarExp-(YTotExp+YTotRet-J10))/($E$10*YPER2)) -> 0 | H101: =IF($E$10=0,0,(YTotExp-(YTotExp+YTotRet-J10))/($E$10*YPER2)) -> 0
B102: 1 | C102: =+E10 -> 0 | E102: =IF($E$10=0,0,(YVarExp-(YTotExp+YTotRet-J10))/($E$10*YPER3)) -> 0 | H102: =IF($E$10=0,0,(YTotExp-(YTotExp+YTotRet-J10))/($E$10*YPER3)) -> 0
B103: 1.1 | C103: =E10*YPER4 -> 0 | E103: =IF($E$10=0,0,(YVarExp-(YTotExp+YTotRet-J10))/($E$10*YPER4)) -> 0 | H103: =IF($E$10=0,0,(YTotExp-(YTotExp+YTotRet-J10))/($E$10*YPER4)) -> 0
B104: 1.25 | C104: =E10*YPER5 -> 0 | E104: =IF($E$10=0,0,(YVarExp-(YTotExp+YTotRet-J10))/($E$10*YPER5)) -> 0 | H104: =IF($E$10=0,0,(YTotExp-(YTotExp+YTotRet-J10))/($E$10*YPER5)) -> 0
A106: Developed by Bill Thompson, Associate Professor and Extension Economist, Texas A&M AgriLife Extension Service, 325-653-4576.
A108: Information presented is prepared solely as a general guide and not intended to recognize or predict the costs and returns from any one operation. Brand names are mentioned only as examples and imply no endorsement.

Sheet CowCalf
A1: Projections for Planning Purposes Only -- Not to be Used without Updating
A2: 2018 Estimated Costs and Returns per Animal Unit
A3: Cow-Calf Native Pasture
A4: Enter your name for this budget in the cell above.
A5: Enter Your Values in the cells highlighed in MAROON.
E6: Your Cows
B7: Animal Units (AU) | D7: 100 | F7: Animal Unit | N7: Your
B8: Breeding Females | D8: 100 | F8: Calf | G8: Your | M8: Enterprise | N8: Enterprise
E9: Your | F9: Quantity | G9: Quantity | J9: Your | L9: Your | M9: Total | N9: Total
A10: REVENUE | D10: Head | E10: Head | F10: Per Head | G10: Per Head | H10: Units | I10: $/Unit | J10: $/Unit | K10: Total | L10: Total | M10: ="(" & D7 & " AUs)" -> (100 AUs) | N10: ="(" & E7 & " AUs)" -> ( AUs)
B11: Weaned Steer Calf | D11: 0.42 | F11: 5.5 | H11: CWT | I11: 164 | K11: 378.84 | L11: =+E11*G11*J11 -> 0 | M11: 37884 | N11: =+L11*E$7 -> 0
B12: Weaned Heifer Calf | D12: 0.26 | F12: 5.25 | H12: CWT | I12: 153 | K12: 208.845 | L12: =+E12*G12*J12 -> 0 | M12: 20884.5 | N12: =+L12*E$7 -> 0
B13: Cull Cow | D13: 0.15 | F13: 9 | H13: CWT | I13: 64 | K13: 86.4 | L13: 0 | M13: 8640 | N13: 0
B14: Cull Bull | D14: 0.01 | F14: 18 | H14: CWT | I14: 75 | K14: 13.5 | L14: 0 | M14: 1350 | N14: 0
B15: PRF Income | D15: 1 | F15: 30 | H15: Acre | I15: 1.96 | K15: 58.8 | L15: 0 | M15: 5880 | N15: 0
D16: 0 | F16: 0 | I16: 0 | K16: 0 | L16: 0 | M16: 0 | N16: 0
D17: 0 | F17: 0 | I17: 0 | K17: 0 | L17: 0 | M17: 0 | N17: 0
A18: Total Revenue | F18: 367.5 | K18: 746.385 | L18: =+SUM(L11:L17) -> 0 | M18: 74638.5 | N18: =+SUM(N11:N17) -> 0
F19: 520.5
F20: 153 | M20: Enterprise | N20: Enterprise
A21: VARIABLE COSTS | F21: Quantity | G21: Quantity | H21: Units | I21: $/Unit | J21: $/Unit | K21: Total | L21: Total | M21: Total | N21: Total
A22: Production Costs
B23: Miscellaneous
C24: Supplies | F24: 5 | H24: Head | I24: 3 | K24: 15 | L24: =+J24*G24 -> 0 | M24: 1500 | N24: =+L24*E$7 -> 0
C25: Predator Control - Cattle | F25: 1 | H25: Head | I25: 3.85 | K25: 3.85 | L25: 0 | M25: 385 | N25: 0
C26: Brush Control | F26: 30 | H26: Acre | I26: 1 | K26: 30 | L26: 0 | M26: 3000 | N26: 0
C27: PRF Rainfall Ins | F27: 30 | H27: Acre | I27: 1.11 | K27: 33.3 | L27: 0 | M27: 3330 | N27: 0
F28: 1 | I28: 0 | K28: 0 | L28: 0 | M28: 0 | N28: 0
F29: 1 | I29: 0 | K29: 0 | L29: 0 | M29: 0 | N29: 0
B30: Marketing Expense | F30: 1 | H30: AU | I30: 21.008 | K30: 21.008 | L30: 0 | M30: 2100.8 | N30: 0
B31: Feed
C32: Range Mineral | F32: 49.2 | H32: pound | I32: 0.397 | K32: 19.5324 | L32: =+J32*G32 -> 0 | M32: 1953.24 | N32: =+L32*E$7 -> 0
C33: Hay | F33: 0.3 | H33: Ton | I33: 117 | K33: 35.1 | L33: 0 | M33: 3510 | N33: 0
C34: Range Cubes 20% | F34: 1.2 | H34: CWT | I34: 16.1 | K34: 19.32 | L34: 0 | M34: 1932 | N34: 0
F35: 0 | I35: 0 | K35: 0 | L35: 0 | M35: 0 | N35: 0
F36: 0 | I36: 0 | K36: 0 | L36: 0 | M36: 0 | N36: 0
F37: 0 | I37: 0 | K37: 0 | L37: 0 | M37: 0 | N37: 0
B38: Vet. Medicine
C39: Bull Exam | F39: 0.04 | H39: Head | I39: 50 | K39: 2 | L39: =+J39*G39 -> 0 | M39: 200 | N39: =+L39*E$7 -> 0
C40: IBR,BVD, PI3,BRSV-Bulls | F40: 0.04 | H40: Head | I40: 1.209 | K40: 0.04836 | L40: 0 | M40: 4.836 | N40: 0
C41: Vibro/lepto-Bulls | F41: 0.08 | H41: Dose | I41: 0.643 | K41: 0.05144 | L41: 0 | M41: 5.144 | N41: 0
C42: Deworm-Bulls | F42: 0.08 | H42: Head | I42: 3.1129 | K42: 0.249032 | L42: 0 | M42: 24.9032 | N42: 0
C43: Cylence-Fly and Lice-Bulls | F43: 0.48 | H43: ML | I43: 0.04 | K43: 0.0192 | L43: 0 | M43: 1.92 | N43: 0
C44: IBR,BVD, PI3, BRVS-Cows | F44: 1 | H44: Head | I44: 1.209 | K44: 1.209 | L44: 0 | M44: 120.9 | N44: 0
C45: Vibrio/Lepto-Cows | F45: 2 | H45: Dose | I45: 0.643 | K45: 1.286 | L45: 0 | M45: 128.6 | N45: 0
C46: Deworm-Cows | F46: 2 | H46: Head | I46: 3.1129 | K46: 6.2258 | L46: 0 | M46: 622.58 | N46: 0
C47: Covexin 8-Cows | F47: 2 | H47: Head | I47: 0.7178 | K47: 1.4356 | L47: 0 | M47: 143.56 | N47: 0
C48: Cylence-Fly and Lice-Cows | F48: 12 | H48: ML | I48: 0.04 | K48: 0.48 | L48: 0 | M48: 48 | N48: 0
C49: Covexin 8-Calves | F49: 1.96 | H49: Head | I49: 0.7178 | K49: 1.406888 | L49: 0 | M49: 140.6888 | N49: 0
C50: IBR,BVD,PI3,BRVS-Calves | F50: 1.96 | H50: Head | I50: 1.209 | K50: 2.36964 | L50: 0 | M50: 236.964 | N50: 0
C51: Implants-Calves | F51: 0.98 | H51: Head | I51: 1.539583333 | K51: 1.508791667 | L51: 0 | M51: 150.8791667 | N51: 0
C52: Cylence-fly and lice-Calves | F52: 19.6 | H52: ML | I52: 0.04 | K52: 0.784 | L52: 0 | M52: 78.4 | N52: 0
F53: 0 | I53: 0 | K53: 0 | L53: 0 | M53: 0 | N53: 0
F54: 0 | I54: 0 | K54: 0 | L54: 0 | M54: 0 | N54: 0
F55: 0 | I55: 0 | K55: 0 | L55: 0 | M55: 0 | N55: 0
B56: Fuel | F56: 1 | H56: AU | I56: 50.4 | K56: 50.4 | L56: 0 | M56: 5040 | N56: 0
B57: Lube (As a % of fuel) | F57: 0.1 | H57: Percent | I57: 50.4 | K57: 5.04 | L57: 0 | M57: 504 | N57: 0
B58: Repairs | F58: 1 | H58: AU | I58: 66.92045714 | K58: 66.92045714 | L58: 0 | M58: 6692.045714 | N58: 0
B59: Labor | F59: 0.4 | H59: Hours | I59: 15 | K59: 6 | L59: 0 | M59: 600 | N59: 0
B60: Utilities | F60: 1 | H60: AU | I60: 24 | K60: 24 | L60: 0 | M60: 2400 | N60: 0
K61: 0 | L61: =+J61*G61 -> 0 | M61: 0 | N61: 0
K62: 0 | L62: 0 | M62: 0 | N62: 0
K63: 0 | L63: 0 | M63: 0 | N63: 0
B64: Interest on Credit Line | I64: 0.0525 | K64: 17.37950633 | L64: =+SUM(L22:L63)/2*J64 -> 0 | M64: 1737.950633 | N64: 0
A65: Total Variable Costs | K65: 365.9241151 | L65: =+SUM(L24:L64) -> 0 | M65: 36592.41151 | N65: =+SUM(N24:N64) -> 0
A67: Planned Returns Above Variable Costs: | K67: 380.4608849 | L67: =+L18-L65 -> 0 | M67: 38046.08849 | N67: =+N18-N65 -> 0
B68: Average Calf Breakeven Price to Cover Variable Costs | I68: 56.38751432 | J68: =IF((E11*G11+E12*G12)=0,"n/a",(L65-SUM(L13:L17))/(E11*G11+E12*G12)) -> n/a | K68: CWT
M69: Enterprise | N69: Enterprise
A70: FIXED COSTS | F70: Quantity | G70: Quantity | H70: Units | I70: $/Unit | J70: $/Unit | K70: Total | L70: Total | M70: Total | N70: Total
B71: Depreciation - Equipment | F71: 1 | H71: AU | I71: 68.09669019 | K71: 68.09669019 | L71: =+G71*J71 -> 0 | M71: 6809.669019 | N71: =+L71*E$7 -> 0
B72: Depreciation - Livestock | F72: 1 | H72: AU | I72: 18.15 | K72: 18.15 | L72: 0 | M72: 1815 | N72: 0
B73: Equipment Investment | F73: 2090.27911 | H73: dollars | I73: 0.06 | K73: 125.4167466 | L73: 0 | M73: 12541.67466 | N73: 0
B74: Insurance | F74: 1 | H74: AU | I74: 0 | K74: 0 | L74: 0 | M74: 0 | N74: 0
B75: Management Fee, Owner/Operator Labor | F75: 1 | H75: AU | I75: 0 | K75: 0 | L75: =+J75*G75 -> 0 | M75: 0 | N75: 0
B76: Salaried Labor | F76: 1 | H76: AU | I76: 0 | K76: 0 | L76: =+J76*G76 -> 0 | M76: 0 | N76: 0
B77: Pasture Cost | F77: 30 | H77: Acres | I77: 8 | K77: 240 | L77: 0 | M77: 24000 | N77: 0
K78: 0 | L78: =+G78*J78 -> 0 | M78: 0 | N78: 0
K79: 0 | L79: 0 | M79: 0 | N79: 0
A80: Total Fixed Costs | K80: 451.6634368 | L80: =+SUM(L71:L77) -> 0 | M80: 45166.34368 | N80: =+SUM(N71:N77) -> 0
A81: Total Costs | K81: 817.5875519 | L81: =+L65+L80 -> 0 | M81: 81758.75519 | N81: =+N65+N80 -> 0
A82: Planned Returns to Management, Risk, and Profit: | K82: -71.20255193 | L82: =+L18-L81 -> 0 | M82: -7120.255193 | N82: =+N18-N81 -> 0
B83: Average Calf Breakeven Price to Cover Total Costs | I83: 179.2891298 | J83: =IF((E11*G11+E12*G12)=0,"n/a",(L81-SUM(L13:L17))/(E11*G11+E12*G12)) -> n/a | K83: CWT
C85: Sensitivity Analysis for Example
C86: Example Weaning Percent | D86: Example Gross Sales per Animal Unit | F86: Pounds Produced per Animal Unit | H86: Example Breakeven Calf Pay Weight to Cover Total Cost | K86: Example Average Breakeven Price to Cover Total Cost
C87: 0.89 | D87: 788.868253 | F87: 547.0662651 | H87: 556.7911458 | K87: 167.2022222
C88: 0.86 | D88: 767.6266265 | F88: 533.7831325 | H88: 580.3175322 | K88: 173.0348578
C89: 0.83 | D89: 746.385 | F89: 520.5 | H89: 605.9197763 | K89: 179.2891298
C90: 0.8 | D90: 725.1433735 | F90: 507.2168675 | H90: 633.8853044 | K90: 186.0124721
C91: 0.77 | D91: 703.901747 | F91: 493.9337349 | H91: 664.557174 | K91: 193.2597113
D93: ="Example Male "&F8&" Price" -> Example Male Calf Price | K93: =+I11 -> 164
D94: ="Example Female "&F8&" Price" -> Example Female Calf Price | K94: =+I12 -> 153
D95: ="Example Weighted Average "&F8&" Price ($/cwt)" -> Example Weighted Average Calf Price ($/cwt) | K95: =+(K11+K12)/(D11*F11+D12*F12) -> 159.9142857
C97: Sensitivity Analysis for Your Values
C98: Your Weaning Percent | D98: ="Your Gross Sales per "&F7 -> Your Gross Sales per Animal Unit | F98: ="Pounds Produced per "&F7 -> Pounds Produced per Animal Unit | H98: ="Your Breakeven "&F8&" Pay Weight to Cover Total Cost" -> Your Breakeven Calf Pay Weight to Cover Total Cost | K98: Your Average Breakeven Price to Cover Total Cost
C99: =+C100+C87-C88 -> 1.06 | D99: =+IF($C$101=0,0,$L$18-$L$11-$L$12+($L$11+$L$12)*C99/$C$101) -> 0 | F99: =IF($C$101=0,0,$M$105*C99/$C$101+$M$106) -> 0 | H99: =IF($D$101=0,0,(YTotExp-(YTotRet+YTotExp-$L$11-$L$12))/(YPrice/100)/(C99-$E$13*$E$7/$E$8)/($E$8/$E$7)) -> 0 | K99: =IF(F99-$M$106=0,0,(YTotExp-(YTotRet+YTotExp-$L$11-$L$12))/(F99-$M$106)*100) -> 0
C100: =+C101+C88-C89 -> 1.03 | D100: =+IF($C$101=0,0,$L$18-$L$11-$L$12+($L$11+$L$12)*C100/$C$101) -> 0 | F100: =IF($C$101=0,0,$M$105*C100/$C$101+$M$106) -> 0 | H100: =IF($D$101=0,0,(YTotExp-(YTotRet+YTotExp-$L$11-$L$12))/(YPrice/100)/(C100-$E$13*$E$7/$E$8)/($E$8/$E$7)) -> 0 | K100: =IF(F100-$M$106=0,0,(YTotExp-(YTotRet+YTotExp-$L$11-$L$12))/(F100-$M$106)*100) -> 0
C101: 1 | D101: =+L18 -> 0 | F101: =M105+M106 -> 0 | H101: =IF($D$101=0,0,(YTotExp-(YTotRet+YTotExp-$L$11-$L$12))/(YPrice/100)/(C101-$E$13*$E$7/$E$8)/($E$8/$E$7)) -> 0 | K101: =IF(F101-$M$106=0,0,(YTotExp-(YTotRet+YTotExp-$L$11-$L$12))/(F101-$M$106)*100) -> 0
C102: =+C101+C90-C89 -> 0.97 | D102: =+IF($C$101=0,0,$L$18-$L$11-$L$12+($L$11+$L$12)*C102/$C$101) -> 0 | F102: =IF($C$101=0,0,$M$105*C102/$C$101+$M$106) -> 0 | H102: =IF($D$101=0,0,(YTotExp-(YTotRet+YTotExp-$L$11-$L$12))/(YPrice/100)/(C102-$E$13*$E$7/$E$8)/($E$8/$E$7)) -> 0 | K102: =IF(F102-$M$106=0,0,(YTotExp-(YTotRet+YTotExp-$L$11-$L$12))/(F102-$M$106)*100) -> 0
C103: =+C102+C91-C90 -> 0.94 | D103: =+IF($C$101=0,0,$L$18-$L$11-$L$12+($L$11+$L$12)*C103/$C$101) -> 0 | F103: =IF($C$101=0,0,$M$105*C103/$C$101+$M$106) -> 0 | H103: =IF($D$101=0,0,(YTotExp-(YTotRet+YTotExp-$L$11-$L$12))/(YPrice/100)/(C103-$E$13*$E$7/$E$8)/($E$8/$E$7)) -> 0 | K103: =IF(F103-$M$106=0,0,(YTotExp-(YTotRet+YTotExp-$L$11-$L$12))/(F103-$M$106)*100) -> 0
D105: ="Your Male "&F8&" Price" -> Your Male Calf Price | K105: =+J11 -> 0 | M105: =(E11*G11+E12*G12)*100 -> 0
D106: ="Your Female "&F8&" Price" -> Your Female Calf Price | K106: =+J12 -> 0 | M106: =(E13*G13+E14*G14)*100 -> 0
D107: ="Your Weighted Average "&F8&" Price ($/cwt)" -> Your Weighted Average Calf Price ($/cwt) | K107: =+IF((E11*G11+E12*G12)=0,0,(L11+L12)/(E11*G11+E12*G12)) -> 0
A109: Developed by Bill Thompson, Associate Professor and Extension Economist, Texas A&M AgriLife Extension Service, 325-653-4576.
A111: Information presented is prepared solely as a general guide and not intended to recognize or predict the costs and returns from any one operation. Brand names are mentioned only as examples and imply no endorsement.

Sheet CommercialHairSheep
A1: Projections for Planning Purposes Only -- Not to be Used without Updating
A2: 2018 Estimated Costs and Returns per Animal Unit
A3: Commercial Hair Sheep, Lamb Production, 6 Head per AU
A4: Enter your name for this budget in the cell above.
A5: Enter Your Values in the cells highlighed in MAROON.
E6: Your Ewes
B7: Animal Units (AU) | D7: 100 | F7: Animal Unit | N7: Your
B8: Breeding Females | D8: 600 | F8: Lamb | G8: Your | M8: Enterprise | N8: Enterprise
E9: Your | F9: Quantity | G9: Quantity | J9: Your | L9: Your | M9: Total | N9: Total
A10: REVENUE | D10: Head | E10: Head | F10: Per Head | G10: Per Head | H10: Units | I10: $/Unit | J10: $/Unit | K10: Total | L10: Total | M10: ="(" & D7 & " AUs)" -> (100 AUs) | N10: ="(" & E7 & " AUs)" -> ( AUs)
B11: Slaughter Lamb - ram (65 Lbs) | D11: 3.15 | F11: 0.65 | H11: CWT | I11: 192 | K11: 393.12 | L11: =+E11*G11*J11 -> 0 | M11: 39312 | N11: =+L11*E$7 -> 0
B12: Slaughter Lamb - ewe (65lbs) | D12: 1.95 | F12: 0.65 | H12: CWT | I12: 192 | K12: 243.36 | L12: =+E12*G12*J12 -> 0 | M12: 24336 | N12: =+L12*E$7 -> 0
B13: Cull Ewes | D13: 1.2 | F13: 1.25 | H13: CWT | I13: 71 | K13: 106.5 | L13: 0 | M13: 10650 | N13: 0
B14: Cull Rams | D14: 0.06 | F14: 1.55 | H14: CWT | I14: 81 | K14: 7.533 | L14: 0 | M14: 753.3 | N14: 0
B15: PRF Income | D15: 6 | F15: 5 | H15: Acre | I15: 1.96 | K15: 58.8 | L15: 0 | M15: 5880 | N15: 0
D16: 0 | F16: 0 | I16: 0 | K16: 0 | L16: 0 | M16: 0 | N16: 0
D17: 0 | F17: 0 | I17: 0 | K17: 0 | L17: 0 | M17: 0 | N17: 0
A18: Total Revenue | F18: 331.5 | K18: 809.313 | L18: =+SUM(L11:L17) -> 0 | M18: 80931.3 | N18: =+SUM(N11:N17) -> 0
F19: 490.8
F20: 159.3 | M20: Enterprise | N20: Enterprise
A21: VARIABLE COSTS | F21: Quantity | G21: Quantity | H21: Units | I21: $/Unit | J21: $/Unit | K21: Total | L21: Total | M21: Total | N21: Total
A22: Production Costs
B23: Miscellaneous
C24: Supplies | F24: 1 | H24: AU | I24: 15 | K24: 15 | L24: =+J24*G24 -> 0 | M24: 1500 | N24: =+L24*E$7 -> 0
C25: Predator Control - Sheep | F25: 5 | H25: Head | I25: 2.1 | K25: 10.5 | L25: 0 | M25: 1050 | N25: 0
C26: Brush Control | F26: 30 | H26: Acre | I26: 1 | K26: 30 | L26: 0 | M26: 3000 | N26: 0
C27: PRF Rainfall Ins | F27: 30 | H27: Acre | I27: 1.11 | K27: 33.3 | L27: 0 | M27: 3330 | N27: 0
F28: 1 | I28: 0 | K28: 0 | L28: 0 | M28: 0 | N28: 0
F29: 1 | I29: 0 | K29: 0 | L29: 0 | M29: 0 | N29: 0
B30: Marketing Expense | F30: 1 | H30: AU | I30: 28.5576 | K30: 28.5576 | L30: 0 | M30: 2855.76 | N30: 0
B31: Feed
C32: Range Cubes 20% | F32: 2.7 | H32: CWT | I32: 16.1 | K32: 43.47 | L32: =+J32*G32 -> 0 | M32: 4347 | N32: =+L32*E$7 -> 0
C33: Corn - Sheep and Goat | F33: 132 | H33: Pound | I33: 0.0714 | K33: 9.4248 | L33: 0 | M33: 942.48 | N33: 0
C34: Salt - Sheep | F34: 15 | H34: Pound | I34: 0.11 | K34: 1.65 | L34: 0 | M34: 165 | N34: 0
C35: Mineral - Sheep | F35: 6 | H35: Pound | I35: 0.59 | K35: 3.54 | L35: 0 | M35: 354 | N35: 0
C36: Dog food | F36: 0.05 | H36: Dog | I36: 650 | K36: 32.5 | L36: 0 | M36: 3250 | N36: 0
F37: 0 | I37: 0 | K37: 0 | L37: 0 | M37: 0 | N37: 0
F38: 0 | I38: 0 | K38: 0 | L38: 0 | M38: 0 | N38: 0
F39: 0 | I39: 0 | K39: 0 | L39: 0 | M39: 0 | N39: 0
B40: Vet. Medicine
C41: Overeat/Tetnus | F41: 12.3 | H41: Dose | I41: 0.27 | K41: 3.321 | L41: 0 | M41: 332.1 | N41: =+L41*E$7 -> 0
C42: Soremouth | F42: 12.3 | H42: Dose | I42: 0.32 | K42: 3.936 | L42: 0 | M42: 393.6 | N42: 0
C43: Guard/Working Dog Health | F43: 0.05 | H43: Head | I43: 250 | K43: 12.5 | L43: 0 | M43: 1250 | N43: 0
F44: 0 | I44: 0 | K44: 0 | L44: 0 | M44: 0 | N44: 0
F45: 0 | I45: 0 | K45: 0 | L45: 0 | M45: 0 | N45: 0
F46: 0 | I46: 0 | K46: 0 | L46: 0 | M46: 0 | N46: 0
B47: Fuel | F47: 1 | H47: AU | I47: 50.4 | K47: 50.4 | L47: 0 | M47: 5040 | N47: 0
B48: Lube (As a % of fuel) | F48: 0.1 | H48: Percent | I48: 50.4 | K48: 5.04 | L48: 0 | M48: 504 | N48: 0
B49: Repairs | F49: 1 | H49: AU | I49: 52.32493714 | K49: 52.32493714 | L49: 0 | M49: 5232.493714 | N49: 0
B50: Labor | F50: 0.3 | H50: Hours | I50: 15 | K50: 4.5 | L50: 0 | M50: 450 | N50: 0
B51: Utilities | F51: 1 | H51: AU | I51: 24 | K51: 24 | L51: 0 | M51: 2400 | N51: 0
K52: 0 | L52: =+J52*G52 -> 0 | M52: 0 | N52: 0
K53: 0 | L53: =+J53*G53 -> 0 | M53: 0 | N53: 0
K54: 0 | L54: 0 | M54: 0 | N54: 0
B55: Interest on Credit Line | I55: 0.0525 | K55: 16.53670701 | L55: =+SUM(L22:L54)/2*J55 -> 0 | M55: 1653.670701 | N55: 0
A56: Total Variable Costs | K56: 380.5010442 | L56: =+SUM(L24:L55) -> 0 | M56: 38050.10442 | N56: =+SUM(N24:N55) -> 0
A58: Planned Returns Above Variable Costs: | K58: 428.8119558 | L58: =+L18-L56 -> 0 | M58: 42881.19558 | N58: =+N18-N56 -> 0
B59: Average Lamb Breakeven Price to Cover Variable Costs | I59: 62.64496053 | J59: =IF((E11*G11+E12*G12)=0,"n/a",(L56-SUM(L13:L17))/(E11*G11+E12*G12)) -> n/a | K59: CWT
M60: Enterprise | N60: Enterprise
A61: FIXED COSTS | F61: Quantity | G61: Quantity | H61: Units | I61: $/Unit | J61: $/Unit | K61: Total | L61: Total | M61: Total | N61: Total
B62: Depreciation - Equipment | F62: 1 | H62: AU | I62: 57.50178072 | K62: 57.50178072 | L62: =+G62*J62 -> 0 | M62: 5750.178072 | N62: =+L62*E$7 -> 0
B63: Depreciation - Livestock | F63: 1 | H63: AU | I63: 43.75 | K63: 43.75 | L63: 0 | M63: 4375 | N63: 0
B64: Equipment Investment | F64: 1546.324538 | H64: dollars | I64: 0.06 | K64: 92.77947228 | L64: 0 | M64: 9277.947228 | N64: 0
B65: Insurance | F65: 1 | H65: AU | I65: 0 | K65: 0 | L65: 0 | M65: 0 | N65: 0
B66: Management Fee, Owner/Operator Labor | F66: 1 | H66: AU | I66: 0 | K66: 0 | L66: =+J66*G66 -> 0 | M66: 0 | N66: 0
B67: Salaried Labor | F67: 1 | H67: AU | I67: 0 | K67: 0 | L67: =+J67*G67 -> 0 | M67: 0 | N67: 0
B68: Pasture Cost | F68: 30 | H68: Acres | I68: 8 | K68: 240 | L68: 0 | M68: 24000 | N68: 0
K69: 0 | L69: 0 | M69: 0 | N69: 0
K70: 0 | L70: 0 | M70: 0 | N70: 0
A71: Total Fixed Costs | K71: 434.031253 | L71: =+SUM(L62:L68) -> 0 | M71: 43403.1253 | N71: =+SUM(N62:N68) -> 0
A72: Total Costs | K72: 814.5322972 | L72: =+L56+L71 -> 0 | M72: 81453.22972 | N72: =+N56+N71 -> 0
A73: Planned Returns to Management, Risk, and Profit: | K73: -5.21929716 | L73: =+L18-L72 -> 0 | M73: -521.929716 | N73: =+N18-N72 -> 0
B74: Average Lamb Breakeven Price to Cover Total Costs | I74: 193.5744486 | J74: =IF((E11*G11+E12*G12)=0,"n/a",(L72-SUM(L13:L17))/(E11*G11+E12*G12)) -> n/a | K74: CWT
C76: Sensitivity Analysis for Example
C77: Example Weaning Percent | D77: Example Gross Sales per Animal Unit | F77: Pounds Produced per Animal Unit | H77: Example Breakeven Lamb Pay Weight to Cover Total Cost | K77: Example Average Breakeven Price to Cover Total Cost
C78: 1.25 | D78: 930.5472857 | F78: 553.9428571 | H78: 53.05053713 | K78: 162.6025368
C79: 1.15 | D79: 869.9301429 | F79: 522.3714286 | H79: 58.6348042 | K79: 176.7418879
C80: 1.05 | D80: 809.313 | F80: 490.8 | H80: 65.53301646 | K80: 193.5744486
C81: 0.95 | D81: 748.6958571 | F81: 459.2285714 | H81: 74.27075199 | K81: 213.9507064
C82: 0.85 | D82: 688.0787143 | F82: 427.6571429 | H82: 85.69702152 | K82: 239.1213777
D84: ="Example Male "&F8&" Price" -> Example Male Lamb Price | K84: =+I11 -> 192
D85: ="Example Female "&F8&" Price" -> Example Female Lamb Price | K85: =+I12 -> 192
D86: ="Example Weighted Average "&F8&" Price ($/cwt)" -> Example Weighted Average Lamb Price ($/cwt) | K86: =+(K11+K12)/(D11*F11+D12*F12) -> 192
C88: Sensitivity Analysis for Your Values
C89: Your Weaning Percent | D89: ="Your Gross Sales per "&F7 -> Your Gross Sales per Animal Unit | F89: ="Pounds Produced per "&F7 -> Pounds Produced per Animal Unit | H89: ="Your Breakeven "&F8&" Pay Weight to Cover Total Cost" -> Your Breakeven Lamb Pay Weight to Cover Total Cost | K89: Your Average Breakeven Price to Cover Total Cost
C90: =+C91+C78-C79 -> 1.2 | D90: =+IF($C$92=0,0,$L$18-$L$11-$L$12+($L$11+$L$12)*C90/$C$92) -> 0 | F90: =IF($C$92=0,0,$M$96*C90/$C$92+$M$97) -> 0 | H90: =IF($D$92=0,0,(YTotExp-(YTotRet+YTotExp-$L$11-$L$12))/(YPrice/100)/(C90-$E$13*$E$7/$E$8)/($E$8/$E$7)) -> 0 | K90: =IF(F90-$M$97=0,0,(YTotExp-(YTotRet+YTotExp-$L$11-$L$12))/(F90-$M$97)*100) -> 0
C91: =+C92+C79-C80 -> 1.1 | D91: =+IF($C$92=0,0,$L$18-$L$11-$L$12+($L$11+$L$12)*C91/$C$92) -> 0 | F91: =IF($C$92=0,0,$M$96*C91/$C$92+$M$97) -> 0 | H91: =IF($D$92=0,0,(YTotExp-(YTotRet+YTotExp-$L$11-$L$12))/(YPrice/100)/(C91-$E$13*$E$7/$E$8)/($E$8/$E$7)) -> 0 | K91: =IF(F91-$M$97=0,0,(YTotExp-(YTotRet+YTotExp-$L$11-$L$12))/(F91-$M$97)*100) -> 0
C92: 1 | D92: =+L18 -> 0 | F92: =M96+M97 -> 0 | H92: =IF($D$92=0,0,(YTotExp-(YTotRet+YTotExp-$L$11-$L$12))/(YPrice/100)/(C92-$E$13*$E$7/$E$8)/($E$8/$E$7)) -> 0 | K92: =IF(F92-$M$97=0,0,(YTotExp-(YTotRet+YTotExp-$L$11-$L$12))/(F92-$M$97)*100) -> 0
C93: =+C92+C81-C80 -> 0.9 | D93: =+IF($C$92=0,0,$L$18-$L$11-$L$12+($L$11+$L$12)*C93/$C$92) -> 0 | F93: =IF($C$92=0,0,$M$96*C93/$C$92+$M$97) -> 0 | H93: =IF($D$92=0,0,(YTotExp-(YTotRet+YTotExp-$L$11-$L$12))/(YPrice/100)/(C93-$E$13*$E$7/$E$8)/($E$8/$E$7)) -> 0 | K93: =IF(F93-$M$97=0,0,(YTotExp-(YTotRet+YTotExp-$L$11-$L$12))/(F93-$M$97)*100) -> 0
C94: =+C93+C82-C81 -> 0.8 | D94: =+IF($C$92=0,0,$L$18-$L$11-$L$12+($L$11+$L$12)*C94/$C$92) -> 0 | F94: =IF($C$92=0,0,$M$96*C94/$C$92+$M$97) -> 0 | H94: =IF($D$92=0,0,(YTotExp-(YTotRet+YTotExp-$L$11-$L$12))/(YPrice/100)/(C94-$E$13*$E$7/$E$8)/($E$8/$E$7)) -> 0 | K94: =IF(F94-$M$97=0,0,(YTotExp-(YTotRet+YTotExp-$L$11-$L$12))/(F94-$M$97)*100) -> 0
D96: ="Your Male "&F8&" Price" -> Your Male Lamb Price | K96: =+J11 -> 0 | M96: =(E11*G11+E12*G12)*100 -> 0
D97: ="Your Female "&F8&" Price" -> Your Female Lamb Price | K97: =+J12 -> 0 | M97: =(E13*G13+E14*G14)*100 -> 0
D98: ="Your Weighted Average "&F8&" Price ($/cwt)" -> Your Weighted Average Lamb Price ($/cwt) | K98: =+IF((E11*G11+E12*G12)=0,0,(L11+L12)/(E11*G11+E12*G12)) -> 0
A100: Developed by Bill Thompson, Associate Professor and Extension Economist, Texas A&M AgriLife Extension Service, 325-653-4576.
A102: Information presented is prepared solely as a general guide and not intended to recognize or predict the costs and returns from any one operation. Brand names are mentioned only as examples and imply no endorsement.

Sheet CommercialSheep
A1: Projections for Planning Purposes Only -- Not to be Used without Updating
A2: 2018 Estimated Costs and Returns per Animal Unit
A3: Commercial Sheep, Wool/Lamb Production, 5 Head per AU
A4: Enter your name for this budget in the cell above.
A5: Enter Your Values in the cells highlighed in MAROON.
E6: Your Ewes
B7: Animal Units (AU) | D7: 100 | F7: Animal Unit | N7: Your
B8: Breeding Females | D8: 500 | F8: Lamb | G8: Your | M8: Enterprise | N8: Enterprise
E9: Your | F9: Quantity | G9: Quantity | J9: Your | L9: Your | M9: Total | N9: Total
A10: REVENUE | D10: Head | E10: Head | F10: Per Head | G10: Per Head | H10: Units | I10: $/Unit | J10: $/Unit | K10: Total | L10: Total | M10: ="(" & D7 & " AUs)" -> (100 AUs) | N10: ="(" & E7 & " AUs)" -> ( AUs)
B11: Lambs - Wether | D11: 2.25 | F11: 0.75 | H11: CWT | I11: 190 | K11: 320.625 | L11: =+E11*G11*J11 -> 0 | M11: 32062.5 | N11: =+L11*E$7 -> 0
B12: Lambs - Ewe | D12: 1.25 | F12: 0.75 | H12: CWT | I12: 190 | K12: 178.125 | L12: =+E12*G12*J12 -> 0 | M12: 17812.5 | N12: =+L12*E$7 -> 0
B13: Cull Ewes | D13: 1 | F13: 1.35 | H13: CWT | I13: 71 | K13: 95.85 | L13: 0 | M13: 9585 | N13: 0
B14: Cull Rams | D14: 0.05 | F14: 2 | H14: CWT | I14: 81 | K14: 8.1 | L14: 0 | M14: 810 | N14: 0
B15: Wool, 20.6-22.0 Mic | D15: 5 | F15: 8 | H15: Pound | I15: 5.3 | K15: 212 | L15: 0 | M15: 21200 | N15: 0
D16: 5 | F16: 6 | I16: 1.96 | K16: 58.8 | L16: 0 | M16: 5880 | N16: 0
D17: 0 | F17: 0 | I17: 0 | K17: 0 | L17: 0 | M17: 0 | N17: 0
A18: Total Revenue | F18: 262.5 | K18: 873.5 | L18: =+SUM(L11:L17) -> 0 | M18: 87350 | N18: =+SUM(N11:N17) -> 0
F19: 407.5
F20: 145 | M20: Enterprise | N20: Enterprise
A21: VARIABLE COSTS | F21: Quantity | G21: Quantity | H21: Units | I21: $/Unit | J21: $/Unit | K21: Total | L21: Total | M21: Total | N21: Total
A22: Production Costs
B23: Miscellaneous
C24: Supplies | F24: 1 | H24: AU | I24: 15 | K24: 15 | L24: =+J24*G24 -> 0 | M24: 1500 | N24: =+L24*E$7 -> 0
C25: Predator Control - Sheep | F25: 5 | H25: Head | I25: 2.1 | K25: 10.5 | L25: 0 | M25: 1050 | N25: 0
C26: Brush Control | F26: 30 | H26: Acre | I26: 1 | K26: 30 | L26: 0 | M26: 3000 | N26: 0
C27: PRF Rainfall Ins | F27: 30 | H27: Acre | I27: 1.11 | K27: 33.3 | L27: 0 | M27: 3330 | N27: 0
F28: 5 | I28: 1.9 | K28: 9.5 | L28: 0 | M28: 950 | N28: 0
F29: 5 | I29: 3.25 | K29: 16.25 | L29: 0 | M29: 1625 | N29: 0
B30: Marketing Expense | F30: 1 | H30: AU | I30: 20.825 | K30: 20.825 | L30: 0 | M30: 2082.5 | N30: 0
B31: Feed
C32: Range Cubes 20% | F32: 2.25 | H32: CWT | I32: 16.1 | K32: 36.225 | L32: =+J32*G32 -> 0 | M32: 3622.5 | N32: =+L32*E$7 -> 0
C33: Corn - Sheep and Goat | F33: 110 | H33: Pound | I33: 0.0714 | K33: 7.854 | L33: 0 | M33: 785.4 | N33: 0
C34: Salt - Sheep | F34: 15 | H34: Pound | I34: 0.11 | K34: 1.65 | L34: 0 | M34: 165 | N34: 0
C35: Mineral - Sheep | F35: 6 | H35: Pound | I35: 0.59 | K35: 3.54 | L35: 0 | M35: 354 | N35: 0
C36: Dog food | F36: 0.05 | H36: Dog | I36: 650 | K36: 32.5 | L36: 0 | M36: 3250 | N36: 0
F37: 0 | I37: 0 | K37: 0 | L37: 0 | M37: 0 | N37: 0
F38: 0 | I38: 0 | K38: 0 | L38: 0 | M38: 0 | N38: 0
F39: 0 | I39: 0 | K39: 0 | L39: 0 | M39: 0 | N39: 0
B40: Vet. Medicine
C41: Overeat/Tetnus | F41: 4.5 | H41: Dose | I41: 0.27 | K41: 1.215 | L41: 0 | M41: 121.5 | N41: =+L41*E$7 -> 0
C42: Soremouth | F42: 4.5 | H42: Dose | I42: 0.32 | K42: 1.44 | L42: 0 | M42: 144 | N42: 0
C43: Guard/Working Dog Health | F43: 0.05 | H43: Head | I43: 250 | K43: 12.5 | L43: 0 | M43: 1250 | N43: 0
C44: S&G Deworm 1st | F44: 25.725 | H44: ml | I44: 0.12495 | K44: 3.21433875 | L44: 0 | M44: 321.433875 | N44: 0
C45: S&G Deworm 2nd | F45: 2.86 | H45: Grams | I45: 0.4423076923 | K45: 1.265 | L45: 0 | M45: 126.5 | N45: 0
F46: 0 | I46: 0 | K46: 0 | L46: 0 | M46: 0 | N46: 0
F47: 0 | I47: 0 | K47: 0 | L47: 0 | M47: 0 | N47: 0
F48: 0 | I48: 0 | K48: 0 | L48: 0 | M48: 0 | N48: 0
B49: Fuel | F49: 1 | H49: AU | I49: 50.4 | K49: 50.4 | L49: 0 | M49: 5040 | N49: 0
B50: Lube (As a % of fuel) | F50: 0.1 | H50: Percent | I50: 50.4 | K50: 5.04 | L50: 0 | M50: 504 | N50: 0
B51: Repairs | F51: 1 | H51: AU | I51: 52.32493714 | K51: 52.32493714 | L51: 0 | M51: 5232.493714 | N51: 0
B52: Labor | F52: 0.6 | H52: Hours | I52: 15 | K52: 9 | L52: 0 | M52: 900 | N52: 0
B53: Utilities | F53: 1 | H53: AU | I53: 24 | K53: 24 | L53: 0 | M53: 2400 | N53: 0
K54: 0 | L54: =+J54*G54 -> 0 | M54: 0 | N54: 0
K55: 0 | L55: =+J55*G55 -> 0 | M55: 0 | N55: 0
K56: 0 | L56: 0 | M56: 0 | N56: 0
B57: Interest on Credit Line | I57: 0.0525 | K57: 22.20353249 | L57: =+SUM(L22:L56)/2*J57 -> 0 | M57: 2220.353249 | N57: 0
A58: Total Variable Costs | K58: 399.7468084 | L58: =+SUM(L24:L57) -> 0 | M58: 39974.68084 | N58: =+SUM(N24:N57) -> 0
A60: Planned Returns Above Variable Costs: | K60: 473.7531916 | L60: =+L18-L58 -> 0 | M60: 47375.31916 | N60: =+N18-N58 -> 0
B61: Average Lamb Breakeven Price to Cover Variable Costs | I61: 9.52259367 | J61: =IF((E11*G11+E12*G12)=0,"n/a",(L58-SUM(L13:L17))/(E11*G11+E12*G12)) -> n/a | K61: CWT
M62: Enterprise | N62: Enterprise
A63: FIXED COSTS | F63: Quantity | G63: Quantity | H63: Units | I63: $/Unit | J63: $/Unit | K63: Total | L63: Total | M63: Total | N63: Total
B64: Depreciation - Equipment | F64: 1 | H64: AU | I64: 58.02678072 | K64: 58.02678072 | L64: =+G64*J64 -> 0 | M64: 5802.678072 | N64: =+L64*E$7 -> 0
B65: Depreciation - Livestock | F65: 1 | H65: AU | I65: 43.75 | K65: 43.75 | L65: 0 | M65: 4375 | N65: 0
B66: Equipment Investment | F66: 1558.574538 | H66: dollars | I66: 0.06 | K66: 93.51447228 | L66: 0 | M66: 9351.447228 | N66: 0
B67: Insurance | F67: 1 | H67: AU | I67: 0 | K67: 0 | L67: 0 | M67: 0 | N67: 0
B68: Management Fee, Owner/Operator Labor | F68: 1 | H68: AU | I68: 0 | K68: 0 | L68: =+J68*G68 -> 0 | M68: 0 | N68: 0
B69: Salaried Labor | F69: 1 | H69: AU | I69: 0 | K69: 0 | L69: =+J69*G69 -> 0 | M69: 0 | N69: 0
B70: Pasture Cost | F70: 30 | H70: Acres | I70: 8 | K70: 240 | L70: 0 | M70: 24000 | N70: 0
K71: 0 | L71: 0 | M71: 0 | N71: 0
K72: 0 | L72: 0 | M72: 0 | N72: 0
A73: Total Fixed Costs | K73: 435.291253 | L73: =+SUM(L64:L70) -> 0 | M73: 43529.1253 | N73: =+SUM(N64:N70) -> 0
A74: Total Costs | K74: 835.0380614 | L74: =+L58+L73 -> 0 | M74: 83503.80614 | N74: =+N58+N73 -> 0
A75: Planned Returns to Management, Risk, and Profit: | K75: 38.46193861 | L75: =+L18-L74 -> 0 | M75: 3846.193861 | N75: =+N18-N74 -> 0
B76: Average Lamb Breakeven Price to Cover Total Costs | I76: 175.3478329 | J76: =IF((E11*G11+E12*G12)=0,"n/a",(L74-SUM(L13:L17))/(E11*G11+E12*G12)) -> n/a | K76: CWT
C78: Sensitivity Analysis for Example
C79: Example Weaning Percent | D79: Example Gross Sales per Animal Unit | F79: Pounds Produced per Animal Unit | H79: Example Breakeven Lamb Pay Weight to Cover Total Cost | K79: Example Average Breakeven Price to Cover Total Cost
C80: 1.1 | D80: 984.3333333 | F80: 465.8333333 | H80: 53.83486098 | K80: 143.4664087
C81: 1 | D81: 928.9166667 | F81: 436.6666667 | H81: 60.5642186 | K81: 157.8130496
C82: 0.9 | D82: 873.5 | F82: 407.5 | H82: 69.21624983 | K82: 175.3478329
C83: 0.8 | D83: 818.0833333 | F83: 378.3333333 | H83: 80.75229147 | K83: 197.266312
C84: 0.7 | D84: 762.6666667 | F84: 349.1666667 | H84: 96.90274977 | K84: 225.4472137
D86: ="Example Male "&F8&" Price" -> Example Male Lamb Price | K86: =+I11 -> 190
D87: ="Example Female "&F8&" Price" -> Example Female Lamb Price | K87: =+I12 -> 190
D88: ="Example Weighted Average "&F8&" Price ($/cwt)" -> Example Weighted Average Lamb Price ($/cwt) | K88: =+(K11+K12)/(D11*F11+D12*F12) -> 190
C90: Sensitivity Analysis for Your Values
C91: Your Weaning Percent | D91: ="Your Gross Sales per "&F7 -> Your Gross Sales per Animal Unit | F91: ="Pounds Produced per "&F7 -> Pounds Produced per Animal Unit | H91: ="Your Breakeven "&F8&" Pay Weight to Cover Total Cost" -> Your Breakeven Lamb Pay Weight to Cover Total Cost | K91: Your Average Breakeven Price to Cover Total Cost
C92: =+C93+C80-C81 -> 1.2 | D92: =+IF($C$94=0,0,$L$18-$L$11-$L$12+($L$11+$L$12)*C92/$C$94) -> 0 | F92: =IF($C$94=0,0,$M$98*C92/$C$94+$M$99) -> 0 | H92: =IF($D$94=0,0,(YTotExp-(YTotRet+YTotExp-$L$11-$L$12))/(YPrice/100)/(C92-$E$13*$E$7/$E$8)/($E$8/$E$7)) -> 0 | K92: =IF(F92-$M$99=0,0,(YTotExp-(YTotRet+YTotExp-$L$11-$L$12))/(F92-$M$99)*100) -> 0
C93: =+C94+C81-C82 -> 1.1 | D93: =+IF($C$94=0,0,$L$18-$L$11-$L$12+($L$11+$L$12)*C93/$C$94) -> 0 | F93: =IF($C$94=0,0,$M$98*C93/$C$94+$M$99) -> 0 | H93: =IF($D$94=0,0,(YTotExp-(YTotRet+YTotExp-$L$11-$L$12))/(YPrice/100)/(C93-$E$13*$E$7/$E$8)/($E$8/$E$7)) -> 0 | K93: =IF(F93-$M$99=0,0,(YTotExp-(YTotRet+YTotExp-$L$11-$L$12))/(F93-$M$99)*100) -> 0
C94: 1 | D94: =+L18 -> 0 | F94: =M98+M99 -> 0 | H94: =IF($D$94=0,0,(YTotExp-(YTotRet+YTotExp-$L$11-$L$12))/(YPrice/100)/(C94-$E$13*$E$7/$E$8)/($E$8/$E$7)) -> 0 | K94: =IF(F94-$M$99=0,0,(YTotExp-(YTotRet+YTotExp-$L$11-$L$12))/(F94-$M$99)*100) -> 0
C95: =+C94+C83-C82 -> 0.9 | D95: =+IF($C$94=0,0,$L$18-$L$11-$L$12+($L$11+$L$12)*C95/$C$94) -> 0 | F95: =IF($C$94=0,0,$M$98*C95/$C$94+$M$99) -> 0 | H95: =IF($D$94=0,0,(YTotExp-(YTotRet+YTotExp-$L$11-$L$12))/(YPrice/100)/(C95-$E$13*$E$7/$E$8)/($E$8/$E$7)) -> 0 | K95: =IF(F95-$M$99=0,0,(YTotExp-(YTotRet+YTotExp-$L$11-$L$12))/(F95-$M$99)*100) -> 0
C96: =+C95+C84-C83 -> 0.8 | D96: =+IF($C$94=0,0,$L$18-$L$11-$L$12+($L$11+$L$12)*C96/$C$94) -> 0 | F96: =IF($C$94=0,0,$M$98*C96/$C$94+$M$99) -> 0 | H96: =IF($D$94=0,0,(YTotExp-(YTotRet+YTotExp-$L$11-$L$12))/(YPrice/100)/(C96-$E$13*$E$7/$E$8)/($E$8/$E$7)) -> 0 | K96: =IF(F96-$M$99=0,0,(YTotExp-(YTotRet+YTotExp-$L$11-$L$12))/(F96-$M$99)*100) -> 0
D98: ="Your Male "&F8&" Price" -> Your Male Lamb Price | K98: =+J11 -> 0 | M98: =(E11*G11+E12*G12)*100 -> 0
D99: ="Your Female "&F8&" Price" -> Your Female Lamb Price | K99: =+J12 -> 0 | M99: =(E13*G13+E14*G14)*100 -> 0
D100: ="Your Weighted Average "&F8&" Price ($/cwt)" -> Your Weighted Average Lamb Price ($/cwt) | K100: =+IF((E11*G11+E12*G12)=0,0,(L11+L12)/(E11*G11+E12*G12)) -> 0
A102: Developed by Bill Thompson, Associate Professor and Extension Economist, Texas A&M AgriLife Extension Service, 325-653-4576.
A104: Information presented is prepared solely as a general guide and not intended to recognize or predict the costs and returns from any one operation. Brand names are mentioned only as examples and imply no endorsement.

Sheet MeatGoats
A1: Projections for Planning Purposes Only -- Not to be Used without Updating
A2: 2018 Estimated Costs and Returns per Animal Unit
A3: Commercial Meat Goats, 6 Head per AU
A4: Enter your name for this budget in the cell above.
A5: Enter Your Values in the cells highlighed in MAROON.
E6: Your Does
B7: Animal Units (AU) | D7: 100 | F7: Animal Unit | N7: Your
B8: Breeding Females | D8: 600 | F8: Kid | G8: Your | M8: Enterprise | N8: Enterprise
E9: Your | F9: Quantity | G9: Quantity | J9: Your | L9: Your | M9: Total | N9: Total
A10: REVENUE | D10: Head | E10: Head | F10: Per Head | G10: Per Head | H10: Units | I10: $/Unit | J10: $/Unit | K10: Total | L10: Total | M10: ="(" & D7 & " AUs)" -> (100 AUs) | N10: ="(" & E7 & " AUs)" -> ( AUs)
B11: Meat Goat Kid - Buck | D11: 3.6 | F11: 0.57 | H11: CWT | I11: 245 | K11: 502.74 | L11: =+E11*G11*J11 -> 0 | M11: 50274 | N11: =+L11*E$7 -> 0
B12: Meat Goat Kid - Doe | D12: 2.4 | F12: 0.57 | H12: CWT | I12: 245 | K12: 335.16 | L12: =+E12*G12*J12 -> 0 | M12: 33516 | N12: =+L12*E$7 -> 0
B13: Cull Does | D13: 1.2 | F13: 1.1 | H13: CWT | I13: 122 | K13: 161.04 | L13: 0 | M13: 16104 | N13: 0
B14: Cull Billy | D14: 0.06 | F14: 1.7 | H14: CWT | I14: 135 | K14: 13.77 | L14: 0 | M14: 1377 | N14: 0
B15: PRF Income | D15: 6 | F15: 5 | H15: Acre | I15: 1.96 | K15: 58.8 | L15: 0 | M15: 5880 | N15: 0
D16: 0 | F16: 0 | I16: 0 | K16: 0 | L16: 0 | M16: 0 | N16: 0
D17: 0 | F17: 0 | I17: 0 | K17: 0 | L17: 0 | M17: 0 | N17: 0
A18: Total Revenue | F18: 342 | K18: 1071.51 | L18: =+SUM(L11:L17) -> 0 | M18: 107151 | N18: =+SUM(N11:N17) -> 0
F19: 484.2
F20: 142.2 | M20: Enterprise | N20: Enterprise
A21: VARIABLE COSTS | F21: Quantity | G21: Quantity | H21: Units | I21: $/Unit | J21: $/Unit | K21: Total | L21: Total | M21: Total | N21: Total
A22: Production Costs
B23: Miscellaneous
C24: Supplies | F24: 6 | H24: Head | I24: 3 | K24: 18 | L24: =+J24*G24 -> 0 | M24: 1800 | N24: =+L24*E$7 -> 0
C25: Predator Control - Goats | F25: 6 | H25: Head | I25: 3.53 | K25: 21.18 | L25: 0 | M25: 2118 | N25: 0
C26: Brush Control | F26: 30 | H26: Acre | I26: 1 | K26: 30 | L26: 0 | M26: 3000 | N26: 0
C27: PRF Rainfall Ins | F27: 30 | H27: Acre | I27: 1.11 | K27: 33.3 | L27: 0 | M27: 3330 | N27: 0
F28: 1 | I28: 0 | K28: 0 | L28: 0 | M28: 0 | N28: 0
F29: 1 | I29: 0 | K29: 0 | L29: 0 | M29: 0 | N29: 0
B30: Marketing Expense | F30: 1 | H30: AU | I30: 28.677 | K30: 28.677 | L30: 0 | M30: 2867.7 | N30: 0
B31: Feed
C32: Range Cubes 20% | F32: 2.7 | H32: CWT | I32: 16.1 | K32: 43.47 | L32: =+J32*G32 -> 0 | M32: 4347 | N32: =+L32*E$7 -> 0
C33: Corn - Sheep and Goat | F33: 135 | H33: Pound | I33: 0.0714 | K33: 9.639 | L33: 0 | M33: 963.9 | N33: 0
C34: Salt - Sheep | F34: 15 | H34: Pound | I34: 0.11 | K34: 1.65 | L34: 0 | M34: 165 | N34: 0
C35: Mineral - Sheep | F35: 6 | H35: Pound | I35: 0.59 | K35: 3.54 | L35: 0 | M35: 354 | N35: 0
C36: Dog food | F36: 0.05 | H36: Dog | I36: 650 | K36: 32.5 | L36: 0 | M36: 3250 | N36: 0
F37: 0 | I37: 0 | K37: 0 | L37: 0 | M37: 0 | N37: 0
F38: 0 | I38: 0 | K38: 0 | L38: 0 | M38: 0 | N38: 0
F39: 0 | I39: 0 | K39: 0 | L39: 0 | M39: 0 | N39: 0
B40: Vet. Medicine
C41: Soremouth | F41: 7.2 | H41: Dose | I41: 0.32 | K41: 2.304 | L41: 0 | M41: 230.4 | N41: =+L41*E$7 -> 0
C42: Guard/Working Dog Health | F42: 0.05 | H42: Head | I42: 250 | K42: 12.5 | L42: 0 | M42: 1250 | N42: 0
C43: S&G Deworm 1st | F43: 35.04 | H43: ml | I43: 0.12495 | K43: 4.378248 | L43: 0 | M43: 437.8248 | N43: 0
C44: S&G Deworm 2nd | F44: 5.6064 | H44: Grams | I44: 0.4423076923 | K44: 2.479753846 | L44: 0 | M44: 247.9753846 | N44: 0
F45: 0 | I45: 0 | K45: 0 | L45: 0 | M45: 0 | N45: 0
F46: 0 | I46: 0 | K46: 0 | L46: 0 | M46: 0 | N46: 0
F47: 0 | I47: 0 | K47: 0 | L47: 0 | M47: 0 | N47: 0
B48: Fuel | F48: 1 | H48: AU | I48: 50.4 | K48: 50.4 | L48: 0 | M48: 5040 | N48: 0
B49: Lube (As a % of fuel) | F49: 0.1 | H49: Percent | I49: 50.4 | K49: 5.04 | L49: 0 | M49: 504 | N49: 0
B50: Repairs | F50: 1 | H50: AU | I50: 52.32493714 | K50: 52.32493714 | L50: 0 | M50: 5232.493714 | N50: 0
B51: Labor | F51: 0.4 | H51: Hours | I51: 15 | K51: 6 | L51: 0 | M51: 600 | N51: 0
B52: Utilities | F52: 1 | H52: AU | I52: 24 | K52: 24 | L52: 0 | M52: 2400 | N52: 0
K53: 0 | L53: =+J53*G53 -> 0 | M53: 0 | N53: 0
K54: 0 | L54: =+J54*G54 -> 0 | M54: 0 | N54: 0
K55: 0 | L55: 0 | M55: 0 | N55: 0
B56: Interest on Credit Line | I56: 0.0525 | K56: 22.19393958 | L56: =+SUM(L22:L55)/2*J56 -> 0 | M56: 2219.393958 | N56: 0
A57: Total Variable Costs | K57: 403.5768786 | L57: =+SUM(L24:L56) -> 0 | M57: 40357.68786 | N57: =+SUM(N24:N56) -> 0
A59: Planned Returns Above Variable Costs: | K59: 667.9331214 | L59: =+L18-L57 -> 0 | M59: 66793.31214 | N59: =+N18-N57 -> 0
B60: Average Kid Breakeven Price to Cover Variable Costs | I60: 49.69791771 | J60: =IF((E11*G11+E12*G12)=0,"n/a",(L57-SUM(L13:L17))/(E11*G11+E12*G12)) -> n/a | K60: CWT
M61: Enterprise | N61: Enterprise
A62: FIXED COSTS | F62: Quantity | G62: Quantity | H62: Units | I62: $/Unit | J62: $/Unit | K62: Total | L62: Total | M62: Total | N62: Total
B63: Depreciation - Equipment | F63: 1 | H63: AU | I63: 58.28928072 | K63: 58.28928072 | L63: =+G63*J63 -> 0 | M63: 5828.928072 | N63: =+L63*E$7 -> 0
B64: Depreciation - Livestock | F64: 1 | H64: AU | I64: 40.79 | K64: 40.79 | L64: 0 | M64: 4079 | N64: 0
B65: Equipment Investment | F65: 1564.699538 | H65: dollars | I65: 0.06 | K65: 93.88197228 | L65: 0 | M65: 9388.197228 | N65: 0
B66: Insurance | F66: 1 | H66: AU | I66: 0 | K66: 0 | L66: 0 | M66: 0 | N66: 0
B67: Management Fee, Owner/Operator Labor | F67: 1 | H67: AU | I67: 0 | K67: 0 | L67: =+J67*G67 -> 0 | M67: 0 | N67: 0
B68: Salaried Labor | F68: 1 | H68: AU | I68: 0 | K68: 0 | L68: =+J68*G68 -> 0 | M68: 0 | N68: 0
B69: Pasture Cost | F69: 30 | H69: Acres | I69: 8 | K69: 240 | L69: 0 | M69: 24000 | N69: 0
K70: 0 | L70: 0 | M70: 0 | N70: 0
K71: 0 | L71: 0 | M71: 0 | N71: 0
A72: Total Fixed Costs | K72: 432.961253 | L72: =+SUM(L63:L69) -> 0 | M72: 43296.1253 | N72: =+SUM(N63:N69) -> 0
A73: Total Costs | K73: 836.5381316 | L73: =+L57+L72 -> 0 | M73: 83653.81316 | N73: =+N57+N72 -> 0
A74: Planned Returns to Management, Risk, and Profit: | K74: 234.9718684 | L74: =+L18-L73 -> 0 | M74: 23497.18684 | N74: =+N18-N73 -> 0
B75: Average Kid Breakeven Price to Cover Total Costs | I75: 176.2947753 | J75: =IF((E11*G11+E12*G12)=0,"n/a",(L73-SUM(L13:L17))/(E11*G11+E12*G12)) -> n/a | K75: CWT
C77: Sensitivity Analysis for Example
C78: Example Weaning Percent | D78: Example Gross Sales per Animal Unit | F78: Pounds Produced per Animal Unit | H78: Example Breakeven Kid Pay Weight to Cover Total Cost | K78: Example Average Breakeven Price to Cover Total Cost
C79: 1.4 | D79: 1211.16 | F79: 541.2 | H79: 34.1795993 | K79: 151.1098074
C80: 1.3 | D80: 1141.335 | F80: 512.7 | H80: 37.2868356 | K80: 162.7336388
C81: 1.2 | D81: 1071.51 | F81: 484.2 | H81: 41.01551915 | K81: 176.2947753
C82: 1.1 | D82: 1001.685 | F82: 455.7 | H82: 45.57279906 | K82: 192.3215731
C83: 1 | D83: 931.86 | F83: 427.2 | H83: 51.26939894 | K83: 211.5537304
D85: ="Example Male "&F8&" Price" -> Example Male Kid Price | K85: =+I11 -> 245
D86: ="Example Female "&F8&" Price" -> Example Female Kid Price | K86: =+I12 -> 245
D87: ="Example Weighted Average "&F8&" Price ($/cwt)" -> Example Weighted Average Kid Price ($/cwt) | K87: =+(K11+K12)/(D11*F11+D12*F12) -> 245
C89: Sensitivity Analysis for Your Values
C90: Your Weaning Percent | D90: ="Your Gross Sales per "&F7 -> Your Gross Sales per Animal Unit | F90: ="Pounds Produced per "&F7 -> Pounds Produced per Animal Unit | H90: ="Your Breakeven "&F8&" Pay Weight to Cover Total Cost" -> Your Breakeven Kid Pay Weight to Cover Total Cost | K90: Your Average Breakeven Price to Cover Total Cost
C91: =+C92+C79-C80 -> 1.2 | D91: =+IF($C$93=0,0,$L$18-$L$11-$L$12+($L$11+$L$12)*C91/$C$93) -> 0 | F91: =IF($C$93=0,0,$M$97*C91/$C$93+$M$98) -> 0 | H91: =IF($D$93=0,0,(YTotExp-(YTotRet+YTotExp-$L$11-$L$12))/(YPrice/100)/(C91-$E$13*$E$7/$E$8)/($E$8/$E$7)) -> 0 | K91: =IF(F91-$M$98=0,0,(YTotExp-(YTotRet+YTotExp-$L$11-$L$12))/(F91-$M$98)*100) -> 0
C92: =+C93+C80-C81 -> 1.1 | D92: =+IF($C$93=0,0,$L$18-$L$11-$L$12+($L$11+$L$12)*C92/$C$93) -> 0 | F92: =IF($C$93=0,0,$M$97*C92/$C$93+$M$98) -> 0 | H92: =IF($D$93=0,0,(YTotExp-(YTotRet+YTotExp-$L$11-$L$12))/(YPrice/100)/(C92-$E$13*$E$7/$E$8)/($E$8/$E$7)) -> 0 | K92: =IF(F92-$M$98=0,0,(YTotExp-(YTotRet+YTotExp-$L$11-$L$12))/(F92-$M$98)*100) -> 0
C93: 1 | D93: =+L18 -> 0 | F93: =M97+M98 -> 0 | H93: =IF($D$93=0,0,(YTotExp-(YTotRet+YTotExp-$L$11-$L$12))/(YPrice/100)/(C93-$E$13*$E$7/$E$8)/($E$8/$E$7)) -> 0 | K93: =IF(F93-$M$98=0,0,(YTotExp-(YTotRet+YTotExp-$L$11-$L$12))/(F93-$M$98)*100) -> 0
C94: =+C93+C82-C81 -> 0.9 | D94: =+IF($C$93=0,0,$L$18-$L$11-$L$12+($L$11+$L$12)*C94/$C$93) -> 0 | F94: =IF($C$93=0,0,$M$97*C94/$C$93+$M$98) -> 0 | H94: =IF($D$93=0,0,(YTotExp-(YTotRet+YTotExp-$L$11-$L$12))/(YPrice/100)/(C94-$E$13*$E$7/$E$8)/($E$8/$E$7)) -> 0 | K94: =IF(F94-$M$98=0,0,(YTotExp-(YTotRet+YTotExp-$L$11-$L$12))/(F94-$M$98)*100) -> 0
C95: =+C94+C83-C82 -> 0.8 | D95: =+IF($C$93=0,0,$L$18-$L$11-$L$12+($L$11+$L$12)*C95/$C$93) -> 0 | F95: =IF($C$93=0,0,$M$97*C95/$C$93+$M$98) -> 0 | H95: =IF($D$93=0,0,(YTotExp-(YTotRet+YTotExp-$L$11-$L$12))/(YPrice/100)/(C95-$E$13*$E$7/$E$8)/($E$8/$E$7)) -> 0 | K95: =IF(F95-$M$98=0,0,(YTotExp-(YTotRet+YTotExp-$L$11-$L$12))/(F95-$M$98)*100) -> 0
D97: ="Your Male "&F8&" Price" -> Your Male Kid Price | K97: =+J11 -> 0 | M97: =(E11*G11+E12*G12)*100 -> 0
D98: ="Your Female "&F8&" Price" -> Your Female Kid Price | K98: =+J12 -> 0 | M98: =(E13*G13+E14*G14)*100 -> 0
D99: ="Your Weighted Average "&F8&" Price ($/cwt)" -> Your Weighted Average Kid Price ($/cwt) | K99: =+IF((E11*G11+E12*G12)=0,0,(L11+L12)/(E11*G11+E12*G12)) -> 0
A101: Developed by Bill Thompson, Associate Professor and Extension Economist, Texas A&M AgriLife Extension Service, 325-653-4576.
A103: Information presented is prepared solely as a general guide and not intended to recognize or predict the costs and returns from any one operation. Brand names are mentioned only as examples and imply no endorsement.

Sheet SmallAcreageGoat
A1: Projections for Planning Purposes Only -- Not to be Used without Updating
A2: 2018 Estimated Costs and Returns per Breeding Female
A3: Small Acreage Meat Goats
A4: Enter your name for this budget in the cell above.
A5: Enter Your Values in the cells highlighed in MAROON.
E6: Your Nannies
B7: Animal Units (AU) | D7: 12 | E7: =E8 -> 0 | F7: Breeding Female | N7: Your
B8: Breeding Females | D8: 12 | F8: Kid | G8: Your | M8: Enterprise | N8: Enterprise
E9: Your | F9: Quantity | G9: Quantity | J9: Your | L9: Your | M9: Total | N9: Total
A10: REVENUE | D10: Head | E10: Head | F10: Per Head | G10: Per Head | H10: Units | I10: $/Unit | J10: $/Unit | K10: Total | L10: Total | M10: ="(" & D8 & " Head)" -> (12 Head) | N10: ="(" & E8 & " Head)" -> ( Head)
B11: Meat Goat Kid - Buck | D11: 0.6666666667 | F11: 0.55 | H11: CWT | I11: 245 | K11: 89.83333333 | L11: =+E11*G11*J11 -> 0 | M11: 1078 | N11: =+L11*E$7 -> 0
B12: Meat Goat Kid - Doe | D12: 0.4166666667 | F12: 0.55 | H12: CWT | I12: 245 | K12: 56.14583333 | L12: =+E12*G12*J12 -> 0 | M12: 673.75 | N12: =+L12*E$7 -> 0
B13: Cull Does | D13: 0.1666666667 | F13: 1.15 | H13: CWT | I13: 122 | K13: 23.38333333 | L13: 0 | M13: 280.6 | N13: 0
B14: Cull Billy | D14: 0.04166666667 | F14: 2 | H14: CWT | I14: 135 | K14: 11.25 | L14: 0 | M14: 135 | N14: 0
B15: PRF Income | D15: 1 | F15: 3.33 | H15: Acre | I15: 1.96 | K15: 6.5268 | L15: 0 | M15: 78.3216 | N15: 0
D16: 0 | F16: 0 | I16: 0 | K16: 0 | L16: 0 | M16: 0 | N16: 0
D17: 0 | F17: 0 | I17: 0 | K17: 0 | L17: 0 | M17: 0 | N17: 0
A18: Total Revenue | F18: 59.58333333 | K18: 187.1393 | L18: =+SUM(L11:L17) -> 0 | M18: 2245.6716 | N18: =+SUM(N11:N17) -> 0
F19: 87.08333333
F20: 27.5 | M20: Enterprise | N20: Enterprise
A21: VARIABLE COSTS | F21: Quantity | G21: Quantity | H21: Units | I21: $/Unit | J21: $/Unit | K21: Total | L21: Total | M21: Total | N21: Total
A22: Production Costs
B23: Miscellaneous
C24: Supplies | F24: 0.6666666667 | H24: Head | I24: 3 | K24: 2 | L24: =+J24*G24 -> 0 | M24: 24 | N24: =+L24*E$7 -> 0
C25: PRF Rainfall Ins | F25: 3.333333333 | H25: Acre | I25: 1.11 | K25: 3.7 | L25: 0 | M25: 44.4 | N25: 0
F26: 1 | I26: 0 | K26: 0 | L26: 0 | M26: 0 | N26: 0
F27: 1 | I27: 0 | K27: 0 | L27: 0 | M27: 0 | N27: 0
B28: Marketing Expense | F28: 1 | H28: Head | I28: 5.102083333 | K28: 5.102083333 | L28: 0 | M28: 61.225 | N28: 0
B29: Feed
C30: Range Cubes 20% | F30: 0.4875 | H30: CWT | I30: 16.1 | K30: 7.84875 | L30: =+J30*G30 -> 0 | M30: 94.185 | N30: =+L30*E$7 -> 0
C31: Corn - Sheep and Goat | F31: 24.375 | H31: Pound | I31: 0.0714 | K31: 1.740375 | L31: 0 | M31: 20.8845 | N31: 0
C32: Salt - Sheep | F32: 2.708333333 | H32: Pound | I32: 0.11 | K32: 0.2979166667 | L32: 0 | M32: 3.575 | N32: 0
C33: Mineral - Sheep | F33: 1.083333333 | H33: Pound | I33: 0.59 | K33: 0.6391666667 | L33: 0 | M33: 7.67 | N33: 0
F34: 0 | I34: 0 | K34: 0 | L34: 0 | M34: 0 | N34: 0
F35: 0 | I35: 0 | K35: 0 | L35: 0 | M35: 0 | N35: 0
F36: 0 | I36: 0 | K36: 0 | L36: 0 | M36: 0 | N36: 0
B37: Vet. Medicine
C38: Soremouth | F38: 1.25 | H38: Dose | I38: 0.32 | K38: 0.4 | L38: 0 | M38: 4.8 | N38: =+L38*E$7 -> 0
C39: S&G Deworm 1st | F39: 6.208333333 | H39: ml | I39: 0.12495 | K39: 0.77573125 | L39: 0 | M39: 9.308775 | N39: 0
C40: S&G Deworm 2nd | F40: 0.9933333333 | H40: Grams | I40: 0.4423076923 | K40: 0.4393589744 | L40: 0 | M40: 5.272307692 | N40: 0
F41: 0 | I41: 0 | K41: 0 | L41: 0 | M41: 0 | N41: 0
F42: 0 | I42: 0 | K42: 0 | L42: 0 | M42: 0 | N42: 0
F43: 0 | I43: 0 | K43: 0 | L43: 0 | M43: 0 | N43: 0
B44: Fuel | F44: 1 | H44: Head | I44: 3.95625 | K44: 3.95625 | L44: 0 | M44: 47.475 | N44: 0
B45: Lube (As a % of fuel) | F45: 0.1 | H45: Percent | I45: 3.95625 | K45: 0.395625 | L45: 0 | M45: 4.7475 | N45: 0
B46: Repairs | F46: 1 | H46: Head | I46: 32.57745536 | K46: 32.57745536 | L46: 0 | M46: 390.9294643 | N46: 0
B47: Labor | F47: 0 | H47: Hours | I47: 0 | K47: 0 | L47: 0 | M47: 0 | N47: 0
B48: Utilities | F48: 1 | H48: Head | I48: 6 | K48: 6 | L48: 0 | M48: 72 | N48: 0
K49: 0 | L49: =+J49*G49 -> 0 | M49: 0 | N49: 0
K50: 0 | L50: =+J50*G50 -> 0 | M50: 0 | N50: 0
K51: 0 | L51: 0 | M51: 0 | N51: 0
B52: Interest on Credit Line | I52: 0.0525 | K52: 3.265886218 | L52: =+SUM(L22:L51)/2*J52 -> 0 | M52: 39.19063461 | N52: 0
A53: Total Variable Costs | K53: 69.13859847 | L53: =+SUM(L24:L52) -> 0 | M53: 829.6631816 | N53: =+SUM(N24:N52) -> 0
A55: Planned Returns Above Variable Costs: | K55: 118.0007015 | L55: =+L18-L53 -> 0 | M55: 1416.008418 | N55: =+N18-N53 -> 0
B56: Average Kid Breakeven Price to Cover Variable Costs | I56: 46.95686456 | J56: =IF((E11*G11+E12*G12)=0,"n/a",(L53-SUM(L13:L17))/(E11*G11+E12*G12)) -> n/a | K56: CWT
M57: Enterprise | N57: Enterprise
A58: FIXED COSTS | F58: Quantity | G58: Quantity | H58: Units | I58: $/Unit | J58: $/Unit | K58: Total | L58: Total | M58: Total | N58: Total
B59: Depreciation - Equipment | F59: 1 | H59: Head | I59: 130.9328125 | K59: 130.9328125 | L59: =+G59*J59 -> 0 | M59: 1571.19375 | N59: =+L59*E$7 -> 0
B60: Depreciation - Livestock | F60: 1 | H60: Head | I60: 5.555555556 | K60: 5.555555556 | L60: 0 | M60: 66.66666667 | N60: 0
B61: Equipment Investment | F61: 1611.591667 | H61: dollars | I61: 0 | K61: 0 | L61: 0 | M61: 0 | N61: 0
B62: Insurance | F62: 1 | H62: Head | I62: 0 | K62: 0 | L62: 0 | M62: 0 | N62: 0
B63: Management Fee, Owner/Operator Labor | F63: 1 | H63: Head | I63: 0 | K63: 0 | L63: =+J63*G63 -> 0 | M63: 0 | N63: 0
B64: Salaried Labor | F64: 1 | H64: Head | I64: 0 | K64: 0 | L64: =+J64*G64 -> 0 | M64: 0 | N64: 0
B65: Pasture Cost | F65: 3.333333333 | H65: Acres | I65: 8 | K65: 26.66666667 | L65: 0 | M65: 320 | N65: 0
K66: 0 | L66: 0 | M66: 0 | N66: 0
K67: 0 | L67: 0 | M67: 0 | N67: 0
A68: Total Fixed Costs | K68: 163.1550347 | L68: =+SUM(L59:L65) -> 0 | M68: 1957.860417 | N68: =+SUM(N59:N65) -> 0
A69: Total Costs | K69: 232.2936332 | L69: =+L53+L68 -> 0 | M69: 2787.523598 | N69: =+N53+N68 -> 0
A70: Planned Returns to Management, Risk, and Profit: | K70: -45.15433319 | L70: =+L18-L69 -> 0 | M70: -541.8519983 | N70: =+N18-N69 -> 0
B71: Average Kid Breakeven Price to Cover Total Costs | I71: 320.7834963 | J71: =IF((E11*G11+E12*G12)=0,"n/a",(L69-SUM(L13:L17))/(E11*G11+E12*G12)) -> n/a | K71: CWT
C73: Sensitivity Analysis for Example
C74: Example Weaning Percent | D74: Example Gross Sales per Breeding Female | F74: Pounds Produced per Breeding Female | H74: Example Breakeven Kid Pay Weight to Cover Total Cost | K74: Example Average Breakeven Price to Cover Total Cost
C75: 1.45 | D75: 210.4959667 | F75: 96.61666667 | H75: 60.78987538 | K75: 276.5374968
C76: 1.35 | D76: 198.8176333 | F76: 91.85 | H76: 65.92704795 | K76: 297.0217558
C77: 1.25 | D77: 187.1393 | F77: 87.08333333 | H77: 72.01262161 | K77: 320.7834963
C78: 1.15 | D78: 175.4609667 | F78: 82.31666667 | H78: 79.33593906 | K78: 348.6777133
C79: 1.05 | D79: 163.7826333 | F79: 77.55 | H79: 88.31736612 | K79: 381.8851146
D81: ="Example Male "&F8&" Price" -> Example Male Kid Price | K81: =+I11 -> 245
D82: ="Example Female "&F8&" Price" -> Example Female Kid Price | K82: =+I12 -> 245
D83: ="Example Weighted Average "&F8&" Price ($/cwt)" -> Example Weighted Average Kid Price ($/cwt) | K83: =+(K11+K12)/(D11*F11+D12*F12) -> 245
C85: Sensitivity Analysis for Your Values
C86: Your Weaning Percent | D86: ="Your Gross Sales per "&F7 -> Your Gross Sales per Breeding Female | F86: ="Pounds Produced per " & F7 -> Pounds Produced per Breeding Female | H86: ="Your Breakeven "&F8&" Pay Weight to Cover Total Cost" -> Your Breakeven Kid Pay Weight to Cover Total Cost | K86: Your Average Breakeven Price to Cover Total Cost
C87: =+C88+C75-C76 -> 1.2 | D87: =+IF($C$89=0,0,$L$18-$L$11-$L$12+($L$11+$L$12)*C87/$C$89) -> 0 | F87: =IF($C$89=0,0,$M$93*C87/$C$89+$M$94) -> 0 | H87: =IF($D$89=0,0,(YTotExp-(YTotRet+YTotExp-$L$11-$L$12))/(YPrice/100)/(C87-$E$13*$E$7/$E$8)/($E$8/$E$7)) -> 0 | K87: =IF(F87-$M$94=0,0,(YTotExp-(YTotRet+YTotExp-$L$11-$L$12))/(F87-$M$94)*100) -> 0
C88: =+C89+C76-C77 -> 1.1 | D88: =+IF($C$89=0,0,$L$18-$L$11-$L$12+($L$11+$L$12)*C88/$C$89) -> 0 | F88: =IF($C$89=0,0,$M$93*C88/$C$89+$M$94) -> 0 | H88: =IF($D$89=0,0,(YTotExp-(YTotRet+YTotExp-$L$11-$L$12))/(YPrice/100)/(C88-$E$13*$E$7/$E$8)/($E$8/$E$7)) -> 0 | K88: =IF(F88-$M$94=0,0,(YTotExp-(YTotRet+YTotExp-$L$11-$L$12))/(F88-$M$94)*100) -> 0
C89: 1 | D89: =+L18 -> 0 | F89: =M93+M94 -> 0 | H89: =IF($D$89=0,0,(YTotExp-(YTotRet+YTotExp-$L$11-$L$12))/(YPrice/100)/(C89-$E$13*$E$7/$E$8)/($E$8/$E$7)) -> 0 | K89: =IF(F89-$M$94=0,0,(YTotExp-(YTotRet+YTotExp-$L$11-$L$12))/(F89-$M$94)*100) -> 0
C90: =+C89+C78-C77 -> 0.9 | D90: =+IF($C$89=0,0,$L$18-$L$11-$L$12+($L$11+$L$12)*C90/$C$89) -> 0 | F90: =IF($C$89=0,0,$M$93*C90/$C$89+$M$94) -> 0 | H90: =IF($D$89=0,0,(YTotExp-(YTotRet+YTotExp-$L$11-$L$12))/(YPrice/100)/(C90-$E$13*$E$7/$E$8)/($E$8/$E$7)) -> 0 | K90: =IF(F90-$M$94=0,0,(YTotExp-(YTotRet+YTotExp-$L$11-$L$12))/(F90-$M$94)*100) -> 0
C91: =+C90+C79-C78 -> 0.8 | D91: =+IF($C$89=0,0,$L$18-$L$11-$L$12+($L$11+$L$12)*C91/$C$89) -> 0 | F91: =IF($C$89=0,0,$M$93*C91/$C$89+$M$94) -> 0 | H91: =IF($D$89=0,0,(YTotExp-(YTotRet+YTotExp-$L$11-$L$12))/(YPrice/100)/(C91-$E$13*$E$7/$E$8)/($E$8/$E$7)) -> 0 | K91: =IF(F91-$M$94=0,0,(YTotExp-(YTotRet+YTotExp-$L$11-$L$12))/(F91-$M$94)*100) -> 0
D93: ="Your Male "&F8&" Price" -> Your Male Kid Price | K93: =+J11 -> 0 | M93: =(E11*G11+E12*G12)*100 -> 0
D94: ="Your Female "&F8&" Price" -> Your Female Kid Price | K94: =+J12 -> 0 | M94: =(E13*G13+E14*G14)*100 -> 0
D95: ="Your Weighted Average "&F8&" Price ($/cwt)" -> Your Weighted Average Kid Price ($/cwt) | K95: =+IF((E11*G11+E12*G12)=0,0,(L11+L12)/(E11*G11+E12*G12)) -> 0
A97: Developed by Bill Thompson, Associate Professor and Extension Economist, Texas A&M AgriLife Extension Service, 325-653-4576.
A99: Information presented is prepared solely as a general guide and not intended to recognize or predict the costs and returns from any one operation. Brand names are mentioned only as examples and imply no endorsement.

Sheet SmallAcreageHairSheep
A1: Projections for Planning Purposes Only -- Not to be Used without Updating
A2: 2018 Estimated Costs and Returns per Breeding Female
A3: Small Acreage Hair Sheep
A4: Enter your name for this budget in the cell above.
A5: Enter Your Values in the cells highlighed in MAROON.
E6: Your Ewe
B7: Animal Units (AU) | D7: 12 | E7: =E8 -> 0 | F7: Breeding Female | N7: Your
B8: Breeding Females | D8: 12 | F8: Lamb | G8: Your | M8: Enterprise | N8: Enterprise
E9: Your | F9: Quantity | G9: Quantity | J9: Your | L9: Your | M9: Total | N9: Total
A10: REVENUE | D10: Head | E10: Head | F10: Per Head | G10: Per Head | H10: Units | I10: $/Unit | J10: $/Unit | K10: Total | L10: Total | M10: ="(" & D8 & " Head)" -> (12 Head) | N10: ="(" & E8 & " Head)" -> ( Head)
B11: Slaughter Lamb - ewe (65lbs) | D11: 0.6666666667 | F11: 0.65 | H11: CWT | I11: 192 | K11: 83.2 | L11: =+E11*G11*J11 -> 0 | M11: 998.4 | N11: =+L11*E$7 -> 0
B12: Slaughter Lamb - ram (65 Lbs) | D12: 0.4166666667 | F12: 0.65 | H12: CWT | I12: 192 | K12: 52 | L12: =+E12*G12*J12 -> 0 | M12: 624 | N12: =+L12*E$7 -> 0
B13: Cull Ewes | D13: 0.1666666667 | F13: 1.25 | H13: CWT | I13: 71 | K13: 14.79166667 | L13: 0 | M13: 177.5 | N13: 0
B14: Cull Rams | D14: 0.04166666667 | F14: 2 | H14: CWT | I14: 81 | K14: 6.75 | L14: 0 | M14: 81 | N14: 0
B15: PRF Income | D15: 1 | F15: 3.33 | H15: Acre | I15: 1.96 | K15: 6.5268 | L15: 0 | M15: 78.3216 | N15: 0
D16: 0 | F16: 0 | I16: 0 | K16: 0 | L16: 0 | M16: 0 | N16: 0
D17: 0 | F17: 0 | I17: 0 | K17: 0 | L17: 0 | M17: 0 | N17: 0
A18: Total Revenue | F18: 70.41666667 | K18: 163.2684667 | L18: =+SUM(L11:L17) -> 0 | M18: 1959.2216 | N18: =+SUM(N11:N17) -> 0
F19: 99.58333333
F20: 29.16666667 | M20: Enterprise | N20: Enterprise
A21: VARIABLE COSTS | F21: Quantity | G21: Quantity | H21: Units | I21: $/Unit | J21: $/Unit | K21: Total | L21: Total | M21: Total | N21: Total
A22: Production Costs
B23: Miscellaneous
C24: Supplies | F24: 0.6666666667 | H24: Head | I24: 3 | K24: 2 | L24: =+J24*G24 -> 0 | M24: 24 | N24: =+L24*E$7 -> 0
C25: PRF Rainfall Ins | F25: 3.333333333 | H25: Acre | I25: 1.11 | K25: 3.7 | L25: 0 | M25: 44.4 | N25: 0
F26: 1 | I26: 0 | K26: 0 | L26: 0 | M26: 0 | N26: 0
F27: 1 | I27: 0 | K27: 0 | L27: 0 | M27: 0 | N27: 0
B28: Marketing Expense | F28: 1 | H28: Head | I28: 5.799166667 | K28: 5.799166667 | L28: 0 | M28: 69.59 | N28: 0
B29: Feed
C30: Range Cubes 20% | F30: 0.4875 | H30: CWT | I30: 16.1 | K30: 7.84875 | L30: =+J30*G30 -> 0 | M30: 94.185 | N30: =+L30*E$7 -> 0
C31: Corn - Sheep and Goat | F31: 24.375 | H31: Pound | I31: 0.0714 | K31: 1.740375 | L31: 0 | M31: 20.8845 | N31: 0
C32: Salt - Sheep | F32: 2.708333333 | H32: Pound | I32: 0.11 | K32: 0.2979166667 | L32: 0 | M32: 3.575 | N32: 0
C33: Mineral - Sheep | F33: 1.083333333 | H33: Pound | I33: 0.59 | K33: 0.6391666667 | L33: 0 | M33: 7.67 | N33: 0
F34: 0 | I34: 0 | K34: 0 | L34: 0 | M34: 0 | N34: 0
F35: 0 | I35: 0 | K35: 0 | L35: 0 | M35: 0 | N35: 0
F36: 0 | I36: 0 | K36: 0 | L36: 0 | M36: 0 | N36: 0
B37: Vet. Medicine
C38: Soremouth | F38: 1.25 | H38: Dose | I38: 0.32 | K38: 0.4 | L38: 0 | M38: 4.8 | N38: =+L38*E$7 -> 0
C39: Overeat/Tetnus | F39: 1.25 | H39: Dose | I39: 0.27 | K39: 0.3375 | L39: 0 | M39: 4.05 | N39: 0
F40: 0 | I40: 0 | K40: 0 | L40: 0 | M40: 0 | N40: 0
F41: 0 | I41: 0 | K41: 0 | L41: 0 | M41: 0 | N41: 0
F42: 0 | I42: 0 | K42: 0 | L42: 0 | M42: 0 | N42: 0
B43: Fuel | F43: 1 | H43: Head | I43: 4.3 | K43: 4.3 | L43: 0 | M43: 51.6 | N43: 0
B44: Lube (As a % of fuel) | F44: 0.1 | H44: Percent | I44: 4.3 | K44: 0.43 | L44: 0 | M44: 5.16 | N44: 0
B45: Repairs | F45: 1 | H45: Head | I45: 32.57745536 | K45: 32.57745536 | L45: 0 | M45: 390.9294643 | N45: 0
B46: Labor | F46: 0 | H46: Hours | I46: 0 | K46: 0 | L46: 0 | M46: 0 | N46: 0
B47: Utilities | F47: 1 | H47: Head | I47: 6 | K47: 6 | L47: 0 | M47: 72 | N47: 0
K48: 0 | L48: =+J48*G48 -> 0 | M48: 0 | N48: 0
K49: 0 | L49: =+J49*G49 -> 0 | M49: 0 | N49: 0
K50: 0 | L50: 0 | M50: 0 | N50: 0
B51: Interest on Credit Line | I51: 0.0525 | K51: 3.274248657 | L51: =+SUM(L22:L50)/2*J51 -> 0 | M51: 39.29098389 | N51: 0
A52: Total Variable Costs | K52: 69.34457901 | L52: =+SUM(L24:L51) -> 0 | M52: 832.1349482 | N52: =+SUM(N24:N51) -> 0
A54: Planned Returns Above Variable Costs: | K54: 93.92388765 | L54: =+L18-L52 -> 0 | M54: 1127.086652 | N54: =+N18-N52 -> 0
B55: Average Lamb Breakeven Price to Cover Variable Costs | I55: 58.61696428 | J55: =IF((E11*G11+E12*G12)=0,"n/a",(L52-SUM(L13:L17))/(E11*G11+E12*G12)) -> n/a | K55: CWT
M56: Enterprise | N56: Enterprise
A57: FIXED COSTS | F57: Quantity | G57: Quantity | H57: Units | I57: $/Unit | J57: $/Unit | K57: Total | L57: Total | M57: Total | N57: Total
B58: Depreciation - Equipment | F58: 1 | H58: Head | I58: 130.9328125 | K58: 130.9328125 | L58: =+G58*J58 -> 0 | M58: 1571.19375 | N58: =+L58*E$7 -> 0
B59: Depreciation - Livestock | F59: 1 | H59: Head | I59: 5.555555556 | K59: 5.555555556 | L59: 0 | M59: 66.66666667 | N59: 0
B60: Equipment Investment | F60: 1611.591667 | H60: dollars | I60: 0 | K60: 0 | L60: 0 | M60: 0 | N60: 0
B61: Insurance | F61: 1 | H61: Head | I61: 0 | K61: 0 | L61: 0 | M61: 0 | N61: 0
B62: Management Fee, Owner/Operator Labor | F62: 1 | H62: Head | I62: 0 | K62: 0 | L62: =+J62*G62 -> 0 | M62: 0 | N62: 0
B63: Salaried Labor | F63: 1 | H63: Head | I63: 0 | K63: 0 | L63: =+J63*G63 -> 0 | M63: 0 | N63: 0
B64: Pasture Cost | F64: 3.333333333 | H64: Acres | I64: 8 | K64: 26.66666667 | L64: 0 | M64: 320 | N64: 0
K65: 0 | L65: 0 | M65: 0 | N65: 0
K66: 0 | L66: 0 | M66: 0 | N66: 0
A67: Total Fixed Costs | K67: 163.1550347 | L67: =+SUM(L58:L64) -> 0 | M67: 1957.860417 | N67: =+SUM(N58:N64) -> 0
A68: Total Costs | K68: 232.4996137 | L68: =+L52+L67 -> 0 | M68: 2789.995365 | N68: =+N52+N67 -> 0
A69: Planned Returns to Management, Risk, and Profit: | K69: -69.23114707 | L69: =+L18-L68 -> 0 | M69: -830.7737648 | N69: =+N18-N68 -> 0
B70: Average Lamb Breakeven Price to Cover Total Costs | I70: 290.3164219 | J70: =IF((E11*G11+E12*G12)=0,"n/a",(L68-SUM(L13:L17))/(E11*G11+E12*G12)) -> n/a | K70: CWT
C72: Sensitivity Analysis for Example
C73: Example Weaning Percent | D73: Example Gross Sales per Breeding Female | F73: Pounds Produced per Breeding Female | H73: Example Breakeven Lamb Pay Weight to Cover Total Cost | K73: Example Average Breakeven Price to Cover Total Cost
C74: 1.45 | D74: 184.9004667 | F74: 110.85 | H74: 82.96718631 | K74: 250.2727775
C75: 1.35 | D75: 174.0844667 | F75: 105.2166667 | H75: 89.97849783 | K75: 268.8115017
C76: 1.25 | D76: 163.2684667 | F76: 99.58333333 | H76: 98.28420532 | K76: 290.3164219
C77: 1.15 | D77: 152.4524667 | F77: 93.95 | H77: 108.2792093 | K77: 315.5613281
C78: 1.05 | D78: 141.6364667 | F78: 88.31666667 | H78: 120.5372329 | K78: 345.6147879
D80: ="Example Male "&F8&" Price" -> Example Male Lamb Price | K80: =+I11 -> 192
D81: ="Example Female "&F8&" Price" -> Example Female Lamb Price | K81: =+I12 -> 192
D82: ="Example Weighted Average "&F8&" Price ($/cwt)" -> Example Weighted Average Lamb Price ($/cwt) | K82: =+(K11+K12)/(D11*F11+D12*F12) -> 192
C84: Sensitivity Analysis for Your Values
C85: Your Weaning Percent | D85: ="Your Gross Sales per "&F7 -> Your Gross Sales per Breeding Female | F85: ="Pounds Produced per " & F7 -> Pounds Produced per Breeding Female | H85: ="Your Breakeven "&F8&" Pay Weight to Cover Total Cost" -> Your Breakeven Lamb Pay Weight to Cover Total Cost | K85: Your Average Breakeven Price to Cover Total Cost
C86: =+C87+C74-C75 -> 1.2 | D86: =+IF($C$88=0,0,$L$18-$L$11-$L$12+($L$11+$L$12)*C86/$C$88) -> 0 | F86: =IF($C$88=0,0,$M$92*C86/$C$88+$M$93) -> 0 | H86: =IF($D$88=0,0,(YTotExp-(YTotRet+YTotExp-$L$11-$L$12))/(YPrice/100)/(C86-$E$13*$E$7/$E$8)/($E$8/$E$7)) -> 0 | K86: =IF(F86-$M$93=0,0,(YTotExp-(YTotRet+YTotExp-$L$11-$L$12))/(F86-$M$93)*100) -> 0
C87: =+C88+C75-C76 -> 1.1 | D87: =+IF($C$88=0,0,$L$18-$L$11-$L$12+($L$11+$L$12)*C87/$C$88) -> 0 | F87: =IF($C$88=0,0,$M$92*C87/$C$88+$M$93) -> 0 | H87: =IF($D$88=0,0,(YTotExp-(YTotRet+YTotExp-$L$11-$L$12))/(YPrice/100)/(C87-$E$13*$E$7/$E$8)/($E$8/$E$7)) -> 0 | K87: =IF(F87-$M$93=0,0,(YTotExp-(YTotRet+YTotExp-$L$11-$L$12))/(F87-$M$93)*100) -> 0
C88: 1 | D88: =+L18 -> 0 | F88: =M92+M93 -> 0 | H88: =IF($D$88=0,0,(YTotExp-(YTotRet+YTotExp-$L$11-$L$12))/(YPrice/100)/(C88-$E$13*$E$7/$E$8)/($E$8/$E$7)) -> 0 | K88: =IF(F88-$M$93=0,0,(YTotExp-(YTotRet+YTotExp-$L$11-$L$12))/(F88-$M$93)*100) -> 0
C89: =+C88+C77-C76 -> 0.9 | D89: =+IF($C$88=0,0,$L$18-$L$11-$L$12+($L$11+$L$12)*C89/$C$88) -> 0 | F89: =IF($C$88=0,0,$M$92*C89/$C$88+$M$93) -> 0 | H89: =IF($D$88=0,0,(YTotExp-(YTotRet+YTotExp-$L$11-$L$12))/(YPrice/100)/(C89-$E$13*$E$7/$E$8)/($E$8/$E$7)) -> 0 | K89: =IF(F89-$M$93=0,0,(YTotExp-(YTotRet+YTotExp-$L$11-$L$12))/(F89-$M$93)*100) -> 0
C90: =+C89+C78-C77 -> 0.8 | D90: =+IF($C$88=0,0,$L$18-$L$11-$L$12+($L$11+$L$12)*C90/$C$88) -> 0 | F90: =IF($C$88=0,0,$M$92*C90/$C$88+$M$93) -> 0 | H90: =IF($D$88=0,0,(YTotExp-(YTotRet+YTotExp-$L$11-$L$12))/(YPrice/100)/(C90-$E$13*$E$7/$E$8)/($E$8/$E$7)) -> 0 | K90: =IF(F90-$M$93=0,0,(YTotExp-(YTotRet+YTotExp-$L$11-$L$12))/(F90-$M$93)*100) -> 0
D92: ="Your Male "&F8&" Price" -> Your Male Lamb Price | K92: =+J11 -> 0 | M92: =(E11*G11+E12*G12)*100 -> 0
D93: ="Your Female "&F8&" Price" -> Your Female Lamb Price | K93: =+J12 -> 0 | M93: =(E13*G13+E14*G14)*100 -> 0
D94: ="Your Weighted Average "&F8&" Price ($/cwt)" -> Your Weighted Average Lamb Price ($/cwt) | K94: =+IF((E11*G11+E12*G12)=0,0,(L11+L12)/(E11*G11+E12*G12)) -> 0
A96: Developed by Bill Thompson, Associate Professor and Extension Economist, Texas A&M AgriLife Extension Service, 325-653-4576.
A98: Information presented is prepared solely as a general guide and not intended to recognize or predict the costs and returns from any one operation. Brand names are mentioned only as examples and imply no endorsement.

Sheet NativePastureStockers
A1: Projections for Planning Purposes Only -- Not to be Used without Updating
A2: 2018 Estimated Costs and Returns per Animal
A3: Stocker Calf Budget - Native Pasture - Summer
A4: Enter your name for this budget in the cell above.
A5: Enter Your Values in the cells highlighed in MAROON. | M5: Stocker
E6: Your Head | N6: Your
B7: Number of Head | D7: 200 | G7: Your | M7: Enterprise | N7: Enterprise
E8: Your | F8: Pay Weight | G8: Weight | J8: Your | L8: Your | M8: Total | N8: Total
A9: REVENUE | D9: Head | E9: Head | F9: or Amount | G9: or Amount | H9: Units | I9: $/Unit | J9: $/Unit | K9: Total | L9: Total | M9: ="(" & D7 & " Head)" -> (200 Head) | N9: ="(" & E7 & " Head)" -> ( Head)
B11: Stocker | D11: 0.985 | F11: 6.66792 | H11: CWT | I11: 143.25 | K11: 940.8518469 | L11: =+J11*G11*E11 -> 0 | M11: 188170.3694 | N11: =+L11*E$7 -> 0
D12: 0.985 | F12: 0 | I12: 0 | K12: 0 | L12: 0 | M12: 0 | N12: 0
D13: 0.985 | F13: 0 | I13: 0 | K13: 0 | L13: 0 | M13: 0 | N13: 0
A14: Total Revenue | K14: 940.8518469 | L14: =+L11 -> 0 | M14: 188170.3694 | N14: 0
M15: Enterprise | N15: Enterprise
A16: VARIABLE COSTS | F16: Quantity | G16: Quantity | H16: Units | I16: $/Unit | J16: $/Unit | K16: Total | L16: Total | M16: Total | N16: Total
A17: Production Costs
B18: Stocker Purchase | F18: 5 | H18: CWT | I18: 164.12 | K18: 820.6 | L18: =+J18*G18 -> 0 | M18: 164120 | N18: =+L18*E$7 -> 0
B19: Stocker Delivery | F19: 1 | H19: Head | I19: 5 | K19: 5 | L19: =+J19*G19 -> 0 | M19: 1000 | N19: =+L19*E$7 -> 0
B20: Grazing
C21: Acre Lease | F21: 0.005 | H21: Acre | I21: 0 | K21: 0 | L21: 0 | M21: 0 | N21: =+L21*E$7 -> 0
C22: Grazing by Month | F22: 3.0125 | H22: Month | I22: 20 | K22: 60.25 | L22: 0 | M22: 12050 | N22: 0
C23: Gain Contract | F23: 0 | H23: Pounds | I23: 0 | K23: 0 | L23: 0 | M23: 0 | N23: 0
C24: On Weight Per Month | F24: 0 | H24: Month | I24: 0 | K24: 0 | L24: =+G24*J24*G18 -> 0 | M24: 0 | N24: 0
B25: Health
C26: Vaccinate/process Stockers | F26: 1 | H26: Head | I26: 15 | K26: 15 | L26: =+J26*G26 -> 0 | M26: 3000 | N26: =+L26*E$7 -> 0
F27: 0 | I27: 0 | K27: 0 | L27: 0 | M27: 0 | N27: 0
F28: 0 | I28: 0 | K28: 0 | L28: 0 | M28: 0 | N28: 0
F29: 0 | I29: 0 | K29: 0 | L29: 0 | M29: 0 | N29: 0
B30: Feed
C31: Hay | F31: 0.1 | H31: Ton | I31: 117 | K31: 11.7 | L31: 0 | M31: 2340 | N31: 0
C32: Range Mineral | F32: 8.1 | H32: pound | I32: 0.397 | K32: 3.2157 | L32: 0 | M32: 643.14 | N32: 0
C33: Range Cubes 20% | F33: 0.25 | H33: CWT | I33: 16.1 | K33: 4.025 | L33: 0 | M33: 805 | N33: 0
F34: 0 | I34: 0 | K34: 0 | L34: 0 | M34: 0 | N34: 0
F35: 0 | I35: 0 | K35: 0 | L35: 0 | M35: 0 | N35: 0
F36: 0 | I36: 0 | K36: 0 | L36: 0 | M36: 0 | N36: 0
B37: Miscellaneous
F38: 1 | I38: 0 | K38: 0 | L38: =+J38*G38 -> 0 | M38: 0 | N38: =+L38*E$7 -> 0
F39: 1 | I39: 0 | K39: 0 | L39: 0 | M39: 0 | N39: 0
B40: Fuel | F40: 1 | H40: Head | I40: 5.1 | K40: 5.1 | L40: 0 | M40: 1020 | N40: 0
B41: Lube (As a % of fuel) | F41: 0.1 | H41: Percent | I41: 5.1 | K41: 0.51 | L41: 0 | M41: 102 | N41: 0
B42: Utilities | F42: 1 | H42: Head | I42: 3 | K42: 3 | L42: 0 | M42: 600 | N42: 0
B43: Repairs | F43: 1 | H43: Head | I43: 2.433936071 | K43: 2.433936071 | L43: 0 | M43: 486.7872143 | N43: 0
B44: Marketing | F44: 0.985 | H44: Head | I44: 18.5 | K44: 18.2225 | L44: 0 | M44: 3644.5 | N44: 0
B45: Labor | F45: 1 | H45: Head | I45: 1 | K45: 1 | L45: 0 | M45: 200 | N45: 0
K46: 0 | L46: =+J46*G46 -> 0 | M46: 0 | N46: =+L46*E$7 -> 0
K47: 0 | L47: =+J47*G47 -> 0 | M47: 0 | N47: =+L47*E$7 -> 0
B48: Interest on Credit Line | I48: 0.0525 | K48: 19.24935909 | L48: =+SUM(L18:L45)*J48/2 -> 0 | M48: 3849.871818 | N48: 0
A49: Total Variable Costs | K49: 969.3064952 | L49: =+SUM(L18:L48) -> 0 | M49: 193861.299 | N49: =+SUM(N18:N48) -> 0
A51: Planned Returns Above Variable Costs: | K51: -28.45464826 | L51: =+L14-L49 -> 0 | M51: -5690.929652 | N51: =+N14-N49 -> 0
B53: Breakeven Price to Cover Variable Costs | I53: 145.368645 | J53: =+IF(G11=0,"n/a",(L49-SUM(L12:L13))/(G11*E11)) -> n/a | K53: CWT
M54: Enterprise | N54: Enterprise
A55: FIXED COSTS | F55: Quantity | G55: Quantity | H55: Units | I55: $/Unit | J55: $/Unit | K55: Total | L55: Total | M55: Total | N55: Total
B57: Depreciation | F57: 1 | H57: Head | I57: 2.420662479 | K57: 2.420662479 | L57: =+J57*G57 -> 0 | M57: 484.1324957 | N57: =+L57*E$7 -> 0
B58: Equipment Investment | F58: 69.5529645 | H58: dollars | I58: 0.06 | K58: 4.17317787 | L58: 0 | M58: 834.635574 | N58: 0
B59: Salaried Labor | F59: 1 | H59: Head | I59: 0 | K59: 0 | L59: 0 | M59: 0 | N59: 0
B60: Management Fee, Owner/Operator Labor | F60: 1 | H60: Head | I60: 0 | K60: 0 | L60: 0 | M60: 0 | N60: 0
B61: Insurance | F61: 1 | H61: Head | I61: 0 | K61: 0 | L61: 0 | M61: 0 | N61: 0
K62: 0 | L62: 0 | M62: 0 | N62: 0
K63: 0 | L63: 0 | M63: 0 | N63: 0
A64: Total Fixed Costs | K64: 6.593840349 | L64: =+SUM(L57:L61) -> 0 | M64: 1318.76807 | N64: =+SUM(N57:N61) -> 0
A66: Total Costs | K66: 975.9003355 | L66: =+L49+L64 -> 0 | M66: 195180.0671 | N66: =+N49+N64 -> 0
A68: Planned Returns to Management, Risk, and Profit: | K68: -35.04848861 | L68: =+L51-L64 -> 0 | M68: -7009.697722 | N68: =+N51-N64 -> 0
A70: Breakeven Price to Cover Total Costs | I70: 146.3575351 | J70: =+IF(G11=0,"n/a",(L66-SUM(L12:L13))/(G11*E11)) -> n/a | K70: CWT
C72: Example Break Even Sensitivity Analysis
F73: Purchase Weight (Lbs/Hd): 500 | H73: Sales Price/Cwt of $Total
D74: Net Pay Weight | F74: Sales Price/Cwt 143.25 | H74: Purchase Price/Cwt 164.12
C75: ADG (Lbs/day) | D75: with Shrink | F75: B/E Purchase Price ($/CWT) | H75: B/E Sales Price ($/CWT)
C76: 1.308172549 | D76: 690.1504 | F76: 163.7021012 | H76: 143.5573698
C77: 1.19915817 | D77: 673.4712 | F77: 158.9951892 | H77: 147.1127142
C78: 1.090143791 | D78: 666.792 | F78: 157.1103023 | H78: 148.5863301
C79: 0.9811294118 | D79: 640.1128 | F79: 149.5813653 | H79: 154.7792455
C80: 0.8721150327 | D80: 623.4336 | F80: 144.8744534 | H80: 158.920174
C82: Your Average Daily Gain | E82: 0 | F82: Pounds per Day
C83: =+"Your Animal"&IF(M5="Stocker"," Grazing"," Feeding")&" Days" -> Your Animal Grazing Days | E83: 0 | F83: Days
C84: Your Sale Shrink | E84: 0
C86: Your Break Even Sensitivity Analysis
F87: =+"Purchase Weight (Lbs/Hd): "&G18*100 -> Purchase Weight (Lbs/Hd): 0 | H87: Sales Price/Cwt of $Total
D88: Net Pay Weight | F88: ="Sales Price/Cwt "&IF(J11="",".00",TEXT(J11,"#.00")) -> Sales Price/Cwt .00 | H88: ="Purchase Price/Cwt "&IF(J18="",".00",TEXT(J18,"#.00")) -> Purchase Price/Cwt .00
C89: ADG (Lbs/day) | D89: with Shrink | F89: B/E Purchase Price ($/CWT) | H89: B/E Sales Price ($/CWT)
C90: =+C92*1.2 -> 0 | D90: =+C90*$E$83+$G$18*100*(1-$E$84) -> 0 | F90: =IF($G$18=0,0,(((D90*$J$11/100*$E$11)-($L$49-SUM(J12:J13)-$L$18)-$L$64)/(100*$G$18))*100) -> 0 | H90: =IF($E$11=0,0,($L$66-SUM(J12:J13))/(D90*$E$11/100)) -> 0
C91: =+C92*1.1 -> 0 | D91: =+C91*$E$83+$G$18*100*(1-$E$84) -> 0 | F91: =IF($G$18=0,0,(((D91*$J$11/100*$E$11)-($L$49-SUM(J12:J14)-$L$18)-$L$64)/(100*$G$18))*100) -> 0 | H91: =IF($E$11=0,0,($L$66-SUM(J12:J14))/(D91*$E$11/100)) -> 0
C92: =+E82 -> 0 | D92: =+C92*$E$83+$G$18*100*(1-$E$84) -> 0 | F92: =IF($G$18=0,0,(((D92*$J$11/100*$E$11)-($L$49-SUM(J12:J15)-$L$18)-$L$64)/(100*$G$18))*100) -> 0 | H92: =IF($E$11=0,0,($L$66-SUM(J12:J15))/(D92*$E$11/100)) -> 0
C93: =+C92*0.9 -> 0 | D93: =+C93*$E$83+$G$18*100*(1-$E$84) -> 0 | F93: =IF($G$18=0,0,(((D93*$J$11/100*$E$11)-($L$49-SUM(J12:J16)-$L$18)-$L$64)/(100*$G$18))*100) -> 0 | H93: =IF($E$11=0,0,($L$66-SUM(J12:J16))/(D93*$E$11/100)) -> 0
C94: =+C92*0.8 -> 0 | D94: =+C94*$E$83+$G$18*100*(1-$E$84) -> 0 | F94: =IF($G$18=0,0,(((D94*$J$11/100*$E$11)-($L$49-SUM(J13:J17)-$L$18)-$L$64)/(100*$G$18))*100) -> 0 | H94: =IF($E$11=0,0,($L$66-SUM(J13:J17))/(D94*$E$11/100)) -> 0
A96: Developed by Bill Thompson, Associate Professor and Extension Economist, Texas A&M AgriLife Extension Service, 325-653-4576.
A98: Information presented is prepared solely as a general guide and not intended to recognize or predict the costs and returns from any one operation. Brand names are mentioned only as examples and imply no endorsement.

Sheet WheatStockersMar15
A1: Projections for Planning Purposes Only -- Not to be Used without Updating
A2: 2018 Estimated Costs and Returns per Animal
A3: Stocker Calf Budget - Pull off Wheat March 15
A4: Enter your name for this budget in the cell above.
A5: Enter Your Values in the cells highlighed in MAROON. | M5: Stocker
E6: Your Head | N6: Your
B7: Number of Head | D7: 250 | G7: Your | M7: Enterprise | N7: Enterprise
E8: Your | F8: Pay Weight | G8: Weight | J8: Your | L8: Your | M8: Total | N8: Total
A9: REVENUE | D9: Head | E9: Head | F9: or Amount | G9: or Amount | H9: Units | I9: $/Unit | J9: $/Unit | K9: Total | L9: Total | M9: ="(" & D7 & " Head)" -> (250 Head) | N9: ="(" & E7 & " Head)" -> ( Head)
B11: Stocker | D11: 0.98 | F11: 6.174 | H11: CWT | I11: 143.25 | K11: 866.73699 | L11: =+J11*G11*E11 -> 0 | M11: 216684.2475 | N11: =+L11*E$7 -> 0
D12: 0.98 | F12: 0 | I12: 0 | K12: 0 | L12: 0 | M12: 0 | N12: 0
D13: 0.98 | F13: 0 | I13: 0 | K13: 0 | L13: 0 | M13: 0 | N13: 0
A14: Total Revenue | K14: 866.73699 | L14: =+L11 -> 0 | M14: 216684.2475 | N14: 0
M15: Enterprise | N15: Enterprise
A16: VARIABLE COSTS | F16: Quantity | G16: Quantity | H16: Units | I16: $/Unit | J16: $/Unit | K16: Total | L16: Total | M16: Total | N16: Total
A17: Production Costs
B18: Stocker Purchase | F18: 4.5 | H18: CWT | I18: 165 | K18: 742.5 | L18: =+J18*G18 -> 0 | M18: 185625 | N18: =+L18*E$7 -> 0
B19: Stocker Delivery | F19: 1 | H19: Head | I19: 5 | K19: 5 | L19: =+J19*G19 -> 0 | M19: 1250 | N19: =+L19*E$7 -> 0
B20: Grazing
C21: Acre Lease | F21: 0.004 | H21: Acre | I21: 0 | K21: 0 | L21: 0 | M21: 0 | N21: =+L21*E$7 -> 0
C22: Grazing by Month | F22: 0 | H22: Month | I22: 0 | K22: 0 | L22: 0 | M22: 0 | N22: 0
C23: Gain Contract | F23: 170.8163265 | H23: Pounds | I23: 0.4 | K23: 68.32653061 | L23: 0 | M23: 17081.63265 | N23: 0
C24: On Weight Per Month | F24: 0 | H24: Month | I24: 0 | K24: 0 | L24: =+G24*J24*G18 -> 0 | M24: 0 | N24: 0
B25: Health
C26: Vaccinate/process Stockers | F26: 1 | H26: Head | I26: 15 | K26: 15 | L26: =+J26*G26 -> 0 | M26: 3750 | N26: =+L26*E$7 -> 0
F27: 0 | I27: 0 | K27: 0 | L27: 0 | M27: 0 | N27: 0
F28: 0 | I28: 0 | K28: 0 | L28: 0 | M28: 0 | N28: 0
F29: 0 | I29: 0 | K29: 0 | L29: 0 | M29: 0 | N29: 0
B30: Feed
C31: Hay | F31: 0.1125 | H31: Ton | I31: 117 | K31: 13.1625 | L31: 0 | M31: 3290.625 | N31: 0
C32: Salt & Mineral - Stockers | F32: 6.4 | H32: Pounds | I32: 0.23 | K32: 1.472 | L32: 0 | M32: 368 | N32: 0
F33: 0 | I33: 0 | K33: 0 | L33: 0 | M33: 0 | N33: 0
F34: 0 | I34: 0 | K34: 0 | L34: 0 | M34: 0 | N34: 0
F35: 0 | I35: 0 | K35: 0 | L35: 0 | M35: 0 | N35: 0
B36: Miscellaneous
F37: 1 | I37: 0 | K37: 0 | L37: =+J37*G37 -> 0 | M37: 0 | N37: =+L37*E$7 -> 0
F38: 1 | I38: 0 | K38: 0 | L38: 0 | M38: 0 | N38: 0
B39: Fuel | F39: 1 | H39: Head | I39: 4.08 | K39: 4.08 | L39: 0 | M39: 1020 | N39: 0
B40: Lube (As a % of fuel) | F40: 0.1 | H40: Percent | I40: 4.08 | K40: 0.408 | L40: 0 | M40: 102 | N40: 0
B41: Utilities | F41: 1 | H41: Head | I41: 3 | K41: 3 | L41: 0 | M41: 750 | N41: 0
B42: Repairs | F42: 1 | H42: Head | I42: 1.914 | K42: 1.914 | L42: 0 | M42: 478.5 | N42: 0
B43: Marketing | F43: 0.98 | H43: Head | I43: 18 | K43: 17.64 | L43: 0 | M43: 4410 | N43: 0
B44: Labor | F44: 1 | H44: Head | I44: 26.928 | K44: 26.928 | L44: 0 | M44: 6732 | N44: 0
K45: 0 | L45: =+J45*G45 -> 0 | M45: 0 | N45: =+L45*E$7 -> 0
K46: 0 | L46: =+J46*G46 -> 0 | M46: 0 | N46: =+L46*E$7 -> 0
B47: Interest on Credit Line | I47: 0.0525 | K47: 13.91287311 | L47: =+SUM(L18:L44)*J47/2 -> 0 | M47: 3478.218277 | N47: 0
A48: Total Variable Costs | K48: 913.3439037 | L48: =+SUM(L18:L47) -> 0 | M48: 228335.9759 | N48: =+SUM(N18:N47) -> 0
A50: Planned Returns Above Variable Costs: | K50: -46.60691372 | L50: =+L14-L48 -> 0 | M50: -11651.72843 | N50: =+N14-N48 -> 0
B52: Breakeven Price to Cover Variable Costs | I52: 147.9339008 | J52: =+IF(G11=0,"n/a",(L48-SUM(L12:L13))/(G11*E11)) -> n/a | K52: CWT
M53: Enterprise | N53: Enterprise
A54: FIXED COSTS | F54: Quantity | G54: Quantity | H54: Units | I54: $/Unit | J54: $/Unit | K54: Total | L54: Total | M54: Total | N54: Total
B56: Depreciation | F56: 1 | H56: Head | I56: 4.770714286 | K56: 4.770714286 | L56: =+J56*G56 -> 0 | M56: 1192.678571 | N56: =+L56*E$7 -> 0
B57: Equipment Investment | F57: 57.5925 | H57: dollars | I57: 0.06 | K57: 3.45555 | L57: 0 | M57: 863.8875 | N57: 0
B58: Salaried Labor | F58: 1 | H58: Head | I58: 0 | K58: 0 | L58: 0 | M58: 0 | N58: 0
B59: Management Fee, Owner/Operator Labor | F59: 1 | H59: Head | I59: 0 | K59: 0 | L59: 0 | M59: 0 | N59: 0
B60: Insurance | F60: 1 | H60: Head | I60: 0 | K60: 0 | L60: 0 | M60: 0 | N60: 0
K61: 0 | L61: 0 | M61: 0 | N61: 0
K62: 0 | L62: 0 | M62: 0 | N62: 0
A63: Total Fixed Costs | K63: 8.226264286 | L63: =+SUM(L56:L60) -> 0 | M63: 2056.566071 | N63: =+SUM(N56:N60) -> 0
A65: Total Costs | K65: 921.570168 | L65: =+L48+L63 -> 0 | M65: 230392.542 | N65: =+N48+N63 -> 0
A67: Planned Returns to Management, Risk, and Profit: | K67: -54.83317801 | L67: =+L50-L63 -> 0 | M67: -13708.2945 | N67: =+N50-N63 -> 0
A69: Breakeven Price to Cover Total Costs | I69: 149.2663052 | J69: =+IF(G11=0,"n/a",(L65-SUM(L12:L13))/(G11*E11)) -> n/a | K69: CWT
C71: Example Break Even Sensitivity Analysis
F72: Purchase Weight (Lbs/Hd): 450 | H72: Sales Price/Cwt of $Total
D73: Net Pay Weight | F73: Sales Price/Cwt 143.25 | H73: Purchase Price/Cwt 165.00
C74: ADG (Lbs/day) | D74: with Shrink | F74: B/E Purchase Price ($/CWT) | H74: B/E Sales Price ($/CWT)
C75: 1.674 | D75: 641.88 | F75: 160.4517933 | H75: 146.5036646
C76: 1.5345 | D76: 625.14 | F76: 155.2294713 | H76: 150.42674
C77: 1.395 | D77: 617.4 | F77: 152.8148493 | H77: 152.3125563
C78: 1.2555 | D78: 591.66 | F78: 144.7848273 | H78: 158.9388707
C79: 1.116 | D79: 574.92 | F79: 139.5625053 | H79: 163.5667088
C81: Your Average Daily Gain | E81: 0 | F81: Pounds per Day
C82: =+"Your Animal"&IF(M5="Stocker"," Grazing"," Feeding")&" Days" -> Your Animal Grazing Days | E82: 0 | F82: Days
C83: Your Sale Shrink | E83: 0
C85: Your Break Even Sensitivity Analysis
F86: =+"Purchase Weight (Lbs/Hd): "&G18*100 -> Purchase Weight (Lbs/Hd): 0 | H86: Sales Price/Cwt of $Total
D87: Net Pay Weight | F87: ="Sales Price/Cwt "&IF(J11="",".00",TEXT(J11,"#.00")) -> Sales Price/Cwt .00 | H87: ="Purchase Price/Cwt "&IF(J18="",".00",TEXT(J18,"#.00")) -> Purchase Price/Cwt .00
C88: ADG (Lbs/day) | D88: with Shrink | F88: B/E Purchase Price ($/CWT) | H88: B/E Sales Price ($/CWT)
C89: =+C91*1.2 -> 0 | D89: =+C89*$E$82+$G$18*100*(1-$E$83) -> 0 | F89: =IF($G$18=0,0,(((D89*$J$11/100*$E$11)-($L$48-SUM(J12:J13)-$L$18)-$L$63)/(100*$G$18))*100) -> 0 | H89: =IF($E$11=0,0,($L$65-SUM(J12:J13))/(D89*$E$11/100)) -> 0
C90: =+C91*1.1 -> 0 | D90: =+C90*$E$82+$G$18*100*(1-$E$83) -> 0 | F90: =IF($G$18=0,0,(((D90*$J$11/100*$E$11)-($L$48-SUM(J12:J14)-$L$18)-$L$63)/(100*$G$18))*100) -> 0 | H90: =IF($E$11=0,0,($L$65-SUM(J12:J14))/(D90*$E$11/100)) -> 0
C91: =+E81 -> 0 | D91: =+C91*$E$82+$G$18*100*(1-$E$83) -> 0 | F91: =IF($G$18=0,0,(((D91*$J$11/100*$E$11)-($L$48-SUM(J12:J15)-$L$18)-$L$63)/(100*$G$18))*100) -> 0 | H91: =IF($E$11=0,0,($L$65-SUM(J12:J15))/(D91*$E$11/100)) -> 0
C92: =+C91*0.9 -> 0 | D92: =+C92*$E$82+$G$18*100*(1-$E$83) -> 0 | F92: =IF($G$18=0,0,(((D92*$J$11/100*$E$11)-($L$48-SUM(J12:J16)-$L$18)-$L$63)/(100*$G$18))*100) -> 0 | H92: =IF($E$11=0,0,($L$65-SUM(J12:J16))/(D92*$E$11/100)) -> 0
C93: =+C91*0.8 -> 0 | D93: =+C93*$E$82+$G$18*100*(1-$E$83) -> 0 | F93: =IF($G$18=0,0,(((D93*$J$11/100*$E$11)-($L$48-SUM(J13:J17)-$L$18)-$L$63)/(100*$G$18))*100) -> 0 | H93: =IF($E$11=0,0,($L$65-SUM(J13:J17))/(D93*$E$11/100)) -> 0
A95: Developed by Bill Thompson, Associate Professor and Extension Economist, Texas A&M AgriLife Extension Service, 325-653-4576.
A97: Information presented is prepared solely as a general guide and not intended to recognize or predict the costs and returns from any one operation. Brand names are mentioned only as examples and imply no endorsement.

Sheet FatLambs
A1: Projections for Planning Purposes Only -- Not to be Used without Updating
A2: 2018 Estimated Costs and Returns per Animal
A3: Wool Breed Fat Lamb Budget - Commercial Feedlot
A4: Enter your name for this budget in the cell above.
A5: Enter Your Values in the cells highlighed in MAROON. | M5: Feeder
E6: Your Head | N6: Your
B7: Number of Head | D7: 700 | G7: Your | M7: Enterprise | N7: Enterprise
E8: Your | F8: Pay Weight | G8: Weight | J8: Your | L8: Your | M8: Total | N8: Total
A9: REVENUE | D9: Head | E9: Head | F9: or Amount | G9: or Amount | H9: Units | I9: $/Unit | J9: $/Unit | K9: Total | L9: Total | M9: ="(" & D7 & " Head)" -> (700 Head) | N9: ="(" & E7 & " Head)" -> ( Head)
B11: Feeder | D11: 0.95 | F11: 1.4355 | H11: CWT | I11: 135 | K11: 184.102875 | L11: =+J11*G11*E11 -> 0 | M11: 128872.0125 | N11: =+L11*E$7 -> 0
B12: Wool, Feeders-short | D12: 0.95 | F12: 3.04 | H12: Pound | I12: 1.25 | K12: 3.61 | L12: 0 | M12: 2527 | N12: 0
D13: 0.95 | F13: 0 | I13: 0 | K13: 0 | L13: 0 | M13: 0 | N13: 0
D14: 0.95 | F14: 0 | I14: 0 | K14: 0 | L14: 0 | M14: 0 | N14: 0
A15: Total Revenue | K15: 187.712875 | L15: =+L11 -> 0 | M15: 131399.0125 | N15: 0
M16: Enterprise | N16: Enterprise
A17: VARIABLE COSTS | F17: Quantity | G17: Quantity | H17: Units | I17: $/Unit | J17: $/Unit | K17: Total | L17: Total | M17: Total | N17: Total
A18: Production Costs
B19: Feeder Purchase | F19: 0.75 | H19: CWT | I19: 178.06 | K19: 133.545 | L19: =+J19*G19 -> 0 | M19: 93481.5 | N19: =+L19*E$7 -> 0
B20: Feeder Delivery | F20: 1 | H20: Head | I20: 1 | K20: 1 | L20: =+J20*G20 -> 0 | M20: 700 | N20: =+L20*E$7 -> 0
B21: Grazing
C22: Acre Lease | F22: 0.001428571429 | H22: Acre | I22: 0 | K22: 0 | L22: 0 | M22: 0 | N22: =+L22*E$7 -> 0
C23: Grazing by Month | F23: 0 | H23: Month | I23: 0 | K23: 0 | L23: 0 | M23: 0 | N23: 0
C24: Gain Contract | F24: 0 | H24: Pounds | I24: 0 | K24: 0 | L24: 0 | M24: 0 | N24: 0
C25: On Weight Per Month | F25: 0 | H25: Month | I25: 0 | K25: 0 | L25: =+G25*J25*G19 -> 0 | M25: 0 | N25: 0
B26: Health
C27: Overeat/Tetnus | F27: 1 | H27: Dose | I27: 0.27 | K27: 0.27 | L27: =+J27*G27 -> 0 | M27: 189 | N27: =+L27*E$7 -> 0
C28: Fenbendazole drench | F28: 1.875 | H28: ml | I28: 0.1 | K28: 0.1875 | L28: 0 | M28: 131.25 | N28: 0
F29: 0 | I29: 0 | K29: 0 | L29: 0 | M29: 0 | N29: 0
F30: 0 | I30: 0 | K30: 0 | L30: 0 | M30: 0 | N30: 0
F31: 0 | I31: 0 | K31: 0 | L31: 0 | M31: 0 | N31: 0
B32: Feed
C33: HayGrazer | F33: 0.002857142857 | H33: Ton | I33: 117 | K33: 0.3342857143 | L33: 0 | M33: 234 | N33: 0
C34: Lamb Feedlot Ration | F34: 0.2029857143 | H34: Ton | I34: 200 | K34: 40.59714286 | L34: 0 | M34: 28418 | N34: 0
F35: 0 | I35: 0 | K35: 0 | L35: 0 | M35: 0 | N35: 0
F36: 0 | I36: 0 | K36: 0 | L36: 0 | M36: 0 | N36: 0
F37: 0 | I37: 0 | K37: 0 | L37: 0 | M37: 0 | N37: 0
B38: Miscellaneous
C39: Shear Feeder Lambs | F39: 0.9985714286 | H39: Head | I39: 2 | K39: 1.997142857 | L39: =+J39*G39 -> 0 | M39: 1398 | N39: =+L39*E$7 -> 0
F40: 1 | I40: 0 | K40: 0 | L40: 0 | M40: 0 | N40: 0
F41: 1 | I41: 0 | K41: 0 | L41: 0 | M41: 0 | N41: 0
B42: Fuel | F42: 1 | H42: Head | I42: 0.344 | K42: 0.344 | L42: 0 | M42: 240.8 | N42: 0
B43: Lube (As a % of fuel) | F43: 0.1 | H43: Percent | I43: 0.344 | K43: 0.0344 | L43: 0 | M43: 24.08 | N43: 0
B44: Utilities | F44: 1 | H44: Head | I44: 0.25 | K44: 0.25 | L44: 0 | M44: 175 | N44: 0
B45: Repairs | F45: 1 | H45: Head | I45: 0.1999326871 | K45: 0.1999326871 | L45: 0 | M45: 139.952881 | N45: 0
B46: Marketing | F46: 0.95 | H46: Head | I46: 8.42 | K46: 7.999 | L46: 0 | M46: 5599.3 | N46: 0
B47: Labor | F47: 1 | H47: Head | I47: 0 | K47: 0 | L47: 0 | M47: 0 | N47: 0
K48: 0 | L48: =+J48*G48 -> 0 | M48: 0 | N48: =+L48*E$7 -> 0
K49: 0 | L49: =+J49*G49 -> 0 | M49: 0 | N49: =+L49*E$7 -> 0
B50: Interest on Credit Line | I50: 0.0525 | K50: 2.534792024 | L50: =+SUM(L19:L47)*J50/2 -> 0 | M50: 1774.354417 | N50: 0
A51: Total Variable Costs | K51: 189.2931961 | L51: =+SUM(L19:L50) -> 0 | M51: 132505.2373 | N51: =+SUM(N19:N50) -> 0
A53: Planned Returns Above Variable Costs: | K53: -1.58032114 | L53: =+L15-L51 -> 0 | M53: -1106.224798 | N53: =+N15-N51 -> 0
B55: Breakeven Price to Cover Variable Costs | I55: 136.1588268 | J55: =+IF(G11=0,"n/a",(L51-SUM(L12:L14))/(G11*E11)) -> n/a | K55: CWT
M56: Enterprise | N56: Enterprise
A57: FIXED COSTS | F57: Quantity | G57: Quantity | H57: Units | I57: $/Unit | J57: $/Unit | K57: Total | L57: Total | M57: Total | N57: Total
B59: Depreciation | F59: 1 | H59: Head | I59: 0.6713028891 | K59: 0.6713028891 | L59: =+J59*G59 -> 0 | M59: 469.9120224 | N59: =+L59*E$7 -> 0
B60: Equipment Investment | F60: 8.804091857 | H60: dollars | I60: 0.06 | K60: 0.5282455114 | L60: 0 | M60: 369.771858 | N60: 0
B61: Salaried Labor | F61: 1 | H61: Head | I61: 0 | K61: 0 | L61: 0 | M61: 0 | N61: 0
B62: Management Fee, Owner/Operator Labor | F62: 1 | H62: Head | I62: 3.5 | K62: 3.5 | L62: 0 | M62: 2450 | N62: 0
B63: Insurance | F63: 1 | H63: Head | I63: 0 | K63: 0 | L63: 0 | M63: 0 | N63: 0
K64: 0 | L64: 0 | M64: 0 | N64: 0
K65: 0 | L65: 0 | M65: 0 | N65: 0
A66: Total Fixed Costs | K66: 4.699548401 | L66: =+SUM(L59:L63) -> 0 | M66: 3289.68388 | N66: =+SUM(N59:N63) -> 0
A68: Total Costs | K68: 193.9927445 | L68: =+L51+L66 -> 0 | M68: 135794.9212 | N68: =+N51+N66 -> 0
A70: Planned Returns to Management, Risk, and Profit: | K70: -6.27986954 | L70: =+L53-L66 -> 0 | M70: -4395.908678 | N70: =+N53-N66 -> 0
A72: Breakeven Price to Cover Total Costs | I72: 139.6049383 | J72: =+IF(G11=0,"n/a",(L68-SUM(L12:L14))/(G11*E11)) -> n/a | K72: CWT
C74: Example Break Even Sensitivity Analysis
F75: Purchase Weight (Lbs/Hd): 75 | H75: Sales Price/Cwt of $Total
D76: Net Pay Weight | F76: Sales Price/Cwt 135.00 | H76: Purchase Price/Cwt 178.06
C77: ADG (Lbs/day) | D77: with Shrink | F77: B/E Purchase Price ($/CWT) | H77: B/E Sales Price ($/CWT)
C78: 0.7687850467 | D78: 156.51 | F78: 188.7017739 | H78: 128.0447824
C79: 0.7047196262 | D79: 149.655 | F79: 175.3130573 | H79: 133.9099188
C80: 0.6406542056 | D80: 143.55 | F80: 164.8735073 | H80: 139.6049383
C81: 0.576588785 | D81: 135.945 | F81: 151.8689573 | H81: 147.4146817
C82: 0.5125233645 | D82: 129.09 | F82: 140.1469073 | H82: 155.2427678
C84: Your Average Daily Gain | E84: 0 | F84: Pounds per Day
C85: =+"Your Animal"&IF(M5="Stocker"," Grazing"," Feeding")&" Days" -> Your Animal Feeding Days | E85: 0 | F85: Days
C86: Your Sale Shrink | E86: 0
C88: Your Break Even Sensitivity Analysis
F89: =+"Purchase Weight (Lbs/Hd): "&G19*100 -> Purchase Weight (Lbs/Hd): 0 | H89: Sales Price/Cwt of $Total
D90: Net Pay Weight | F90: ="Sales Price/Cwt "&IF(J11="",".00",TEXT(J11,"#.00")) -> Sales Price/Cwt .00 | H90: ="Purchase Price/Cwt "&IF(J19="",".00",TEXT(J19,"#.00")) -> Purchase Price/Cwt .00
C91: ADG (Lbs/day) | D91: with Shrink | F91: B/E Purchase Price ($/CWT) | H91: B/E Sales Price ($/CWT)
C92: =+C94*1.2 -> 0 | D92: =+C92*$E$85+$G$19*100*(1-$E$86) -> 0 | F92: =IF($G$19=0,0,(((D92*$J$11/100*$E$11)-($L$51-SUM(J12:J14)-$L$19)-$L$66)/(100*$G$19))*100) -> 0 | H92: =IF($E$11=0,0,($L$68-SUM(J12:J14))/(D92*$E$11/100)) -> 0
C93: =+C94*1.1 -> 0 | D93: =+C93*$E$85+$G$19*100*(1-$E$86) -> 0 | F93: =IF($G$19=0,0,(((D93*$J$11/100*$E$11)-($L$51-SUM(J13:J15)-$L$19)-$L$66)/(100*$G$19))*100) -> 0 | H93: =IF($E$11=0,0,($L$68-SUM(J13:J15))/(D93*$E$11/100)) -> 0
C94: =+E84 -> 0 | D94: =+C94*$E$85+$G$19*100*(1-$E$86) -> 0 | F94: =IF($G$19=0,0,(((D94*$J$11/100*$E$11)-($L$51-SUM(J13:J16)-$L$19)-$L$66)/(100*$G$19))*100) -> 0 | H94: =IF($E$11=0,0,($L$68-SUM(J13:J16))/(D94*$E$11/100)) -> 0
C95: =+C94*0.9 -> 0 | D95: =+C95*$E$85+$G$19*100*(1-$E$86) -> 0 | F95: =IF($G$19=0,0,(((D95*$J$11/100*$E$11)-($L$51-SUM(J13:J17)-$L$19)-$L$66)/(100*$G$19))*100) -> 0 | H95: =IF($E$11=0,0,($L$68-SUM(J13:J17))/(D95*$E$11/100)) -> 0
C96: =+C94*0.8 -> 0 | D96: =+C96*$E$85+$G$19*100*(1-$E$86) -> 0 | F96: =IF($G$19=0,0,(((D96*$J$11/100*$E$11)-($L$51-SUM(J14:J18)-$L$19)-$L$66)/(100*$G$19))*100) -> 0 | H96: =IF($E$11=0,0,($L$68-SUM(J14:J18))/(D96*$E$11/100)) -> 0
A98: Developed by Bill Thompson, Associate Professor and Extension Economist, Texas A&M AgriLife Extension Service, 325-653-4576.
A100: Information presented is prepared solely as a general guide and not intended to recognize or predict the costs and returns from any one operation. Brand names are mentioned only as examples and imply no endorsement.

Sheet Livestock Budget
A1: Estimated Costs and Returns per Animal or Breeding Female
A3: Livestock Enterprise
A5: Number of Head of Livestock | D5: 0
A7: Enter Your Values in the cells highlighed in MAROON. | H7: Enterprise
A8: REVENUE | C8: Head | D8: Quantity | E8: Units | F8: $/Unit | G8: Total | H8: Total
B9: Males Sold | C9: 0 | D9: 0 | E9: CWT | F9: 0 | G9: =IF($D$5=0,0,C9/$D$5*D9*F9) -> 0 | H9: =+G9*$D$5 -> 0
B10: Females Sold | C10: 0 | D10: 0 | E10: CWT | F10: 0 | G10: =IF($D$5=0,0,C10/$D$5*D10*F10) -> 0 | H10: =+G10*$D$5 -> 0
B11: Cull Breeding Females | C11: 0 | D11: 0 | E11: CWT | F11: 0 | G11: 0 | H11: 0
B12: Cull Breeding Males | C12: 0 | D12: 0 | E12: CWT | F12: 0 | G12: 0 | H12: 0
B13: Stocker or Feed Animal | C13: 0 | D13: 0 | E13: CWT | F13: 0 | G13: 0 | H13: 0
B14: Other Revenue | C14: 0 | D14: 0 | E14: CWT | F14: 0 | G14: 0 | H14: 0
B15: Other Revenue | C15: 0 | D15: 0 | E15: CWT | F15: 0 | G15: 0 | H15: 0
B16: Other Revenue | C16: 0 | D16: 0 | E16: CWT | F16: 0 | G16: 0 | H16: 0
A18: Total Revenue | G18: =+SUM(G9:G17) -> 0 | H18: =+SUM(H9:H17) -> 0
H20: Enterprise
A21: VARIABLE COSTS | D21: Quantity | E21: Units | F21: $/Unit | G21: Total | H21: Total
A22: Production Costs
B23: Animal Purchase Price, if applicable | D23: 0 | E23: Cwt | F23: 0 | G23: =D23*F23 -> 0 | H23: =+G23*$D$5 -> 0
B24: Pasture | C24: =+SUM(G25:G28) -> 0
C25: Pasture 1 | D25: 0 | E25: Acre | F25: 0 | G25: =D25*F25 -> 0 | H25: =+G25*$D$5 -> 0
C26: Pasture 2 | D26: 0 | E26: Acre | F26: 0 | G26: 0 | H26: 0
C27: Pasture 3 | D27: 0 | E27: Acre | F27: 0 | G27: 0 | H27: 0
C28: Pasture 4 | D28: 0 | E28: Acre | F28: 0 | G28: 0 | H28: 0
B29: Feed | C29: =SUM(G30:G37) -> 0
C30: Hay | D30: 0 | E30: Bales | F30: 0 | G30: =D30*F30 -> 0 | H30: =+G30*$D$5 -> 0
C31: Supplement | D31: 0 | E31: Cwt,lb,etc | F31: 0 | G31: =D31*F31 -> 0 | H31: =+G31*$D$5 -> 0
C32: Salt Minerals | D32: 0 | E32: Cwt | F32: 0 | G32: 0 | H32: 0
C33: Other Feed | D33: 0 | E33: Cwt,lb,etc | F33: 0 | G33: 0 | H33: 0
C34: Other Feed | D34: 0 | E34: Cwt,lb,etc | F34: 0 | G34: 0 | H34: 0
C35: Other Feed | D35: 0 | E35: Cwt,lb,etc | F35: 0 | G35: 0 | H35: 0
C36: Other Feed | D36: 0 | E36: Cwt,lb,etc | F36: 0 | G36: 0 | H36: 0
C37: Other Feed | D37: 0 | E37: Cwt,lb,etc | F37: 0 | G37: 0 | H37: 0
B38: Health | C38: =SUM(G39:G48) -> 0
C39: Vet/Medicine 1 | D39: 0 | E39: Visit,dose,cc's, etc. | F39: 0 | G39: =D39*F39 -> 0 | H39: =+G39*$D$5 -> 0
C40: Vet/Medicine 2 | D40: 0 | E40: Visit,dose,cc's, etc. | F40: 0 | G40: 0 | H40: 0
C41: Vet/Medicine 3 | D41: 0 | E41: Visit,dose,cc's, etc. | F41: 0 | G41: 0 | H41: 0
C42: Vet/Medicine 4 | D42: 0 | E42: Visit,dose,cc's, etc. | F42: 0 | G42: 0 | H42: 0
C43: Vet/Medicine 5 | D43: 0 | E43: Visit,dose,cc's, etc. | F43: 0 | G43: 0 | H43: 0
